Workbook

Sheet Zmeny
B1: Změna
A2: Datum | B2: Rev | C2: Popis
A3: 2023-12-17 | B3: 00 | C3: První draft
A4: 2024-01-10 | B4: 01 | C4: Vezrze schválená Plachtařskou komisí AeČR
A5: 2024-01-19 | B5: 02 | C5: Doplněn Alpe Adria Cup 2023, oprava roků narození
A6: 2024-02-08 | B6: 03 | C6: Oprava chyby s velkými písmeny v názvu pilota

Sheet Soutez
A1: Soutěž | B1: Stát | C1: Rok | D1: Místo | E1: Termín | F1: Poč. disc. | G1: Poč. pilotů | H1: Ki | I1: Kn1 | J1: Kn2 | K1: Kp | L1: Kinp | M1: dKinp | N1: Poznámka | O1: Results
A2: Zařazené soutěže 2021:
A3: JPJ 2021 - Klub | B3: CZ | C3: 2021 | D3: Šumperk | E3: 24.7.-31.7.21 | F3: 5 | G3: 38 | H3: 0.9 | I3: 0 | J3: 0 | K3: =VLOOKUP(F3,Kp!$A$4:$B$24,2,FALSE) -> 0.005 | L3: =IF(H3=0,0,IF(OR(F3=0,F3=1,F3=2),0,IF(G3<10,0,SUM(H3:K3)))) -> 0.905 | M3: =L3-H3 -> 0.005 | O3: https://www.soaringspot.com/cs/jpj2021/results/klubova-trida
A4: JPJ 2021 - Kombi | B4: CZ | C4: 2021 | D4: Šumperk | E4: 24.7.-31.7.21 | F4: 5 | G4: 25 | H4: 0.9 | I4: 0 | J4: 0 | K4: =VLOOKUP(F4,Kp!$A$4:$B$24,2,FALSE) -> 0.005 | L4: 0.905 | M4: 0.005 | O4: https://www.soaringspot.com/cs/jpj2021/results/kombi-trida
A5: PMČR 2021 - Klub | B5: CZ | C5: 2021 | D5: Tábor | E5: 22.5.-5.6.21 | F5: 8 | G5: 16 | H5: 1 | I5: 0.02 | J5: 0.01 | K5: =VLOOKUP(F5,Kp!$A$4:$B$24,2,FALSE) -> 0.02 | L5: 1.05 | M5: =L5-H5 -> 0.05 | O5: https://www.soaringspot.com/cs/pmcr-pre-jwgc2022-tabor-2021/results/club
A6: PMČR 2021 - Kombi 15m | B6: CZ | C6: 2021 | D6: Tábor | E6: 22.5.-5.6.21 | F6: 7 | G6: 16 | H6: 1 | I6: 0.025 | J6: 0.02 | K6: =VLOOKUP(F6,Kp!$A$4:$B$24,2,FALSE) -> 0.015 | L6: 1.06 | M6: =L6-H6 -> 0.06 | O6: https://www.soaringspot.com/cs/pmcr-pre-jwgc2022-tabor-2021/results/15m-mixed
A7: PMČR 2021 - Kombi Open | B7: CZ | C7: 2021 | D7: Tábor | E7: 22.5.-5.6.21 | F7: 7 | G7: 19 | H7: 1 | I7: 0.04 | J7: 0 | K7: =VLOOKUP(F7,Kp!$A$4:$B$24,2,FALSE) -> 0.015 | L7: 1.055 | M7: =L7-H7 -> 0.055 | O7: https://www.soaringspot.com/cs/pmcr-pre-jwgc2022-tabor-2021/results/open-mixed
A8: PMRg 2021 - Klub | B8: CZ | C8: 2021 | D8: Moravská Třebová | E8: 1.8.-15.8.21 | F8: 8 | G8: 26 | H8: 0.9 | I8: 0.02 | J8: 0 | K8: =VLOOKUP(F8,Kp!$A$4:$B$24,2,FALSE) -> 0.02 | L8: 0.94 | M8: =L8-H8 -> 0.04 | O8: https://www.soaringspot.com/cs/plachtarske-mistrovstvi-regionu-2021-moravska-trebova-2021/results/club
A9: PMRg 2021 - Kombi | B9: CZ | C9: 2021 | D9: Moravská Třebová | E9: 1.8.-15.8.21 | F9: 8 | G9: 13 | H9: 0.9 | I9: 0.01 | J9: 0 | K9: =VLOOKUP(F9,Kp!$A$4:$B$24,2,FALSE) -> 0.02 | L9: 0.93 | M9: 0.03 | O9: https://www.soaringspot.com/cs/plachtarske-mistrovstvi-regionu-2021-moravska-trebova-2021/results/kombi
A10: PMČRj 2021 - Klub | B10: CZ | C10: 2021 | D10: Moravská Třebová | E10: 1.8.-15.8.21 | F10: 7 | G10: 29 | H10: 0.9 | I10: 0 | J10: 0 | K10: =VLOOKUP(F10,Kp!$A$4:$B$24,2,FALSE) -> 0.015 | L10: 0.915 | M10: =L10-H10 -> 0.015 | O10: https://www.soaringspot.com/cs/plachtarske-mistrovstvi-cr-junioru-moravska-trebova-2021/results/club
A11: GGP MB 2021 - Gradient GP | B11: CZ | C11: 2021 | D11: Mladá Boleslav | E11: 21.8.-28.8.21 | F11: 3 | G11: 9 | H11: 0.75 | I11: 0 | J11: 0 | K11: =VLOOKUP(F11,Kp!$A$4:$B$24,2,FALSE) -> -0.02 | L11: 0 | M11: =L11-H11 -> -0.75 | N11: Méně jak 10 soutěžících ve třídě | O11: https://www.soaringspot.com/cs/ggp2021/results/standard
A12: GGP MB 2021 - Klub GP | B12: CZ | C12: 2021 | D12: Mladá Boleslav | E12: 21.8.-28.8.221 | F12: 3 | G12: 17 | H12: 0.9 | I12: 0 | J12: 0 | K12: =VLOOKUP(F12,Kp!$A$4:$B$24,2,FALSE) -> -0.02 | L12: 0.88 | M12: -0.02 | O12: https://www.soaringspot.com/cs/ggp2021/results/club-gp
A13: GGP MB 2021 - Pohár MV - Kombi | B13: CZ | C13: 2021 | D13: Mladá Boleslav | E13: 21.8.-28.8.221 | F13: 3 | G13: 11 | H13: 0.9 | I13: 0.01 | J13: 0 | K13: =VLOOKUP(F13,Kp!$A$4:$B$24,2,FALSE) -> -0.02 | L13: 0.89 | M13: =L13-H13 -> -0.01 | O13: https://www.soaringspot.com/cs/ggp2021/results/pohar-metodeje-vlach
A14: Rakovnická Dlaždice 2021 - Kombi | B14: CZ | C14: 2021 | D14: Rakovník | E14: 14.8.-22.8.21 | F14: 2 | G14: 12 | H14: 0.75 | I14: 0 | J14: 0 | K14: =VLOOKUP(F14,Kp!$A$4:$B$24,2,FALSE) -> 0 | L14: 0 | M14: =L14-H14 -> -0.75 | N14: Méně jak 3 platné disciplíny | O14: https://www.soaringspot.com/cs/rakovnicka-dlazdice-rd2021-rakovnik-2021/results/kombi
A15: HOP 2021 - Klub | B15: CZ | C15: 2021 | D15: Hronov | E15: 7.8.-14.8.21 | F15: 6 | G15: 26 | H15: 0.75 | I15: 0.005 | J15: 0 | K15: =VLOOKUP(F15,Kp!$A$4:$B$24,2,FALSE) -> 0.01 | L15: 0.765 | M15: =L15-H15 -> 0.015 | O15: https://www.soaringspot.com/cs/20-hop-2021-velke-porici-2021/results/klub-hop
A16: HOP 2021 - Kombi | B16: CZ | C16: 2021 | D16: Hronov | E16: 7.8.-14.8.21 | F16: 6 | G16: 17 | H16: 0.75 | I16: 0 | J16: 0 | K16: =VLOOKUP(F16,Kp!$A$4:$B$24,2,FALSE) -> 0.01 | L16: 0.76 | M16: 0.01 | O16: https://www.soaringspot.com/cs/20-hop-2021-velke-porici-2021/results/kombi-ppf
A17: Pohár Českého Ráje 2021 - Kombi | B17: CZ | C17: 2021 | D17: Jičín | E17: 31.7.-7.8.21 | F17: 3 | G17: 12 | H17: 0.75 | I17: 0 | J17: 0 | K17: =VLOOKUP(F17,Kp!$A$4:$B$24,2,FALSE) -> -0.02 | L17: 0.73 | M17: =L17-H17 -> -0.02 | O17: https://www.soaringspot.com/cs/http-wwwletistejicininfo-news-pagephpid-315/results/kombi
A18: Ranský pohár 2021 - Kombi | B18: CZ | C18: 2021 | D18: Raná | E18: 24.7.-1.8.21 | F18: 4 | G18: 19 | H18: 0.75 | I18: 0 | J18: 0 | K18: =VLOOKUP(F18,Kp!$A$4:$B$24,2,FALSE) -> 0 | L18: 0.75 | M18: 0 | O18: https://www.soaringspot.com/cs/ransky-pohar-2021-rana-loumy-2021/results/combi
A19: Cirrus GP 2021 - Std. Cirrus | B19: CZ | C19: 2021 | D19: Křižanov | E19: 24.7.-30.7.21 | F19: 5 | G19: 14 | H19: 0.75 | I19: 0.005 | J19: 0 | K19: =VLOOKUP(F19,Kp!$A$4:$B$24,2,FALSE) -> 0.005 | L19: 0.76 | M19: 0.01 | O19: https://www.soaringspot.com/cs/cgp2021/results/club
A20: WGC 2021 - Klub | B20: FR | C20: 2021 | D20: Montlucon | E20: 8.8.-20.8.21 | F20: 9 | G20: 36 | H20: 1 | I20: 0.05 | J20: 0.03 | K20: =VLOOKUP(F20,Kp!$A$4:$B$24,2,FALSE) -> 0.025 | L20: 1.105 | M20: 0.105 | O20: https://www.soaringspot.com/cs/wgc2021-club-std-15m-montlucon-gueret-2021/results/club
A21: WGC 2021 - Std | B21: FR | C21: 2021 | D21: Montlucon | E21: 8.8.-20.8.21 | F21: 8 | G21: 30 | H21: 1 | I21: 0.035 | J21: 0.03 | K21: =VLOOKUP(F21,Kp!$A$4:$B$24,2,FALSE) -> 0.02 | L21: 1.085 | M21: 0.085 | O21: https://www.soaringspot.com/cs/wgc2021-club-std-15m-montlucon-gueret-2021/results/standard
A22: WGC 2021 - 15m | B22: FR | C22: 2021 | D22: Montlucon | E22: 8.8.-20.8.21 | F22: 8 | G22: 29 | H22: 1 | I22: 0.035 | J22: 0.02 | K22: =VLOOKUP(F22,Kp!$A$4:$B$24,2,FALSE) -> 0.02 | L22: 1.075 | M22: 0.075 | O22: https://www.soaringspot.com/cs/wgc2021-club-std-15m-montlucon-gueret-2021/results/15-meter
A23: FCC 2021 - Klub | B23: SK | C23: 2021 | D23: Prievidza | E23: 1.8.-13.8.21 | F23: 10 | G23: 10 | H23: 0.9 | I23: 0.005 | J23: 0 | K23: =VLOOKUP(F23,Kp!$A$4:$B$24,2,FALSE) -> 0.03 | L23: 0.935 | M23: 0.035 | O23: https://www.soaringspot.com/cs/fcc-gliding-2021-prievidza-2021/results/club
A24: FCC 2021 - Kombi 15m | B24: SK | C24: 2021 | D24: Prievidza | E24: 1.8.-13.8.21 | F24: 10 | G24: 10 | H24: 0.9 | I24: 0.015 | J24: 0 | K24: =VLOOKUP(F24,Kp!$A$4:$B$24,2,FALSE) -> 0.03 | L24: 0.945 | M24: 0.045 | O24: https://www.soaringspot.com/cs/fcc-gliding-2021-prievidza-2021/results/15-m
A25: FCC 2021 - Kombi Open | B25: SK | C25: 2021 | D25: Prievidza | E25: 1.8.-13.8.21 | F25: 10 | G25: 18 | H25: 0.9 | I25: 0.015 | J25: 0 | K25: =VLOOKUP(F25,Kp!$A$4:$B$24,2,FALSE) -> 0.03 | L25: 0.945 | M25: 0.045 | O25: https://www.soaringspot.com/cs/fcc-gliding-2021-prievidza-2021/results/combi
A26: Oldtimer Pribina Star 2021 - Klub | B26: SK | C26: 2021 | D26: Nitra | E26: 7.8.-13.8.21 | F26: 4 | G26: 22 | H26: 0.75 | I26: 0 | J26: 0 | K26: =VLOOKUP(F26,Kp!$A$4:$B$24,2,FALSE) -> 0 | L26: 0.75 | M26: 0 | O26: https://www.soaringspot.com/cs/oldtimer-pribina-star-2021-nitra-2021/results/unknown
A27: PMSR 2021 - Klub | B27: SK | C27: 2021 | D27: Nitra | E27: 20.6.-2.7.21 | F27: 12 | G27: 22 | H27: 0.9 | I27: 0.015 | J27: 0 | K27: =VLOOKUP(F27,Kp!$A$4:$B$24,2,FALSE) -> 0.03 | L27: 0.945 | M27: 0.045 | O27: https://www.soaringspot.com/cs/slovak-gliding-championship-2021-nitra-2021/results/club
A28: PMSR 2021 - Kombi 15m | B28: SK | C28: 2021 | D28: Nitra | E28: 20.6.-2.7.21 | F28: 12 | G28: 22 | H28: 0.9 | I28: 0.015 | J28: 0.02 | K28: =VLOOKUP(F28,Kp!$A$4:$B$24,2,FALSE) -> 0.03 | L28: 0.965 | M28: 0.065 | O28: https://www.soaringspot.com/cs/slovak-gliding-championship-2021-nitra-2021/results/15-meter
A29: PMSR 2021 - Kombi Open | B29: SK | C29: 2021 | D29: Nitra | E29: 20.6.-2.7.21 | F29: 12 | G29: 22 | H29: 0.9 | I29: 0.02 | J29: 0 | K29: =VLOOKUP(F29,Kp!$A$4:$B$24,2,FALSE) -> 0.03 | L29: 0.95 | M29: 0.05 | O29: https://www.soaringspot.com/cs/slovak-gliding-championship-2021-nitra-2021/results/combi
A30: JWGC 2021 - Klub | B30: LT | C30: 2021 | D30: Pociunai | E30: 11.7.-23.7.21 | F30: 7 | G30: 27 | H30: 1 | I30: 0.015 | J30: 0.01 | K30: =VLOOKUP(F30,Kp!$A$4:$B$24,2,FALSE) -> 0.015 | L30: =IF(H30=0,0,IF(OR(F30=0,F30=1,F30=2),0,IF(G30<10,0,SUM(H30:K30)))) -> 1.04 | M30: 0.04 | O30: https://www.soaringspot.com/cs/jegc2021/results/club
A31: JWGC 2021 - Std | B31: LT | C31: 2021 | D31: Pociunai | E31: 11.7.-23.7.21 | F31: 6 | G31: 17 | H31: 1 | I31: 0.01 | J31: 0.01 | K31: =VLOOKUP(F31,Kp!$A$4:$B$24,2,FALSE) -> 0.01 | L31: 1.03 | M31: 0.03 | O31: https://www.soaringspot.com/cs/jegc2021/results/standard
A32: WSGP Final 2021 - 18m GP | B32: FR | C32: 2021 | D32: Saint Auban | E32: 5.9.-11.9.21 | F32: 6 | G32: 20 | H32: 1 | I32: 0.03 | J32: 0.03 | K32: =VLOOKUP(F32,Kp!$A$4:$B$24,2,FALSE) -> 0.01 | L32: 1.07 | M32: 0.07 | O32: https://www.soaringspot.com/cs/wsgp2021/results/grand-prix-world-fin
A33: Safari 2021 - Klub | B33: CZ | C33: 2021 | D33: Dvůr Králové | E33: 3.7.-17.7.21 | F33: 4 | G33: 33 | H33: 0.75 | I33: 0 | J33: 0 | K33: =VLOOKUP(F33,Kp!$A$4:$B$24,2,FALSE) -> 0 | L33: 0.75 | M33: =L33-H33 -> 0 | O33: https://www.soaringspot.com/cs/safari-cup-2021-dvur-kralove-nad-labem-2021/results/klubova
A34: Safari 2021 - Kombi | B34: CZ | C34: 2021 | D34: Dvůr Králové | E34: 3.7.-17.7.21 | F34: 5 | G34: 13 | H34: 0.75 | I34: 0 | J34: 0 | K34: =VLOOKUP(F34,Kp!$A$4:$B$24,2,FALSE) -> 0.005 | L34: 0.755 | M34: 0.005 | O34: https://www.soaringspot.com/cs/safari-cup-2021-dvur-kralove-nad-labem-2021/results/volna
A35: Safari 2021 - Duo Klub | B35: CZ | C35: 2021 | D35: Dvůr Králové | E35: 3.7.-17.7.21 | F35: 3 | G35: 11 | H35: 0.75 | I35: 0 | J35: 0 | K35: =VLOOKUP(F35,Kp!$A$4:$B$24,2,FALSE) -> -0.02 | L35: 0.73 | M35: -0.02 | O35: https://www.soaringspot.com/cs/safari-cup-2021-dvur-kralove-nad-labem-2021/results/dvousedadlovky
A36: Zařazené soutěže 2022:
A37: PMČR 2022 - Klub | B37: CZ | C37: 2022 | D37: Zbraslavice | E37: 22.5.-4.6.22 | F37: 9 | G37: 16 | H37: 1 | I37: 0.025 | J37: 0 | K37: =VLOOKUP(F37,Kp!$A$4:$B$24,2,FALSE) -> 0.025 | L37: =IF(H37=0,0,IF(OR(F37=0,F37=1,F37=2),0,IF(G37<10,0,SUM(H37:K37)))) -> 1.05 | M37: =L37-H37 -> 0.05 | O37: https://www.soaringspot.com/en_gb/plachtarske-mistrovstvi-ceske-republiky-2022-zbraslavice-2022/results/klub#
A38: PMČR 2022 - Kombi 15m | B38: CZ | C38: 2022 | D38: Zbraslavice | E38: 22.5.-4.6.22 | F38: 8 | G38: 13 | H38: 1 | I38: 0.02 | J38: 0.02 | K38: =VLOOKUP(F38,Kp!$A$4:$B$24,2,FALSE) -> 0.02 | L38: =IF(H38=0,0,IF(OR(F38=0,F38=1,F38=2),0,IF(G38<10,0,SUM(H38:K38)))) -> 1.06 | M38: 0.06 | O38: https://www.soaringspot.com/en_gb/plachtarske-mistrovstvi-ceske-republiky-2022-zbraslavice-2022/results/kombi-15#
A39: PMČR 2022 - Kombi Open | B39: CZ | C39: 2022 | D39: Zbraslavice | E39: 22.5.-4.6.22 | F39: 7 | G39: 19 | H39: 1 | I39: 0.05 | J39: 0.01 | K39: =VLOOKUP(F39,Kp!$A$4:$B$24,2,FALSE) -> 0.015 | L39: 1.075 | M39: 0.075 | O39: https://www.soaringspot.com/en_gb/plachtarske-mistrovstvi-ceske-republiky-2022-zbraslavice-2022/results/kombi-open#
A40: JPJ 2022 - Klub | B40: CZ | C40: 2022 | D40: Šumperk | E40: 7.5.-14.5.22 | F40: 5 | G40: 39 | H40: 0.9 | I40: 0 | J40: 0 | K40: =VLOOKUP(F40,Kp!$A$4:$B$24,2,FALSE) -> 0.005 | L40: 0.905 | M40: 0.005 | O40: https://www.soaringspot.com/en_gb/jpj2022/results/klubova-trida#
A41: JPJ 2022 - Kombi | B41: CZ | C41: 2022 | D41: Šumperk | E41: 7.5.-14.5.22 | F41: 5 | G41: 20 | H41: 0.9 | I41: 0.005 | J41: 0 | K41: =VLOOKUP(F41,Kp!$A$4:$B$24,2,FALSE) -> 0.005 | L41: 0.91 | M41: 0.01 | O41: https://www.soaringspot.com/en_gb/jpj2022/results/kombi-trida#
A42: PMRg 2022 - Klub | B42: CZ | C42: 2022 | D42: Hodkovice | E42: 14.8.-26.8.22 | F42: 6 | G42: 13 | H42: 0.9 | I42: 0.005 | J42: 0 | K42: =VLOOKUP(F42,Kp!$A$4:$B$24,2,FALSE) -> 0.01 | L42: 0.915 | M42: 0.015 | O42: https://www.soaringspot.com/en_gb/mistrovstvi-ceske-republiky-regionu-2022-hodkovice-2022/results/klubova-trida#
A43: PMRg 2022 - Kombi | B43: CZ | C43: 2022 | D43: Hodkovice | E43: 14.8.-26.8.22 | F43: 6 | G43: 11 | H43: 0.9 | I43: 0 | J43: 0 | K43: =VLOOKUP(F43,Kp!$A$4:$B$24,2,FALSE) -> 0.01 | L43: 0.91 | M43: 0.01 | O43: https://www.soaringspot.com/en_gb/mistrovstvi-ceske-republiky-regionu-2022-hodkovice-2022/results/kombi-open#
A44: PMČRj 2022 - Klub | B44: CZ | C44: 2022 | D44: Hodkovice | E44: 3.7.-16.7.22 | F44: 6 | G44: 29 | H44: 0.9 | I44: 0.005 | J44: 0 | K44: =VLOOKUP(F44,Kp!$A$4:$B$24,2,FALSE) -> 0.01 | L44: 0.915 | M44: 0.015 | O44: https://www.soaringspot.com/en_gb/plachtarske-mistrovstvi-cr-junioru-hodkovice-nad-mohelkou-2022/results/klubova-trida#
A45: GGP MB 2022 - Klub GP | B45: CZ | C45: 2022 | D45: Mladá Boleslav | E45: 27.8.-3.9.22 | F45: 5 | G45: 15 | H45: 0.9 | I45: 0.005 | J45: 0 | K45: =VLOOKUP(F45,Kp!$A$4:$B$24,2,FALSE) -> 0.005 | L45: 0.905 | M45: 0.005 | O45: https://www.soaringspot.com/en_gb/ggp2022/results/club-gp
A46: GGP MB 2022 - Pohár MV - Kombi | B46: CZ | C46: 2022 | D46: Mladá Boleslav | E46: 27.8.-3.9.22 | F46: 5 | G46: 11 | H46: 0.9 | I46: 0.01 | J46: 0 | K46: =VLOOKUP(F46,Kp!$A$4:$B$24,2,FALSE) -> 0.005 | L46: 0.915 | M46: 0.015 | O46: https://www.soaringspot.com/en_gb/ggp2022/results/pohar-metodeje-vlach#
A47: Rakovnická Dlaždice 2022 - Klub | B47: CZ | C47: 2022 | D47: Rakovník | E47: 6.8-14.8.22 | F47: 6 | G47: 14 | H47: 0 | I47: 0 | J47: 0 | K47: =VLOOKUP(F47,Kp!$A$4:$B$24,2,FALSE) -> 0.01 | L47: 0 | M47: =L47-H47 -> 0 | N47: Rozhodnutím PK AeČR | O47: https://www.soaringspot.com/en_gb/rakovnicka-dlazdice-2022-rakovnik1-2022/results/open#
A48: HOP 2022 - Klub | B48: CZ | C48: 2022 | D48: Velké Poříčí | E48: 13.8.-20.8.22 | F48: 4 | G48: 23 | H48: 0.75 | I48: 0.005 | J48: 0 | K48: =VLOOKUP(F48,Kp!$A$4:$B$24,2,FALSE) -> 0 | L48: 0.755 | M48: 0.005 | O48: https://www.soaringspot.com/en_gb/21-hop-2022-velke-porici-2022/results/klub-hop#
A49: HOP 2022 - Kombi | B49: CZ | C49: 2022 | D49: Velké Poříčí | E49: 13.8.-20.8.22 | F49: 4 | G49: 19 | H49: 0.75 | I49: 0.005 | J49: 0 | K49: =VLOOKUP(F49,Kp!$A$4:$B$24,2,FALSE) -> 0 | L49: 0.75 | M49: 0 | O49: https://www.soaringspot.com/en_gb/21-hop-2022-velke-porici-2022/results/kombi-ppf
A50: Pohár Českého Ráje 2022 - Klub | B50: CZ | C50: 2022 | D50: Jičín | E50: 23.7.-30.7.22 | F50: 3 | G50: 17 | H50: 0 | I50: 0 | J50: 0 | K50: =VLOOKUP(F50,Kp!$A$4:$B$24,2,FALSE) -> -0.02 | L50: 0 | M50: 0 | N50: Rozhodnutím PK AeČR | O50: https://www.soaringspot.com/en_gb/pohar-ceskeho-raje-2022-jicin-2022/results/klub#
A51: Ranský pohár 2022 - Klub | B51: CZ | C51: 2022 | D51: Jičín | E51: 30.7.-6.8.22 | F51: 6 | G51: 21 | H51: 0 | I51: 0 | J51: 0 | K51: =VLOOKUP(F51,Kp!$A$4:$B$24,2,FALSE) -> 0.01 | L51: 0 | M51: 0 | N51: Rozhodnutím PK AeČR | O51: https://www.soaringspot.com/en_gb/ransky-pohar-2022-rana-loumy-2022/results/combi#
A52: Ranský pohár 2022 - Kombi | B52: CZ | C52: 2022 | D52: Raná | E52: 30.7.-6.8.22 | F52: 6 | G52: 7 | H52: 0 | I52: 0 | J52: 0 | K52: =VLOOKUP(F52,Kp!$A$4:$B$24,2,FALSE) -> 0.01 | L52: 0 | M52: 0 | N52: Rozhodnutím PK AeČR, méně jak 10 soutěžících ve třídě | O52: https://www.soaringspot.com/en_gb/ransky-pohar-2022-rana-loumy-2022/results/super-combi
A53: Safari 2022 - Duo | B53: CZ | C53: 2022 | D53: Dvůr Králové | E53: 2.7.-16.7.22 | F53: 4 | G53: 9 | H53: 0 | I53: 0 | J53: 0 | K53: =VLOOKUP(F53,Kp!$A$4:$B$24,2,FALSE) -> 0 | L53: 0 | M53: =L53-H53 -> 0 | N53: Rozhodnutím PK AeČR, méně jak 10 soutěžících ve třídě | O53: https://www.soaringspot.com/en_gb/safari-cup-2022-dvur-kralove-nad-labem-2022/results/duo#
A54: Safari 2022 - Klub | B54: CZ | C54: 2022 | D54: Dvůr Králové | E54: 2.7.-16.7.22 | F54: 5 | G54: 26 | H54: 0.75 | I54: 0 | J54: 0 | K54: =VLOOKUP(F54,Kp!$A$4:$B$24,2,FALSE) -> 0.005 | L54: 0.755 | M54: 0.005 | O54: https://www.soaringspot.com/en_gb/safari-cup-2022-dvur-kralove-nad-labem-2022/results/klub
A55: Safari 2022 - Kombi | B55: CZ | C55: 2022 | D55: Dvůr Králové | E55: 2.7.-16.7.22 | F55: 5 | G55: 10 | H55: 0.75 | I55: 0 | J55: 0 | K55: =VLOOKUP(F55,Kp!$A$4:$B$24,2,FALSE) -> 0.005 | L55: 0.755 | M55: 0.005 | O55: https://www.soaringspot.com/en_gb/safari-cup-2022-dvur-kralove-nad-labem-2022/results/volna
A56: Toužim Cup 2022 - Klub | B56: CZ | C56: 2022 | D56: Toužim | E56: 9.7.-17.7.22 | F56: 5 | G56: 26 | H56: 0.9 | I56: 0.01 | J56: 0 | K56: =VLOOKUP(F56,Kp!$A$4:$B$24,2,FALSE) -> 0.005 | L56: 0.915 | M56: 0.015 | O56: https://www.soaringspot.com/en_gb/t-cup-2022-touzim-2022/results/club#
A57: Toužim Cup 2022 - Kombi | B57: CZ | C57: 2022 | D57: Toužim | E57: 9.7.-17.7.22 | F57: 5 | G57: 26 | H57: 0.9 | I57: 0.005 | J57: 0 | K57: =VLOOKUP(F57,Kp!$A$4:$B$24,2,FALSE) -> 0.005 | L57: 0.91 | M57: 0.01 | O57: https://www.soaringspot.com/en_gb/t-cup-2022-touzim-2022/results/kombi
A58: FL 2022 - Kombi | B58: CZ | C58: 2022 | D58: Frýdlant n/Ostr. | E58: 1.7.-9.7.22 | F58: 3 | G58: 15 | H58: 0.75 | I58: 0.005 | J58: 0 | K58: =VLOOKUP(F58,Kp!$A$4:$B$24,2,FALSE) -> -0.02 | L58: 0.735 | M58: -0.015 | O58: https://www.soaringspot.com/en_gb/fl-2022-adrenalin-grand-prix-frydlant-2022/results/fl#
A59: Adrenalin GP 2022 - Klub GP | B59: CZ | C59: 2022 | D59: Frýdlant n/Ostr. | E59: 1.7.-9.7.22 | F59: 4 | G59: 12 | H59: 0.9 | I59: 0 | J59: 0 | K59: =VLOOKUP(F59,Kp!$A$4:$B$24,2,FALSE) -> 0 | L59: 0.9 | M59: 0 | O59: https://www.soaringspot.com/en_gb/fl-2022-adrenalin-grand-prix-frydlant-2022/results/adrenalin-grand-prix
A60: Ulfův memoriál | B60: CZ | C60: 2022 | D60: Raná | E60: 21.5.-28.5.22 | F60: 3 | G60: 10 | H60: 0 | I60: 0 | J60: 0 | K60: =VLOOKUP(F60,Kp!$A$4:$B$24,2,FALSE) -> -0.02 | L60: =IF(H60=0,0,IF(OR(F60=0,F60=1,F60=2),0,IF(G60<10,0,SUM(H60:K60)))) -> 0 | M60: 0 | N60: Rozhodnutím PK AeČR | O60: https://www.soaringspot.com/en_gb/ulfuv-memorial-zavody-historickych-kluzaku-rana-loumy-2022/results/oldtimer
A61: Podbrdský pohár | B61: CZ | C61: 2022 | D61: Letkov | E61: 30.4.-7.5.22 | F61: 4 | G61: 20 | H61: 0 | I61: 0 | J61: 0 | K61: =VLOOKUP(F61,Kp!$A$4:$B$24,2,FALSE) -> 0 | L61: 0 | M61: 0 | N61: Rozhodnutím PK AeČR | O61: https://www.soaringspot.com/en_gb/pp2022/results/kombi#
A62: AZ Cup 2022 - Klub | B62: CZ | C62: 2022 | D62: Zbraslavice | E62: 22.4.-30.4.22 | F62: 6 | G62: 22 | H62: 0.9 | I62: 0.005 | J62: 0 | K62: =VLOOKUP(F62,Kp!$A$4:$B$24,2,FALSE) -> 0.01 | L62: 0.915 | M62: 0.015 | O62: https://www.soaringspot.com/en_gb/az-cup-2022-zbraslavice-2022/results/klub#
A63: AZ Cup 2022 - Kombi | B63: CZ | C63: 2022 | D63: Zbraslavice | E63: 22.4.-30.4.22 | F63: 6 | G63: 24 | H63: 0.9 | I63: 0.035 | J63: 0.01 | K63: =VLOOKUP(F63,Kp!$A$4:$B$24,2,FALSE) -> 0.01 | L63: 0.955 | M63: 0.055 | O63: https://www.soaringspot.com/en_gb/az-cup-2022-zbraslavice-2022/results/kombi-a
A64: PPV 2022 - Klub | B64: CZ | C64: 2022 | D64: Havlíčkův Brod | E64: 23.7-30.7.22 | F64: 3 | G64: 37 | H64: 0.9 | I64: 0.005 | J64: 0 | K64: =VLOOKUP(F64,Kp!$A$4:$B$24,2,FALSE) -> -0.02 | L64: 0.885 | M64: -0.015 | O64: https://www.soaringspot.com/en_gb/ppv-2022-lkhb/results/klub#
A65: PPV 2022 - Kombi | B65: CZ | C65: 2022 | D65: Havlíčkův Brod | E65: 23.7-30.7.22 | F65: 4 | G65: 25 | H65: 0.9 | I65: 0.02 | J65: 0 | K65: =VLOOKUP(F65,Kp!$A$4:$B$24,2,FALSE) -> 0 | L65: 0.92 | M65: 0.02 | O65: https://www.soaringspot.com/en_gb/ppv-2022-lkhb/results/kombi
A66: WGC 2022 - 18m | B66: HU | C66: 2022 | D66: Szeged | E66: 24.7.-5.8.22 | F66: 10 | G66: 42 | H66: 1 | I66: 0.05 | J66: 0.01 | K66: =VLOOKUP(F66,Kp!$A$4:$B$24,2,FALSE) -> 0.03 | L66: 1.09 | M66: =L66-H66 -> 0.09 | O66: https://www.soaringspot.com/en_gb/37th-fai-world-gliding-championships-2022-szeged-2022/results/18m#
A67: WGC 2022 - Open | B67: HU | C67: 2022 | D67: Szeged | E67: 24.7.-5.8.22 | F67: 10 | G67: 22 | H67: 1 | I67: 0.05 | J67: 0.02 | K67: =VLOOKUP(F67,Kp!$A$4:$B$24,2,FALSE) -> 0.03 | L67: 1.1 | M67: 0.1 | O67: https://www.soaringspot.com/en_gb/37th-fai-world-gliding-championships-2022-szeged-2022/results/open#
A68: WGC 2022 - Duo 20m | B68: HU | C68: 2022 | D68: Szeged | E68: 24.7.-5.8.22 | F68: 10 | G68: 19 | H68: 1 | I68: 0.05 | J68: 0.01 | K68: =VLOOKUP(F68,Kp!$A$4:$B$24,2,FALSE) -> 0.03 | L68: 1.09 | M68: 0.09 | O68: https://www.soaringspot.com/en_gb/37th-fai-world-gliding-championships-2022-szeged-2022/results/20m-multi-seat
A69: EGC 2022 - Klub | B69: LT | C69: 2022 | D69: Pociunai | E69: 3.7.-15.7.22 | F69: 8 | G69: 28 | H69: 1 | I69: 0.035 | J69: 0.02 | K69: =VLOOKUP(F69,Kp!$A$4:$B$24,2,FALSE) -> 0.02 | L69: 1.075 | M69: 0.075 | O69: https://www.soaringspot.com/en_gb/21st-fai-european-gliding-championships-pociunai-2022/results/club#
A70: EGC 2022 - Std | B70: LT | C70: 2022 | D70: Pociunai | E70: 3.7.-15.7.22 | F70: 7 | G70: 28 | H70: 1 | I70: 0.045 | J70: 0.03 | K70: =VLOOKUP(F70,Kp!$A$4:$B$24,2,FALSE) -> 0.015 | L70: 1.09 | M70: 0.09 | O70: https://www.soaringspot.com/en_gb/21st-fai-european-gliding-championships-pociunai-2022/results/standard#
A71: EGC 2022 - 15m | B71: LT | C71: 2022 | D71: Pociunai | E71: 3.7.-15.7.22 | F71: 8 | G71: 26 | H71: 1 | I71: 0.02 | J71: 0.02 | K71: =VLOOKUP(F71,Kp!$A$4:$B$24,2,FALSE) -> 0.02 | L71: 1.06 | M71: 0.06 | O71: https://www.soaringspot.com/en_gb/21st-fai-european-gliding-championships-pociunai-2022/results/15-meter#
A72: JWGC 2022 - Klub | B72: CZ | C72: 2022 | D72: Tabor | E72: 30.7.-12.8.22 | F72: 10 | G72: 45 | H72: 1 | I72: 0.015 | J72: 0.03 | K72: =VLOOKUP(F72,Kp!$A$4:$B$24,2,FALSE) -> 0.03 | L72: 1.075 | M72: 0.075 | O72: https://www.soaringspot.com/en_gb/junior-world-gliding-championships-2022-tabor-2022/results/class-club#
A73: JWGC 2022 - Std | B73: CZ | C73: 2022 | D73: Tabor | E73: 30.7.-12.8.22 | F73: 10 | G73: 29 | H73: 1 | I73: 0.015 | J73: 0.03 | K73: =VLOOKUP(F73,Kp!$A$4:$B$24,2,FALSE) -> 0.03 | L73: 1.075 | M73: 0.075 | O73: https://www.soaringspot.com/en_gb/junior-world-gliding-championships-2022-tabor-2022/results/class-standard#
A74: WWGC 2022 - Klub | B74: UK | C74: 2022 | D74: Husbands Bosworth | E74: 14.8.-26.8.22 | F74: 6 | G74: 18 | H74: 1 | I74: 0.01 | J74: 0.02 | K74: =VLOOKUP(F74,Kp!$A$4:$B$24,2,FALSE) -> 0.01 | L74: 1.04 | M74: 0.04 | O74: https://www.soaringspot.com/en_gb/11th-fai-womens-world-gliding-championship-2022/results/club#
A75: WWGC 2022 - Std | B75: UK | C75: 2022 | D75: Husbands Bosworth | E75: 14.8.-26.8.22 | F75: 8 | G75: 13 | H75: 1 | I75: 0.005 | J75: 0.01 | K75: =VLOOKUP(F75,Kp!$A$4:$B$24,2,FALSE) -> 0.02 | L75: 1.035 | M75: 0.035 | O75: https://www.soaringspot.com/en_gb/11th-fai-womens-world-gliding-championship-2022/results/standard#
A76: WWGC 2022 - 18m | B76: UK | C76: 2022 | D76: Husbands Bosworth | E76: 14.8.-26.8.22 | F76: 8 | G76: 12 | H76: 1 | I76: 0.005 | J76: 0.03 | K76: =VLOOKUP(F76,Kp!$A$4:$B$24,2,FALSE) -> 0.02 | L76: 1.055 | M76: 0.055 | O76: https://www.soaringspot.com/en_gb/11th-fai-womens-world-gliding-championship-2022/results/18-meter
A77: PMSR 2022 - Klub | B77: SK | C77: 2022 | D77: Martin | E77: 12.6.-26.6.22 | F77: 11 | G77: 16 | H77: 0.9 | I77: 0.005 | J77: 0 | K77: =VLOOKUP(F77,Kp!$A$4:$B$24,2,FALSE) -> 0.03 | L77: 0.935 | M77: 0.035 | O77: https://www.soaringspot.com/en_gb/65majstrovstva-sr-v-bezmotorovom-lietani-2022-martin-2022/results/klubova-trieda#
A78: PMSR 2022 - Kombi A+B | B78: SK | C78: 2022 | D78: Martin | E78: 12.6.-26.6.22 | F78: 10 | G78: 24 | H78: 0.9 | I78: 0.005 | J78: 0 | K78: =VLOOKUP(F78,Kp!$A$4:$B$24,2,FALSE) -> 0.03 | L78: 0.935 | M78: 0.035 | O78: https://www.soaringspot.com/en_gb/65majstrovstva-sr-v-bezmotorovom-lietani-2022-martin-2022/results/kombinovana-b-trieda#
A79: Oldtimer Pribina Star 2022 - Klub | B79: SK | C79: 2022 | D79: Nitra | E79: 6.8.-13.8.22 | F79: 4 | G79: 16 | H79: 0.75 | I79: 0 | J79: 0 | K79: =VLOOKUP(F79,Kp!$A$4:$B$24,2,FALSE) -> 0 | L79: 0.75 | M79: 0 | O79: https://www.soaringspot.com/en_gb/oldtimer-pribina-star-2022-nitra-2022/results/club#
A80: Top Gun 2022 - Kombi | B80: SK | C80: 2022 | D80: Prievidza | E80: 6.8.-13.8.22 | F80: 5 | G80: 8 | H80: 0.75 | I80: 0 | J80: 0 | K80: =VLOOKUP(F80,Kp!$A$4:$B$24,2,FALSE) -> 0.005 | L80: 0 | M80: -0.75 | N80: Méně jak 10 soutěžících ve třídě | O80: https://www.soaringspot.com/en_gb/top-gun-gliding-cup-2022-prievidza-2022/results/mixed#
A81: Fatraglide 2022 - Klub | B81: SK | C81: 2022 | D81: Martin | E81: 21.5.-28.5.22 | F81: 6 | G81: 16 | H81: 0.75 | I81: 0 | J81: 0 | K81: =VLOOKUP(F81,Kp!$A$4:$B$24,2,FALSE) -> 0.01 | L81: 0.76 | M81: 0.01 | O81: https://www.soaringspot.com/en_gb/20-fatraglide-2022-martin-2022/results/club#
A82: Fatraglide 2022 - Kombi | B82: SK | C82: 2022 | D82: Martin | E82: 21.5.-28.5.22 | F82: 6 | G82: 10 | H82: 0.75 | I82: 0.005 | J82: 0 | K82: =VLOOKUP(F82,Kp!$A$4:$B$24,2,FALSE) -> 0.01 | L82: 0.765 | M82: 0.015 | O82: https://www.soaringspot.com/en_gb/20-fatraglide-2022-martin-2022/results/kombinovana-trieda#
A83: FCC 2022 - Klub | B83: SK | C83: 2022 | D83: Prievidza | E83: 24.4.-5.5.22 | F83: 7 | G83: 43 | H83: 0.9 | I83: 0.015 | J83: 0.01 | K83: =VLOOKUP(F83,Kp!$A$4:$B$24,2,FALSE) -> 0.015 | L83: 0.94 | M83: 0.04 | O83: https://www.soaringspot.com/en_gb/fcc-gliding-2022-prievidza-2022/results/club
A84: FCC 2022 - Kombi 15m | B84: SK | C84: 2022 | D84: Prievidza | E84: 24.4.-5.5.22 | F84: 7 | G84: 28 | H84: 0.9 | I84: 0.015 | J84: 0.03 | K84: =VLOOKUP(F84,Kp!$A$4:$B$24,2,FALSE) -> 0.015 | L84: 0.96 | M84: 0.06 | O84: https://www.soaringspot.com/en_gb/fcc-gliding-2022-prievidza-2022/results/15m#
A85: FCC 2022 - Kombi Open | B85: SK | C85: 2022 | D85: Prievidza | E85: 24.4.-5.5.22 | F85: 7 | G85: 45 | H85: 0.9 | I85: 0.03 | J85: 0.02 | K85: =VLOOKUP(F85,Kp!$A$4:$B$24,2,FALSE) -> 0.015 | L85: 0.965 | M85: 0.065 | O85: https://www.soaringspot.com/en_gb/fcc-gliding-2022-prievidza-2022/results/combi#
A86: Pribina Cup 2022 - Klub | B86: SK | C86: 2022 | D86: Nitra | E86: 15.4.-23.4.22 | F86: 5 | G86: 28 | H86: 0.9 | I86: 0.025 | J86: 0.01 | K86: =VLOOKUP(F86,Kp!$A$4:$B$24,2,FALSE) -> 0.005 | L86: 0.94 | M86: 0.04 | O86: https://www.soaringspot.com/en_gb/pribina-cup-2022-nitra-2022/results/club#
A87: Pribina Cup 2022 - Kombi 15m | B87: SK | C87: 2022 | D87: Nitra | E87: 15.4.-23.4.22 | F87: 5 | G87: 26 | H87: 0.9 | I87: 0.015 | J87: 0.01 | K87: =VLOOKUP(F87,Kp!$A$4:$B$24,2,FALSE) -> 0.005 | L87: 0.93 | M87: 0.03 | O87: https://www.soaringspot.com/en_gb/pribina-cup-2022-nitra-2022/results/15-meter#
A88: Pribina Cup 2022 - Kombi Open | B88: SK | C88: 2022 | D88: Nitra | E88: 15.4.-23.4.22 | F88: 5 | G88: 46 | H88: 0.9 | I88: 0.045 | J88: 0 | K88: =VLOOKUP(F88,Kp!$A$4:$B$24,2,FALSE) -> 0.005 | L88: 0.95 | M88: 0.05 | O88: https://www.soaringspot.com/en_gb/pribina-cup-2022-nitra-2022/results/open#
A89: Flatland Cup 2022 - Klub | B89: SK | C89: 2022 | D89: Szeged | E89: 1.7.-9.7.22 | F89: 6 | G89: 33 | H89: 0.9 | I89: 0.03 | J89: 0 | K89: =VLOOKUP(F89,Kp!$A$4:$B$24,2,FALSE) -> 0.01 | L89: 0.94 | M89: =L89-H89 -> 0.04 | O89: https://www.soaringspot.com/en_gb/xii-flatland-cup-szeged-2022/results/fai-club#
A90: Flatland Cup 2022 - Kombi Open | B90: SK | C90: 2022 | D90: Szeged | E90: 1.7.-9.7.22 | F90: 7 | G90: 22 | H90: 0.9 | I90: 0.03 | J90: 0 | K90: =VLOOKUP(F90,Kp!$A$4:$B$24,2,FALSE) -> 0.015 | L90: 0.945 | M90: 0.045 | O90: https://www.soaringspot.com/en_gb/xii-flatland-cup-szeged-2022/results/mixed-15m#
A91: SGP Sweden 2022 - 18m GP | B91: SE | C91: 2022 | D91: Boras | E91: 8.5.-14.5.22 | F91: 3 | G91: 15 | H91: 0.9 | I91: 0.005 | J91: 0 | K91: =VLOOKUP(F91,Kp!$A$4:$B$24,2,FALSE) -> -0.02 | L91: 0.885 | M91: -0.015 | O91: https://sweden22.sgp.aero/race-results
A92: Zařazené soutěže 2023:
A93: SGP Final 2023 | B93: IT | C93: 2023 | D93: Pavullo | E93: 16.4.-27.4.23 | F93: 4 | G93: 19 | H93: 1 | I93: 0.035 | J93: 0.03 | K93: =VLOOKUP(F93,Kp!$A$4:$B$24,2,FALSE) -> 0 | L93: =IF(H93=0,0,IF(OR(F93=0,F93=1,F93=2),0,IF(G93<10,0,SUM(H93:K93)))) -> 1.065 | M93: =L93-H93 -> 0.065 | O93: https://sgpfinal23.sgp.aero/results
A94: FCC Gliding 2023 - Klub | B94: SK | C94: 2023 | D94: Prievidza | E94: 16.4.-27.4.23 | F94: 7 | G94: 21 | H94: 0.9 | I94: 0.01 | J94: 0.01 | K94: =VLOOKUP(F94,Kp!$A$4:$B$24,2,FALSE) -> 0.015 | L94: 0.935 | M94: 0.035 | O94: https://www.soaringspot.com/cs/fcc-gliding-2023-prievidza-2023/results/club
A95: FCC Gliding 2023 - Kombi 15m | B95: SK | C95: 2023 | D95: Prievidza | E95: 16.4.-27.4.23 | F95: 7 | G95: 31 | H95: 0.9 | I95: 0.05 | J95: 0.02 | K95: =VLOOKUP(F95,Kp!$A$4:$B$24,2,FALSE) -> 0.015 | L95: 0.985 | M95: 0.085 | O95: https://www.soaringspot.com/cs/fcc-gliding-2023-prievidza-2023/results/15m
A96: FCC Gliding 2023 - Kombi Open | B96: SK | C96: 2023 | D96: Prievidza | E96: 16.4.-27.4.23 | F96: 7 | G96: 39 | H96: 0.9 | I96: 0.02 | J96: 0.02 | K96: =VLOOKUP(F96,Kp!$A$4:$B$24,2,FALSE) -> 0.015 | L96: 0.955 | M96: 0.055 | O96: https://www.soaringspot.com/cs/fcc-gliding-2023-prievidza-2023/results/combi
A97: Fatraglide 2023 - Klub | B97: SK | C97: 2023 | D97: Martin | E97: 29.4.-6.5.23 | F97: 4 | G97: 19 | H97: 0.75 | I97: 0.005 | J97: 0 | K97: =VLOOKUP(F97,Kp!$A$4:$B$24,2,FALSE) -> 0 | L97: 0.755 | M97: 0.005 | O97: https://www.soaringspot.com/cs/21-fatraglide-2023-martin-2023/results/klubova-trieda
A98: Fatraglide 2023 - Kombi | B98: SK | C98: 2023 | D98: Martin | E98: 29.4.-6.5.23 | F98: 4 | G98: 15 | H98: 0.75 | I98: 0.005 | J98: 0 | K98: =VLOOKUP(F98,Kp!$A$4:$B$24,2,FALSE) -> 0 | L98: 0.755 | M98: 0.005 | O98: https://www.soaringspot.com/cs/21-fatraglide-2023-martin-2023/results/kombi-trieda
A99: AZ Cup 2023 - Klub | B99: CZ | C99: 2023 | D99: Zbraslavice | E99: 25.5.-3.6.23 | F99: 9 | G99: 27 | H99: 0.9 | I99: 0.02 | J99: 0.01 | K99: =VLOOKUP(F99,Kp!$A$4:$B$24,2,FALSE) -> 0.025 | L99: 0.955 | M99: 0.055 | O99: https://www.soaringspot.com/en_gb/azcup/results/klub
A100: AZ Cup 2023 - Kombi | B100: CZ | C100: 2023 | D100: Zbraslavice | E100: 25.5.-3.6.23 | F100: 9 | G100: 32 | H100: 0.9 | I100: 0.045 | J100: 0.03 | K100: =VLOOKUP(F100,Kp!$A$4:$B$24,2,FALSE) -> 0.025 | L100: 1 | M100: 0.1 | O100: https://www.soaringspot.com/en_gb/azcup/results/kombi
A101: FL 2023 - Kombi | B101: CZ | C101: 2023 | D101: Frýdlant n/Ostr. | E101: 30.6.-9.7.23 | F101: 7 | G101: 11 | H101: 0.9 | I101: 0 | J101: 0 | K101: =VLOOKUP(F101,Kp!$A$4:$B$24,2,FALSE) -> 0.015 | L101: 0.915 | M101: 0.015 | O101: https://www.soaringspot.com/cs/fl-2023-frydlant-2023/results/fl-kombi
A102: FL 2023 - Klub | B102: CZ | C102: 2023 | D102: Frýdlant n/Ostr. | E102: 30.6.-9.7.23 | F102: 7 | G102: 9 | H102: 0 | I102: 0 | J102: 0 | K102: =VLOOKUP(F102,Kp!$A$4:$B$24,2,FALSE) -> 0.015 | L102: 0 | M102: 0 | O102: https://www.soaringspot.com/cs/fl-2023-frydlant-2023/results/fl-klub
A103: JPJ 2023 - Klub | B103: CZ | C103: 2023 | D103: Šumperk | E103: 6.5.-13.5.23 | F103: 4 | G103: 40 | H103: 0.9 | I103: 0.005 | J103: 0 | K103: =VLOOKUP(F103,Kp!$A$4:$B$24,2,FALSE) -> 0 | L103: 0.905 | M103: 0.005 | O103: https://www.soaringspot.com/cs/jpj2023/results/klubova-trida
A104: JPJ 2023 - Kombi | B104: CZ | C104: 2023 | D104: Šumperk | E104: 6.5.-13.5.23 | F104: 4 | G104: 19 | H104: 0.9 | I104: 0.005 | J104: 0.01 | K104: =VLOOKUP(F104,Kp!$A$4:$B$24,2,FALSE) -> 0 | L104: 0.915 | M104: 0.015 | O104: https://www.soaringspot.com/cs/jpj2023/results/kombi-trida
A105: PMRg 2023 - Klub | B105: CZ | C105: 2023 | D105: Hosín | E105: 1.7.-15.7.23 | F105: 10 | G105: 13 | H105: 0.9 | I105: 0 | J105: 0 | K105: =VLOOKUP(F105,Kp!$A$4:$B$24,2,FALSE) -> 0.03 | L105: 0.93 | M105: 0.03 | O105: https://www.soaringspot.com/cs/plachtarske-mistrovstvi-regionu-cr-2023-hosin-2023/results/klub
A106: PMRg, PMČRj 2023 - Kombi | B106: CZ | C106: 2023 | D106: Hosín | E106: 1.7.-15.7.23 | F106: 10 | G106: 11 | H106: 0.9 | I106: 0.02 | J106: 0 | K106: =VLOOKUP(F106,Kp!$A$4:$B$24,2,FALSE) -> 0.03 | L106: 0.95 | M106: 0.05 | O106: https://www.soaringspot.com/cs/plachtarske-mistrovstvi-regionu-cr-2023-hosin-2023/results/kombi
A107: PMČRj 2023 - Klub | B107: CZ | C107: 2023 | D107: Hosín | E107: 1.7.-15.7.23 | F107: 10 | G107: 25 | H107: 0.9 | I107: 0.01 | J107: 0 | K107: =VLOOKUP(F107,Kp!$A$4:$B$24,2,FALSE) -> 0.03 | L107: 0.94 | M107: 0.04 | O107: https://www.soaringspot.com/en_gb/plachtarske-mistrovstvi-cr-junioru-2023-hosin-2023/results/klub
A108: WWGC 2023 - Klub | B108: SP | C108: 2023 | D108: Garray | E108: 2.7.-14.7.23 | F108: 8 | G108: 19 | H108: 1 | I108: 0.015 | J108: 0.01 | K108: =VLOOKUP(F108,Kp!$A$4:$B$24,2,FALSE) -> 0.02 | L108: 1.045 | M108: 0.045 | O108: https://www.soaringspot.com/cs/12th-fai-womens-world-gliding-championship-garray-2023/results/club
A109: WWGC 2023 - Std | B109: SP | C109: 2023 | D109: Garray | E109: 2.7.-14.7.23 | F109: 10 | G109: 16 | H109: 1 | I109: 0.015 | J109: 0.01 | K109: =VLOOKUP(F109,Kp!$A$4:$B$24,2,FALSE) -> 0.03 | L109: 1.055 | M109: 0.055 | O109: https://www.soaringspot.com/cs/12th-fai-womens-world-gliding-championship-garray-2023/results/standard
A110: WWGC 2023 - 18m | B110: SP | C110: 2023 | D110: Garray | E110: 2.7.-14.7.23 | F110: 10 | G110: 12 | H110: 1 | I110: 0.01 | J110: 0, 03 | K110: =VLOOKUP(F110,Kp!$A$4:$B$24,2,FALSE) -> 0.03 | L110: 1.04 | M110: 0.04 | O110: https://www.soaringspot.com/cs/12th-fai-womens-world-gliding-championship-garray-2023/results/18-meter
A111: Safari Cup 2023 - Klub | B111: CZ | C111: 2023 | D111: Dvůr Králové | E111: 2.7.-15.7.23 | F111: 9 | G111: 25 | H111: 0.75 | I111: 0 | J111: 0 | K111: =VLOOKUP(F111,Kp!$A$4:$B$24,2,FALSE) -> 0.025 | L111: =IF(H111=0,0,IF(OR(F111=0,F111=1,F111=2),0,IF(G111<10,0,SUM(H111:K111)))) -> 0.775 | M111: =L111-H111 -> 0.025 | O111: https://www.soaringspot.com/en_gb/safari-and-blanik-cup-dvur-kralove-nad-labem-2023/results/dvousedadlovky
A112: Safari Cup 2023 - Kombi | B112: CZ | C112: 2023 | D112: Dvůr Králové | E112: 2.7.-15.7.23 | F112: 9 | G112: 10 | H112: 0.75 | I112: 0 | J112: 0 | K112: =VLOOKUP(F112,Kp!$A$4:$B$24,2,FALSE) -> 0.025 | L112: =IF(H112=0,0,IF(OR(F112=0,F112=1,F112=2),0,IF(G112<10,0,SUM(H112:K112)))) -> 0.775 | M112: =L112-H112 -> 0.025 | O112: https://www.soaringspot.com/en_gb/safari-and-blanik-cup-dvur-kralove-nad-labem-2023/results/unknown
A113: Toužim Cup 2023 - Klub | B113: CZ | C113: 2023 | D113: Toužim | E113: 8.7.-16.7.23 | F113: 6 | G113: 18 | H113: 0.9 | I113: 0.005 | J113: 0 | K113: =VLOOKUP(F113,Kp!$A$4:$B$24,2,FALSE) -> 0.01 | L113: =IF(H113=0,0,IF(OR(F113=0,F113=1,F113=2),0,IF(G113<10,0,SUM(H113:K113)))) -> 0.915 | M113: =L113-H113 -> 0.015 | O113: https://www.soaringspot.com/en_gb/tcup2023/results/klub
A114: Toužim Cup 2023 - Kombi | B114: CZ | C114: 2023 | D114: Toužim | E114: 8.7.-16.7.23 | F114: 6 | G114: 26 | H114: 0.9 | I114: 0.015 | J114: 0 | K114: =VLOOKUP(F114,Kp!$A$4:$B$24,2,FALSE) -> 0.01 | L114: 0.925 | M114: 0.025 | O114: https://www.soaringspot.com/en_gb/tcup2023/results/kombi
A115: PMSR 2023 - Kombi Open | B115: SK | C115: 2023 | D115: Prievidza | E115: 9.7.-22.7.23 | F115: 10 | G115: 14 | H115: 0.9 | I115: 0.02 | J115: 0 | K115: =VLOOKUP(F115,Kp!$A$4:$B$24,2,FALSE) -> 0.03 | L115: =IF(H115=0,0,IF(OR(F115=0,F115=1,F115=2),0,IF(G115<10,0,SUM(H115:K115)))) -> 0.95 | M115: =L115-H115 -> 0.05 | O115: https://www.soaringspot.com/cs/slovak-gliding-nationals-pmsr-2023-prievidza-2023/results/kombi-b
A116: Cirrus GP 2023 - Klub | B116: CZ | C116: 2023 | D116: Křižanov | E116: 15.7.-22.7.23 | F116: 5 | G116: 12 | H116: 0.75 | I116: 0 | J116: 0 | K116: =VLOOKUP(F116,Kp!$A$4:$B$24,2,FALSE) -> 0.005 | L116: 0.755 | M116: 0.005 | O116: https://www.soaringspot.com/en_gb/cgp2023/results/cirrus-grand-prix
A117: Cirrus GP 2023 - Kombi 15m | B117: CZ | C117: 2023 | D117: Křižanov | E117: 15.7.-22.7.23 | F117: 4 | G117: 9 | H117: 0 | I117: 0 | J117: 0 | K117: =VLOOKUP(F117,Kp!$A$4:$B$24,2,FALSE) -> 0 | L117: =IF(H117=0,0,IF(OR(F117=0,F117=1,F117=2),0,IF(G117<10,0,SUM(H117:K117)))) -> 0 | M117: =L117-H117 -> 0 | O117: https://www.soaringspot.com/en_gb/cgp2023/results/15m-grand-prix
A118: PPV 2023 - Klub | B118: CZ | C118: 2023 | D118: Havlíčkův Brod | E118: 22.7-30.7.23 | F118: 4 | G118: 42 | H118: 0.9 | I118: 0 | J118: 0 | K118: =VLOOKUP(F118,Kp!$A$4:$B$24,2,FALSE) -> 0 | L118: 0.9 | M118: 0 | O118: https://www.soaringspot.com/en_gb/ppv2023-lkhb/results/klub
A119: PPV 2023 - Kombi | B119: CZ | C119: 2023 | D119: Havlíčkův Brod | E119: 22.7-30.7.23 | F119: 4 | G119: 19 | H119: 0.9 | I119: 0.02 | J119: 0 | K119: =VLOOKUP(F119,Kp!$A$4:$B$24,2,FALSE) -> 0 | L119: 0.92 | M119: 0.02 | O119: https://www.soaringspot.com/en_gb/ppv2023-lkhb/results/kombi
A120: EGC 2023 - 18m | B120: PL | C120: 2023 | D120: Leszno | E120: 26.7.-11.8.23 | F120: 7 | G120: 36 | H120: 1 | I120: 0.06 | J120: 0.02 | K120: =VLOOKUP(F120,Kp!$A$4:$B$24,2,FALSE) -> 0.015 | L120: 1.095 | M120: 0.095 | O120: https://www.soaringspot.com/cs/egc2023/results/18m
A121: EGC 2023 - Open | B121: PL | C121: 2023 | D121: Leszno | E121: 26.7.-11.8.23 | F121: 8 | G121: 15 | H121: 1 | I121: 0.03 | J121: 0.01 | K121: =VLOOKUP(F121,Kp!$A$4:$B$24,2,FALSE) -> 0.02 | L121: =IF(H121=0,0,IF(OR(F121=0,F121=1,F121=2),0,IF(G121<10,0,SUM(H121:K121)))) -> 1.06 | M121: =L121-H121 -> 0.06 | O121: https://www.soaringspot.com/cs/egc2023/results/open
A122: EGC 2023 - Duo 20m | B122: PL | C122: 2023 | D122: Leszno | E122: 26.7.-11.8.23 | F122: 8 | G122: 22 | H122: 1 | I122: 0.035 | J122: 0.03 | K122: =VLOOKUP(F122,Kp!$A$4:$B$24,2,FALSE) -> 0.02 | L122: 1.085 | M122: 0.085 | O122: https://www.soaringspot.com/cs/egc2023/results/20m-multi-seat
A123: JEGC 2023 - Klub | B123: DK | C123: 2023 | D123: Arnborg | E123: 29.7.-12.8.23 | F123: 4 | G123: 36 | H123: 1 | I123: 0.01 | J123: 0.01 | K123: =VLOOKUP(F123,Kp!$A$4:$B$24,2,FALSE) -> 0 | L123: 1.02 | M123: 0.02 | O123: https://www.soaringspot.com/cs/6th-fai-junior-european-gliding-championship-2023/results/club
A124: JEGC 2023 - Std | B124: DK | C124: 2023 | D124: Arnborg | E124: 29.7.-12.8.23 | F124: 4 | G124: 20 | H124: 1 | I124: 0 | J124: 0.02 | K124: =VLOOKUP(F124,Kp!$A$4:$B$24,2,FALSE) -> 0 | L124: 1.02 | M124: 0.02 | O124: https://www.soaringspot.com/cs/6th-fai-junior-european-gliding-championship-2023/results/standard
A125: PMČR 2023 - Klub | B125: CZ | C125: 2023 | D125: Moravská Třebová | E125: 14.8.-25.8.23 | F125: 9 | G125: 16 | H125: 1 | I125: 0.015 | J125: 0.01 | K125: =VLOOKUP(F125,Kp!$A$4:$B$24,2,FALSE) -> 0.025 | L125: 1.05 | M125: 0.05 | O125: https://www.soaringspot.com/en_gb/plachtarske-mistrovstvi-cr-2023-moravska-trebova-2023/results/klubova-trida
A126: PMČR 2023 - Kombi 15m | B126: CZ | C126: 2023 | D126: Moravská Třebová | E126: 14.8.-25.8.23 | F126: 9 | G126: 10 | H126: 1 | I126: 0.02 | J126: 0 | K126: =VLOOKUP(F126,Kp!$A$4:$B$24,2,FALSE) -> 0.025 | L126: 1.045 | M126: 0.045 | O126: https://www.soaringspot.com/en_gb/plachtarske-mistrovstvi-cr-2023-moravska-trebova-2023/results/kombi-15m
A127: PMČR 2023 - Kombi Open | B127: CZ | C127: 2023 | D127: Moravská Třebová | E127: 14.8.-25.8.23 | F127: 9 | G127: 11 | H127: 1 | I127: 0.025 | J127: 0.01 | K127: =VLOOKUP(F127,Kp!$A$4:$B$24,2,FALSE) -> 0.025 | L127: 1.06 | M127: 0.06 | O127: https://www.soaringspot.com/en_gb/plachtarske-mistrovstvi-cr-2023-moravska-trebova-2023/results/kombi-open
A128: WGC 2023 - Klub | B128: AU | C128: 2023 | D128: Narromine | E128: 2.12.-17.12.23 | F128: 10 | G128: 30 | H128: 1 | I128: 0.05 | J128: 0.03 | K128: =VLOOKUP(F128,Kp!$A$4:$B$24,2,FALSE) -> 0.03 | L128: 1.11 | M128: 0.11 | O128: https://www.soaringspot.com/cs/37th-fai-world-gliding-championships-narromine-2023/results/club
A129: WGC 2023 - Std | B129: AU | C129: 2023 | D129: Narromine | E129: 2.12.-17.12.23 | F129: 10 | G129: 21 | H129: 1 | I129: 0.045 | J129: 0.03 | K129: =VLOOKUP(F129,Kp!$A$4:$B$24,2,FALSE) -> 0.03 | L129: 1.105 | M129: 0.105 | O129: https://www.soaringspot.com/cs/37th-fai-world-gliding-championships-narromine-2023/results/standard
A130: WGC 2023 - 15m | B130: AU | C130: 2023 | D130: Narromine | E130: 2.12.-17.12.23 | F130: 10 | G130: 27 | H130: 1 | I130: 0.065 | J130: 0.03 | K130: =VLOOKUP(F130,Kp!$A$4:$B$24,2,FALSE) -> 0.03 | L130: 1.125 | M130: 0.125 | O130: https://www.soaringspot.com/cs/37th-fai-world-gliding-championships-narromine-2023/results/15m
A131: Alpe Adria Cup 2023 - 113 | B131: AT | C131: 2023 | D131: Feldkirchen | E131: 10.6.-17.6.23 | F131: 5 | G131: 17 | H131: 0.75 | I131: 0 | J131: 0 | K131: =VLOOKUP(F131,Kp!$A$4:$B$24,2,FALSE) -> 0.005 | L131: =IF(H131=0,0,IF(OR(F131=0,F131=1,F131=2),0,IF(G131<10,0,SUM(H131:K131)))) -> 0.755 | M131: =L131-H131 -> 0.005 | O131: https://www.soaringspot.com/en_gb/aac2023/results/113er
A132: Alpe Adria Cup 2023 - Kombi Open | B132: AT | C132: 2023 | D132: Feldkirchen | E132: 10.6.-17.6.23 | F132: 5 | G132: 24 | H132: 0.75 | I132: 0 | J132: 0 | K132: =VLOOKUP(F132,Kp!$A$4:$B$24,2,FALSE) -> 0.005 | L132: =IF(H132=0,0,IF(OR(F132=0,F132=1,F132=2),0,IF(G132<10,0,SUM(H132:K132)))) -> 0.755 | M132: =L132-H132 -> 0.005 | O132: https://www.soaringspot.com/en_gb/aac2023/results/offene

Sheet Kp (hidden)
A1: Korekce na počet platných disciplín
A3: Počet platných disciplín | B3: Korekce Kp
A4: 0 | B4: 0
A5: 1 | B5: 0
A6: 2 | B6: 0
A7: 3 | B7: -0.02
A8: 4 | B8: 0
A9: 5 | B9: 0.005
A10: 6 | B10: 0.01
A11: 7 | B11: 0.015
A12: 8 | B12: 0.02
A13: 9 | B13: 0.025
A14: 10 | B14: 0.03
A15: 11 | B15: 0.03
A16: 12 | B16: 0.03
A17: 13 | B17: 0.03
A18: 14 | B18: 0.03
A19: 15 | B19: 0.03
A20: 16 | B20: 0.03
A21: 17 | B21: 0.03
A22: 18 | B22: 0.03
A23: 19 | B23: 0.03
A24: 20 | B24: 0.03

Sheet Pilot
A1: Jmeno | B1: Rok nar. | C1: Aeroklub | D1: Region | E1: M/F | F1: Junior v roce | G1: 2024 | H1: Hranice pro juniory: / Poznámka: | I1: =G1-25 -> 1999 | J1: Počet Jun: | K1: =COUNTIF(F2:F2191,"Junior v roce "&G1) -> 67 | L1: Počet F: | M1: =COUNTIF(E2:E2191,"F") -> 76 | N1: Počet M: | O1: =COUNTIF(E2:E2191,"M") -> 947 | P1: Počet celk: | Q1: =COUNTIF(A2:A2191,"<>") -> 1024
A2: - | D2: Region
A3: Adam Hepal | B3: 2004 | C3: Moravská Třebová | D3: =VLOOKUP(C3,Region,2,0) -> CZ/M | E3: M | F3: =IF(A3="(prázdné)","",IF(($G$1-B3)>25,"","Junior v roce "&$G$1)) -> Junior v roce 2024 | H3: Kolín do 2022
A4: Adam Jandora | B4: 1992 | C4: Medlánky | D4: =VLOOKUP(C4,Region,2,0) -> CZ/M | E4: M | F4: =IF(A4="(prázdné)","",IF(($G$1-B4)>25,"","Junior v roce "&$G$1)) -> 
A5: Adam Olejar | B5: 1991 | C5: Medlánky | D5: CZ/M | E5: M | F5: =IF(A5="(prázdné)","",IF(($G$1-B5)>25,"","Junior v roce "&$G$1)) -> 
A6: Adam Pergner | B6: 2002 | C6: Rakovník | D6: =VLOOKUP(C6,Region,2,0) -> CZ/C1 | E6: M | F6: =IF(A6="(prázdné)","",IF(($G$1-B6)>25,"","Junior v roce "&$G$1)) -> Junior v roce 2024
A7: Adam Sostaric | B7: 1991 | C7: Chrudim | D7: CZ/C2 | E7: M
A8: Adam Sugl | B8: 1987 | C8: Vyškov | D8: CZ/M | E8: M
A9: Albert Schneider | B9: 1967 | C9: Hranice | D9: =VLOOKUP(C9,Region,2,0) -> CZ/M | E9: M
A10: Albrecht Beat | B10: 1953 | C10: Šumperk | D10: CZ/M | E10: M
A11: Alena Netusilova | B11: 1970 | C11: Zbraslavice | D11: CZ/C1 | E11: F
A12: Ales Cervenka | B12: 1981 | C12: Soběslav | D12: CZ/C1 | E12: M
A13: Ales Hajek | B13: 1958 | C13: Mladá Boleslav | D13: CZ/C1 | E13: M
A14: Ales Hala | B14: 1994 | C14: Tábor | D14: CZ/C1 | E14: M
A15: Ales Holoubek | B15: 1966 | C15: Jičín | D15: CZ/C2 | E15: M
A16: Ales Tresl | B16: 1958 | C16: Raná | D16: CZ/C2 | E16: M
A17: Ales Vorac | B17: 1985 | C17: Křižanov | D17: CZ/M | E17: M
A18: Ales Vyhnal | B18: 1989 | C18: Kralupy | D18: CZ/C1 | E18: M
A19: Alex Gulich | B19: 2005 | C19: Slaný | D19: =VLOOKUP(C19,Region,2,0) -> CZ/C1 | E19: M | F19: Junior v roce 2024
A20: Alexander Nerandzic | B20: 1966 | C20: Raná | D20: CZ/C2 | E20: M
A21: Alois Cmajdalka | B21: 1963 | C21: Kunovice | D21: CZ/M | E21: M
A22: Alois Sohr | B22: 1939 | C22: Hranice | D22: CZ/M | E22: M
A23: Andrea Bensova | B23: 1978 | C23: Zbraslavice | D23: CZ/C1 | E23: F
A24: Aneta Prachtova | B24: 1991 | C24: Kralupy | D24: CZ/C1 | E24: F
A25: Anna Bordovska | B25: 1989 | C25: Mladá Boleslav | D25: CZ/C1 | E25: F
A26: Antonin Bordovsky | B26: 1951 | C26: Krnov | D26: CZ/M | E26: M
A27: Antonin Bruna | B27: 1945 | C27: GAC Benešov | D27: CZ/C1 | E27: M
A28: Antonin Burger | B28: 1943 | C28: Panenský Týnec | D28: CZ/C1 | E28: M
A29: Antonin Konicek | B29: 1973 | C29: Kunovice | D29: CZ/M | E29: M
A30: Antonin Kutalek | B30: 1943 | C30: Zábřeh | D30: CZ/M | E30: M
A31: Antonin Novotny | B31: 1972 | C31: Luhačovice | D31: CZ/M | E31: M
A32: Antonin Otrusina | B32: 1948 | C32: Křižanov | D32: CZ/M | E32: M
A33: Antonin Pilat | B33: 1971 | C33: Vyškov | D33: CZ/M | E33: M
A34: Antonin Teichmann | B34: 1965 | C34: Hronov | D34: CZ/C2 | E34: M
A35: Barbora Kubickova | B35: 1993 | C35: Medlánky | D35: CZ/M | E35: F
A36: Barbora Moravcova | B36: 1994 | C36: Zbraslavice | D36: CZ/C1 | E36: F
A37: Barbora Nahodilova | B37: 1989 | C37: Hosín | D37: CZ/C1 | E37: F
A38: Bedrich Honzicek | B38: 1972 | C38: Letňany | D38: =VLOOKUP(C38,Region,2,0) -> CZ/C1 | E38: M
A39: Bedrich Prochazka | B39: 1957 | C39: Rakovník | D39: CZ/C1 | E39: M
A40: Bohdan Sebestik | B40: 1957 | C40: Kroměříž | D40: CZ/M | E40: M
A41: Bohumil Kunc | B41: 1983 | C41: Kunovice | D41: CZ/M | E41: M
A42: Bohumil Rikal | B42: 1946 | C42: Hronov | D42: CZ/C2 | E42: M
A43: Bohumil Svec | B43: 1985 | C43: Roudnice | D43: CZ/C2 | E43: M
A44: Bohumir Zajdl | B44: 1950 | C44: Dvůr Králové | D44: CZ/C2 | E44: M
A45: Bohus Marcinik | B45: 1947 | C45: Příbram | D45: CZ/C1 | E45: M
A46: Boris Bachraty | B46: 1974 | C46: Kyjov | D46: CZ/M | E46: M | H46: Dříve Břeclav
A47: Bronislav Smatana | B47: 1970 | C47: Zbraslavice | D47: CZ/C1 | E47: M
A48: Carsten Tietz | B48: 1966 | C48: Hronov | D48: =VLOOKUP(C48,Region,2,0) -> CZ/C2 | E48: M
A49: Christof Madoery | B49: 1958 | C49: Šumperk | D49: =VLOOKUP(C49,Region,2,0) -> CZ/M | E49: M
A50: Dalibor Daricek | B50: 1993 | C50: Kunovice | D50: CZ/M | E50: M
A51: Dalibor Fencl | B51: 1966 | C51: Zbraslavice | D51: CZ/C1 | E51: M
A52: Dalibor Pek | B52: 1968 | C52: Raná | D52: CZ/C2 | E52: M
A53: Dana Novakova | B53: 1965 | C53: Mladá Boleslav | D53: CZ/C1 | E53: F
A54: Danes Grula | B54: 1961 | C54: Medlánky | D54: CZ/M | E54: M
A55: Daniel Adamec | B55: 1977 | C55: Hranice | D55: CZ/M | E55: M
A56: Daniel Brichta | B56: 1962 | C56: GAC Benešov | D56: =VLOOKUP(C56,Region,2,0) -> CZ/C1 | E56: M
A57: Daniel Devecka | B57: 1981 | C57: Vlašim | D57: =VLOOKUP(C57,Region,2,0) -> CZ/C1 | E57: M | F57: =IF(A57="(prázdné)","",IF(($G$1-B57)>25,"","Junior v roce "&$G$1)) -> 
A58: Daniel Dvorak | B58: 1980 | C58: Letkov | D58: CZ/C1 | E58: M
A59: Daniel Krasnicky | B59: 1984 | C59: Příbram | D59: CZ/C1 | E59: M
A60: Daniel Marek | B60: 1983 | C60: Hosín | D60: =VLOOKUP(C60,Region,2,0) -> CZ/C1 | E60: M
A61: Daniel Moravek | B61: 1973 | C61: Hodkovice | D61: CZ/C2 | E61: M
A62: Daniel Novak | B62: 1971 | C62: Letkov | D62: CZ/C1 | E62: M
A63: Daniel Ryba | B63: 1994 | C63: Dvůr Králové | D63: CZ/C2 | E63: M
A64: Daniel Suchy | B64: 1995 | C64: Hranice | D64: CZ/M | E64: M
A65: Daniela Frankova | B65: 1997 | C65: Jaroměř | D65: CZ/C2 | E65: M
A66: Daniela Stepankova | B66: 1988 | C66: Hosín | D66: CZ/C1 | E66: F
A67: David Benda | B67: 1974 | C67: Letňany | D67: =VLOOKUP(C67,Region,2,0) -> CZ/C1 | E67: M | F67: =IF(A67="(prázdné)","",IF(($G$1-B67)>25,"","Junior v roce "&$G$1)) -> 
A68: David Cisar | B68: 1987 | C68: Křižanov | D68: CZ/M | E68: M
A69: David Darnady | B69: 1987 | C69: Zbraslavice | D69: =VLOOKUP(C69,Region,2,0) -> CZ/C1 | E69: M | F69: =IF(A69="(prázdné)","",IF(($G$1-B69)>25,"","Junior v roce "&$G$1)) -> 
A70: David Kaspar | B70: 1993 | C70: Jaroměř | D70: =VLOOKUP(C70,Region,2,0) -> CZ/C2 | E70: M
A71: David Krcil | B71: 1976 | C71: Raná | D71: =VLOOKUP(C71,Region,2,0) -> CZ/C2 | E71: M
A72: David Londa | B72: 1973 | C72: Mladá Boleslav | D72: CZ/C1 | E72: M
A73: David Mach | B73: 1994 | C73: Hronov | D73: CZ/C2 | E73: M
A74: David Marek | B74: 1991 | C74: Křižanov | D74: CZ/M | E74: M
A75: David Nenicka | B75: 2005 | C75: Hranice | D75: =VLOOKUP(C75,Region,2,0) -> CZ/M | E75: M | F75: =IF(A75="(prázdné)","",IF(($G$1-B75)>25,"","Junior v roce "&$G$1)) -> Junior v roce 2024
A76: David Novotny | B76: 1984 | C76: Polička | D76: CZ/C2 | E76: M
A77: David Popovsky | B77: 1976 | C77: Rakovník | D77: CZ/C1 | E77: M | F77: =IF(A77="(prázdné)","",IF(($G$1-B77)>25,"","Junior v roce "&$G$1)) -> 
A78: David Prihoda | B78: 1994 | C78: Hranice | D78: CZ/M | E78: M
A79: David Rozporka | B79: 1994 | C79: Hronov | D79: CZ/C2 | E79: M
A80: David Rytina | B80: 1983 | C80: Zbraslavice | D80: CZ/C1 | E80: M
A81: David Riha | B81: 1983 | C81: Vlašim | D81: CZ/C1 | E81: M
A82: David Sachl | B82: 1978 | C82: Kralupy | D82: CZ/C1 | E82: M
A83: David Tejnora | B83: 1982 | C83: Jaroměř | D83: CZ/C2 | E83: M
A84: David Trnecka | B84: 1979 | C84: Medlánky | D84: CZ/M | E84: M
A85: David Vrchota | B85: 1976 | C85: Jaroměř | D85: =VLOOKUP(C85,Region,2,0) -> CZ/C2 | E85: M
A86: David Zapletal | B86: 1970 | C86: Mladá Boleslav | D86: CZ/C1 | E86: M
A87: David Zatecka | B87: 1993 | C87: GAC Benešov | D87: =VLOOKUP(C87,Region,2,0) -> CZ/C1 | E87: M
A88: Dusan Gadas | B88: 1960 | C88: Hranice | D88: CZ/M | E88: M
A89: Dusan Kmet | B89: 1972 | C89: Křižanov | D89: CZ/M | E89: M
A90: Dusan Patocka | B90: 1972 | C90: Vrchlabí | D90: =VLOOKUP(C90,Region,2,0) -> CZ/C2 | E90: M | F90: =IF(A90="(prázdné)","",IF(($G$1-B90)>25,"","Junior v roce "&$G$1)) -> 
A91: Dusan Sys | B91: 1977 | C91: Šumperk | D91: CZ/M | E91: M
A92: Dusan Zerzan | B92: 1970 | C92: Šumperk | D92: CZ/M | E92: M
A93: Eduard Niko | B93: 1988 | C93: Zbraslavice | D93: =VLOOKUP(C93,Region,2,0) -> CZ/C1 | E93: M | F93: =IF(A93="(prázdné)","",IF(($G$1-B93)>25,"","Junior v roce "&$G$1)) -> 
A94: Eduard Svoboda | B94: 1957 | C94: Raná | D94: CZ/C2 | E94: M
A95: Eliska Bohunovska | B95: 2001 | C95: Hranice | D95: =VLOOKUP(C95,Region,2,0) -> CZ/M | E95: F | F95: Junior v roce 2024
A96: Eliska Kudejova | B96: 2006 | C96: Strakonice | D96: =VLOOKUP(C96,Region,2,0) -> CZ/C1 | E96: F | F96: =IF(A96="(prázdné)","",IF(($G$1-B96)>25,"","Junior v roce "&$G$1)) -> Junior v roce 2024
A97: Eva Cerna | B97: 1964 | C97: Příbram | D97: CZ/C1 | E97: F
A98: Eva Klapkova | B98: 1993 | C98: Raná | D98: =VLOOKUP(C98,Region,2,0) -> CZ/C2 | E98: F | F98: =IF(A98="(prázdné)","",IF(($G$1-B98)>25,"","Junior v roce "&$G$1)) -> 
A99: Evzen Skala | B99: 1954 | C99: Vrchlabí | D99: CZ/C2 | E99: M
A100: Fabian Curda | B100: 2004 | C100: Zábřeh | D100: =VLOOKUP(C100,Region,2,0) -> CZ/M | E100: M | F100: Junior v roce 2024
A101: Filip Borůvka | B101: 2004 | C101: Nové Město nad Metují | D101: =VLOOKUP(C101,Region,2,0) -> CZ/C2 | E101: M | F101: =IF(A101="(prázdné)","",IF(($G$1-B101)>25,"","Junior v roce "&$G$1)) -> Junior v roce 2024
A102: Filip Graf | B102: 1981 | C102: Křižanov | D102: CZ/M | E102: M
A103: Filip Malik | B103: 2001 | C103: Letňany | D103: =VLOOKUP(C103,Region,2,0) -> CZ/C1 | E103: M | F103: Junior v roce 2024
A104: Filip Mrstny | B104: 2006 | C104: Beroun | D104: =VLOOKUP(C104,Region,2,0) -> CZ/C1 | E104: M | F104: Junior v roce 2024
A105: Filip Neumann | B105: 1977 | C105: GAC Benešov | D105: CZ/C1 | E105: M
A106: Filip Sklenar | B106: 1990 | C106: Žamberk | D106: CZ/C2 | E106: M
A107: Filip sirc | B107: 1993 | C107: Letňany | D107: CZ/C1 | E107: M
A108: Filip Vita | B108: 2001 | C108: Kroměříž | D108: CZ/M | E108: M | F108: Junior v roce 2024
A109: Frantisek Brozman | B109: 1960 | C109: Tachov | D109: CZ/C1 | E109: M
A110: Frantisek Filandr | B110: 1956 | C110: Most | D110: CZ/C2 | E110: M
A111: Frantisek Hubacek | B111: 1978 | C111: Točná | D111: CZ/C1 | E111: M
A112: Frantisek Komarek | B112: 1985 | C112: Zbraslavice | D112: CZ/C1 | E112: M
A113: Frantisek Kriz | B113: 1961 | C113: Toužim | D113: CZ/C1 | E113: M
A114: Frantisek Marek | B114: 1960 | C114: Křižanov | D114: CZ/M | E114: M
A115: Frantisek Matousek | B115: 1937 | C115: Nové Město nad Metují | D115: CZ/C2 | E115: M
A116: Frantisek Myska | B116: 1968 | C116: Most | D116: CZ/C2 | E116: M
A117: Frantisek Pycha | B117: 1972 | C117: Chrudim | D117: CZ/C2 | E117: M
A118: Frantisek Soucek | B118: 1945 | C118: Dvůr Králové | D118: CZ/C2 | E118: M
A119: Frantisek Sindelar | B119: 1954 | C119: Kralupy | D119: CZ/C1 | E119: M
A120: Frantisek Suna | B120: 1983 | C120: Hosín | D120: =VLOOKUP(C120,Region,2,0) -> CZ/C1 | E120: M
A121: Frantisek Vancura | B121: 1966 | C121: Hranice | D121: CZ/M | E121: M
A122: Gabriela Cervena | B122: 1966 | C122: Jaroměř | D122: CZ/C2 | E122: F
A123: Gustav Vrbacky | B123: 1933 | C123: Medlánky | D123: CZ/M | E123: M
A124: Hana Treslova | B124: 1991 | C124: Raná | D124: CZ/C2 | E124: F
A125: Hana Vokrinkova | B125: 1958 | C125: Hodkovice | D125: CZ/C2 | E125: F
A126: Hynek Pokorny | B126: 1991 | C126: Letňany | D126: CZ/C1 | E126: M
A127: Christof Madory | B127: 1958 | C127: Šumperk | D127: CZ/M | E127: M
A128: Ilja Kopacek | B128: 1943 | C128: Jičín | D128: =VLOOKUP(C128,Region,2,0) -> CZ/C2 | E128: M
A129: Ivan Filakovsky | B129: 1965 | C129: Medlánky | D129: CZ/M | E129: M
A130: Ivan Harasta 65 | B130: 1965 | C130: Toužim | D130: CZ/C1 | E130: M
A131: Ivan Harasta 98 | B131: 1998 | C131: Toužim | D131: CZ/C1 | E131: M
A132: Ivan Kuzelka | B132: 1945 | C132: Havlíčkův Brod | D132: CZ/C2 | E132: M
A133: Ivan Ladr | B133: 1940 | C133: Dvůr Králové | D133: CZ/C2 | E133: M
A134: Ivan Novak | B134: 1962 | C134: Mladá Boleslav | D134: CZ/C1 | E134: M
A135: Ivan Tvrdik | B135: 1997 | C135: Letňany | D135: CZ/C1 | E135: M
A136: Ivo Burda | B136: 1962 | C136: Zbraslavice | D136: CZ/C1 | E136: M
A137: Ivo Nezval | B137: 1964 | C137: Šumperk | D137: CZ/M | E137: M
A138: Ivo Vudarcik | B138: 1994 | C138: Rakovník | D138: CZ/C1 | E138: M
A139: Jacek Kerum | B139: 1943 | C139: Příbram | D139: CZ/C1 | E139: M
A140: Jakub Brotanek | B140: 1985 | C140: Roudnice | D140: CZ/C2 | E140: M
A141: Jakub Hlavacek | B141: 1991 | C141: Letkov | D141: CZ/C1 | E141: M
A142: Jakub Kmosek | B142: 1978 | C142: Zbraslavice | D142: CZ/C1 | E142: M
A143: Jakub Kohn | B143: 1992 | C143: Prostějov | D143: CZ/M | E143: M
A144: Jakub Koudelka | B144: 2000 | C144: Křižanov | D144: =VLOOKUP(C144,Region,2,0) -> CZ/M | E144: M | F144: Junior v roce 2024
A145: Jakub Malik | B145: 1999 | C145: Letňany | D145: CZ/C1 | E145: M | F145: Junior v roce 2024
A146: Jakub Michalicka | B146: 1993 | C146: Rakovník | D146: CZ/C1 | E146: M
A147: Jakub Spanger | B147: 2002 | C147: Jeseník | D147: =VLOOKUP(C147,Region,2,0) -> CZ/M | E147: M | F147: Junior v roce 2024
A148: Jakub Tiller | B148: 1987 | C148: Broumov | D148: CZ/C2 | E148: M
A149: Jakub Vimr | B149: 1975 | C149: GAC Benešov | D149: CZ/C1 | E149: M | F149: =IF(A149="(prázdné)","",IF(($G$1-B149)>25,"","Junior v roce "&$G$1)) -> 
A150: Jan Adam | B150: 2002 | C150: Podhořany | D150: =VLOOKUP(C150,Region,2,0) -> CZ/C2 | E150: M | F150: Junior v roce 2024
A151: Jan Bejdl | B151: 1978 | C151: Zbraslavice | D151: =VLOOKUP(C151,Region,2,0) -> CZ/C1 | E151: M
A152: Jan Belina | B152: 1979 | C152: Hořice | D152: CZ/C2 | E152: M
A153: Jan Beran | B153: 1999 | C153: Kladno | D153: =VLOOKUP(C153,Region,2,0) -> CZ/C1 | E153: M | F153: Junior v roce 2024
A154: Jan Beranek | B154: 1976 | C154: Jihlava | D154: CZ/M | E154: M
A155: Jan Blaha | B155: 1983 | C155: Kyjov | D155: =VLOOKUP(C155,Region,2,0) -> CZ/M | E155: M | F155: =IF(A155="(prázdné)","",IF(($G$1-B155)>25,"","Junior v roce "&$G$1)) -> 
A156: Jan Boruvka | B156: 1984 | C156: Jičín | D156: CZ/C2 | E156: M
A157: Jan Camr | B157: 2002 | C157: Jaroměř | D157: =VLOOKUP(C157,Region,2,0) -> CZ/C2 | E157: M | F157: Junior v roce 2024
A158: Jan Cerveny | B158: 1984 | C158: Jaroměř | D158: CZ/C2 | E158: M
A159: Jan Cibulka | B159: 2002 | C159: Letňany | D159: =VLOOKUP(C159,Region,2,0) -> CZ/C1 | E159: M | F159: Junior v roce 2024
A160: Jan Dersak 69 | B160: 1969 | C160: Kralupy | D160: CZ/C1 | E160: M
A161: Jan Dersak 92 | B161: 1992 | C161: Kralupy | D161: CZ/C1 | E161: M
A162: Jan Drahota | B162: 1988 | C162: Rakovník | D162: CZ/C1 | E162: M
A163: Jan Drbohlav | B163: 1999 | C163: Hodkovice | D163: =VLOOKUP(C163,Region,2,0) -> CZ/C2 | E163: M | F163: Junior v roce 2024
A164: Jan Florian | B164: 1992 | C164: Zbraslavice | D164: CZ/C1 | E164: M
A165: Jan Habermann | B165: 1975 | C165: Vlašim | D165: =VLOOKUP(C165,Region,2,0) -> CZ/C1 | E165: M
A166: Jan Hejret | B166: 1976 | C166: Jaroměř | D166: CZ/C2 | E166: M
A167: Jan Heroudek | B167: 1970 | C167: Rakovník | D167: =VLOOKUP(C167,Region,2,0) -> CZ/C1 | E167: M
A168: Jan Hlavacek | B168: 1965 | C168: Rakovník | D168: CZ/C1 | E168: M
A169: Jan Horak | B169: 1971 | C169: Zbraslavice | D169: CZ/C1 | E169: M
A170: Jan Horky | B170: 1968 | C170: Medlánky | D170: CZ/M | E170: M
A171: Jan Hrbatsch | B171: 1989 | C171: Hodkovice | D171: CZ/C2 | E171: M
A172: Jan Hruska | B172: 1988 | C172: Tábor | D172: CZ/C1 | E172: M
A173: Jan Hybner | B173: 1977 | C173: Liberec | D173: =VLOOKUP(C173,Region,2,0) -> CZ/C2 | E173: M
A174: Jan Jicha | B174: 1984 | C174: Podhořany | D174: CZ/C2 | E174: M
A175: Jan Jindra | B175: 1981 | C175: Roudnice | D175: CZ/C2 | E175: M
A176: Jan Kantor | B176: 1983 | C176: Letňany | D176: CZ/C1 | E176: M
A177: Jan Kapralek | B177: 1991 | C177: Kladno | D177: CZ/C1 | E177: M
A178: Jan Karabec | B178: 2000 | C178: Podhořany | D178: =VLOOKUP(C178,Region,2,0) -> CZ/C2 | E178: M | F178: Junior v roce 2024
A179: Jan Karnik | B179: 1976 | C179: Letkov | D179: =VLOOKUP(C179,Region,2,0) -> CZ/C1 | E179: M
A180: Jan Kaspar | B180: 1994 | C180: Letňany | D180: =VLOOKUP(C180,Region,2,0) -> CZ/C1 | E180: M
A181: Jan Kohout | B181: 1970 | C181: Žamberk | D181: CZ/C2 | E181: M
A182: Jan Konecny | B182: 1972 | C182: Rakovník | D182: CZ/C1 | E182: M
A183: Jan Kostka | B183: 1996 | C183: Kladno | D183: CZ/C1 | E183: M
A184: Jan Kotan | B184: 1982 | C184: Letňany | D184: CZ/C1 | E184: M
A185: Jan Kralik | B185: 1991 | C185: Letkov | D185: CZ/C1 | E185: M
A186: Jan Kristof | B186: 1962 | C186: Frýdlant | D186: CZ/M | E186: M
A187: Jan Kulistak | B187: 1990 | C187: Kunovice | D187: CZ/M | E187: M
A188: Jan Lancdorf | B188: 1988 | C188: Panenský Týnec | D188: CZ/C1 | E188: M
A189: Jan Louda | B189: 1986 | C189: Mladá Boleslav | D189: CZ/C1 | E189: M
A190: Jan Mareth | B190: 1979 | C190: Frýdlant | D190: CZ/M | E190: M
A191: Jan Masek | B191: 1977 | C191: Kladno | D191: CZ/C1 | E191: M
A192: Jan Matejovsky | B192: 1972 | C192: Hranice | D192: CZ/M | E192: M
A193: Jan Merta | B193: 1952 | C193: Šumperk | D193: CZ/M | E193: M
A194: Jan Mittner | B194: 1986 | C194: Zbraslavice | D194: =VLOOKUP(C194,Region,2,0) -> CZ/C1 | E194: M
A195: Jan Moravec | B195: 1979 | C195: Zábřeh | D195: CZ/M | E195: M
A196: Jan Mrozek | B196: 1982 | C196: Frýdlant | D196: =VLOOKUP(C196,Region,2,0) -> CZ/M | E196: M
A197: Jan Muknsnabl | B197: 1992 | C197: Letkov | D197: =VLOOKUP(C197,Region,2,0) -> CZ/C1 | E197: M | F197: =IF(A197="(prázdné)","",IF(($G$1-B197)>25,"","Junior v roce "&$G$1)) -> 
A198: Jan Nyc | B198: 1943 | C198: Dvůr Králové | D198: =VLOOKUP(C198,Region,2,0) -> CZ/C2 | E198: M
A199: Jan Obrucnik | B199: 1991 | C199: Kralupy | D199: CZ/C1 | E199: M
A200: Jan Oscatka | B200: 1990 | C200: Jaroměř | D200: =VLOOKUP(C200,Region,2,0) -> CZ/C2 | E200: M
... 825 more rows

Sheet Region (hidden)
A1: Aeroklub | B1: Region | C1: Počet | D1: =C70+C37+C2 -> 89
A2: Benešov | B2: CZ/C1 | C2: =COUNTIF(B2:B35,B2) -> 34
A3: Beroun | B3: CZ/C1
A4: Bystřice u Benešova | B4: CZ/C1
A5: Erpužice | B5: CZ/C1
A6: GAC Benešov | B6: CZ/C1
A7: Hořovice | B7: CZ/C1
A8: Hosín | B8: CZ/C1
A9: Jindřichův Hradec | B9: CZ/C1
A10: Karlovy Vary | B10: CZ/C1
A11: Karlštejn | B11: CZ/C1
A12: Kladno | B12: CZ/C1
A13: Klatovy | B13: CZ/C1
A14: Kolín | B14: CZ/C1
A15: Kralupy | B15: CZ/C1
A16: Letkov | B16: CZ/C1
A17: Letňany | B17: CZ/C1
A18: Mladá Boleslav | B18: CZ/C1
A19: Nesvačily | B19: CZ/C1
A20: Panenský Týnec | B20: CZ/C1
A21: Plasy | B21: CZ/C1
A22: Plzeň Bory | B22: CZ/C1
A23: Prachatice | B23: CZ/C1
A24: Příbram | B24: CZ/C1
A25: Rakovník | B25: CZ/C1
A26: Slaný | B26: CZ/C1
A27: Soběslav | B27: CZ/C1
A28: Staňkov | B28: CZ/C1
A29: Strakonice | B29: CZ/C1
A30: Tábor | B30: CZ/C1
A31: Tachov | B31: CZ/C1
A32: Točná | B32: CZ/C1
A33: Toužim | B33: CZ/C1
A34: Vlašim | B34: CZ/C1
A35: Zbraslavice | B35: CZ/C1
A36: - | B36: -
A37: Broumov | B37: CZ/C2 | C37: =COUNTIF(B37:B68,B37) -> 32
A38: Česká Lípa | B38: CZ/C2
A39: Dvůr Králové | B39: CZ/C2
A40: Havlíčkův Brod | B40: CZ/C2
A41: Hodkovice | B41: CZ/C2
A42: Hořice | B42: CZ/C2
A43: Hradčany | B43: CZ/C2
A44: Hronov | B44: CZ/C2
A45: Chomutov | B45: CZ/C2
A46: Chotěboř | B46: CZ/C2
A47: Chrudim | B47: CZ/C2
A48: Jaroměř | B48: CZ/C2
A49: Jičín | B49: CZ/C2
A50: Letecká společnost na Vysočině | B50: CZ/C2
A51: Liberec | B51: CZ/C2
A52: Mnichovo Hradiště | B52: CZ/C2
A53: Most | B53: CZ/C2
A54: Náchod | B54: CZ/C2
A55: Nové Město nad Metují | B55: CZ/C2
A56: Pardubice | B56: CZ/C2
A57: Podhořany | B57: CZ/C2
A58: Polička | B58: CZ/C2
A59: Přibyslav | B59: CZ/C2
A60: Raná | B60: CZ/C2
A61: Roudnice | B61: CZ/C2
A62: Skuteč | B62: CZ/C2
A63: Turnov | B63: CZ/C2
A64: Ústí nad Labem | B64: CZ/C2
A65: Ústí nad Orlicí | B65: CZ/C2
A66: Vrchlabí | B66: CZ/C2
A67: Vysoké Mýto | B67: CZ/C2
A68: Žamberk | B68: CZ/C2
A69: - | B69: -
A70: Bohuňovice | B70: CZ/M | C70: =COUNTIF(B70:B92,B70) -> 23
A71: Břeclav | B71: CZ/M
A72: LK Břeclav | B72: CZ/M
A73: Frýdlant | B73: CZ/M
A74: Hranice | B74: CZ/M
A75: Jeseník | B75: CZ/M
A76: Jihlava | B76: CZ/M
A77: Krnov | B77: CZ/M
A78: Kroměříž | B78: CZ/M
A79: Křižanov | B79: CZ/M
A80: Kunovice | B80: CZ/M
A81: Kyjov | B81: CZ/M
A82: Luhačovice | B82: CZ/M
A83: Medlánky | B83: CZ/M
A84: Moravská Třebová | B84: CZ/M
A85: Olomouc | B85: CZ/M
A86: Prostějov | B86: CZ/M
A87: Slatina | B87: CZ/M
A88: Slavičín | B88: CZ/M
A89: Stichovice | B89: CZ/M
A90: Šumperk | B90: CZ/M
A91: Vyškov | B91: CZ/M
A92: Zábřeh | B92: CZ/M
A94: Aalborg | B94: DK
A95: Air Sympatia | B95: SK
A96: Akaflieg Dresden | B96: DE
A97: Bad Nauheim | B97: DE
A98: Bratislava | B98: SK
A99: Dánsko | B99: DK
A100: Greiz | B100: DE
A101: Japonsko | B101: JP
A102: Jelenia Góra | B102: PL
A103: Martin | B103: SK
A104: Německo | B104: DE
A105: Nitra | B105: SK
A106: Novo Mesto | B106: SI
A107: Poprad | B107: SK
A108: Prešov | B108: SK
A109: Prievidza | B109: SK
A110: Rakousko | B110: AT
A111: Ružomberok | B111: SK
A112: SGC Martin | B112: SK
A113: Slovinsko | B113: SI
A114: Trenčín | B114: SK
A115: Trnava | B115: SK
A116: Žilina | B116: SK

Sheet Temp (hidden)
A1: Jmeno | B1: Rok narození | C1: M/F | D1: Aeroklub | E1: Region | F1: Soutěž | G1: Stát | H1: Rok | I1: Pořadí ve třídě | J1: Body ve třídě | K1: Kinp | L1: Bi | M1: Bi×Kinp | N1: G | O1: W | P1: Typ | Q1: CN | R1: Junior | S1: Poznámka

Sheet Data
M1: Počet X filtr: | N1: =SUBTOTAL(103,N7:N9998) -> 920 | O1: =SUBTOTAL(103,O7:O9998) -> 64
A2: * | M2: Počet X: | N2: =COUNTIFS(N$7:N$9998,"x",$A$7:$A$9998,$A$2) -> 920 | O2: =COUNTIFS(O$7:O$9998,"x",$A$7:$A$9998,$A$2) -> 64
H3: 2017 | N3: =COUNTIFS(#REF!,$H3,#REF!,"x",#REF!,$A$2) ->  | O3: =COUNTIFS(#REF!,$H3,#REF!,"x",#REF!,$A$2) -> 
H4: 2016 | N4: =COUNTIFS(#REF!,$H4,#REF!,"x",#REF!,$A$2) ->  | O4: =COUNTIFS(#REF!,$H4,#REF!,"x",#REF!,$A$2) -> 
H5: 2015 | N5: =COUNTIFS(#REF!,$H5,#REF!,"x",#REF!,$A$2) ->  | O5: =COUNTIFS(#REF!,$H5,#REF!,"x",#REF!,$A$2) -> 
A6: Jméno | B6: Rok narození | C6: M/F | D6: Aeroklub | E6: Region | F6: Soutěž | G6: Stát | H6: Rok | I6: Pořadí ve třídě | J6: Body ve třídě | K6: Kinp | L6: Bi | M6: Bi×Kinp | N6: G | O6: W | P6: Typ | Q6: CN | R6: Junior | S6: Poznámka
A7: Lukas Kriz | B7: =VLOOKUP(A7,Pilot,2,0) -> 2003 | C7: =VLOOKUP(A7,Pilot,5,0) -> M | D7: =VLOOKUP(A7,Pilot,3,0) -> Křižanov | E7: =VLOOKUP(A7,Pilot,4,0) -> CZ/M | F7: JPJ 2021 - Klub | G7: =VLOOKUP(F7,Soutez!A:B,2,FALSE) -> CZ | H7: =VLOOKUP(F7,Soutez!A:C,3,FALSE) -> 2021 | I7: 1 | J7: 3547 | K7: =VLOOKUP(F7,Soutez,12,0) -> 0.905 | L7: =ROUND(J7/MAX($J$7:$J$42)*10000*0.7+(MAX($I$7:$I$42)-I7)/(MAX($I$7:$I$42)-1)*10000*0.3,0) -> 10000 | M7: =ROUND(K7*L7,0) -> 9050 | P7: Std. Cirrus | Q7: EJ | R7: =IF(ISERROR(VLOOKUP(A7,Pilot,6,0)),"Není v databázi",VLOOKUP(A7,Pilot,6,0)) -> Junior v roce 2024
A8: Josef Novotny | B8: 1983 | C8: M | D8: Přibyslav | E8: CZ/C2 | F8: JPJ 2021 - Klub | G8: =VLOOKUP(F8,Soutez!A:B,2,FALSE) -> CZ | H8: =VLOOKUP(F8,Soutez!A:C,3,FALSE) -> 2021 | I8: 2 | J8: 3464 | K8: 0.905 | L8: 9750 | M8: =ROUND(K8*L8,0) -> 8824 | N8: x | P8: Std. Cirrus | Q8: AW
A9: Marek Blatak | B9: 1969 | C9: M | D9: Šumperk | E9: CZ/M | F9: JPJ 2021 - Klub | G9: =VLOOKUP(F9,Soutez!A:B,2,FALSE) -> CZ | H9: =VLOOKUP(F9,Soutez!A:C,3,FALSE) -> 2021 | I9: 3 | J9: 3388 | K9: 0.905 | L9: 9515 | M9: 8611 | N9: x | P9: LS-1f | Q9: LS
A10: David Sachl | B10: 1978 | C10: M | D10: Kralupy | E10: CZ/C1 | F10: JPJ 2021 - Klub | G10: =VLOOKUP(F10,Soutez!A:B,2,FALSE) -> CZ | H10: =VLOOKUP(F10,Soutez!A:C,3,FALSE) -> 2021 | I10: 4 | J10: 3362 | K10: 0.905 | L10: 9378 | M10: 8487 | N10: x | P10: DG-300 Club ELAN WL | Q10: BK
A11: Martin Ficnar | B11: =VLOOKUP(A11,Pilot,2,0) -> 1971 | C11: =VLOOKUP(A11,Pilot,5,0) -> M | D11: =VLOOKUP(A11,Pilot,3,0) -> Šumperk | E11: =VLOOKUP(A11,Pilot,4,0) -> CZ/M | F11: JPJ 2021 - Klub | G11: =VLOOKUP(F11,Soutez!A:B,2,FALSE) -> CZ | H11: =VLOOKUP(F11,Soutez!A:C,3,FALSE) -> 2021 | I11: 5 | J11: 3311 | K11: 0.905 | L11: 9191 | M11: 8318 | N11: x | P11: LS-3a 15m | Q11: S20
A12: Jindrich Svorc | B12: 1978 | C12: M | D12: Letňany | E12: CZ/C1 | F12: JPJ 2021 - Klub | G12: =VLOOKUP(F12,Soutez!A:B,2,FALSE) -> CZ | H12: =VLOOKUP(F12,Soutez!A:C,3,FALSE) -> 2021 | I12: 6 | J12: 3214 | K12: 0.905 | L12: 8914 | M12: 8067 | N12: x | P12: Std. Cirrus | Q12: IMI
A13: Jan Mareth | B13: 1979 | C13: M | D13: Frýdlant | E13: CZ/M | F13: JPJ 2021 - Klub | G13: =VLOOKUP(F13,Soutez!A:B,2,FALSE) -> CZ | H13: =VLOOKUP(F13,Soutez!A:C,3,FALSE) -> 2021 | I13: 7 | J13: 3209 | K13: 0.905 | L13: 8819 | M13: 7981 | N13: x | P13: ASW-15B | Q13: PA
A14: Martin Urner | B14: 1974 | C14: M | D14: Letňany | E14: CZ/C1 | F14: JPJ 2021 - Klub | G14: =VLOOKUP(F14,Soutez!A:B,2,FALSE) -> CZ | H14: =VLOOKUP(F14,Soutez!A:C,3,FALSE) -> 2021 | I14: 8 | J14: 3123 | K14: 0.905 | L14: 8563 | M14: 7750 | N14: x | P14: ASW-15B | Q14: JJ
A15: Josef Novak | B15: 1981 | C15: M | D15: Kunovice | E15: CZ/M | F15: JPJ 2021 - Klub | G15: =VLOOKUP(F15,Soutez!A:B,2,FALSE) -> CZ | H15: =VLOOKUP(F15,Soutez!A:C,3,FALSE) -> 2021 | I15: 9 | J15: 3102 | K15: 0.905 | L15: 8436 | M15: 7635 | N15: x | P15: Discus CS | Q15: CS
A16: Rene Hudak | B16: 1972 | C16: M | D16: Kunovice | E16: CZ/M | F16: JPJ 2021 - Klub | G16: =VLOOKUP(F16,Soutez!A:B,2,FALSE) -> CZ | H16: =VLOOKUP(F16,Soutez!A:C,3,FALSE) -> 2021 | I16: 10 | J16: 3074 | K16: 0.905 | L16: 8295 | M16: 7507 | N16: x | P16: Std. Cirrus WL | Q16: NK
A17: Petr Kolomaznik | B17: 1981 | C17: M | D17: Šumperk | E17: CZ/M | F17: JPJ 2021 - Klub | G17: =VLOOKUP(F17,Soutez!A:B,2,FALSE) -> CZ | H17: =VLOOKUP(F17,Soutez!A:C,3,FALSE) -> 2021 | I17: 11 | J17: 3021 | K17: 0.905 | L17: 8105 | M17: 7335 | N17: x | P17: Discus b | Q17: VE
A18: Pavlina Horackova | B18: 1965 | C18: F | D18: Šumperk | E18: CZ/M | F18: JPJ 2021 - Klub | G18: =VLOOKUP(F18,Soutez!A:B,2,FALSE) -> CZ | H18: =VLOOKUP(F18,Soutez!A:C,3,FALSE) -> 2021 | I18: 12 | J18: 2971 | K18: 0.905 | L18: 7920 | M18: 7168 | N18: x | O18: x | P18: SZD-48 Jantar std. 2 | Q18: SU
A19: David Vrchota | B19: 1976 | C19: M | D19: Jaroměř | E19: CZ/C2 | F19: JPJ 2021 - Klub | G19: =VLOOKUP(F19,Soutez!A:B,2,FALSE) -> CZ | H19: =VLOOKUP(F19,Soutez!A:C,3,FALSE) -> 2021 | I19: 13 | J19: 2940 | K19: 0.905 | L19: 7774 | M19: 7035 | P19: Std. Cirrus | Q19: GO
A20: Vaclav Marel | B20: 1974 | C20: M | D20: Jaroměř | E20: CZ/C2 | F20: JPJ 2021 - Klub | G20: =VLOOKUP(F20,Soutez!A:B,2,FALSE) -> CZ | H20: =VLOOKUP(F20,Soutez!A:C,3,FALSE) -> 2021 | I20: 14 | J20: 2871 | K20: 0.905 | L20: 7552 | M20: 6835 | N20: x | P20: Std. Cirrus | Q20: IF
A21: Petr Kolacek | B21: 1965 | C21: M | D21: Šumperk | E21: CZ/M | F21: JPJ 2021 - Klub | G21: =VLOOKUP(F21,Soutez!A:B,2,FALSE) -> CZ | H21: =VLOOKUP(F21,Soutez!A:C,3,FALSE) -> 2021 | I21: 15 | J21: 2862 | K21: 0.905 | L21: 7448 | M21: 6740 | N21: x | P21: SZD-48 Jantar std. 3 | Q21: IX
A22: Vojtech Novotny | B22: 1992 | C22: M | D22: Kralupy | E22: CZ/C1 | F22: JPJ 2021 - Klub | G22: =VLOOKUP(F22,Soutez!A:B,2,FALSE) -> CZ | H22: =VLOOKUP(F22,Soutez!A:C,3,FALSE) -> 2021 | I22: 16 | J22: 2771 | K22: 0.905 | L22: 7183 | M22: 6501 | N22: x | P22: LS-1f | Q22: EF | R22: =IF(ISERROR(VLOOKUP(A22,Pilot,6,0)),"Není v databázi",VLOOKUP(A22,Pilot,6,0)) -> 
A23: Peter Kaspar | B23: 1980 | C23: M | D23: Vyškov | E23: CZ/M | F23: JPJ 2021 - Klub | G23: =VLOOKUP(F23,Soutez!A:B,2,FALSE) -> CZ | H23: =VLOOKUP(F23,Soutez!A:C,3,FALSE) -> 2021 | I23: 17 | J23: 2604 | K23: 0.905 | L23: 6768 | M23: 6125 | N23: x | P23: G-102 Astir 77 | Q23: AP
A24: Martin Svarc | B24: 1981 | C24: M | D24: Olomouc | E24: CZ/M | F24: JPJ 2021 - Klub | G24: =VLOOKUP(F24,Soutez!A:B,2,FALSE) -> CZ | H24: =VLOOKUP(F24,Soutez!A:C,3,FALSE) -> 2021 | I24: 18 | J24: 2435 | K24: 0.905 | L24: 6348 | M24: 5745 | N24: x | P24: DG-101 G | Q24: HE
A25: Jiri Koudela | B25: 1974 | C25: M | D25: Vyškov | E25: CZ/M | F25: JPJ 2021 - Klub | G25: =VLOOKUP(F25,Soutez!A:B,2,FALSE) -> CZ | H25: =VLOOKUP(F25,Soutez!A:C,3,FALSE) -> 2021 | I25: 19 | J25: 2432 | K25: 0.905 | L25: 6257 | M25: 5663 | N25: x | P25: ASW-19B | Q25: JK
A26: Roman Schotli | B26: 1970 | C26: M | D26: Hranice | E26: CZ/M | F26: JPJ 2021 - Klub | G26: =VLOOKUP(F26,Soutez!A:B,2,FALSE) -> CZ | H26: =VLOOKUP(F26,Soutez!A:C,3,FALSE) -> 2021 | I26: 20 | J26: 2338 | K26: 0.905 | L26: 5985 | M26: 5416 | N26: x | P26: ASW-19B | Q26: 19
A27: Adam Sugl | B27: 1987 | C27: M | D27: Vyškov | E27: CZ/M | F27: JPJ 2021 - Klub | G27: =VLOOKUP(F27,Soutez!A:B,2,FALSE) -> CZ | H27: =VLOOKUP(F27,Soutez!A:C,3,FALSE) -> 2021 | I27: 21 | J27: 2323 | K27: 0.905 | L27: 5870 | M27: 5312 | N27: x | P27: G-102 Astir 77 | Q27: AS
A28: Jaromir Vlk | B28: =VLOOKUP(A28,Pilot,2,0) -> 1959 | C28: =VLOOKUP(A28,Pilot,5,0) -> M | D28: =VLOOKUP(A28,Pilot,3,0) -> Šumperk | E28: =VLOOKUP(A28,Pilot,4,0) -> CZ/M | F28: JPJ 2021 - Klub | G28: =VLOOKUP(F28,Soutez!A:B,2,FALSE) -> CZ | H28: =VLOOKUP(F28,Soutez!A:C,3,FALSE) -> 2021 | I28: 22 | J28: 2301 | K28: 0.905 | L28: 5741 | M28: 5196 | N28: x | P28: ASW-15B | Q28: R5
A29: Petr Havrlant | B29: 1965 | C29: M | D29: Šumperk | E29: CZ/M | F29: JPJ 2021 - Klub | G29: =VLOOKUP(F29,Soutez!A:B,2,FALSE) -> CZ | H29: =VLOOKUP(F29,Soutez!A:C,3,FALSE) -> 2021 | I29: 23 | J29: 2144 | K29: 0.905 | L29: 5345 | M29: 4837 | N29: x | P29: ASW-15B | Q29: Q1
A30: Stepan Obrovsky | B30: 1990 | C30: M | D30: Frýdlant | E30: CZ/M | F30: JPJ 2021 - Klub | G30: =VLOOKUP(F30,Soutez!A:B,2,FALSE) -> CZ | H30: =VLOOKUP(F30,Soutez!A:C,3,FALSE) -> 2021 | I30: 24 | J30: 2135 | K30: 0.905 | L30: 5242 | M30: 4744 | P30: Std. Cirrus | Q30: 22
A31: Karel Horalek | B31: 1976 | C31: M | D31: Olomouc | E31: CZ/M | F31: JPJ 2021 - Klub | G31: =VLOOKUP(F31,Soutez!A:B,2,FALSE) -> CZ | H31: =VLOOKUP(F31,Soutez!A:C,3,FALSE) -> 2021 | I31: 25 | J31: 2134 | K31: 0.905 | L31: 5154 | M31: 4664 | N31: x | P31: LS-3 15m | Q31: Y1
A32: Jan Zezula | B32: 1979 | C32: M | D32: Letňany | E32: CZ/C1 | F32: JPJ 2021 - Klub | G32: =VLOOKUP(F32,Soutez!A:B,2,FALSE) -> CZ | H32: =VLOOKUP(F32,Soutez!A:C,3,FALSE) -> 2021 | I32: 26 | J32: 2066 | K32: 0.905 | L32: 4934 | M32: 4465 | N32: x | P32: ASW-19B | Q32: HD
A33: Lukas Petrzela | B33: 1987 | C33: M | D33: Olomouc | E33: CZ/M | F33: JPJ 2021 - Klub | G33: =VLOOKUP(F33,Soutez!A:B,2,FALSE) -> CZ | H33: =VLOOKUP(F33,Soutez!A:C,3,FALSE) -> 2021 | I33: 27 | J33: 1797 | K33: 0.905 | L33: 4318 | M33: 3908 | N33: x | P33: G-102 Astir cs | Q33: AL
A34: Petr Valenta 76 | B34: =VLOOKUP(A34,Pilot,2,0) -> 1976 | C34: =VLOOKUP(A34,Pilot,5,0) -> M | D34: =VLOOKUP(A34,Pilot,3,0) -> Jaroměř | E34: =VLOOKUP(A34,Pilot,4,0) -> CZ/C2 | F34: JPJ 2021 - Klub | G34: =VLOOKUP(F34,Soutez!A:B,2,FALSE) -> CZ | H34: =VLOOKUP(F34,Soutez!A:C,3,FALSE) -> 2021 | I34: 28 | J34: 1580 | K34: 0.905 | L34: 3804 | M34: 3443 | N34: x | P34: Discus b | Q34: JA
A35: Petr Lonsky | B35: 1965 | C35: M | D35: Toužim | E35: CZ/C1 | F35: JPJ 2021 - Klub | G35: =VLOOKUP(F35,Soutez!A:B,2,FALSE) -> CZ | H35: =VLOOKUP(F35,Soutez!A:C,3,FALSE) -> 2021 | I35: 29 | J35: 1430 | K35: 0.905 | L35: 3422 | M35: 3097 | P35: Cirrus | Q35: JP
A36: Yvona Vyhnankova | B36: 1963 | C36: F | D36: Olomouc | E36: CZ/M | F36: JPJ 2021 - Klub | G36: =VLOOKUP(F36,Soutez!A:B,2,FALSE) -> CZ | H36: =VLOOKUP(F36,Soutez!A:C,3,FALSE) -> 2021 | I36: 30 | J36: 1427 | K36: 0.905 | L36: 3330 | M36: 3014 | N36: x | O36: x | P36: ASW-15 | Q36: YZ
A37: Karel Ertl | B37: 1939 | C37: M | D37: LK Břeclav | E37: CZ/M | F37: JPJ 2021 - Klub | G37: =VLOOKUP(F37,Soutez!A:B,2,FALSE) -> CZ | H37: =VLOOKUP(F37,Soutez!A:C,3,FALSE) -> 2021 | I37: 31 | J37: 1071 | K37: 0.905 | L37: 2542 | M37: 2301 | N37: x | P37: TST-10M Atlas | Q37: KE
A38: Jan Pokluda | B38: 1973 | C38: M | D38: Šumperk | E38: CZ/M | F38: JPJ 2021 - Klub | G38: =VLOOKUP(F38,Soutez!A:B,2,FALSE) -> CZ | H38: =VLOOKUP(F38,Soutez!A:C,3,FALSE) -> 2021 | I38: 32 | J38: 1028 | K38: 0.905 | L38: 2372 | M38: 2147 | N38: x | P38: ASW-15B WL | Q38: JG
A39: Lubomir Papezik | B39: 1951 | C39: M | D39: Luhačovice | E39: CZ/M | F39: JPJ 2021 - Klub | G39: =VLOOKUP(F39,Soutez!A:B,2,FALSE) -> CZ | H39: =VLOOKUP(F39,Soutez!A:C,3,FALSE) -> 2021 | I39: 33 | J39: 899 | K39: =VLOOKUP(F39,Soutez,12,0) -> 0.905 | L39: 2031 | M39: 1838 | N39: x | P39: LS-4 | Q39: FP
A40: Michal Linhart | B40: 1982 | C40: M | D40: Vyškov | E40: CZ/M | F40: JPJ 2021 - Klub | G40: =VLOOKUP(F40,Soutez!A:B,2,FALSE) -> CZ | H40: =VLOOKUP(F40,Soutez!A:C,3,FALSE) -> 2021 | I40: 34 | J40: 617 | K40: 0.905 | L40: 1389 | M40: =ROUND(K40*L40,0) -> 1257 | N40: x | P40: VSO-10 | Q40: B2
A41: Ludek Mikl | B41: 1963 | C41: M | D41: Šumperk | E41: CZ/M | F41: JPJ 2021 - Klub | G41: =VLOOKUP(F41,Soutez!A:B,2,FALSE) -> CZ | H41: =VLOOKUP(F41,Soutez!A:C,3,FALSE) -> 2021 | I41: 35 | J41: 601 | K41: 0.905 | L41: 1272 | M41: 1151 | N41: x | P41: Std. Cirrus | Q41: 16
A42: Albert Schneider | B42: =VLOOKUP(A42,Pilot,2,0) -> 1967 | C42: =VLOOKUP(A42,Pilot,5,0) -> M | D42: =VLOOKUP(A42,Pilot,3,0) -> Hranice | E42: =VLOOKUP(A42,Pilot,4,0) -> CZ/M | F42: JPJ 2021 - Klub | G42: =VLOOKUP(F42,Soutez!A:B,2,FALSE) -> CZ | H42: =VLOOKUP(F42,Soutez!A:C,3,FALSE) -> 2021 | I42: 36 | J42: 580 | K42: 0.905 | L42: 1145 | M42: 1036 | N42: x | P42: Mini-Nimbus c | Q42: I
A43: Jan Sustr 76 | B43: =VLOOKUP(A43,Pilot,2,0) -> 1976 | C43: =VLOOKUP(A43,Pilot,5,0) -> M | D43: =VLOOKUP(A43,Pilot,3,0) -> Raná | E43: =VLOOKUP(A43,Pilot,4,0) -> CZ/C2 | F43: JPJ 2021 - Klub | G43: =VLOOKUP(F43,Soutez!A:B,2,FALSE) -> CZ | H43: =VLOOKUP(F43,Soutez!A:C,3,FALSE) -> 2021 | I43: DNS | J43: 0 | K43: 0.905 | L43: 0 | M43: 0 | P43: DG-300 Club ELAN | Q43: WL
A44: Pavel Skrabal | B44: 1969 | C44: M | D44: Šumperk | E44: CZ/M | F44: JPJ 2021 - Klub | G44: =VLOOKUP(F44,Soutez!A:B,2,FALSE) -> CZ | H44: =VLOOKUP(F44,Soutez!A:C,3,FALSE) -> 2021 | I44: DNS | J44: 0 | K44: 0.905 | L44: 0 | M44: 0 | P44: L-13 Blaník dvojí | Q44: PAS
A45: Radek Hybl | B45: =VLOOKUP(A45,Pilot,2,0) -> 1980 | C45: =VLOOKUP(A45,Pilot,5,0) -> M | D45: =VLOOKUP(A45,Pilot,3,0) -> Šumperk | E45: =VLOOKUP(A45,Pilot,4,0) -> CZ/M | F45: JPJ 2021 - Kombi | G45: =VLOOKUP(F45,Soutez!A:B,2,FALSE) -> CZ | H45: =VLOOKUP(F45,Soutez!A:C,3,FALSE) -> 2021 | I45: 1 | J45: 3343 | K45: 0.905 | L45: =ROUND(J45/MAX($J$45:$J$69)*10000*0.7+(MAX($I$45:$I$69)-I45)/(MAX($I$45:$I$69)-1)*10000*0.3,0) -> 10000 | M45: =ROUND(K45*L45,0) -> 9050 | N45: x | P45: Ventus cm 17,6m | Q45: IHH
A46: Radek Zima 78 | B46: 1978 | C46: M | D46: Hodkovice | E46: CZ/C2 | F46: JPJ 2021 - Kombi | G46: =VLOOKUP(F46,Soutez!A:B,2,FALSE) -> CZ | H46: =VLOOKUP(F46,Soutez!A:C,3,FALSE) -> 2021 | I46: 2 | J46: 3263 | K46: 0.905 | L46: 9707 | M46: =ROUND(K46*L46,0) -> 8785 | N46: x | P46: ASG-29E 18m | Q46: XZ
A47: Miroslav Koci | B47: =VLOOKUP(A47,Pilot,2,0) -> 1961 | C47: =VLOOKUP(A47,Pilot,5,0) -> M | D47: =VLOOKUP(A47,Pilot,3,0) -> Žamberk | E47: =VLOOKUP(A47,Pilot,4,0) -> CZ/C2 | F47: JPJ 2021 - Kombi | G47: =VLOOKUP(F47,Soutez!A:B,2,FALSE) -> CZ | H47: =VLOOKUP(F47,Soutez!A:C,3,FALSE) -> 2021 | I47: 3 | J47: 3119 | K47: 0.905 | L47: 9281 | M47: 8399 | N47: x | P47: Ventus 2cxm 18m 565kg | Q47: E8
A48: Frantisek Vancura | B48: 1966 | C48: M | D48: Hranice | E48: CZ/M | F48: JPJ 2021 - Kombi | G48: =VLOOKUP(F48,Soutez!A:B,2,FALSE) -> CZ | H48: =VLOOKUP(F48,Soutez!A:C,3,FALSE) -> 2021 | I48: 4 | J48: 3015 | K48: 0.905 | L48: 8938 | M48: 8089 | P48: Nimbus 3T 24,5m WL 750kg | Q48: A1
A49: Michal Cechmanek | B49: 1978 | C49: M | D49: Kroměříž | E49: CZ/M | F49: JPJ 2021 - Kombi | G49: =VLOOKUP(F49,Soutez!A:B,2,FALSE) -> CZ | H49: =VLOOKUP(F49,Soutez!A:C,3,FALSE) -> 2021 | I49: 5 | J49: 2893 | K49: 0.905 | L49: 8558 | M49: 7745 | N49: x | P49: ASW-20 (A)+F 15m WL | Q49: MK
A50: Radim Hahn | B50: 1972 | C50: M | D50: Zábřeh | E50: CZ/M | F50: JPJ 2021 - Kombi | G50: =VLOOKUP(F50,Soutez!A:B,2,FALSE) -> CZ | H50: =VLOOKUP(F50,Soutez!A:C,3,FALSE) -> 2021 | I50: 6 | J50: 2872 | K50: 0.905 | L50: 8389 | M50: 7592 | N50: x | P50: Arcus | Q50: II
A51: Jan Dersak 69 | B51: 1969 | C51: M | D51: Kralupy | E51: CZ/C1 | F51: JPJ 2021 - Kombi | G51: =VLOOKUP(F51,Soutez!A:B,2,FALSE) -> CZ | H51: =VLOOKUP(F51,Soutez!A:C,3,FALSE) -> 2021 | I51: 7 | J51: 2843 | K51: 0.905 | L51: 8203 | M51: 7424 | P51: HpH 304JS SHARK 18m 573kg | Q51: DJ
A52: Jaroslav Buryan | B52: =VLOOKUP(A52,Pilot,2,0) -> 1953 | C52: =VLOOKUP(A52,Pilot,5,0) -> M | D52: =VLOOKUP(A52,Pilot,3,0) -> Zábřeh | E52: =VLOOKUP(A52,Pilot,4,0) -> CZ/M | F52: JPJ 2021 - Kombi | G52: =VLOOKUP(F52,Soutez!A:B,2,FALSE) -> CZ | H52: =VLOOKUP(F52,Soutez!A:C,3,FALSE) -> 2021 | I52: 8 | J52: 2809 | K52: 0.905 | L52: 8007 | M52: 7246 | N52: x | P52: ASW-20 (A)+F 15m WL | Q52: NS
A53: Jan Simon | B53: 1970 | C53: M | D53: Kralupy | E53: CZ/C1 | F53: JPJ 2021 - Kombi | G53: =VLOOKUP(F53,Soutez!A:B,2,FALSE) -> CZ | H53: =VLOOKUP(F53,Soutez!A:C,3,FALSE) -> 2021 | I53: 9 | J53: 2664 | K53: 0.905 | L53: 7578 | M53: 6858 | N53: x | P53: Duo Discus T 700kg | Q53: ZS
A54: Zdenek Schenk | B54: 1972 | C54: M | D54: Hranice | E54: CZ/M | F54: JPJ 2021 - Kombi | G54: =VLOOKUP(F54,Soutez!A:B,2,FALSE) -> CZ | H54: =VLOOKUP(F54,Soutez!A:C,3,FALSE) -> 2021 | I54: 10 | J54: 2601 | K54: 0.905 | L54: 7321 | M54: 6626 | N54: x | P54: Ventus cm 17,6m | Q54: ŠNeK
A55: Jan Kohout | B55: 1970 | C55: M | D55: Žamberk | E55: CZ/C2 | F55: JPJ 2021 - Kombi | G55: =VLOOKUP(F55,Soutez!A:B,2,FALSE) -> CZ | H55: =VLOOKUP(F55,Soutez!A:C,3,FALSE) -> 2021 | I55: 11 | J55: 2562 | K55: 0.905 | L55: 7115 | M55: 6439 | N55: x | P55: LS-8 15m | Q55: SK
A56: Jiri Steiger | B56: 1969 | C56: M | D56: Olomouc | E56: CZ/M | F56: JPJ 2021 - Kombi | G56: =VLOOKUP(F56,Soutez!A:B,2,FALSE) -> CZ | H56: =VLOOKUP(F56,Soutez!A:C,3,FALSE) -> 2021 | I56: 11 | J56: 2562 | K56: 0.905 | L56: 7115 | M56: 6439 | P56: Ventus 3M 18m | Q56: JS
A57: Albrecht Beat | B57: 1953 | C57: M | D57: Šumperk | E57: CZ/M | F57: JPJ 2021 - Kombi | G57: =VLOOKUP(F57,Soutez!A:B,2,FALSE) -> CZ | H57: =VLOOKUP(F57,Soutez!A:C,3,FALSE) -> 2021 | I57: 13 | J57: 2548 | K57: 0.905 | L57: 6835 | M57: 6186 | N57: x | P57: LS-8-18 18m | Q57: GL
A58: Ladislav Jozsa | B58: 1981 | C58: M | D58: Medlánky | E58: CZ/M | F58: JPJ 2021 - Kombi | G58: =VLOOKUP(F58,Soutez!A:B,2,FALSE) -> CZ | H58: =VLOOKUP(F58,Soutez!A:C,3,FALSE) -> 2021 | I58: 14 | J58: 2522 | K58: 0.905 | L58: 6656 | M58: 6024 | N58: x | P58: Ventus c 17,6m | Q58: WW
A59: Tomas Prikryl | B59: 1973 | C59: M | D59: Vyškov | E59: CZ/M | F59: JPJ 2021 - Kombi | G59: =VLOOKUP(F59,Soutez!A:B,2,FALSE) -> CZ | H59: =VLOOKUP(F59,Soutez!A:C,3,FALSE) -> 2021 | I59: 15 | J59: 2425 | K59: 0.905 | L59: 6328 | M59: 5727 | N59: x | P59: Ventus 2cm 18m 525kg | Q59: FN
A60: Vit Grossmann | B60: 1977 | C60: M | D60: Hranice | E60: CZ/M | F60: JPJ 2021 - Kombi | G60: =VLOOKUP(F60,Soutez!A:B,2,FALSE) -> CZ | H60: =VLOOKUP(F60,Soutez!A:C,3,FALSE) -> 2021 | I60: 16 | J60: 2351 | K60: 0.905 | L60: 6048 | M60: 5473 | N60: x | P60: Duo Discus 700kg | Q60: OK
A61: Miroslav Sklenar | B61: 1964 | C61: M | D61: Žamberk | E61: CZ/C2 | F61: JPJ 2021 - Kombi | G61: =VLOOKUP(F61,Soutez!A:B,2,FALSE) -> CZ | H61: =VLOOKUP(F61,Soutez!A:C,3,FALSE) -> 2021 | I61: 17 | J61: 2282 | K61: 0.905 | L61: 5778 | M61: 5229 | N61: x | P61: Duo Discus 700kg | Q61: VP
A62: Pavel Haluza | B62: 1966 | C62: M | D62: Prostějov | E62: CZ/M | F62: JPJ 2021 - Kombi | G62: =VLOOKUP(F62,Soutez!A:B,2,FALSE) -> CZ | H62: =VLOOKUP(F62,Soutez!A:C,3,FALSE) -> 2021 | I62: 18 | J62: 2212 | K62: 0.905 | L62: 5507 | M62: 4984 | N62: x | P62: Nimbus 2b | Q62: HT
A63: Roman Cerny | B63: 1971 | C63: M | D63: Hranice | E63: CZ/M | F63: JPJ 2021 - Kombi | G63: =VLOOKUP(F63,Soutez!A:B,2,FALSE) -> CZ | H63: =VLOOKUP(F63,Soutez!A:C,3,FALSE) -> 2021 | I63: 19 | J63: 1991 | K63: 0.905 | L63: 4919 | M63: 4452 | N63: x | P63: DG-500M 22m | Q63: T
A64: Tomas Profeld | B64: 1964 | C64: M | D64: Jičín | E64: CZ/C2 | F64: JPJ 2021 - Kombi | G64: =VLOOKUP(F64,Soutez!A:B,2,FALSE) -> CZ | H64: =VLOOKUP(F64,Soutez!A:C,3,FALSE) -> 2021 | I64: 20 | J64: 1984 | K64: 0.905 | L64: 4779 | M64: =ROUND(K64*L64,0) -> 4325 | P64: Ventus 2cm 18m 525kg | Q64: OZ
A65: Kamil Sohr | B65: 1973 | C65: M | D65: Šumperk | E65: CZ/M | F65: JPJ 2021 - Kombi | G65: =VLOOKUP(F65,Soutez!A:B,2,FALSE) -> CZ | H65: =VLOOKUP(F65,Soutez!A:C,3,FALSE) -> 2021 | I65: 21 | J65: 1915 | K65: 0.905 | L65: 4510 | M65: 4082 | N65: x | P65: Ventus c 17,6m | Q65: W
A66: Martin Kriz | B66: 1968 | C66: M | D66: Přibyslav | E66: CZ/C2 | F66: JPJ 2021 - Kombi | G66: =VLOOKUP(F66,Soutez!A:B,2,FALSE) -> CZ | H66: =VLOOKUP(F66,Soutez!A:C,3,FALSE) -> 2021 | I66: 22 | J66: 1825 | K66: 0.905 | L66: 4196 | M66: 3797 | P66: ASW-20 (A)+F 15m WL | Q66: 67
A67: Antonin Kutalek | B67: 1943 | C67: M | D67: Zábřeh | E67: CZ/M | F67: JPJ 2021 - Kombi | G67: =VLOOKUP(F67,Soutez!A:B,2,FALSE) -> CZ | H67: =VLOOKUP(F67,Soutez!A:C,3,FALSE) -> 2021 | I67: 23 | J67: 1818 | K67: 0.905 | L67: 4057 | M67: 3672 | N67: x | P67: LAK-17AT 18m | Q67: GLK
A68: Vladimir Spilka | B68: 1940 | C68: M | D68: Hranice | E68: CZ/M | F68: JPJ 2021 - Kombi | G68: =VLOOKUP(F68,Soutez!A:B,2,FALSE) -> CZ | H68: =VLOOKUP(F68,Soutez!A:C,3,FALSE) -> 2021 | I68: 24 | J68: 1521 | K68: 0.905 | L68: 3310 | M68: 2996 | N68: x | P68: Nimbus 2b | Q68: AY
A69: Pavel Handl | B69: 1971 | C69: M | D69: Kroměříž | E69: CZ/M | F69: JPJ 2021 - Kombi | G69: =VLOOKUP(F69,Soutez!A:B,2,FALSE) -> CZ | H69: =VLOOKUP(F69,Soutez!A:C,3,FALSE) -> 2021 | I69: 25 | J69: 285 | K69: 0.905 | L69: 597 | M69: 540 | N69: x | P69: Ventus 2cm 18m 525kg | Q69: VJ
A70: Toby Freeland | D70: Imperial Gliding College Club | E70: GB | F70: PMČR 2021 - Klub | G70: =VLOOKUP(F70,Soutez!A:B,2,FALSE) -> CZ | H70: =VLOOKUP(F70,Soutez!A:C,3,FALSE) -> 2021 | I70: 1 | J70: 6518 | K70: 1.05 | L70: =ROUND(J70/MAX($J$70:$J$85)*10000*0.7+(MAX($I$70:$I$85)-I70)/(MAX($I$70:$I$85)-1)*10000*0.3,0) -> 10000 | M70: =ROUND(K70*L70,0) -> 10500 | P70: ASW20 | Q70: 212 | R70: Není v databázi
A71: Jakub Hlavacek | B71: =VLOOKUP(A71,Pilot,2,0) -> 1991 | C71: =VLOOKUP(A71,Pilot,5,0) -> M | D71: =VLOOKUP(A71,Pilot,3,0) -> Letkov | E71: =VLOOKUP(A71,Pilot,4,0) -> CZ/C1 | F71: PMČR 2021 - Klub | G71: =VLOOKUP(F71,Soutez!A:B,2,FALSE) -> CZ | H71: =VLOOKUP(F71,Soutez!A:C,3,FALSE) -> 2021 | I71: 2 | J71: 6482 | K71: =VLOOKUP(F71,Soutez,12,0) -> 1.05 | L71: 9761 | M71: =ROUND(K71*L71,0) -> 10249 | N71: x | P71: StdCirrus | Q71: SB
A72: Finn Sleigh | D72: Lasham | E72: GB | F72: PMČR 2021 - Klub | G72: =VLOOKUP(F72,Soutez!A:B,2,FALSE) -> CZ | H72: =VLOOKUP(F72,Soutez!A:C,3,FALSE) -> 2021 | I72: 3 | J72: 6390 | K72: 1.05 | L72: 9463 | M72: 9936 | P72: ASW 20 | Q72: 5 | R72: Není v databázi
A73: Jan Ratz | B73: =VLOOKUP(A73,Pilot,2,0) -> 1987 | C73: =VLOOKUP(A73,Pilot,5,0) -> M | D73: =VLOOKUP(A73,Pilot,3,0) -> Zbraslavice | E73: =VLOOKUP(A73,Pilot,4,0) -> CZ/C1 | F73: PMČR 2021 - Klub | G73: =VLOOKUP(F73,Soutez!A:B,2,FALSE) -> CZ | H73: =VLOOKUP(F73,Soutez!A:C,3,FALSE) -> 2021 | I73: 4 | J73: 6335 | K73: 1.05 | L73: 9203 | M73: 9663 | N73: x | P73: StdCirrus | Q73: REX
A74: Zdenek Boruvka 86 | B74: 1986 | C74: M | D74: Jičín | E74: CZ/C2 | F74: PMČR 2021 - Klub | G74: =VLOOKUP(F74,Soutez!A:B,2,FALSE) -> CZ | H74: =VLOOKUP(F74,Soutez!A:C,3,FALSE) -> 2021 | I74: 5 | J74: 6321 | K74: 1.05 | L74: 8988 | M74: 9437 | N74: x | P74: StdCirrus | Q74: BJ
A75: Michal Lesinger | B75: =VLOOKUP(A75,Pilot,2,0) -> 1966 | C75: =VLOOKUP(A75,Pilot,5,0) -> M | D75: =VLOOKUP(A75,Pilot,3,0) -> Moravská Třebová | E75: =VLOOKUP(A75,Pilot,4,0) -> CZ/M | F75: PMČR 2021 - Klub | G75: =VLOOKUP(F75,Soutez!A:B,2,FALSE) -> CZ | H75: =VLOOKUP(F75,Soutez!A:C,3,FALSE) -> 2021 | I75: 6 | J75: 5699 | K75: 1.05 | L75: 8120 | M75: 8526 | P75: ASW19B | Q75: LL
A76: Edmund Schuller | D76: Lucenec | E76: SK | F76: PMČR 2021 - Klub | G76: =VLOOKUP(F76,Soutez!A:B,2,FALSE) -> CZ | H76: =VLOOKUP(F76,Soutez!A:C,3,FALSE) -> 2021 | I76: 7 | J76: 5427 | K76: 1.05 | L76: 7628 | M76: 8009 | P76: ASW24 | Q76: ZS | R76: Není v databázi
A77: Pavel Rericha | B77: =VLOOKUP(A77,Pilot,2,0) -> 1967 | C77: =VLOOKUP(A77,Pilot,5,0) -> M | D77: =VLOOKUP(A77,Pilot,3,0) -> Moravská Třebová | E77: =VLOOKUP(A77,Pilot,4,0) -> CZ/M | F77: PMČR 2021 - Klub | G77: =VLOOKUP(F77,Soutez!A:B,2,FALSE) -> CZ | H77: =VLOOKUP(F77,Soutez!A:C,3,FALSE) -> 2021 | I77: 8 | J77: 5199 | K77: 1.05 | L77: 7183 | M77: 7542 | N77: x | P77: ASW19B | Q77: NO
A78: Tibor Fratrik | D78: SGC Martin | E78: SK | F78: PMČR 2021 - Klub | G78: =VLOOKUP(F78,Soutez!A:B,2,FALSE) -> CZ | H78: =VLOOKUP(F78,Soutez!A:C,3,FALSE) -> 2021 | I78: 9 | J78: 5010 | K78: 1.05 | L78: 6780 | M78: 7119 | P78: C101APegase | Q78: OI | R78: Není v databázi
A79: Pawel Glowacki | D79: Leszno | E79: PL | F79: PMČR 2021 - Klub | G79: =VLOOKUP(F79,Soutez!A:B,2,FALSE) -> CZ | H79: =VLOOKUP(F79,Soutez!A:C,3,FALSE) -> 2021 | I79: 10 | J79: 4911 | K79: 1.05 | L79: 6474 | M79: 6798 | P79: C101APegase | Q79: J7 | R79: Není v databázi
A80: Slavomir Piskaty 84 | B80: =VLOOKUP(A80,Pilot,2,0) -> 1984 | C80: =VLOOKUP(A80,Pilot,5,0) -> M | D80: =VLOOKUP(A80,Pilot,3,0) -> Kunovice | E80: =VLOOKUP(A80,Pilot,4,0) -> CZ/M | F80: PMČR 2021 - Klub | G80: =VLOOKUP(F80,Soutez!A:B,2,FALSE) -> CZ | H80: =VLOOKUP(F80,Soutez!A:C,3,FALSE) -> 2021 | I80: 11 | J80: 4360 | K80: 1.05 | L80: 5682 | M80: 5966 | N80: x | P80: Discus cs | Q80: KAL
A81: Karol Snapko | D81: Nadwislanski | E81: PL | F81: PMČR 2021 - Klub | G81: =VLOOKUP(F81,Soutez!A:B,2,FALSE) -> CZ | H81: =VLOOKUP(F81,Soutez!A:C,3,FALSE) -> 2021 | I81: 12 | J81: 4190 | K81: 1.05 | L81: 5300 | M81: =ROUND(K81*L81,0) -> 5565 | P81: SZD48 JantarStd2/3 | Q81: BZ | R81: Není v databázi
A82: Petra Piskata | B82: =VLOOKUP(A82,Pilot,2,0) -> 1989 | C82: =VLOOKUP(A82,Pilot,5,0) -> F | D82: =VLOOKUP(A82,Pilot,3,0) -> Luhačovice | E82: =VLOOKUP(A82,Pilot,4,0) -> CZ/M | F82: PMČR 2021 - Klub | G82: =VLOOKUP(F82,Soutez!A:B,2,FALSE) -> CZ | H82: =VLOOKUP(F82,Soutez!A:C,3,FALSE) -> 2021 | I82: 13 | J82: 4187 | K82: 1.05 | L82: 5097 | M82: 5352 | P82: LS 4 | Q82: FP
A83: Lukas Plocek | B83: 1990 | C83: M | D83: Mladá Boleslav | E83: CZ/C1 | F83: PMČR 2021 - Klub | G83: =VLOOKUP(F83,Soutez!A:B,2,FALSE) -> CZ | H83: =VLOOKUP(F83,Soutez!A:C,3,FALSE) -> 2021 | I83: 14 | J83: 3369 | K83: 1.05 | L83: 4018 | M83: 4219 | N83: x | P83: ASW19B | Q83: AH
A84: Marek Pechanec | B84: 1970 | C84: M | D84: Luhačovice | E84: CZ/M | F84: PMČR 2021 - Klub | G84: =VLOOKUP(F84,Soutez!A:B,2,FALSE) -> CZ | H84: =VLOOKUP(F84,Soutez!A:C,3,FALSE) -> 2021 | I84: 15 | J84: 3233 | K84: 1.05 | L84: 3672 | M84: 3856 | N84: x | P84: StdCirrus | Q84: SJ | R84: =IF(ISERROR(VLOOKUP(A84,Pilot,6,0)),"Není v databázi",VLOOKUP(A84,Pilot,6,0)) -> 
A85: Jakub Kos | D85: Bielsko-Bialski | E85: PL | F85: PMČR 2021 - Klub | G85: =VLOOKUP(F85,Soutez!A:B,2,FALSE) -> CZ | H85: =VLOOKUP(F85,Soutez!A:C,3,FALSE) -> 2021 | I85: 16 | J85: 3081 | K85: 1.05 | L85: 3309 | M85: 3474 | P85: SZD48 Jantar std3 | Q85: ZAR | R85: Není v databázi
A86: Petr Koutny | B86: =VLOOKUP(A86,Pilot,2,0) -> 1971 | C86: =VLOOKUP(A86,Pilot,5,0) -> M | D86: =VLOOKUP(A86,Pilot,3,0) -> Křižanov | E86: =VLOOKUP(A86,Pilot,4,0) -> CZ/M | F86: PMČR 2021 - Kombi 15m | G86: =VLOOKUP(F86,Soutez!A:B,2,FALSE) -> CZ | H86: =VLOOKUP(F86,Soutez!A:C,3,FALSE) -> 2021 | I86: 1 | J86: 6225 | K86: 1.06 | L86: =ROUND(J86/MAX($J$86:$J$101)*10000*0.7+(MAX($I$86:$I$101)-I86)/(MAX($I$86:$I$101)-1)*10000*0.3,0) -> 10000 | M86: =ROUND(K86*L86,0) -> 10600 | N86: x | P86: LS8 15m | Q86: SK
A87: Jan Zapletal | B87: 1997 | C87: M | D87: Břeclav | E87: CZ/M | F87: PMČR 2021 - Kombi 15m | G87: =VLOOKUP(F87,Soutez!A:B,2,FALSE) -> CZ | H87: =VLOOKUP(F87,Soutez!A:C,3,FALSE) -> 2021 | I87: 2 | J87: 6126 | K87: 1.06 | L87: 9689 | M87: =ROUND(K87*L87,0) -> 10270 | N87: x | P87: LS8 | Q87: JS
A88: Jan Pavlik | B88: 1987 | C88: M | D88: Křižanov | E88: CZ/M | F88: PMČR 2021 - Kombi 15m | G88: =VLOOKUP(F88,Soutez!A:B,2,FALSE) -> CZ | H88: =VLOOKUP(F88,Soutez!A:C,3,FALSE) -> 2021 | I88: 3 | J88: 6112 | K88: 1.06 | L88: 9473 | M88: 10041 | N88: x | P88: LS8 | Q88: JW
A89: Pavel Louzecky | B89: 1957 | C89: M | D89: Přibyslav | E89: CZ/C2 | F89: PMČR 2021 - Kombi 15m | G89: =VLOOKUP(F89,Soutez!A:B,2,FALSE) -> CZ | H89: =VLOOKUP(F89,Soutez!A:C,3,FALSE) -> 2021 | I89: 4 | J89: 6074 | K89: 1.06 | L89: 9230 | M89: 9784 | N89: x | P89: LS8 | Q89: FX
A90: Miloslav Cink | B90: 1987 | C90: M | D90: Letkov | E90: CZ/C1 | F90: PMČR 2021 - Kombi 15m | G90: =VLOOKUP(F90,Soutez!A:B,2,FALSE) -> CZ | H90: =VLOOKUP(F90,Soutez!A:C,3,FALSE) -> 2021 | I90: 5 | J90: 6073 | K90: 1.06 | L90: 9029 | M90: 9571 | P90: LS8 | Q90: JB
A91: Henry Inigo-Jones | D91: Lasham Gliding Society | F91: PMČR 2021 - Kombi 15m | G91: =VLOOKUP(F91,Soutez!A:B,2,FALSE) -> CZ | H91: =VLOOKUP(F91,Soutez!A:C,3,FALSE) -> 2021 | I91: 6 | J91: 5785 | K91: 1.06 | L91: 8505 | M91: 9015 | P91: LS8 | Q91: 95 | R91: Není v databázi
A92: Thomas Pavis | D92: York Gliding Centre | F92: PMČR 2021 - Kombi 15m | G92: =VLOOKUP(F92,Soutez!A:B,2,FALSE) -> CZ | H92: =VLOOKUP(F92,Soutez!A:C,3,FALSE) -> 2021 | I92: 7 | J92: 5444 | K92: 1.06 | L92: 7922 | M92: 8397 | P92: Discus2a | Q92: 235 | R92: Není v databázi
A93: Jan Horak | B93: =VLOOKUP(A93,Pilot,2,0) -> 1971 | C93: =VLOOKUP(A93,Pilot,5,0) -> M | D93: =VLOOKUP(A93,Pilot,3,0) -> Zbraslavice | E93: =VLOOKUP(A93,Pilot,4,0) -> CZ/C1 | F93: PMČR 2021 - Kombi 15m | G93: =VLOOKUP(F93,Soutez!A:B,2,FALSE) -> CZ | H93: =VLOOKUP(F93,Soutez!A:C,3,FALSE) -> 2021 | I93: 8 | J93: 5372 | K93: 1.06 | L93: 7641 | M93: 8099 | N93: x | P93: ASW 20 WL | Q93: WX
A94: Hana Treslova | B94: 1991 | C94: F | D94: Raná | E94: CZ/C2 | F94: PMČR 2021 - Kombi 15m | G94: =VLOOKUP(F94,Soutez!A:B,2,FALSE) -> CZ | H94: =VLOOKUP(F94,Soutez!A:C,3,FALSE) -> 2021 | I94: 9 | J94: 5335 | K94: 1.06 | L94: 7399 | M94: 7843 | P94: Ventus2ax | Q94: AX
A95: Barbora Moravcova | B95: 1994 | C95: F | D95: Zbraslavice | E95: CZ/C1 | F95: PMČR 2021 - Kombi 15m | G95: =VLOOKUP(F95,Soutez!A:B,2,FALSE) -> CZ | H95: =VLOOKUP(F95,Soutez!A:C,3,FALSE) -> 2021 | I95: 10 | J95: 5329 | K95: 1.06 | L95: 7192 | M95: 7624 | P95: LS8 | Q95: EU
A96: Jiri Kusbach | B96: 1959 | C96: M | D96: Luhačovice | E96: CZ/M | F96: PMČR 2021 - Kombi 15m | G96: =VLOOKUP(F96,Soutez!A:B,2,FALSE) -> CZ | H96: =VLOOKUP(F96,Soutez!A:C,3,FALSE) -> 2021 | I96: 11 | J96: 4688 | K96: 1.06 | L96: 6272 | M96: 6648 | P96: KKB 15E FES | Q96: B
A97: Jan Kotan | B97: 1982 | C97: M | D97: Letňany | E97: CZ/C1 | F97: PMČR 2021 - Kombi 15m | G97: =VLOOKUP(F97,Soutez!A:B,2,FALSE) -> CZ | H97: =VLOOKUP(F97,Soutez!A:C,3,FALSE) -> 2021 | I97: 12 | J97: 4674 | K97: 1.06 | L97: 6056 | M97: =ROUND(K97*L97,0) -> 6419 | P97: Ventus2bx | Q97: YA
A98: Jana Veprekova | B98: 1961 | C98: F | D98: Dvůr Králové | E98: CZ/C2 | F98: PMČR 2021 - Kombi 15m | G98: =VLOOKUP(F98,Soutez!A:B,2,FALSE) -> CZ | H98: =VLOOKUP(F98,Soutez!A:C,3,FALSE) -> 2021 | I98: 13 | J98: 4663 | K98: 1.06 | L98: 5844 | M98: 6195 | P98: LS8 | Q98: W8
A99: Jana Treslova | B99: 1963 | C99: F | D99: Raná | E99: CZ/C2 | F99: PMČR 2021 - Kombi 15m | G99: =VLOOKUP(F99,Soutez!A:B,2,FALSE) -> CZ | H99: =VLOOKUP(F99,Soutez!A:C,3,FALSE) -> 2021 | I99: 14 | J99: 4607 | K99: 1.06 | L99: 5581 | M99: 5916 | P99: Discus2a | Q99: GX
A100: Dana Novakova | B100: 1965 | C100: F | D100: Mladá Boleslav | E100: CZ/C1 | F100: PMČR 2021 - Kombi 15m | G100: =VLOOKUP(F100,Soutez!A:B,2,FALSE) -> CZ | H100: =VLOOKUP(F100,Soutez!A:C,3,FALSE) -> 2021 | I100: 15 | J100: 4498 | K100: 1.06 | L100: 5258 | M100: 5573 | P100: LS8 | Q100: AU
A101: Zdenek Balcarek | B101: 1967 | C101: M | D101: Kroměříž | E101: CZ/M | F101: PMČR 2021 - Kombi 15m | G101: =VLOOKUP(F101,Soutez!A:B,2,FALSE) -> CZ | H101: =VLOOKUP(F101,Soutez!A:C,3,FALSE) -> 2021 | I101: 16 | J101: 4401 | K101: 1.06 | L101: 4949 | M101: 5246 | P101: DiscusB | Q101: OS
A102: Roman Mracek | B102: =VLOOKUP(A102,Pilot,2,0) -> 1980 | C102: =VLOOKUP(A102,Pilot,5,0) -> M | D102: =VLOOKUP(A102,Pilot,3,0) -> Letkov | E102: =VLOOKUP(A102,Pilot,4,0) -> CZ/C1 | F102: PMČR 2021 - Kombi Open | G102: =VLOOKUP(F102,Soutez!A:B,2,FALSE) -> CZ | H102: =VLOOKUP(F102,Soutez!A:C,3,FALSE) -> 2021 | I102: 1 | J102: 6274 | K102: =VLOOKUP(F102,Soutez,12,0) -> 1.055 | L102: =ROUND(J102/MAX($J$102:$J$121)*10000*0.7+(MAX($I$102:$I$121)-I102)/(MAX($I$102:$I$121)-1)*10000*0.3,0) -> 10000 | M102: =ROUND(K102*L102,0) -> 10550 | N102: x | P102: JS3 18M | Q102: ZE
A103: Radek Krejcirik | B103: 1991 | C103: M | D103: Hranice | E103: CZ/M | F103: PMČR 2021 - Kombi Open | G103: =VLOOKUP(F103,Soutez!A:B,2,FALSE) -> CZ | H103: =VLOOKUP(F103,Soutez!A:C,3,FALSE) -> 2021 | I103: 2 | J103: 6065 | K103: 1.055 | L103: =ROUND(J103/MAX($J$102:$J$121)*10000*0.7+(MAX($I$102:$I$121)-I103)/(MAX($I$102:$I$121)-1)*10000*0.3,0) -> 9609 | M103: =ROUND(K103*L103,0) -> 10137 | N103: x | P103: JS1 C EVO | Q103: ZF
A104: Jan Boruvka | B104: 1984 | C104: M | D104: Jičín | E104: CZ/C2 | F104: PMČR 2021 - Kombi Open | G104: =VLOOKUP(F104,Soutez!A:B,2,FALSE) -> CZ | H104: =VLOOKUP(F104,Soutez!A:C,3,FALSE) -> 2021 | I104: 3 | J104: 5635 | K104: 1.055 | L104: 8971 | M104: 9464 | N104: x | P104: VentusC | Q104: EG
A105: Radek Kucirek | B105: 1973 | C105: M | D105: Havlíčkův Brod | E105: CZ/C2 | F105: PMČR 2021 - Kombi Open | G105: =VLOOKUP(F105,Soutez!A:B,2,FALSE) -> CZ | H105: =VLOOKUP(F105,Soutez!A:C,3,FALSE) -> 2021 | I105: 4 | J105: 5525 | K105: 1.055 | L105: 8691 | M105: 9169 | P105: EB28Edition | Q105: NA
A106: Martin Hrivna | B106: 1978 | C106: M | D106: Zbraslavice | E106: CZ/C1 | F106: PMČR 2021 - Kombi Open | G106: =VLOOKUP(F106,Soutez!A:B,2,FALSE) -> CZ | H106: =VLOOKUP(F106,Soutez!A:C,3,FALSE) -> 2021 | I106: 5 | J106: 5434 | K106: 1.055 | L106: 8431 | M106: 8895 | P106: ASG29E | Q106: NX
A107: Tomas Rendla | B107: 1973 | C107: M | D107: Zbraslavice | E107: CZ/C1 | F107: PMČR 2021 - Kombi Open | G107: =VLOOKUP(F107,Soutez!A:B,2,FALSE) -> CZ | H107: =VLOOKUP(F107,Soutez!A:C,3,FALSE) -> 2021 | I107: 6 | J107: 5401 | K107: 1.055 | L107: 8237 | M107: 8690 | P107: EB29R | Q107: EX
A108: Radek Zima 78 | B108: 1978 | C108: M | D108: Hodkovice | E108: CZ/C2 | F108: PMČR 2021 - Kombi Open | G108: =VLOOKUP(F108,Soutez!A:B,2,FALSE) -> CZ | H108: =VLOOKUP(F108,Soutez!A:C,3,FALSE) -> 2021 | I108: 7 | J108: 5336 | K108: 1.055 | L108: 8006 | M108: 8446 | P108: ASG29E | Q108: XZ
A109: Ondrej Dupal | B109: =VLOOKUP(A109,Pilot,2,0) -> 1966 | C109: =VLOOKUP(A109,Pilot,5,0) -> M | D109: =VLOOKUP(A109,Pilot,3,0) -> GAC Benešov | E109: =VLOOKUP(A109,Pilot,4,0) -> CZ/C1 | F109: PMČR 2021 - Kombi Open | G109: =VLOOKUP(F109,Soutez!A:B,2,FALSE) -> CZ | H109: =VLOOKUP(F109,Soutez!A:C,3,FALSE) -> 2021 | I109: 8 | J109: 5326 | K109: 1.055 | L109: 7837 | M109: 8268 | N109: x | P109: ASG29E | Q109: GO
A110: David Mach | B110: 1994 | C110: M | D110: Hronov | E110: CZ/C2 | F110: PMČR 2021 - Kombi Open | G110: =VLOOKUP(F110,Soutez!A:B,2,FALSE) -> CZ | H110: =VLOOKUP(F110,Soutez!A:C,3,FALSE) -> 2021 | I110: 9 | J110: 5323 | K110: 1.055 | L110: 7676 | M110: 8098 | P110: JS3 18M | Q110: XM
A111: Petr Krejcirik | B111: 1960 | C111: M | D111: Hranice | E111: CZ/M | F111: PMČR 2021 - Kombi Open | G111: =VLOOKUP(F111,Soutez!A:B,2,FALSE) -> CZ | H111: =VLOOKUP(F111,Soutez!A:C,3,FALSE) -> 2021 | I111: 10 | J111: 5249 | K111: 1.055 | L111: 7435 | M111: 7844 | P111: JS3 18M | Q111: VB
A112: Petr Hotovy | B112: 1958 | C112: M | D112: Česká Lípa | E112: CZ/C2 | F112: PMČR 2021 - Kombi Open | G112: =VLOOKUP(F112,Soutez!A:B,2,FALSE) -> CZ | H112: =VLOOKUP(F112,Soutez!A:C,3,FALSE) -> 2021 | I112: 11 | J112: 5213 | K112: 1.055 | L112: 7237 | M112: 7635 | P112: JS1 18m EVO | Q112: IGC
A113: Michaela Rendlova | B113: 2004 | C113: F | D113: Toužim | E113: CZ/C1 | F113: PMČR 2021 - Kombi Open | G113: =VLOOKUP(F113,Soutez!A:B,2,FALSE) -> CZ | H113: =VLOOKUP(F113,Soutez!A:C,3,FALSE) -> 2021 | I113: 12 | J113: 5193 | K113: 1.055 | L113: 7057 | M113: 7445 | P113: ASG29E | Q113: QX | R113: Junior v roce 2024
A114: Ivan Novak | B114: 1962 | C114: M | D114: Mladá Boleslav | E114: CZ/C1 | F114: PMČR 2021 - Kombi Open | G114: =VLOOKUP(F114,Soutez!A:B,2,FALSE) -> CZ | H114: =VLOOKUP(F114,Soutez!A:C,3,FALSE) -> 2021 | I114: 13 | J114: 5131 | K114: 1.055 | L114: 6830 | M114: 7206 | P114: ASG29E | Q114: QZ
A115: Alena Netusilova | B115: 1970 | C115: F | D115: Zbraslavice | E115: CZ/C1 | F115: PMČR 2021 - Kombi Open | G115: =VLOOKUP(F115,Soutez!A:B,2,FALSE) -> CZ | H115: =VLOOKUP(F115,Soutez!A:C,3,FALSE) -> 2021 | I115: 14 | J115: 5089 | K115: 1.055 | L115: 6625 | M115: 6989 | P115: JS 1 C EVO | Q115: JX
A116: Lenka Kuthanova | B116: =VLOOKUP(A116,Pilot,2,0) -> 1960 | C116: =VLOOKUP(A116,Pilot,5,0) -> F | D116: =VLOOKUP(A116,Pilot,3,0) -> Tábor | E116: =VLOOKUP(A116,Pilot,4,0) -> CZ/C1 | F116: PMČR 2021 - Kombi Open | G116: =VLOOKUP(F116,Soutez!A:B,2,FALSE) -> CZ | H116: =VLOOKUP(F116,Soutez!A:C,3,FALSE) -> 2021 | I116: 15 | J116: 4805 | K116: 1.055 | L116: 6150 | M116: 6488 | N116: x | O116: x | P116: JS1 18EVO | Q116: LX
A117: Jan Kovalcik | D117: Bratislava | F117: PMČR 2021 - Kombi Open | G117: =VLOOKUP(F117,Soutez!A:B,2,FALSE) -> CZ | H117: =VLOOKUP(F117,Soutez!A:C,3,FALSE) -> 2021 | I117: 16 | J117: 4720 | K117: 1.055 | L117: 5898 | M117: 6222 | P117: DISCUS2CFES | Q117: ZI | R117: Není v databázi
A118: Martin Picka | B118: =VLOOKUP(A118,Pilot,2,0) -> 1974 | C118: =VLOOKUP(A118,Pilot,5,0) -> M | D118: =VLOOKUP(A118,Pilot,3,0) -> Tábor | E118: =VLOOKUP(A118,Pilot,4,0) -> CZ/C1 | F118: PMČR 2021 - Kombi Open | G118: =VLOOKUP(F118,Soutez!A:B,2,FALSE) -> CZ | H118: =VLOOKUP(F118,Soutez!A:C,3,FALSE) -> 2021 | I118: 17 | J118: 4543 | K118: 1.055 | L118: 5542 | M118: 5847 | N118: x | P118: Ventus2C | Q118: CX
A119: Petr Bartak | B119: 1984 | C119: M | D119: Letkov | E119: CZ/C1 | F119: PMČR 2021 - Kombi Open | G119: =VLOOKUP(F119,Soutez!A:B,2,FALSE) -> CZ | H119: =VLOOKUP(F119,Soutez!A:C,3,FALSE) -> 2021 | I119: 18 | J119: 4539 | K119: 1.055 | L119: =ROUND(J119/MAX($J$102:$J$121)*10000*0.7+(MAX($I$102:$I$121)-I119)/(MAX($I$102:$I$121)-1)*10000*0.3,0) -> 5380 | M119: 5676 | N119: x | P119: LS6c-18W | Q119: BL
A120: Lukas Benedikt | D120: Trnava | F120: PMČR 2021 - Kombi Open | G120: =VLOOKUP(F120,Soutez!A:B,2,FALSE) -> CZ | H120: =VLOOKUP(F120,Soutez!A:C,3,FALSE) -> 2021 | I120: 19 | J120: 4468 | K120: 1.055 | L120: 5143 | M120: =ROUND(K120*L120,0) -> 5426 | P120: Ventus3f-18m | Q120: LB | R120: Není v databázi
A121: Ivan Harasta 65 | B121: =VLOOKUP(A121,Pilot,2,0) -> 1965 | C121: =VLOOKUP(A121,Pilot,5,0) -> M | D121: =VLOOKUP(A121,Pilot,3,0) -> Toužim | E121: =VLOOKUP(A121,Pilot,4,0) -> CZ/C1 | F121: PMČR 2021 - Kombi Open | G121: =VLOOKUP(F121,Soutez!A:B,2,FALSE) -> CZ | H121: =VLOOKUP(F121,Soutez!A:C,3,FALSE) -> 2021 | I121: 20 | J121: 1819 | K121: 1.055 | L121: 2029 | M121: 2141 | P121: Nimbus 3/25.5m | Q121: 12
A122: Jan Louda | B122: =VLOOKUP(A122,Pilot,2,0) -> 1986 | C122: =VLOOKUP(A122,Pilot,5,0) -> M | D122: =VLOOKUP(A122,Pilot,3,0) -> Mladá Boleslav | E122: =VLOOKUP(A122,Pilot,4,0) -> CZ/C1 | F122: PMRg 2021 - Klub | G122: =VLOOKUP(F122,Soutez!A:B,2,FALSE) -> CZ | H122: =VLOOKUP(F122,Soutez!A:C,3,FALSE) -> 2021 | I122: 1 | J122: 5782 | K122: =VLOOKUP(F122,Soutez,12,0) -> 0.94 | L122: =ROUND(J122/MAX($J$122:$J$147)*10000*0.7+(MAX($I$122:$I$147)-I122)/(MAX($I$122:$I$147)-1)*10000*0.3,0) -> 10000 | M122: =ROUND(K122*L122,0) -> 9400 | N122: x | P122: ASW-19B | Q122: XS
A123: Pavel Jiranek | B123: 1993 | C123: M | D123: Toužim | E123: CZ/C1 | F123: PMRg 2021 - Klub | G123: =VLOOKUP(F123,Soutez!A:B,2,FALSE) -> CZ | H123: =VLOOKUP(F123,Soutez!A:C,3,FALSE) -> 2021 | I123: 2 | J123: 5754 | K123: 0.94 | L123: 9846 | M123: =ROUND(K123*L123,0) -> 9255 | N123: x | P123: Std. Cirrus | Q123: IYD
A124: Pavel Trybenekr | B124: 1990 | C124: M | D124: Hořice | E124: CZ/C2 | F124: PMRg 2021 - Klub | G124: =VLOOKUP(F124,Soutez!A:B,2,FALSE) -> CZ | H124: =VLOOKUP(F124,Soutez!A:C,3,FALSE) -> 2021 | I124: 3 | J124: 5741 | K124: 0.94 | L124: 9710 | M124: 9127 | P124: LS-4 | Q124: PF
A125: Hana Treslova | B125: 1991 | C125: F | D125: Raná | E125: CZ/C2 | F125: PMRg 2021 - Klub | G125: =VLOOKUP(F125,Soutez!A:B,2,FALSE) -> CZ | H125: =VLOOKUP(F125,Soutez!A:C,3,FALSE) -> 2021 | I125: 4 | J125: 5404 | K125: 0.94 | L125: 9182 | M125: 8631 | N125: x | P125: Std. Cirrus | Q125: CI
A126: Jiri Stepanek | B126: 1956 | C126: M | D126: Moravská Třebová | E126: CZ/M | F126: PMRg 2021 - Klub | G126: =VLOOKUP(F126,Soutez!A:B,2,FALSE) -> CZ | H126: =VLOOKUP(F126,Soutez!A:C,3,FALSE) -> 2021 | I126: 5 | J126: 5331 | K126: 0.94 | L126: 8974 | M126: 8436 | N126: x | P126: VSO-10 | Q126: H9
A127: Martin Stepanek | B127: 1987 | C127: M | D127: Moravská Třebová | E127: CZ/M | F127: PMRg 2021 - Klub | G127: =VLOOKUP(F127,Soutez!A:B,2,FALSE) -> CZ | H127: =VLOOKUP(F127,Soutez!A:C,3,FALSE) -> 2021 | I127: 6 | J127: 5267 | K127: 0.94 | L127: 8777 | M127: 8250 | N127: x | P127: ASW-15B | Q127: LE
A128: Petr Stepanek | B128: 1989 | C128: M | D128: Moravská Třebová | E128: CZ/M | F128: PMRg 2021 - Klub | G128: =VLOOKUP(F128,Soutez!A:B,2,FALSE) -> CZ | H128: =VLOOKUP(F128,Soutez!A:C,3,FALSE) -> 2021 | I128: 7 | J128: 5104 | K128: 0.94 | L128: 8459 | M128: 7951 | N128: x | P128: ASW-15B | Q128: ZP
A129: Zdenek Balcarek | B129: 1967 | C129: M | D129: Kroměříž | E129: CZ/M | F129: PMRg 2021 - Klub | G129: =VLOOKUP(F129,Soutez!A:B,2,FALSE) -> CZ | H129: =VLOOKUP(F129,Soutez!A:C,3,FALSE) -> 2021 | I129: 8 | J129: 4662 | K129: 0.94 | L129: 7804 | M129: 7336 | P129: Discus b | Q129: OS
A130: Zdenek Boruvka 86 | B130: 1986 | C130: M | D130: Jičín | E130: CZ/C2 | F130: PMRg 2021 - Klub | G130: =VLOOKUP(F130,Soutez!A:B,2,FALSE) -> CZ | H130: =VLOOKUP(F130,Soutez!A:C,3,FALSE) -> 2021 | I130: 9 | J130: 4641 | K130: 0.94 | L130: 7659 | M130: 7199 | P130: Std. Cirrus | Q130: BJ
A131: Petr Valenta 94 | B131: =VLOOKUP(A131,Pilot,2,0) -> 1994 | C131: =VLOOKUP(A131,Pilot,5,0) -> M | D131: =VLOOKUP(A131,Pilot,3,0) -> Kunovice | E131: =VLOOKUP(A131,Pilot,4,0) -> CZ/M | F131: PMRg 2021 - Klub | G131: =VLOOKUP(F131,Soutez!A:B,2,FALSE) -> CZ | H131: =VLOOKUP(F131,Soutez!A:C,3,FALSE) -> 2021 | I131: 10 | J131: 4371 | K131: 0.94 | L131: 7212 | M131: 6779 | N131: x | P131: Std. Cirrus | Q131: OK
A132: Pavlina Horackova | B132: 1965 | C132: F | D132: Šumperk | E132: CZ/M | F132: PMRg 2021 - Klub | G132: =VLOOKUP(F132,Soutez!A:B,2,FALSE) -> CZ | H132: =VLOOKUP(F132,Soutez!A:C,3,FALSE) -> 2021 | I132: 11 | J132: 4345 | K132: 0.94 | L132: 7060 | M132: 6636 | P132: SZD-48 Jantar std. 2 (3) | Q132: SU
A133: Jiri Vondracek | B133: 1989 | C133: M | D133: Kladno | E133: CZ/C1 | F133: PMRg 2021 - Klub | G133: =VLOOKUP(F133,Soutez!A:B,2,FALSE) -> CZ | H133: =VLOOKUP(F133,Soutez!A:C,3,FALSE) -> 2021 | I133: 12 | J133: 4337 | K133: 0.94 | L133: 6931 | M133: 6515 | N133: x | P133: ASW-15B | Q133: 2P
A134: Jiri Maier 66 | B134: 1966 | C134: M | D134: Raná | E134: CZ/C2 | F134: PMRg 2021 - Klub | G134: =VLOOKUP(F134,Soutez!A:B,2,FALSE) -> CZ | H134: =VLOOKUP(F134,Soutez!A:C,3,FALSE) -> 2021 | I134: 13 | J134: 4311 | K134: 0.94 | L134: 6779 | M134: 6372 | N134: x | P134: ASW-24E | Q134: JM
A135: Martin Kriz | B135: =VLOOKUP(A135,Pilot,2,0) -> 1968 | C135: =VLOOKUP(A135,Pilot,5,0) -> M | D135: =VLOOKUP(A135,Pilot,3,0) -> Přibyslav | E135: =VLOOKUP(A135,Pilot,4,0) -> CZ/C2 | F135: PMRg 2021 - Klub | G135: =VLOOKUP(F135,Soutez!A:B,2,FALSE) -> CZ | H135: =VLOOKUP(F135,Soutez!A:C,3,FALSE) -> 2021 | I135: 14 | J135: 4245 | K135: 0.94 | L135: 6579 | M135: 6184 | N135: x | P135: ASW-20 (A)+F /15m WL | Q135: 67
A136: Jan Florian | B136: 1992 | C136: M | D136: Zbraslavice | E136: CZ/C1 | F136: PMRg 2021 - Klub | G136: =VLOOKUP(F136,Soutez!A:B,2,FALSE) -> CZ | H136: =VLOOKUP(F136,Soutez!A:C,3,FALSE) -> 2021 | I136: 15 | J136: 3748 | K136: 0.94 | L136: 5858 | M136: 5507 | N136: x | P136: Std. Cirrus | Q136: C1
A137: Pavel Liska | B137: 1965 | C137: M | D137: Roudnice | E137: CZ/C2 | F137: PMRg 2021 - Klub | G137: =VLOOKUP(F137,Soutez!A:B,2,FALSE) -> CZ | H137: =VLOOKUP(F137,Soutez!A:C,3,FALSE) -> 2021 | I137: 15 | J137: 3748 | K137: 0.94 | L137: 5858 | M137: 5507 | N137: x | P137: ASW-19B | Q137: RCE
A138: Michal Lesinger | B138: 1966 | C138: M | D138: Moravská Třebová | E138: CZ/M | F138: PMRg 2021 - Klub | G138: =VLOOKUP(F138,Soutez!A:B,2,FALSE) -> CZ | H138: =VLOOKUP(F138,Soutez!A:C,3,FALSE) -> 2021 | I138: 17 | J138: 3527 | K138: 0.94 | L138: 5350 | M138: 5029 | P138: ASW-19B | Q138: LL
A139: Pavel Koudelka | B139: 1973 | C139: M | D139: Křižanov | E139: CZ/M | F139: PMRg 2021 - Klub | G139: =VLOOKUP(F139,Soutez!A:B,2,FALSE) -> CZ | H139: =VLOOKUP(F139,Soutez!A:C,3,FALSE) -> 2021 | I139: 18 | J139: 3320 | K139: 0.94 | L139: 4979 | M139: 4680 | N139: x | P139: Std. Cirrus | Q139: ZL
A140: Petr Prichystal | B140: 1973 | C140: M | D140: Moravská Třebová | E140: CZ/M | F140: PMRg 2021 - Klub | G140: =VLOOKUP(F140,Soutez!A:B,2,FALSE) -> CZ | H140: =VLOOKUP(F140,Soutez!A:C,3,FALSE) -> 2021 | I140: 19 | J140: 3256 | K140: 0.94 | L140: 4782 | M140: 4495 | N140: x | P140: ASW-19B | Q140: AE
A141: Jan Vozeh | B141: 1995 | C141: M | D141: Rakovník | E141: CZ/C1 | F141: PMRg 2021 - Klub | G141: =VLOOKUP(F141,Soutez!A:B,2,FALSE) -> CZ | H141: =VLOOKUP(F141,Soutez!A:C,3,FALSE) -> 2021 | I141: 20 | J141: 3074 | K141: 0.94 | L141: 4442 | M141: 4175 | N141: x | P141: Std. Cirrus | Q141: OG
A142: Jakub Kohn | B142: 1992 | C142: M | D142: Prostějov | E142: CZ/M | F142: PMRg 2021 - Klub | G142: =VLOOKUP(F142,Soutez!A:B,2,FALSE) -> CZ | H142: =VLOOKUP(F142,Soutez!A:C,3,FALSE) -> 2021 | I142: 21 | J142: 2944 | K142: 0.94 | L142: 4164 | M142: 3914 | N142: x | P142: ASW-15B | Q142: FK
A143: Josef Hlusek | B143: 1993 | C143: M | D143: Kunovice | E143: CZ/M | F143: PMRg 2021 - Klub | G143: =VLOOKUP(F143,Soutez!A:B,2,FALSE) -> CZ | H143: =VLOOKUP(F143,Soutez!A:C,3,FALSE) -> 2021 | I143: 22 | J143: 2433 | K143: 0.94 | L143: 3426 | M143: 3220 | N143: x | P143: Std. Cirrus | Q143: WO
A144: Petr Kubik 75 | B144: 1975 | C144: M | D144: Moravská Třebová | E144: CZ/M | F144: PMRg 2021 - Klub | G144: =VLOOKUP(F144,Soutez!A:B,2,FALSE) -> CZ | H144: =VLOOKUP(F144,Soutez!A:C,3,FALSE) -> 2021 | I144: 23 | J144: 2399 | K144: 0.94 | L144: 3264 | M144: =ROUND(K144*L144,0) -> 3068 | N144: x | P144: ASW-19B | Q144: NO
A145: Marek Pechar | B145: =VLOOKUP(A145,Pilot,2,0) -> 1995 | C145: =VLOOKUP(A145,Pilot,5,0) -> M | D145: =VLOOKUP(A145,Pilot,3,0) -> Chrudim | E145: =VLOOKUP(A145,Pilot,4,0) -> CZ/C2 | F145: PMRg 2021 - Klub | G145: =VLOOKUP(F145,Soutez!A:B,2,FALSE) -> CZ | H145: =VLOOKUP(F145,Soutez!A:C,3,FALSE) -> 2021 | I145: 24 | J145: 1755 | K145: 0.94 | L145: 2365 | M145: 2223 | N145: x | P145: Std. Cirrus | Q145: JE | R145: =IF(ISERROR(VLOOKUP(A145,Pilot,6,0)),"Není v databázi",VLOOKUP(A145,Pilot,6,0)) -> 
A146: Jiri Krofta | B146: 1988 | C146: M | D146: Hosín | E146: CZ/C1 | F146: PMRg 2021 - Klub | G146: =VLOOKUP(F146,Soutez!A:B,2,FALSE) -> CZ | H146: =VLOOKUP(F146,Soutez!A:C,3,FALSE) -> 2021 | I146: 25 | J146: 1748 | K146: 0.94 | L146: 2236 | M146: 2102 | N146: x | P146: Std. Cirrus | Q146: YU
A147: Zuzana Kutilkova | B147: 1993 | C147: F | D147: Křižanov | E147: CZ/M | F147: PMRg 2021 - Klub | G147: =VLOOKUP(F147,Soutez!A:B,2,FALSE) -> CZ | H147: =VLOOKUP(F147,Soutez!A:C,3,FALSE) -> 2021 | I147: 26 | J147: 813 | K147: 0.94 | L147: 984 | M147: 925 | N147: x | O147: x | P147: LS-1f | Q147: DP
A148: Tomas Rendla | B148: =VLOOKUP(A148,Pilot,2,0) -> 1973 | C148: =VLOOKUP(A148,Pilot,5,0) -> M | D148: =VLOOKUP(A148,Pilot,3,0) -> Zbraslavice | E148: =VLOOKUP(A148,Pilot,4,0) -> CZ/C1 | F148: PMRg 2021 - Kombi | G148: =VLOOKUP(F148,Soutez!A:B,2,FALSE) -> CZ | H148: =VLOOKUP(F148,Soutez!A:C,3,FALSE) -> 2021 | I148: 1 | J148: 5477 | K148: 0.93 | L148: =ROUND(J148/MAX($J$148:$J$160)*10000*0.7+(MAX($I$148:$I$160)-I148)/(MAX($I$148:$I$160)-1)*10000*0.3,0) -> 10000 | M148: =ROUND(K148*L148,0) -> 9300 | N148: x | P148: EB-29R | Q148: EX
A149: Radek Kucirek | B149: 1973 | C149: M | D149: Havlíčkův Brod | E149: CZ/C2 | F149: PMRg 2021 - Kombi | G149: =VLOOKUP(F149,Soutez!A:B,2,FALSE) -> CZ | H149: =VLOOKUP(F149,Soutez!A:C,3,FALSE) -> 2021 | I149: 2 | J149: 5461 | K149: 0.93 | L149: 9730 | M149: =ROUND(K149*L149,0) -> 9049 | P149: EB-28 edition | Q149: NA
A150: Jan Boruvka | B150: 1984 | C150: M | D150: Jičín | E150: CZ/C2 | F150: PMRg 2021 - Kombi | G150: =VLOOKUP(F150,Soutez!A:B,2,FALSE) -> CZ | H150: =VLOOKUP(F150,Soutez!A:C,3,FALSE) -> 2021 | I150: 3 | J150: 5225 | K150: 0.93 | L150: 9178 | M150: 8536 | P150: Ventus C 17.6m | Q150: EG
A151: Michaela Rendlova | B151: 2004 | C151: F | D151: Toužim | E151: CZ/C1 | F151: PMRg 2021 - Kombi | G151: =VLOOKUP(F151,Soutez!A:B,2,FALSE) -> CZ | H151: =VLOOKUP(F151,Soutez!A:C,3,FALSE) -> 2021 | I151: 4 | J151: 4833 | K151: 0.93 | L151: 8427 | M151: 7837 | P151: ASG 29/18m | Q151: NX | R151: Junior v roce 2024
A152: Radek Zima 78 | B152: 1978 | C152: M | D152: Hodkovice | E152: CZ/C2 | F152: PMRg 2021 - Kombi | G152: =VLOOKUP(F152,Soutez!A:B,2,FALSE) -> CZ | H152: =VLOOKUP(F152,Soutez!A:C,3,FALSE) -> 2021 | I152: 5 | J152: 4825 | K152: 0.93 | L152: 8167 | M152: 7595 | P152: ASG 29/18m | Q152: XZ
A153: Jiri Steiger | B153: =VLOOKUP(A153,Pilot,2,0) -> 1969 | C153: =VLOOKUP(A153,Pilot,5,0) -> M | D153: =VLOOKUP(A153,Pilot,3,0) -> Olomouc | E153: =VLOOKUP(A153,Pilot,4,0) -> CZ/M | F153: PMRg 2021 - Kombi | G153: =VLOOKUP(F153,Soutez!A:B,2,FALSE) -> CZ | H153: =VLOOKUP(F153,Soutez!A:C,3,FALSE) -> 2021 | I153: 6 | J153: 4284 | K153: 0.93 | L153: 7225 | M153: 6719 | N153: x | P153: Ventus 3M 18m | Q153: JSI
A154: Jaromir Macoun | B154: 1999 | C154: M | D154: Jičín | E154: CZ/C2 | F154: PMRg 2021 - Kombi | G154: =VLOOKUP(F154,Soutez!A:B,2,FALSE) -> CZ | H154: =VLOOKUP(F154,Soutez!A:C,3,FALSE) -> 2021 | I154: 7 | J154: 4128 | K154: 0.93 | L154: 6776 | M154: 6302 | P154: LS-8 15m | Q154: AU | R154: Junior v roce 2024
A155: Miroslav Koci | B155: 1961 | C155: M | D155: Žamberk | E155: CZ/C2 | F155: PMRg 2021 - Kombi | G155: =VLOOKUP(F155,Soutez!A:B,2,FALSE) -> CZ | H155: =VLOOKUP(F155,Soutez!A:C,3,FALSE) -> 2021 | I155: 8 | J155: 3695 | K155: 0.93 | L155: 5972 | M155: 5554 | P155: Ventus 2cxm | Q155: E8
A156: Vit Morkovsky | B156: 2000 | C156: M | D156: Polička | E156: CZ/C2 | F156: PMRg 2021 - Kombi | G156: =VLOOKUP(F156,Soutez!A:B,2,FALSE) -> CZ | H156: =VLOOKUP(F156,Soutez!A:C,3,FALSE) -> 2021 | I156: 9 | J156: 3438 | K156: 0.93 | L156: 5394 | M156: =ROUND(K156*L156,0) -> 5016 | P156: Discus 2a | Q156: GX | R156: Junior v roce 2024
A157: Ivan Tvrdik | B157: 1997 | C157: M | D157: Letňany | E157: CZ/C1 | F157: PMRg 2021 - Kombi | G157: =VLOOKUP(F157,Soutez!A:B,2,FALSE) -> CZ | H157: =VLOOKUP(F157,Soutez!A:C,3,FALSE) -> 2021 | I157: 10 | J157: 2951 | K157: 0.93 | L157: 4522 | M157: 4205 | P157: LS-8 15m | Q157: EU
A158: Jan Zapletal | B158: 1997 | C158: M | D158: Břeclav | E158: CZ/M | F158: PMRg 2021 - Kombi | G158: =VLOOKUP(F158,Soutez!A:B,2,FALSE) -> CZ | H158: =VLOOKUP(F158,Soutez!A:C,3,FALSE) -> 2021 | I158: 11 | J158: 2697 | K158: 0.93 | L158: 3947 | M158: 3671 | P158: LS-8 15m | Q158: JS
A159: Antonin Kutalek | B159: 1943 | C159: M | D159: Zábřeh | E159: CZ/M | F159: PMRg 2021 - Kombi | G159: =VLOOKUP(F159,Soutez!A:B,2,FALSE) -> CZ | H159: =VLOOKUP(F159,Soutez!A:C,3,FALSE) -> 2021 | I159: 12 | J159: 1816 | K159: 0.93 | L159: 2571 | M159: 2391 | P159: LAK-17AT 18m | Q159: GL
A160: Petr Panek | B160: 1975 | C160: M | D160: Dvůr Králové | E160: CZ/C2 | F160: PMRg 2021 - Kombi | G160: =VLOOKUP(F160,Soutez!A:B,2,FALSE) -> CZ | H160: =VLOOKUP(F160,Soutez!A:C,3,FALSE) -> 2021 | I160: 13 | J160: 495 | K160: 0.93 | L160: 633 | M160: 589 | N160: x | P160: JS1B EVO 18m | Q160: IGC
A161: Jan Stastny | B161: =VLOOKUP(A161,Pilot,2,0) -> 2003 | C161: =VLOOKUP(A161,Pilot,5,0) -> M | D161: =VLOOKUP(A161,Pilot,3,0) -> Medlánky | E161: =VLOOKUP(A161,Pilot,4,0) -> CZ/M | F161: PMČRj 2021 - Klub | G161: =VLOOKUP(F161,Soutez!A:B,2,FALSE) -> CZ | H161: =VLOOKUP(F161,Soutez!A:C,3,FALSE) -> 2021 | I161: 1 | J161: 4704 | K161: 0.915 | L161: =ROUND(J161/MAX($J$161:$J$189)*10000*0.7+(MAX($I$161:$I$189)-I161)/(MAX($I$161:$I$189)-1)*10000*0.3,0) -> 10000 | M161: =ROUND(K161*L161,0) -> 9150 | N161: x | P161: ASW-15B | Q161: TW | R161: Junior v roce 2024
A162: Lukas Kriz | B162: 2003 | C162: M | D162: Křižanov | E162: CZ/M | F162: PMČRj 2021 - Klub | G162: =VLOOKUP(F162,Soutez!A:B,2,FALSE) -> CZ | H162: =VLOOKUP(F162,Soutez!A:C,3,FALSE) -> 2021 | I162: 2 | J162: 4628 | K162: 0.915 | L162: =ROUND(J162/MAX($J$161:$J$189)*10000*0.7+(MAX($I$161:$I$189)-I162)/(MAX($I$161:$I$189)-1)*10000*0.3,0) -> 9780 | M162: =ROUND(K162*L162,0) -> 8949 | P162: Std. Cirrus | Q162: EJ | R162: Junior v roce 2024
A163: Vladimir Hammer | B163: 2000 | C163: M | D163: Letkov | E163: CZ/C1 | F163: PMČRj 2021 - Klub | G163: =VLOOKUP(F163,Soutez!A:B,2,FALSE) -> CZ | H163: =VLOOKUP(F163,Soutez!A:C,3,FALSE) -> 2021 | I163: 3 | J163: 4200 | K163: 0.915 | L163: 9036 | M163: 8268 | N163: x | P163: Std. Cirrus | Q163: UB | R163: Junior v roce 2024
A164: Tereza Koubkova | B164: 1999 | C164: F | D164: Vysoké Mýto | E164: CZ/C2 | F164: PMČRj 2021 - Klub | G164: =VLOOKUP(F164,Soutez!A:B,2,FALSE) -> CZ | H164: =VLOOKUP(F164,Soutez!A:C,3,FALSE) -> 2021 | I164: 4 | J164: 4051 | K164: 0.915 | L164: 8707 | M164: 7967 | P164: Std. Cirrus | Q164: WY | R164: Junior v roce 2024
A165: Tomas Hynek | B165: 2002 | C165: M | D165: Dvůr Králové | E165: CZ/C2 | F165: PMČRj 2021 - Klub | G165: =VLOOKUP(F165,Soutez!A:B,2,FALSE) -> CZ | H165: =VLOOKUP(F165,Soutez!A:C,3,FALSE) -> 2021 | I165: 5 | J165: 4043 | K165: 0.915 | L165: 8588 | M165: 7858 | N165: x | P165: Std. Cirrus | Q165: HT | R165: Junior v roce 2024
A166: Tomas Hulmak | B166: 1999 | C166: M | D166: Hosín | E166: CZ/C1 | F166: PMČRj 2021 - Klub | G166: =VLOOKUP(F166,Soutez!A:B,2,FALSE) -> CZ | H166: =VLOOKUP(F166,Soutez!A:C,3,FALSE) -> 2021 | I166: 6 | J166: 3781 | K166: 0.915 | L166: 8091 | M166: 7403 | N166: x | P166: ASW-15B | Q166: HH | R166: Junior v roce 2024
A167: Lukas Volek | B167: =VLOOKUP(A167,Pilot,2,0) -> 2004 | C167: =VLOOKUP(A167,Pilot,5,0) -> M | D167: =VLOOKUP(A167,Pilot,3,0) -> Hodkovice | E167: =VLOOKUP(A167,Pilot,4,0) -> CZ/C2 | F167: PMČRj 2021 - Klub | G167: =VLOOKUP(F167,Soutez!A:B,2,FALSE) -> CZ | H167: =VLOOKUP(F167,Soutez!A:C,3,FALSE) -> 2021 | I167: 7 | J167: 3675 | K167: 0.915 | L167: 7826 | M167: 7161 | N167: x | P167: ASW-15B | Q167: B | R167: Junior v roce 2024
A168: Petr Havelka | B168: 1997 | C168: M | D168: Zbraslavice | E168: CZ/C1 | F168: PMČRj 2021 - Klub | G168: =VLOOKUP(F168,Soutez!A:B,2,FALSE) -> CZ | H168: =VLOOKUP(F168,Soutez!A:C,3,FALSE) -> 2021 | I168: 8 | J168: 3484 | K168: 0.915 | L168: 7435 | M168: 6803 | N168: x | P168: ASW-19B | Q168: PH
A169: Tomas Moravec | B169: 2000 | C169: M | D169: Žamberk | E169: CZ/C2 | F169: PMČRj 2021 - Klub | G169: =VLOOKUP(F169,Soutez!A:B,2,FALSE) -> CZ | H169: =VLOOKUP(F169,Soutez!A:C,3,FALSE) -> 2021 | I169: 9 | J169: 3375 | K169: 0.915 | L169: 7165 | M169: 6556 | N169: x | P169: Std. Cirrus | Q169: OK6 | R169: Junior v roce 2024
A170: Lukas Maly | B170: 1998 | C170: M | D170: Vysoké Mýto | E170: CZ/C2 | F170: PMČRj 2021 - Klub | G170: =VLOOKUP(F170,Soutez!A:B,2,FALSE) -> CZ | H170: =VLOOKUP(F170,Soutez!A:C,3,FALSE) -> 2021 | I170: 10 | J170: 3355 | K170: 0.915 | L170: 7028 | M170: 6431 | N170: x | P170: ASW-15B | Q170: AM
A171: Vit Tvrdik | B171: 2000 | C171: M | D171: Letňany | E171: CZ/C1 | F171: PMČRj 2021 - Klub | G171: =VLOOKUP(F171,Soutez!A:B,2,FALSE) -> CZ | H171: =VLOOKUP(F171,Soutez!A:C,3,FALSE) -> 2021 | I171: 11 | J171: 3329 | K171: 0.915 | L171: 6882 | M171: 6297 | N171: x | P171: ASW-19B | Q171: HDI | R171: Junior v roce 2024
A172: Ondrej Dvorak 98 | B172: 1998 | C172: M | D172: Mladá Boleslav | E172: CZ/C1 | F172: PMČRj 2021 - Klub | G172: =VLOOKUP(F172,Soutez!A:B,2,FALSE) -> CZ | H172: =VLOOKUP(F172,Soutez!A:C,3,FALSE) -> 2021 | I172: 12 | J172: 3305 | K172: 0.915 | L172: 6740 | M172: 6167 | N172: x | P172: ASW-19B | Q172: AH
A173: Jan Cibulka | B173: =VLOOKUP(A173,Pilot,2,0) -> 2002 | C173: =VLOOKUP(A173,Pilot,5,0) -> M | D173: =VLOOKUP(A173,Pilot,3,0) -> Letňany | E173: =VLOOKUP(A173,Pilot,4,0) -> CZ/C1 | F173: PMČRj 2021 - Klub | G173: =VLOOKUP(F173,Soutez!A:B,2,FALSE) -> CZ | H173: =VLOOKUP(F173,Soutez!A:C,3,FALSE) -> 2021 | I173: 13 | J173: 3194 | K173: 0.915 | L173: 6467 | M173: 5917 | N173: x | P173: ASW-19B | Q173: KZ | R173: Junior v roce 2024
A174: Petr Hosek | B174: =VLOOKUP(A174,Pilot,2,0) -> 2001 | C174: =VLOOKUP(A174,Pilot,5,0) -> M | D174: =VLOOKUP(A174,Pilot,3,0) -> Beroun | E174: =VLOOKUP(A174,Pilot,4,0) -> CZ/C1 | F174: PMČRj 2021 - Klub | G174: =VLOOKUP(F174,Soutez!A:B,2,FALSE) -> CZ | H174: =VLOOKUP(F174,Soutez!A:C,3,FALSE) -> 2021 | I174: 14 | J174: 3186 | K174: 0.915 | L174: 6348 | M174: 5808 | N174: x | P174: VSO-10 | Q174: B1 | R174: Junior v roce 2024
A175: Matej Jelinek | B175: 1999 | C175: M | D175: Hronov | E175: CZ/C2 | F175: PMČRj 2021 - Klub | G175: =VLOOKUP(F175,Soutez!A:B,2,FALSE) -> CZ | H175: =VLOOKUP(F175,Soutez!A:C,3,FALSE) -> 2021 | I175: 15 | J175: 3152 | K175: 0.915 | L175: 6190 | M175: 5664 | N175: x | P175: Std. Cirrus | Q175: ZF | R175: Junior v roce 2024
A176: Michaela Krizova | B176: 2001 | C176: F | D176: Přibyslav | E176: CZ/C2 | F176: PMČRj 2021 - Klub | G176: =VLOOKUP(F176,Soutez!A:B,2,FALSE) -> CZ | H176: =VLOOKUP(F176,Soutez!A:C,3,FALSE) -> 2021 | I176: 16 | J176: 3092 | K176: 0.915 | L176: 5994 | M176: 5485 | P176: Std. Cirrus | Q176: XC | R176: Junior v roce 2024
A177: Jakub Malik | B177: 1999 | C177: M | D177: Letňany | E177: CZ/C1 | F177: PMČRj 2021 - Klub | G177: =VLOOKUP(F177,Soutez!A:B,2,FALSE) -> CZ | H177: =VLOOKUP(F177,Soutez!A:C,3,FALSE) -> 2021 | I177: 17 | J177: 3075 | K177: 0.915 | L177: 5862 | M177: 5364 | P177: Discus b WL | Q177: DP | R177: Junior v roce 2024
A178: Michal Coufal | B178: =VLOOKUP(A178,Pilot,2,0) -> 1999 | C178: =VLOOKUP(A178,Pilot,5,0) -> M | D178: =VLOOKUP(A178,Pilot,3,0) -> Jičín | E178: =VLOOKUP(A178,Pilot,4,0) -> CZ/C2 | F178: PMČRj 2021 - Klub | G178: =VLOOKUP(F178,Soutez!A:B,2,FALSE) -> CZ | H178: =VLOOKUP(F178,Soutez!A:C,3,FALSE) -> 2021 | I178: 18 | J178: 3066 | K178: 0.915 | L178: 5741 | M178: 5253 | N178: x | P178: Std. Cirrus | Q178: FS | R178: Junior v roce 2024
A179: Jan Beran | B179: 1999 | C179: M | D179: Kladno | E179: CZ/C1 | F179: PMČRj 2021 - Klub | G179: =VLOOKUP(F179,Soutez!A:B,2,FALSE) -> CZ | H179: =VLOOKUP(F179,Soutez!A:C,3,FALSE) -> 2021 | I179: 19 | J179: 2977 | K179: 0.915 | L179: 5501 | M179: 5033 | N179: x | P179: ASW-19B | Q179: HB | R179: Junior v roce 2024
A180: Tibor Hezina | B180: 2002 | C180: M | D180: Křižanov | E180: CZ/M | F180: PMČRj 2021 - Klub | G180: =VLOOKUP(F180,Soutez!A:B,2,FALSE) -> CZ | H180: =VLOOKUP(F180,Soutez!A:C,3,FALSE) -> 2021 | I180: 20 | J180: 2897 | K180: 0.915 | L180: 5275 | M180: 4827 | N180: x | P180: Std. Cirrus | Q180: IJ | R180: Junior v roce 2024
A181: Jan Adam | B181: 2002 | C181: M | D181: Podhořany | E181: CZ/C2 | F181: PMČRj 2021 - Klub | G181: =VLOOKUP(F181,Soutez!A:B,2,FALSE) -> CZ | H181: =VLOOKUP(F181,Soutez!A:C,3,FALSE) -> 2021 | I181: 21 | J181: 2878 | K181: 0.915 | L181: 5140 | M181: 4703 | N181: x | P181: Std. Cirrus | Q181: YX | R181: Junior v roce 2024
A182: Jiri Maier 99 | B182: 1999 | C182: M | D182: Raná | E182: CZ/C2 | F182: PMČRj 2021 - Klub | G182: =VLOOKUP(F182,Soutez!A:B,2,FALSE) -> CZ | H182: =VLOOKUP(F182,Soutez!A:C,3,FALSE) -> 2021 | I182: 22 | J182: 2561 | K182: 0.915 | L182: 4561 | M182: 4173 | P182: Discus bT | Q182: TAL | R182: Junior v roce 2024
A183: Premysl Chvoj | B183: =VLOOKUP(A183,Pilot,2,0) -> 2003 | C183: =VLOOKUP(A183,Pilot,5,0) -> M | D183: =VLOOKUP(A183,Pilot,3,0) -> Zbraslavice | E183: =VLOOKUP(A183,Pilot,4,0) -> CZ/C1 | F183: PMČRj 2021 - Klub | G183: =VLOOKUP(F183,Soutez!A:B,2,FALSE) -> CZ | H183: =VLOOKUP(F183,Soutez!A:C,3,FALSE) -> 2021 | I183: 23 | J183: 2341 | K183: 0.915 | L183: 4126 | M183: 3775 | N183: x | P183: G-102 Astir cs | Q183: MV | R183: Junior v roce 2024
A184: Katerina Vancurova | B184: =VLOOKUP(A184,Pilot,2,0) -> 2002 | C184: =VLOOKUP(A184,Pilot,5,0) -> F | D184: =VLOOKUP(A184,Pilot,3,0) -> Hranice | E184: =VLOOKUP(A184,Pilot,4,0) -> CZ/M | F184: PMČRj 2021 - Klub | G184: =VLOOKUP(F184,Soutez!A:B,2,FALSE) -> CZ | H184: =VLOOKUP(F184,Soutez!A:C,3,FALSE) -> 2021 | I184: 24 | J184: 2263 | K184: =VLOOKUP(F184,Soutez,12,0) -> 0.915 | L184: 3903 | M184: 3571 | P184: Discus b | Q184: HD | R184: Junior v roce 2024
A185: Matej Bartos | B185: 1998 | C185: M | D185: Hodkovice | E185: CZ/C2 | F185: PMČRj 2021 - Klub | G185: =VLOOKUP(F185,Soutez!A:B,2,FALSE) -> CZ | H185: =VLOOKUP(F185,Soutez!A:C,3,FALSE) -> 2021 | I185: 25 | J185: 2167 | K185: 0.915 | L185: 3653 | M185: 3342 | N185: x | P185: Std. Cirrus | Q185: KA
A186: Jakub Koudelka | B186: 2000 | C186: M | D186: Křižanov | E186: CZ/M | F186: PMČRj 2021 - Klub | G186: =VLOOKUP(F186,Soutez!A:B,2,FALSE) -> CZ | H186: =VLOOKUP(F186,Soutez!A:C,3,FALSE) -> 2021 | I186: 26 | J186: 1992 | K186: 0.915 | L186: 3286 | M186: 3007 | N186: x | P186: ASW-19B | Q186: A1 | R186: Junior v roce 2024
A187: Kristina Santruckova | B187: 1996 | C187: F | D187: Podhořany | E187: CZ/C2 | F187: PMČRj 2021 - Klub | G187: =VLOOKUP(F187,Soutez!A:B,2,FALSE) -> CZ | H187: =VLOOKUP(F187,Soutez!A:C,3,FALSE) -> 2021 | I187: 27 | J187: 1687 | K187: 0.915 | L187: 2725 | M187: 2493 | N187: x | O187: x | P187: ASW-15B WL | Q187: KS
A188: Filip Malik | B188: 2001 | C188: M | D188: Letňany | E188: CZ/C1 | F188: PMČRj 2021 - Klub | G188: =VLOOKUP(F188,Soutez!A:B,2,FALSE) -> CZ | H188: =VLOOKUP(F188,Soutez!A:C,3,FALSE) -> 2021 | I188: 28 | J188: 1654 | K188: 0.915 | L188: 2568 | M188: 2350 | N188: x | P188: VSO-10 | Q188: L5 | R188: Junior v roce 2024
A189: Tim Raasch | B189: =VLOOKUP(A189,Pilot,2,0) -> 2000 | C189: =VLOOKUP(A189,Pilot,5,0) -> M | D189: =VLOOKUP(A189,Pilot,3,0) -> Polička | E189: =VLOOKUP(A189,Pilot,4,0) -> CZ/C2 | F189: PMČRj 2021 - Klub | G189: =VLOOKUP(F189,Soutez!A:B,2,FALSE) -> CZ | H189: =VLOOKUP(F189,Soutez!A:C,3,FALSE) -> 2021 | I189: 29 | J189: 617 | K189: 0.915 | L189: 918 | M189: 840 | N189: x | P189: VSO-10 | Q189: H5 | R189: Junior v roce 2024
A190: Michal Kratochvil | B190: =VLOOKUP(A190,Pilot,2,0) -> 1984 | C190: =VLOOKUP(A190,Pilot,5,0) -> M | D190: =VLOOKUP(A190,Pilot,3,0) -> Slaný | E190: =VLOOKUP(A190,Pilot,4,0) -> CZ/C1 | F190: GGP MB 2021 - Gradient GP | G190: =VLOOKUP(F190,Soutez!A:B,2,FALSE) -> CZ | H190: =VLOOKUP(F190,Soutez!A:C,3,FALSE) -> 2021 | I190: 1 | J190: 14 | K190: 0 | L190: =ROUND((MAX($I$190:$I$198)-I190)/(MAX($I$190:$I$198)-1)*10000,0) -> 10000 | M190: =ROUND(K190*L190,0) -> 0 | P190: VSO-10 | Q190: 56
A191: David Vrchota | B191: =VLOOKUP(A191,Pilot,2,0) -> 1976 | C191: =VLOOKUP(A191,Pilot,5,0) -> M | D191: =VLOOKUP(A191,Pilot,3,0) -> Jaroměř | E191: =VLOOKUP(A191,Pilot,4,0) -> CZ/C2 | F191: GGP MB 2021 - Gradient GP | G191: =VLOOKUP(F191,Soutez!A:B,2,FALSE) -> CZ | H191: =VLOOKUP(F191,Soutez!A:C,3,FALSE) -> 2021 | I191: 2 | J191: 12 | K191: 0 | L191: =ROUND((MAX($I$190:$I$198)-I191)/(MAX($I$190:$I$198)-1)*10000,0) -> 8750 | M191: =ROUND(K191*L191,0) -> 0 | P191: VSO-10 | Q191: J6
A192: Jan Hejret | B192: 1976 | C192: M | D192: Jaroměř | E192: CZ/C2 | F192: GGP MB 2021 - Gradient GP | G192: =VLOOKUP(F192,Soutez!A:B,2,FALSE) -> CZ | H192: =VLOOKUP(F192,Soutez!A:C,3,FALSE) -> 2021 | I192: 3 | J192: 9 | K192: 0 | L192: 7500 | M192: 0 | P192: VSO-10 | Q192: C3
A193: Libor Bednarik | B193: 1972 | C193: M | D193: Kunovice | E193: CZ/M | F193: GGP MB 2021 - Gradient GP | G193: =VLOOKUP(F193,Soutez!A:B,2,FALSE) -> CZ | H193: =VLOOKUP(F193,Soutez!A:C,3,FALSE) -> 2021 | I193: 4 | J193: 6 | K193: 0 | L193: 6250 | M193: 0 | P193: VSO-10 | Q193: 94
A194: Karel Policky | B194: =VLOOKUP(A194,Pilot,2,0) -> 1950 | C194: =VLOOKUP(A194,Pilot,5,0) -> M | D194: =VLOOKUP(A194,Pilot,3,0) -> Kolín | E194: =VLOOKUP(A194,Pilot,4,0) -> CZ/C1 | F194: GGP MB 2021 - Gradient GP | G194: =VLOOKUP(F194,Soutez!A:B,2,FALSE) -> CZ | H194: =VLOOKUP(F194,Soutez!A:C,3,FALSE) -> 2021 | I194: 4 | J194: 6 | K194: 0 | L194: =ROUND((MAX($I$190:$I$198)-I194)/(MAX($I$190:$I$198)-1)*10000,0) -> 6250 | M194: 0 | P194: VSO-10 | Q194: 93
A195: David Kaspar | B195: 1993 | C195: M | D195: Jaroměř | E195: CZ/C2 | F195: GGP MB 2021 - Gradient GP | G195: =VLOOKUP(F195,Soutez!A:B,2,FALSE) -> CZ | H195: =VLOOKUP(F195,Soutez!A:C,3,FALSE) -> 2021 | I195: 6 | J195: 5 | K195: 0 | L195: 3750 | M195: =ROUND(K195*L195,0) -> 0 | P195: VSO-10 | Q195: 31
A196: Martin Krizovic | B196: =VLOOKUP(A196,Pilot,2,0) -> 1971 | C196: =VLOOKUP(A196,Pilot,5,0) -> M | D196: =VLOOKUP(A196,Pilot,3,0) -> Přibyslav | E196: =VLOOKUP(A196,Pilot,4,0) -> CZ/C2 | F196: GGP MB 2021 - Gradient GP | G196: =VLOOKUP(F196,Soutez!A:B,2,FALSE) -> CZ | H196: =VLOOKUP(F196,Soutez!A:C,3,FALSE) -> 2021 | I196: 7 | J196: 2 | K196: 0 | L196: 2500 | M196: =ROUND(K196*L196,0) -> 0 | P196: VSO-10 | Q196: G3
A197: Jan Zdvorak | B197: 1980 | C197: M | D197: Roudnice | E197: CZ/C2 | F197: GGP MB 2021 - Gradient GP | G197: =VLOOKUP(F197,Soutez!A:B,2,FALSE) -> CZ | H197: =VLOOKUP(F197,Soutez!A:C,3,FALSE) -> 2021 | I197: 8 | J197: 1 | K197: 0 | L197: 1250 | M197: 0 | P197: VSO-10 | Q197: 6
A198: Jiri Pixa | B198: 1968 | C198: M | D198: Slaný | E198: CZ/C1 | F198: GGP MB 2021 - Gradient GP | G198: =VLOOKUP(F198,Soutez!A:B,2,FALSE) -> CZ | H198: =VLOOKUP(F198,Soutez!A:C,3,FALSE) -> 2021 | I198: 9 | J198: 0 | K198: 0 | L198: 0 | M198: 0 | P198: VSO-10 | Q198: G8
A199: Lukas Kriz | B199: =VLOOKUP(A199,Pilot,2,0) -> 2003 | C199: =VLOOKUP(A199,Pilot,5,0) -> M | D199: =VLOOKUP(A199,Pilot,3,0) -> Křižanov | E199: =VLOOKUP(A199,Pilot,4,0) -> CZ/M | F199: GGP MB 2021 - Klub GP | G199: =VLOOKUP(F199,Soutez!A:B,2,FALSE) -> CZ | H199: =VLOOKUP(F199,Soutez!A:C,3,FALSE) -> 2021 | I199: 1 | J199: 19 | K199: 0.88 | L199: =ROUND((MAX($I$199:$I$215)-I199)/(MAX($I$199:$I$215)-1)*10000,0) -> 10000 | M199: =ROUND(K199*L199,0) -> 8800 | P199: Std. Cirrus | Q199: EJ | R199: Junior v roce 2024
A200: Matej Krestes | B200: 1986 | C200: M | D200: Slaný | E200: CZ/C1 | F200: GGP MB 2021 - Klub GP | G200: =VLOOKUP(F200,Soutez!A:B,2,FALSE) -> CZ | H200: =VLOOKUP(F200,Soutez!A:C,3,FALSE) -> 2021 | I200: 1 | J200: 19 | K200: 0.88 | L200: =ROUND((MAX($I$199:$I$215)-I200)/(MAX($I$199:$I$215)-1)*10000,0) -> 10000 | M200: =ROUND(K200*L200,0) -> 8800 | N200: x | P200: Std. Cirrus | Q200: CO
... 2513 more rows

Sheet Zebrik G
B1: ="Všeobecný Žebřík pilotů plachtařů PK AeČR "&A6 -> Všeobecný Žebřík pilotů plachtařů PK AeČR 2023 | I1: =Zmeny!A6 -> 2024-02-08 | J1: Rev. | K1: =Zmeny!B6 -> 03 | L1: =Zmeny!C6 -> Oprava chyby s velkými písmeny v názvu pilota
B3: G | C3: x | I3: Junior v roce: | J3: Junior v roce: | K3: ="Repre družstvo "&I4 -> Repre družstvo 2024 | L3: ="Repre výběr "&I4 -> Repre výběr 2024 | M3: ="W "&L3 -> W Repre výběr 2024 | N3: Poznámka
I4: =A6+1 -> 2024 | J4: =I4+1 -> 2025 | K4: (RD) | L4: (RV) | M4: (WRV)
A5: Pořadí | G5: Data | I5: =COUNTIF(I7:I949,"Junior v roce "&$I$4) -> 46 | J5: =COUNTIF(J7:J949,"Junior v roce "&$J$4) -> 36 | K5: =COUNTIF(K7:K949,"RD "&$I$4) -> 19 | L5: =COUNTIF(L7:L949,"RV "&$I$4) -> 23 | M5: =COUNTIF(M7:M949,"WRV "&$I$4) -> 9 | N5: =COUNTIF(N7:N949,"<>") -> 0
A6: 2023 | B6: Jméno | C6: Rok narození | D6: M/F | E6: Aeroklub | F6: Region | G6: Součet z Bi×Kinp | H6: Počet G
A7: =RANK(G7,G:G) -> 1 | B7: Tomas Suchanek | C7: 1964 | D7: M | E7: GAC Benešov | F7: CZ/C1 | G7: 31443 | H7: 3 | I7: =IF(C7="(prázdné)","",IF(($I$4-C7)>25,"","Junior v roce "&$I$4)) ->  | J7: =IF(C7="(prázdné)","",IF(($J$4-C7)>25,"","Junior v roce "&$J$4)) ->  | K7: RD 2024 | L7: RV 2024 | M7: =IF(ISERROR(VLOOKUP(B7,'Zebrik W'!$B$7:$L$992,11,0)),"",IF(VLOOKUP(B7,'Zebrik W'!$B$7:$L$992,11,0)=0,"--",VLOOKUP(B7,'Zebrik W'!$B$7:$L$992,11,0))) -> 
A8: 2 | B8: Radek Krejcirik | C8: 1991 | D8: M | E8: Hranice | F8: CZ/M | G8: 31048 | H8: 3 | I8: =IF(C8="(prázdné)","",IF(($I$4-C8)>25,"","Junior v roce "&$I$4)) ->  | J8: =IF(C8="(prázdné)","",IF(($J$4-C8)>25,"","Junior v roce "&$J$4)) ->  | K8: RD 2024 | L8: RV 2024 | M8: =IF(ISERROR(VLOOKUP(B8,'Zebrik W'!$B$7:$L$992,11,0)),"",IF(VLOOKUP(B8,'Zebrik W'!$B$7:$L$992,11,0)=0,"--",VLOOKUP(B8,'Zebrik W'!$B$7:$L$992,11,0))) -> 
A9: 3 | B9: Jan Pavlik | C9: 1987 | D9: M | E9: Křižanov | F9: CZ/M | G9: 30140 | H9: 3 | I9: =IF(C9="(prázdné)","",IF(($I$4-C9)>25,"","Junior v roce "&$I$4)) ->  | K9: RD 2024 | L9: RV 2024 | M9: =IF(ISERROR(VLOOKUP(B9,'Zebrik W'!$B$7:$L$992,11,0)),"",IF(VLOOKUP(B9,'Zebrik W'!$B$7:$L$992,11,0)=0,"--",VLOOKUP(B9,'Zebrik W'!$B$7:$L$992,11,0))) -> 
A10: 4 | B10: Miloslav Cink | C10: 1987 | D10: M | E10: Letkov | F10: CZ/C1 | G10: 30047 | H10: 3 | K10: RD 2024 | L10: RV 2024 | M10: =IF(ISERROR(VLOOKUP(B10,'Zebrik W'!$B$7:$L$992,11,0)),"",IF(VLOOKUP(B10,'Zebrik W'!$B$7:$L$992,11,0)=0,"--",VLOOKUP(B10,'Zebrik W'!$B$7:$L$992,11,0))) -> 
A11: 5 | B11: Lukas Kriz | C11: 2003 | D11: M | E11: Křižanov | F11: CZ/M | G11: 29954 | H11: 3 | I11: Junior v roce 2024 | J11: Junior v roce 2025 | K11: RD 2024 | L11: RV 2024 | M11: =IF(ISERROR(VLOOKUP(B11,'Zebrik W'!$B$7:$L$992,11,0)),"",IF(VLOOKUP(B11,'Zebrik W'!$B$7:$L$992,11,0)=0,"--",VLOOKUP(B11,'Zebrik W'!$B$7:$L$992,11,0))) -> 
A12: 6 | B12: Radek Kucirek | C12: 1973 | D12: M | E12: Havlíčkův Brod | F12: CZ/C2 | G12: 29844 | H12: 3 | K12: RD 2024 | L12: RV 2024 | M12: =IF(ISERROR(VLOOKUP(B12,'Zebrik W'!$B$7:$L$992,11,0)),"",IF(VLOOKUP(B12,'Zebrik W'!$B$7:$L$992,11,0)=0,"--",VLOOKUP(B12,'Zebrik W'!$B$7:$L$992,11,0))) -> 
A13: 7 | B13: Michal Lesinger | C13: 1966 | D13: M | E13: Moravská Třebová | F13: CZ/M | G13: 29642 | H13: 3 | K13: RD 2024 | L13: RV 2024 | M13: =IF(ISERROR(VLOOKUP(B13,'Zebrik W'!$B$7:$L$992,11,0)),"",IF(VLOOKUP(B13,'Zebrik W'!$B$7:$L$992,11,0)=0,"--",VLOOKUP(B13,'Zebrik W'!$B$7:$L$992,11,0))) -> 
A14: 8 | B14: Pavel Louzecky | C14: 1957 | D14: M | E14: Přibyslav | F14: CZ/C2 | G14: 29456 | H14: 3 | K14: RD 2024 | L14: RV 2024 | M14: =IF(ISERROR(VLOOKUP(B14,'Zebrik W'!$B$7:$L$992,11,0)),"",IF(VLOOKUP(B14,'Zebrik W'!$B$7:$L$992,11,0)=0,"--",VLOOKUP(B14,'Zebrik W'!$B$7:$L$992,11,0))) -> 
A15: 9 | B15: Jaromir Macoun | C15: 1999 | D15: M | E15: Jičín | F15: CZ/C2 | G15: 29396 | H15: 3 | I15: Junior v roce 2024 | K15: RD 2024 | L15: RV 2024 | M15: =IF(ISERROR(VLOOKUP(B15,'Zebrik W'!$B$7:$L$992,11,0)),"",IF(VLOOKUP(B15,'Zebrik W'!$B$7:$L$992,11,0)=0,"--",VLOOKUP(B15,'Zebrik W'!$B$7:$L$992,11,0))) -> 
A16: 10 | B16: Ivan Novak | C16: 1962 | D16: M | E16: Mladá Boleslav | F16: CZ/C1 | G16: 29001 | H16: 3 | K16: RD 2024 | L16: RV 2024 | M16: =IF(ISERROR(VLOOKUP(B16,'Zebrik W'!$B$7:$L$992,11,0)),"",IF(VLOOKUP(B16,'Zebrik W'!$B$7:$L$992,11,0)=0,"--",VLOOKUP(B16,'Zebrik W'!$B$7:$L$992,11,0))) -> 
A17: 11 | B17: Martin Hrivna | C17: 1978 | D17: M | E17: Zbraslavice | F17: CZ/C1 | G17: 28772 | H17: 3 | K17: RD 2024 | L17: RV 2024 | M17: =IF(ISERROR(VLOOKUP(B17,'Zebrik W'!$B$7:$L$992,11,0)),"",IF(VLOOKUP(B17,'Zebrik W'!$B$7:$L$992,11,0)=0,"--",VLOOKUP(B17,'Zebrik W'!$B$7:$L$992,11,0))) -> 
A18: 12 | B18: Tomas Rendla | C18: 1973 | D18: M | E18: Zbraslavice | F18: CZ/C1 | G18: 28719 | H18: 3 | K18: RD 2024 | L18: RV 2024 | M18: =IF(ISERROR(VLOOKUP(B18,'Zebrik W'!$B$7:$L$992,11,0)),"",IF(VLOOKUP(B18,'Zebrik W'!$B$7:$L$992,11,0)=0,"--",VLOOKUP(B18,'Zebrik W'!$B$7:$L$992,11,0))) -> 
A19: 13 | B19: Jaroslav Tomana | C19: 1975 | D19: M | E19: Zbraslavice | F19: CZ/C1 | G19: 28686 | H19: 3 | K19: RD 2024 | L19: RV 2024 | M19: =IF(ISERROR(VLOOKUP(B19,'Zebrik W'!$B$7:$L$992,11,0)),"",IF(VLOOKUP(B19,'Zebrik W'!$B$7:$L$992,11,0)=0,"--",VLOOKUP(B19,'Zebrik W'!$B$7:$L$992,11,0))) -> 
A20: 14 | B20: Karel Novak | C20: 1993 | D20: M | E20: Mladá Boleslav | F20: CZ/C1 | G20: 28247 | H20: 3 | K20: RD 2024 | L20: RV 2024 | M20: =IF(ISERROR(VLOOKUP(B20,'Zebrik W'!$B$7:$L$992,11,0)),"",IF(VLOOKUP(B20,'Zebrik W'!$B$7:$L$992,11,0)=0,"--",VLOOKUP(B20,'Zebrik W'!$B$7:$L$992,11,0))) -> 
A21: 15 | B21: David Mach | C21: 1994 | D21: M | E21: Hronov | F21: CZ/C2 | G21: 28142 | H21: 3 | L21: RV 2024 | M21: =IF(ISERROR(VLOOKUP(B21,'Zebrik W'!$B$7:$L$992,11,0)),"",IF(VLOOKUP(B21,'Zebrik W'!$B$7:$L$992,11,0)=0,"--",VLOOKUP(B21,'Zebrik W'!$B$7:$L$992,11,0))) -> 
A22: 16 | B22: Barbora Moravcova | C22: 1994 | D22: F | E22: Zbraslavice | F22: CZ/C1 | G22: 28044 | H22: 3 | L22: RV 2024 | M22: =IF(ISERROR(VLOOKUP(B22,'Zebrik W'!$B$7:$L$992,11,0)),"",IF(VLOOKUP(B22,'Zebrik W'!$B$7:$L$992,11,0)=0,"--",VLOOKUP(B22,'Zebrik W'!$B$7:$L$992,11,0))) -> WRV 2024
A23: 17 | B23: Pavel Trybenekr | C23: 1990 | D23: M | E23: Hořice | F23: CZ/C2 | G23: 28026 | H23: 3 | L23: RV 2024 | M23: =IF(ISERROR(VLOOKUP(B23,'Zebrik W'!$B$7:$L$992,11,0)),"",IF(VLOOKUP(B23,'Zebrik W'!$B$7:$L$992,11,0)=0,"--",VLOOKUP(B23,'Zebrik W'!$B$7:$L$992,11,0))) -> 
A24: 18 | B24: Petr Tichy | C24: 1973 | D24: M | E24: Zbraslavice | F24: CZ/C1 | G24: 28019 | H24: 3 | L24: RV 2024 | M24: =IF(ISERROR(VLOOKUP(B24,'Zebrik W'!$B$7:$L$992,11,0)),"",IF(VLOOKUP(B24,'Zebrik W'!$B$7:$L$992,11,0)=0,"--",VLOOKUP(B24,'Zebrik W'!$B$7:$L$992,11,0))) -> 
A25: 19 | B25: Jan Stastny | C25: 2003 | D25: M | E25: Medlánky | F25: CZ/M | G25: 27999 | H25: 3 | I25: Junior v roce 2024 | J25: Junior v roce 2025 | K25: RD 2024 | L25: RV 2024 | M25: =IF(ISERROR(VLOOKUP(B25,'Zebrik W'!$B$7:$L$992,11,0)),"",IF(VLOOKUP(B25,'Zebrik W'!$B$7:$L$992,11,0)=0,"--",VLOOKUP(B25,'Zebrik W'!$B$7:$L$992,11,0))) -> 
A26: 20 | B26: Petr Krejcirik | C26: 1960 | D26: M | E26: Hranice | F26: CZ/M | G26: 27737 | H26: 3 | I26: =IF(C26="(prázdné)","",IF(($I$4-C26)>25,"","Junior v roce "&$I$4)) ->  | L26: RV 2024 | M26: =IF(ISERROR(VLOOKUP(B26,'Zebrik W'!$B$7:$L$992,11,0)),"",IF(VLOOKUP(B26,'Zebrik W'!$B$7:$L$992,11,0)=0,"--",VLOOKUP(B26,'Zebrik W'!$B$7:$L$992,11,0))) -> 
A27: 21 | B27: Pavel Jiranek | C27: 1993 | D27: M | E27: Toužim | F27: CZ/C1 | G27: 27623 | H27: 3 | M27: =IF(ISERROR(VLOOKUP(B27,'Zebrik W'!$B$7:$L$992,11,0)),"",IF(VLOOKUP(B27,'Zebrik W'!$B$7:$L$992,11,0)=0,"--",VLOOKUP(B27,'Zebrik W'!$B$7:$L$992,11,0))) -> 
A28: 22 | B28: Jan Kotan | C28: 1982 | D28: M | E28: Letňany | F28: CZ/C1 | G28: 27609 | H28: 3 | M28: =IF(ISERROR(VLOOKUP(B28,'Zebrik W'!$B$7:$L$992,11,0)),"",IF(VLOOKUP(B28,'Zebrik W'!$B$7:$L$992,11,0)=0,"--",VLOOKUP(B28,'Zebrik W'!$B$7:$L$992,11,0))) -> 
A29: 23 | B29: Petr Hotovy | C29: 1958 | D29: M | E29: Česká Lípa | F29: CZ/C2 | G29: 27526 | H29: 3 | M29: =IF(ISERROR(VLOOKUP(B29,'Zebrik W'!$B$7:$L$992,11,0)),"",IF(VLOOKUP(B29,'Zebrik W'!$B$7:$L$992,11,0)=0,"--",VLOOKUP(B29,'Zebrik W'!$B$7:$L$992,11,0))) -> 
A30: 24 | B30: Vit Morkovsky | C30: 2000 | D30: M | E30: Polička | F30: CZ/C2 | G30: 27294 | H30: 3 | I30: Junior v roce 2024 | J30: Junior v roce 2025 | K30: RD 2024 | L30: RV 2024 | M30: =IF(ISERROR(VLOOKUP(B30,'Zebrik W'!$B$7:$L$992,11,0)),"",IF(VLOOKUP(B30,'Zebrik W'!$B$7:$L$992,11,0)=0,"--",VLOOKUP(B30,'Zebrik W'!$B$7:$L$992,11,0))) -> 
A31: 25 | B31: Hana Treslova | C31: 1991 | D31: F | E31: Raná | F31: CZ/C2 | G31: 27280 | H31: 3 | M31: =IF(ISERROR(VLOOKUP(B31,'Zebrik W'!$B$7:$L$992,11,0)),"",IF(VLOOKUP(B31,'Zebrik W'!$B$7:$L$992,11,0)=0,"--",VLOOKUP(B31,'Zebrik W'!$B$7:$L$992,11,0))) -> WRV 2024
A32: 26 | B32: Michaela Rendlova | C32: 2004 | D32: F | E32: Toužim | F32: CZ/C1 | G32: 27135 | H32: 3 | I32: Junior v roce 2024 | J32: Junior v roce 2025 | K32: RD 2024 | L32: RV 2024 | M32: =IF(ISERROR(VLOOKUP(B32,'Zebrik W'!$B$7:$L$992,11,0)),"",IF(VLOOKUP(B32,'Zebrik W'!$B$7:$L$992,11,0)=0,"--",VLOOKUP(B32,'Zebrik W'!$B$7:$L$992,11,0))) -> WRV 2024
A33: 27 | B33: Radek Hybl | C33: 1980 | D33: M | E33: Šumperk | F33: CZ/M | G33: 27091 | H33: 3 | M33: =IF(ISERROR(VLOOKUP(B33,'Zebrik W'!$B$7:$L$992,11,0)),"",IF(VLOOKUP(B33,'Zebrik W'!$B$7:$L$992,11,0)=0,"--",VLOOKUP(B33,'Zebrik W'!$B$7:$L$992,11,0))) -> 
A34: 28 | B34: Jiri Kusbach | C34: 1959 | D34: M | E34: Luhačovice | F34: CZ/M | G34: 27050 | H34: 3 | M34: =IF(ISERROR(VLOOKUP(B34,'Zebrik W'!$B$7:$L$992,11,0)),"",IF(VLOOKUP(B34,'Zebrik W'!$B$7:$L$992,11,0)=0,"--",VLOOKUP(B34,'Zebrik W'!$B$7:$L$992,11,0))) -> 
A35: 29 | B35: Josef Novotny | C35: 1983 | D35: M | E35: Přibyslav | F35: CZ/C2 | G35: 26924 | H35: 3 | M35: =IF(ISERROR(VLOOKUP(B35,'Zebrik W'!$B$7:$L$992,11,0)),"",IF(VLOOKUP(B35,'Zebrik W'!$B$7:$L$992,11,0)=0,"--",VLOOKUP(B35,'Zebrik W'!$B$7:$L$992,11,0))) -> 
A36: 30 | B36: Jan Boruvka | C36: 1984 | D36: M | E36: Jičín | F36: CZ/C2 | G36: 26754 | H36: 3 | M36: =IF(ISERROR(VLOOKUP(B36,'Zebrik W'!$B$7:$L$992,11,0)),"",IF(VLOOKUP(B36,'Zebrik W'!$B$7:$L$992,11,0)=0,"--",VLOOKUP(B36,'Zebrik W'!$B$7:$L$992,11,0))) -> 
A37: 31 | B37: Jan Louda | C37: 1986 | D37: M | E37: Mladá Boleslav | F37: CZ/C1 | G37: 26629 | H37: 3 | M37: =IF(ISERROR(VLOOKUP(B37,'Zebrik W'!$B$7:$L$992,11,0)),"",IF(VLOOKUP(B37,'Zebrik W'!$B$7:$L$992,11,0)=0,"--",VLOOKUP(B37,'Zebrik W'!$B$7:$L$992,11,0))) -> 
A38: 32 | B38: Frantisek Vancura | C38: 1966 | D38: M | E38: Hranice | F38: CZ/M | G38: 26463 | H38: 3 | M38: =IF(ISERROR(VLOOKUP(B38,'Zebrik W'!$B$7:$L$992,11,0)),"",IF(VLOOKUP(B38,'Zebrik W'!$B$7:$L$992,11,0)=0,"--",VLOOKUP(B38,'Zebrik W'!$B$7:$L$992,11,0))) -> 
A39: 33 | B39: Ondrej Bordovsky | C39: 1983 | D39: M | E39: Krnov | F39: CZ/M | G39: 26360 | H39: 3 | M39: =IF(ISERROR(VLOOKUP(B39,'Zebrik W'!$B$7:$L$992,11,0)),"",IF(VLOOKUP(B39,'Zebrik W'!$B$7:$L$992,11,0)=0,"--",VLOOKUP(B39,'Zebrik W'!$B$7:$L$992,11,0))) -> 
A40: 34 | B40: Dana Novakova | C40: 1965 | D40: F | E40: Mladá Boleslav | F40: CZ/C1 | G40: 26124 | H40: 3 | M40: =IF(ISERROR(VLOOKUP(B40,'Zebrik W'!$B$7:$L$992,11,0)),"",IF(VLOOKUP(B40,'Zebrik W'!$B$7:$L$992,11,0)=0,"--",VLOOKUP(B40,'Zebrik W'!$B$7:$L$992,11,0))) -> WRV 2024
A41: 35 | B41: Alena Netusilova | C41: 1970 | D41: F | E41: Zbraslavice | F41: CZ/C1 | G41: 26074 | H41: 3 | K41: RD 2024 | M41: =IF(ISERROR(VLOOKUP(B41,'Zebrik W'!$B$7:$L$992,11,0)),"",IF(VLOOKUP(B41,'Zebrik W'!$B$7:$L$992,11,0)=0,"--",VLOOKUP(B41,'Zebrik W'!$B$7:$L$992,11,0))) -> WRV 2024
A42: 36 | B42: Ondrej Dupal | C42: 1966 | D42: M | E42: GAC Benešov | F42: CZ/C1 | G42: 26058 | H42: 3 | M42: =IF(ISERROR(VLOOKUP(B42,'Zebrik W'!$B$7:$L$992,11,0)),"",IF(VLOOKUP(B42,'Zebrik W'!$B$7:$L$992,11,0)=0,"--",VLOOKUP(B42,'Zebrik W'!$B$7:$L$992,11,0))) -> 
A43: 37 | B43: Petr Koutny | C43: 1971 | D43: M | E43: Křižanov | F43: CZ/M | G43: 25990 | H43: 3 | M43: =IF(ISERROR(VLOOKUP(B43,'Zebrik W'!$B$7:$L$992,11,0)),"",IF(VLOOKUP(B43,'Zebrik W'!$B$7:$L$992,11,0)=0,"--",VLOOKUP(B43,'Zebrik W'!$B$7:$L$992,11,0))) -> 
A44: 38 | B44: Ivan Harasta 65 | C44: 1965 | D44: M | E44: Toužim | F44: CZ/C1 | G44: 25760 | H44: 3 | I44: =IF(C44="(prázdné)","",IF(($I$4-C44)>25,"","Junior v roce "&$I$4)) ->  | J44: =IF(C44="(prázdné)","",IF(($J$4-C44)>25,"","Junior v roce "&$J$4)) ->  | M44: =IF(ISERROR(VLOOKUP(B44,'Zebrik W'!$B$7:$L$992,11,0)),"",IF(VLOOKUP(B44,'Zebrik W'!$B$7:$L$992,11,0)=0,"--",VLOOKUP(B44,'Zebrik W'!$B$7:$L$992,11,0))) -> 
A45: 39 | B45: Jindrich Svorc | C45: 1978 | D45: M | E45: Letňany | F45: CZ/C1 | G45: 25750 | H45: 3 | M45: =IF(ISERROR(VLOOKUP(B45,'Zebrik W'!$B$7:$L$992,11,0)),"",IF(VLOOKUP(B45,'Zebrik W'!$B$7:$L$992,11,0)=0,"--",VLOOKUP(B45,'Zebrik W'!$B$7:$L$992,11,0))) -> 
A46: 40 | B46: Vladimir Hammer | C46: 2000 | D46: M | E46: Letkov | F46: CZ/C1 | G46: 25535 | H46: 3 | I46: Junior v roce 2024 | J46: Junior v roce 2025 | L46: RV 2024 | M46: =IF(ISERROR(VLOOKUP(B46,'Zebrik W'!$B$7:$L$992,11,0)),"",IF(VLOOKUP(B46,'Zebrik W'!$B$7:$L$992,11,0)=0,"--",VLOOKUP(B46,'Zebrik W'!$B$7:$L$992,11,0))) -> 
A47: 41 | B47: Lukas Capek | C47: 1992 | D47: M | E47: Letňany | F47: CZ/C1 | G47: 25327 | H47: 3 | M47: =IF(ISERROR(VLOOKUP(B47,'Zebrik W'!$B$7:$L$992,11,0)),"",IF(VLOOKUP(B47,'Zebrik W'!$B$7:$L$992,11,0)=0,"--",VLOOKUP(B47,'Zebrik W'!$B$7:$L$992,11,0))) -> 
A48: 42 | B48: Jan Ratz | C48: 1987 | D48: M | E48: Zbraslavice | F48: CZ/C1 | G48: 25264 | H48: 3 | M48: =IF(ISERROR(VLOOKUP(B48,'Zebrik W'!$B$7:$L$992,11,0)),"",IF(VLOOKUP(B48,'Zebrik W'!$B$7:$L$992,11,0)=0,"--",VLOOKUP(B48,'Zebrik W'!$B$7:$L$992,11,0))) -> 
A49: 43 | B49: Zdenek Boruvka 86 | C49: 1986 | D49: M | E49: Jičín | F49: CZ/C2 | G49: 25194 | H49: 3 | M49: =IF(ISERROR(VLOOKUP(B49,'Zebrik W'!$B$7:$L$992,11,0)),"",IF(VLOOKUP(B49,'Zebrik W'!$B$7:$L$992,11,0)=0,"--",VLOOKUP(B49,'Zebrik W'!$B$7:$L$992,11,0))) -> 
A50: 44 | B50: Tereza Koubkova | C50: 1999 | D50: F | E50: Vysoké Mýto | F50: CZ/C2 | G50: 24879 | H50: 3 | I50: Junior v roce 2024 | M50: =IF(ISERROR(VLOOKUP(B50,'Zebrik W'!$B$7:$L$992,11,0)),"",IF(VLOOKUP(B50,'Zebrik W'!$B$7:$L$992,11,0)=0,"--",VLOOKUP(B50,'Zebrik W'!$B$7:$L$992,11,0))) -> WRV 2024
A51: 45 | B51: Michal Cechmanek | C51: 1978 | D51: M | E51: Kroměříž | F51: CZ/M | G51: 24718 | H51: 3 | M51: =IF(ISERROR(VLOOKUP(B51,'Zebrik W'!$B$7:$L$992,11,0)),"",IF(VLOOKUP(B51,'Zebrik W'!$B$7:$L$992,11,0)=0,"--",VLOOKUP(B51,'Zebrik W'!$B$7:$L$992,11,0))) -> 
A52: 46 | B52: David Sachl | C52: 1978 | D52: M | E52: Kralupy | F52: CZ/C1 | G52: 24671 | H52: 3 | M52: =IF(ISERROR(VLOOKUP(B52,'Zebrik W'!$B$7:$L$992,11,0)),"",IF(VLOOKUP(B52,'Zebrik W'!$B$7:$L$992,11,0)=0,"--",VLOOKUP(B52,'Zebrik W'!$B$7:$L$992,11,0))) -> 
A53: 47 | B53: Marek Blatak | C53: 1969 | D53: M | E53: Šumperk | F53: CZ/M | G53: 24498 | H53: 3 | M53: =IF(ISERROR(VLOOKUP(B53,'Zebrik W'!$B$7:$L$992,11,0)),"",IF(VLOOKUP(B53,'Zebrik W'!$B$7:$L$992,11,0)=0,"--",VLOOKUP(B53,'Zebrik W'!$B$7:$L$992,11,0))) -> 
A54: 48 | B54: Rene Hudak | C54: 1972 | D54: M | E54: Kunovice | F54: CZ/M | G54: 24375 | H54: 3 | M54: =IF(ISERROR(VLOOKUP(B54,'Zebrik W'!$B$7:$L$992,11,0)),"",IF(VLOOKUP(B54,'Zebrik W'!$B$7:$L$992,11,0)=0,"--",VLOOKUP(B54,'Zebrik W'!$B$7:$L$992,11,0))) -> 
A55: 49 | B55: Josef Novak | C55: 1981 | D55: M | E55: Kunovice | F55: CZ/M | G55: 24292 | H55: 3 | M55: =IF(ISERROR(VLOOKUP(B55,'Zebrik W'!$B$7:$L$992,11,0)),"",IF(VLOOKUP(B55,'Zebrik W'!$B$7:$L$992,11,0)=0,"--",VLOOKUP(B55,'Zebrik W'!$B$7:$L$992,11,0))) -> 
A56: 50 | B56: Tomas Hynek | C56: 2002 | D56: M | E56: Dvůr Králové | F56: CZ/C2 | G56: 24200 | H56: 3 | I56: Junior v roce 2024 | J56: Junior v roce 2025 | K56: RD 2024 | M56: =IF(ISERROR(VLOOKUP(B56,'Zebrik W'!$B$7:$L$992,11,0)),"",IF(VLOOKUP(B56,'Zebrik W'!$B$7:$L$992,11,0)=0,"--",VLOOKUP(B56,'Zebrik W'!$B$7:$L$992,11,0))) -> 
A57: 51 | B57: Martin Ficnar | C57: 1971 | D57: M | E57: Šumperk | F57: CZ/M | G57: 23982 | H57: 3 | M57: =IF(ISERROR(VLOOKUP(B57,'Zebrik W'!$B$7:$L$992,11,0)),"",IF(VLOOKUP(B57,'Zebrik W'!$B$7:$L$992,11,0)=0,"--",VLOOKUP(B57,'Zebrik W'!$B$7:$L$992,11,0))) -> 
A58: 52 | B58: Josef Busek | C58: 1967 | D58: M | E58: Hosín | F58: CZ/C1 | G58: 23885 | H58: 3 | M58: =IF(ISERROR(VLOOKUP(B58,'Zebrik W'!$B$7:$L$992,11,0)),"",IF(VLOOKUP(B58,'Zebrik W'!$B$7:$L$992,11,0)=0,"--",VLOOKUP(B58,'Zebrik W'!$B$7:$L$992,11,0))) -> 
A59: 53 | B59: Jiri Steiger | C59: 1969 | D59: M | E59: Olomouc | F59: CZ/M | G59: 23852 | H59: 3 | M59: =IF(ISERROR(VLOOKUP(B59,'Zebrik W'!$B$7:$L$992,11,0)),"",IF(VLOOKUP(B59,'Zebrik W'!$B$7:$L$992,11,0)=0,"--",VLOOKUP(B59,'Zebrik W'!$B$7:$L$992,11,0))) -> 
A60: 54 | B60: Jan Dersak 69 | C60: 1969 | D60: M | E60: Kralupy | F60: CZ/C1 | G60: 23655 | H60: 3 | M60: =IF(ISERROR(VLOOKUP(B60,'Zebrik W'!$B$7:$L$992,11,0)),"",IF(VLOOKUP(B60,'Zebrik W'!$B$7:$L$992,11,0)=0,"--",VLOOKUP(B60,'Zebrik W'!$B$7:$L$992,11,0))) -> 
A61: 55 | B61: Ivan Tvrdik | C61: 1997 | D61: M | E61: Letňany | F61: CZ/C1 | G61: 23617 | H61: 3 | M61: =IF(ISERROR(VLOOKUP(B61,'Zebrik W'!$B$7:$L$992,11,0)),"",IF(VLOOKUP(B61,'Zebrik W'!$B$7:$L$992,11,0)=0,"--",VLOOKUP(B61,'Zebrik W'!$B$7:$L$992,11,0))) -> 
A62: 56 | B62: Eduard Niko | C62: 1988 | D62: M | E62: Zbraslavice | F62: CZ/C1 | G62: 23380 | H62: 3 | M62: =IF(ISERROR(VLOOKUP(B62,'Zebrik W'!$B$7:$L$992,11,0)),"",IF(VLOOKUP(B62,'Zebrik W'!$B$7:$L$992,11,0)=0,"--",VLOOKUP(B62,'Zebrik W'!$B$7:$L$992,11,0))) -> 
A63: 57 | B63: Vratislav Sram | C63: 1966 | D63: M | E63: Broumov | F63: CZ/C2 | G63: 23293 | H63: 3 | M63: =IF(ISERROR(VLOOKUP(B63,'Zebrik W'!$B$7:$L$992,11,0)),"",IF(VLOOKUP(B63,'Zebrik W'!$B$7:$L$992,11,0)=0,"--",VLOOKUP(B63,'Zebrik W'!$B$7:$L$992,11,0))) -> 
A64: 58 | B64: Jana Treslova | C64: 1963 | D64: F | E64: Raná | F64: CZ/C2 | G64: 23223 | H64: 3 | M64: =IF(ISERROR(VLOOKUP(B64,'Zebrik W'!$B$7:$L$992,11,0)),"",IF(VLOOKUP(B64,'Zebrik W'!$B$7:$L$992,11,0)=0,"--",VLOOKUP(B64,'Zebrik W'!$B$7:$L$992,11,0))) -> WRV 2024
A65: 59 | B65: Martin Urner | C65: 1974 | D65: M | E65: Letňany | F65: CZ/C1 | G65: 23163 | H65: 3 | M65: =IF(ISERROR(VLOOKUP(B65,'Zebrik W'!$B$7:$L$992,11,0)),"",IF(VLOOKUP(B65,'Zebrik W'!$B$7:$L$992,11,0)=0,"--",VLOOKUP(B65,'Zebrik W'!$B$7:$L$992,11,0))) -> 
A66: 60 | B66: Jaroslav Buryan | C66: 1953 | D66: M | E66: Zábřeh | F66: CZ/M | G66: 23156 | H66: 3 | M66: =IF(ISERROR(VLOOKUP(B66,'Zebrik W'!$B$7:$L$992,11,0)),"",IF(VLOOKUP(B66,'Zebrik W'!$B$7:$L$992,11,0)=0,"--",VLOOKUP(B66,'Zebrik W'!$B$7:$L$992,11,0))) -> 
A67: 61 | B67: Radek Zima 78 | C67: 1978 | D67: M | E67: Hodkovice | F67: CZ/C2 | G67: 23081 | H67: 3 | M67: =IF(ISERROR(VLOOKUP(B67,'Zebrik W'!$B$7:$L$992,11,0)),"",IF(VLOOKUP(B67,'Zebrik W'!$B$7:$L$992,11,0)=0,"--",VLOOKUP(B67,'Zebrik W'!$B$7:$L$992,11,0))) -> 
A68: 62 | B68: Jan Horak | C68: 1971 | D68: M | E68: Zbraslavice | F68: CZ/C1 | G68: 23035 | H68: 3 | M68: =IF(ISERROR(VLOOKUP(B68,'Zebrik W'!$B$7:$L$992,11,0)),"",IF(VLOOKUP(B68,'Zebrik W'!$B$7:$L$992,11,0)=0,"--",VLOOKUP(B68,'Zebrik W'!$B$7:$L$992,11,0))) -> 
A69: 63 | B69: Zdenek Balcarek | C69: 1967 | D69: M | E69: Kroměříž | F69: CZ/M | G69: 23026 | H69: 3 | M69: =IF(ISERROR(VLOOKUP(B69,'Zebrik W'!$B$7:$L$992,11,0)),"",IF(VLOOKUP(B69,'Zebrik W'!$B$7:$L$992,11,0)=0,"--",VLOOKUP(B69,'Zebrik W'!$B$7:$L$992,11,0))) -> 
A70: 64 | B70: Vaclav Marel | C70: 1974 | D70: M | E70: Jaroměř | F70: CZ/C2 | G70: 22812 | H70: 3 | M70: =IF(ISERROR(VLOOKUP(B70,'Zebrik W'!$B$7:$L$992,11,0)),"",IF(VLOOKUP(B70,'Zebrik W'!$B$7:$L$992,11,0)=0,"--",VLOOKUP(B70,'Zebrik W'!$B$7:$L$992,11,0))) -> 
A71: =RANK(G71,G:G) -> 65 | B71: Jiri Stepanek | C71: 1956 | D71: M | E71: Moravská Třebová | F71: CZ/M | G71: 22805 | H71: 3 | M71: =IF(ISERROR(VLOOKUP(B71,'Zebrik W'!$B$7:$L$992,11,0)),"",IF(VLOOKUP(B71,'Zebrik W'!$B$7:$L$992,11,0)=0,"--",VLOOKUP(B71,'Zebrik W'!$B$7:$L$992,11,0))) -> 
A72: 66 | B72: Radim Sobek | C72: 1977 | D72: M | E72: Hranice | F72: CZ/M | G72: 22599 | H72: 3 | M72: =IF(ISERROR(VLOOKUP(B72,'Zebrik W'!$B$7:$L$992,11,0)),"",IF(VLOOKUP(B72,'Zebrik W'!$B$7:$L$992,11,0)=0,"--",VLOOKUP(B72,'Zebrik W'!$B$7:$L$992,11,0))) -> 
A73: 67 | B73: Jan Smaha | C73: 1958 | D73: M | E73: Česká Lípa | F73: CZ/C2 | G73: 22235 | H73: 3 | M73: =IF(ISERROR(VLOOKUP(B73,'Zebrik W'!$B$7:$L$992,11,0)),"",IF(VLOOKUP(B73,'Zebrik W'!$B$7:$L$992,11,0)=0,"--",VLOOKUP(B73,'Zebrik W'!$B$7:$L$992,11,0))) -> 
A74: 68 | B74: David Vrchota | C74: 1976 | D74: M | E74: Jaroměř | F74: CZ/C2 | G74: 21931 | H74: 3 | M74: =IF(ISERROR(VLOOKUP(B74,'Zebrik W'!$B$7:$L$992,11,0)),"",IF(VLOOKUP(B74,'Zebrik W'!$B$7:$L$992,11,0)=0,"--",VLOOKUP(B74,'Zebrik W'!$B$7:$L$992,11,0))) -> 
A75: 69 | B75: Jana Veprekova | C75: 1961 | D75: F | E75: Dvůr Králové | F75: CZ/C2 | G75: 21921 | H75: 3 | M75: =IF(ISERROR(VLOOKUP(B75,'Zebrik W'!$B$7:$L$992,11,0)),"",IF(VLOOKUP(B75,'Zebrik W'!$B$7:$L$992,11,0)=0,"--",VLOOKUP(B75,'Zebrik W'!$B$7:$L$992,11,0))) -> --
A76: 70 | B76: Jakub Malik | C76: 1999 | D76: M | E76: Letňany | F76: CZ/C1 | G76: 21690 | H76: 3 | I76: Junior v roce 2024 | M76: =IF(ISERROR(VLOOKUP(B76,'Zebrik W'!$B$7:$L$992,11,0)),"",IF(VLOOKUP(B76,'Zebrik W'!$B$7:$L$992,11,0)=0,"--",VLOOKUP(B76,'Zebrik W'!$B$7:$L$992,11,0))) -> 
A77: 71 | B77: Michaela Krizova | C77: 2001 | D77: F | E77: Přibyslav | F77: CZ/C2 | G77: 21613 | H77: 3 | I77: Junior v roce 2024 | J77: Junior v roce 2025 | M77: =IF(ISERROR(VLOOKUP(B77,'Zebrik W'!$B$7:$L$992,11,0)),"",IF(VLOOKUP(B77,'Zebrik W'!$B$7:$L$992,11,0)=0,"--",VLOOKUP(B77,'Zebrik W'!$B$7:$L$992,11,0))) -> WRV 2024
A78: 72 | B78: Tomas Kulhavy | C78: 2001 | D78: M | E78: Liberec | F78: CZ/C2 | G78: 21582 | H78: 3 | I78: Junior v roce 2024 | J78: Junior v roce 2025 | M78: =IF(ISERROR(VLOOKUP(B78,'Zebrik W'!$B$7:$L$992,11,0)),"",IF(VLOOKUP(B78,'Zebrik W'!$B$7:$L$992,11,0)=0,"--",VLOOKUP(B78,'Zebrik W'!$B$7:$L$992,11,0))) -> 
A79: 73 | B79: Lukas Maly | C79: 1998 | D79: M | E79: Vysoké Mýto | F79: CZ/C2 | G79: 21580 | H79: 3 | M79: =IF(ISERROR(VLOOKUP(B79,'Zebrik W'!$B$7:$L$992,11,0)),"",IF(VLOOKUP(B79,'Zebrik W'!$B$7:$L$992,11,0)=0,"--",VLOOKUP(B79,'Zebrik W'!$B$7:$L$992,11,0))) -> 
A80: 74 | B80: Milan Svoboda 80 | C80: 1980 | D80: M | E80: Havlíčkův Brod | F80: CZ/C2 | G80: 21578 | H80: 3 | M80: =IF(ISERROR(VLOOKUP(B80,'Zebrik W'!$B$7:$L$992,11,0)),"",IF(VLOOKUP(B80,'Zebrik W'!$B$7:$L$992,11,0)=0,"--",VLOOKUP(B80,'Zebrik W'!$B$7:$L$992,11,0))) -> 
A81: 75 | B81: Petr Havelka | C81: 1997 | D81: M | E81: Zbraslavice | F81: CZ/C1 | G81: 21557 | H81: 3 | M81: =IF(ISERROR(VLOOKUP(B81,'Zebrik W'!$B$7:$L$992,11,0)),"",IF(VLOOKUP(B81,'Zebrik W'!$B$7:$L$992,11,0)=0,"--",VLOOKUP(B81,'Zebrik W'!$B$7:$L$992,11,0))) -> 
A82: 76 | B82: Jan Simon | C82: 1970 | D82: M | E82: Kralupy | F82: CZ/C1 | G82: 21534 | H82: 3 | M82: =IF(ISERROR(VLOOKUP(B82,'Zebrik W'!$B$7:$L$992,11,0)),"",IF(VLOOKUP(B82,'Zebrik W'!$B$7:$L$992,11,0)=0,"--",VLOOKUP(B82,'Zebrik W'!$B$7:$L$992,11,0))) -> 
A83: 77 | B83: Michal Cupak | C83: 1991 | D83: M | E83: Medlánky | F83: CZ/M | G83: 21458 | H83: 3 | M83: =IF(ISERROR(VLOOKUP(B83,'Zebrik W'!$B$7:$L$992,11,0)),"",IF(VLOOKUP(B83,'Zebrik W'!$B$7:$L$992,11,0)=0,"--",VLOOKUP(B83,'Zebrik W'!$B$7:$L$992,11,0))) -> 
A84: 78 | B84: Lukas Hynek | C84: 1979 | D84: M | E84: Dvůr Králové | F84: CZ/C2 | G84: 21403 | H84: 3 | M84: =IF(ISERROR(VLOOKUP(B84,'Zebrik W'!$B$7:$L$992,11,0)),"",IF(VLOOKUP(B84,'Zebrik W'!$B$7:$L$992,11,0)=0,"--",VLOOKUP(B84,'Zebrik W'!$B$7:$L$992,11,0))) -> 
A85: 79 | B85: Zdenek Boruvka 54 | C85: 1954 | D85: M | E85: Jičín | F85: CZ/C2 | G85: 20983 | H85: 3 | M85: =IF(ISERROR(VLOOKUP(B85,'Zebrik W'!$B$7:$L$992,11,0)),"",IF(VLOOKUP(B85,'Zebrik W'!$B$7:$L$992,11,0)=0,"--",VLOOKUP(B85,'Zebrik W'!$B$7:$L$992,11,0))) -> 
A86: 80 | B86: Jan Pazour | C86: 1979 | D86: M | E86: Dvůr Králové | F86: CZ/C2 | G86: 20951 | H86: 3 | M86: =IF(ISERROR(VLOOKUP(B86,'Zebrik W'!$B$7:$L$992,11,0)),"",IF(VLOOKUP(B86,'Zebrik W'!$B$7:$L$992,11,0)=0,"--",VLOOKUP(B86,'Zebrik W'!$B$7:$L$992,11,0))) -> 
A87: 81 | B87: Jiri Prochazka | C87: 1971 | D87: M | E87: Toužim | F87: CZ/C1 | G87: 20881 | H87: 3 | M87: =IF(ISERROR(VLOOKUP(B87,'Zebrik W'!$B$7:$L$992,11,0)),"",IF(VLOOKUP(B87,'Zebrik W'!$B$7:$L$992,11,0)=0,"--",VLOOKUP(B87,'Zebrik W'!$B$7:$L$992,11,0))) -> 
A88: 82 | B88: Martin Kriz | C88: 1968 | D88: M | E88: Přibyslav | F88: CZ/C2 | G88: 20840 | H88: 3 | M88: =IF(ISERROR(VLOOKUP(B88,'Zebrik W'!$B$7:$L$992,11,0)),"",IF(VLOOKUP(B88,'Zebrik W'!$B$7:$L$992,11,0)=0,"--",VLOOKUP(B88,'Zebrik W'!$B$7:$L$992,11,0))) -> 
A89: 83 | B89: Jan Beran | C89: 1999 | D89: M | E89: Kladno | F89: CZ/C1 | G89: 20813 | H89: 3 | I89: Junior v roce 2024 | M89: =IF(ISERROR(VLOOKUP(B89,'Zebrik W'!$B$7:$L$992,11,0)),"",IF(VLOOKUP(B89,'Zebrik W'!$B$7:$L$992,11,0)=0,"--",VLOOKUP(B89,'Zebrik W'!$B$7:$L$992,11,0))) -> 
A90: 84 | B90: Petra Piskata | C90: 1989 | D90: F | E90: Luhačovice | F90: CZ/M | G90: 20606 | H90: 3 | M90: =IF(ISERROR(VLOOKUP(B90,'Zebrik W'!$B$7:$L$992,11,0)),"",IF(VLOOKUP(B90,'Zebrik W'!$B$7:$L$992,11,0)=0,"--",VLOOKUP(B90,'Zebrik W'!$B$7:$L$992,11,0))) -> WRV 2024
A91: 85 | B91: Ondrej Teichman | C91: 1984 | D91: M | E91: Dvůr Králové | F91: CZ/C2 | G91: 20385 | H91: 3 | M91: =IF(ISERROR(VLOOKUP(B91,'Zebrik W'!$B$7:$L$992,11,0)),"",IF(VLOOKUP(B91,'Zebrik W'!$B$7:$L$992,11,0)=0,"--",VLOOKUP(B91,'Zebrik W'!$B$7:$L$992,11,0))) -> 
A92: 86 | B92: Roman Mracek | C92: 1980 | D92: M | E92: Letkov | F92: CZ/C1 | G92: 20327 | H92: 2 | M92: =IF(ISERROR(VLOOKUP(B92,'Zebrik W'!$B$7:$L$992,11,0)),"",IF(VLOOKUP(B92,'Zebrik W'!$B$7:$L$992,11,0)=0,"--",VLOOKUP(B92,'Zebrik W'!$B$7:$L$992,11,0))) -> 
A93: 87 | B93: Martin Stepanek | C93: 1987 | D93: M | E93: Moravská Třebová | F93: CZ/M | G93: 20317 | H93: 3 | M93: =IF(ISERROR(VLOOKUP(B93,'Zebrik W'!$B$7:$L$992,11,0)),"",IF(VLOOKUP(B93,'Zebrik W'!$B$7:$L$992,11,0)=0,"--",VLOOKUP(B93,'Zebrik W'!$B$7:$L$992,11,0))) -> 
A94: 88 | B94: Zdenek Schenk | C94: 1972 | D94: M | E94: Hranice | F94: CZ/M | G94: 20292 | H94: 3 | M94: =IF(ISERROR(VLOOKUP(B94,'Zebrik W'!$B$7:$L$992,11,0)),"",IF(VLOOKUP(B94,'Zebrik W'!$B$7:$L$992,11,0)=0,"--",VLOOKUP(B94,'Zebrik W'!$B$7:$L$992,11,0))) -> 
A95: 89 | B95: Marek Kornec | C95: 1957 | D95: M | E95: Dvůr Králové | F95: CZ/C2 | G95: 20237 | H95: 3 | M95: =IF(ISERROR(VLOOKUP(B95,'Zebrik W'!$B$7:$L$992,11,0)),"",IF(VLOOKUP(B95,'Zebrik W'!$B$7:$L$992,11,0)=0,"--",VLOOKUP(B95,'Zebrik W'!$B$7:$L$992,11,0))) -> 
A96: 90 | B96: Rostislav Stryk | C96: 1972 | D96: M | E96: Frýdlant | F96: CZ/M | G96: 20179 | H96: 3 | M96: =IF(ISERROR(VLOOKUP(B96,'Zebrik W'!$B$7:$L$992,11,0)),"",IF(VLOOKUP(B96,'Zebrik W'!$B$7:$L$992,11,0)=0,"--",VLOOKUP(B96,'Zebrik W'!$B$7:$L$992,11,0))) -> 
A97: 91 | B97: Jan Zapletal | C97: 1997 | D97: M | E97: Břeclav | F97: CZ/M | G97: 20146 | H97: 3 | M97: =IF(ISERROR(VLOOKUP(B97,'Zebrik W'!$B$7:$L$992,11,0)),"",IF(VLOOKUP(B97,'Zebrik W'!$B$7:$L$992,11,0)=0,"--",VLOOKUP(B97,'Zebrik W'!$B$7:$L$992,11,0))) -> 
A98: 92 | B98: Marek Pechanec | C98: 1970 | D98: M | E98: Luhačovice | F98: CZ/M | G98: 19976 | H98: 3 | M98: =IF(ISERROR(VLOOKUP(B98,'Zebrik W'!$B$7:$L$992,11,0)),"",IF(VLOOKUP(B98,'Zebrik W'!$B$7:$L$992,11,0)=0,"--",VLOOKUP(B98,'Zebrik W'!$B$7:$L$992,11,0))) -> 
A99: 93 | B99: Jan Sponer | C99: 1988 | D99: M | E99: Medlánky | F99: CZ/M | G99: 19885 | H99: 3 | M99: =IF(ISERROR(VLOOKUP(B99,'Zebrik W'!$B$7:$L$992,11,0)),"",IF(VLOOKUP(B99,'Zebrik W'!$B$7:$L$992,11,0)=0,"--",VLOOKUP(B99,'Zebrik W'!$B$7:$L$992,11,0))) -> 
A100: 94 | B100: Martin Urban | C100: 1971 | D100: M | E100: Frýdlant | F100: CZ/M | G100: 19826 | H100: 3 | M100: =IF(ISERROR(VLOOKUP(B100,'Zebrik W'!$B$7:$L$992,11,0)),"",IF(VLOOKUP(B100,'Zebrik W'!$B$7:$L$992,11,0)=0,"--",VLOOKUP(B100,'Zebrik W'!$B$7:$L$992,11,0))) -> 
A101: 95 | B101: Vojtech Hajek | C101: 1987 | D101: M | E101: Mladá Boleslav | F101: CZ/C1 | G101: 19719 | H101: 3 | M101: =IF(ISERROR(VLOOKUP(B101,'Zebrik W'!$B$7:$L$992,11,0)),"",IF(VLOOKUP(B101,'Zebrik W'!$B$7:$L$992,11,0)=0,"--",VLOOKUP(B101,'Zebrik W'!$B$7:$L$992,11,0))) -> 
A102: 96 | B102: Slavomir Piskaty 84 | C102: 1984 | D102: M | E102: Kunovice | F102: CZ/M | G102: 19670 | H102: 3 | M102: =IF(ISERROR(VLOOKUP(B102,'Zebrik W'!$B$7:$L$992,11,0)),"",IF(VLOOKUP(B102,'Zebrik W'!$B$7:$L$992,11,0)=0,"--",VLOOKUP(B102,'Zebrik W'!$B$7:$L$992,11,0))) -> 
A103: 97 | B103: Stepan Filakovsky | C103: 2005 | D103: M | E103: Medlánky | F103: CZ/M | G103: 19653 | H103: 3 | I103: Junior v roce 2024 | J103: Junior v roce 2025 | M103: =IF(ISERROR(VLOOKUP(B103,'Zebrik W'!$B$7:$L$992,11,0)),"",IF(VLOOKUP(B103,'Zebrik W'!$B$7:$L$992,11,0)=0,"--",VLOOKUP(B103,'Zebrik W'!$B$7:$L$992,11,0))) -> 
A104: 98 | B104: David Tejnora | C104: 1982 | D104: M | E104: Jaroměř | F104: CZ/C2 | G104: 19643 | H104: 3 | M104: =IF(ISERROR(VLOOKUP(B104,'Zebrik W'!$B$7:$L$992,11,0)),"",IF(VLOOKUP(B104,'Zebrik W'!$B$7:$L$992,11,0)=0,"--",VLOOKUP(B104,'Zebrik W'!$B$7:$L$992,11,0))) -> 
A105: 99 | B105: Stepan Obrovsky | C105: 1990 | D105: M | E105: Frýdlant | F105: CZ/M | G105: 19623 | H105: 3 | M105: =IF(ISERROR(VLOOKUP(B105,'Zebrik W'!$B$7:$L$992,11,0)),"",IF(VLOOKUP(B105,'Zebrik W'!$B$7:$L$992,11,0)=0,"--",VLOOKUP(B105,'Zebrik W'!$B$7:$L$992,11,0))) -> 
A106: 100 | B106: Pavel Rericha | C106: 1967 | D106: M | E106: Moravská Třebová | F106: CZ/M | G106: 19235 | H106: 3 | M106: =IF(ISERROR(VLOOKUP(B106,'Zebrik W'!$B$7:$L$992,11,0)),"",IF(VLOOKUP(B106,'Zebrik W'!$B$7:$L$992,11,0)=0,"--",VLOOKUP(B106,'Zebrik W'!$B$7:$L$992,11,0))) -> 
A107: 101 | B107: Martin Svarc | C107: 1981 | D107: M | E107: Olomouc | F107: CZ/M | G107: 19126 | H107: 3 | M107: =IF(ISERROR(VLOOKUP(B107,'Zebrik W'!$B$7:$L$992,11,0)),"",IF(VLOOKUP(B107,'Zebrik W'!$B$7:$L$992,11,0)=0,"--",VLOOKUP(B107,'Zebrik W'!$B$7:$L$992,11,0))) -> 
A108: 102 | B108: Jiri Koudela | C108: 1974 | D108: M | E108: Vyškov | F108: CZ/M | G108: 19033 | H108: 3 | I108: =IF(C108="(prázdné)","",IF(($I$4-C108)>25,"","Junior v roce "&$I$4)) ->  | J108: =IF(C108="(prázdné)","",IF(($J$4-C108)>25,"","Junior v roce "&$J$4)) ->  | M108: =IF(ISERROR(VLOOKUP(B108,'Zebrik W'!$B$7:$L$992,11,0)),"",IF(VLOOKUP(B108,'Zebrik W'!$B$7:$L$992,11,0)=0,"--",VLOOKUP(B108,'Zebrik W'!$B$7:$L$992,11,0))) -> 
A109: 103 | B109: Tomas Ditrt | C109: 1969 | D109: M | E109: Podhořany | F109: CZ/C2 | G109: 18868 | H109: 3 | M109: =IF(ISERROR(VLOOKUP(B109,'Zebrik W'!$B$7:$L$992,11,0)),"",IF(VLOOKUP(B109,'Zebrik W'!$B$7:$L$992,11,0)=0,"--",VLOOKUP(B109,'Zebrik W'!$B$7:$L$992,11,0))) -> 
A110: 104 | B110: Ladislav Jozsa | C110: 1981 | D110: M | E110: Medlánky | F110: CZ/M | G110: 18777 | H110: 3 | M110: =IF(ISERROR(VLOOKUP(B110,'Zebrik W'!$B$7:$L$992,11,0)),"",IF(VLOOKUP(B110,'Zebrik W'!$B$7:$L$992,11,0)=0,"--",VLOOKUP(B110,'Zebrik W'!$B$7:$L$992,11,0))) -> 
A111: 105 | B111: Petr Babak | C111: 1973 | D111: M | E111: Hořice | F111: CZ/C2 | G111: 18673 | H111: 3 | M111: =IF(ISERROR(VLOOKUP(B111,'Zebrik W'!$B$7:$L$992,11,0)),"",IF(VLOOKUP(B111,'Zebrik W'!$B$7:$L$992,11,0)=0,"--",VLOOKUP(B111,'Zebrik W'!$B$7:$L$992,11,0))) -> 
A112: 106 | B112: Petr Lonsky | C112: 1965 | D112: M | E112: Toužim | F112: CZ/C1 | G112: 18596 | H112: 3 | M112: =IF(ISERROR(VLOOKUP(B112,'Zebrik W'!$B$7:$L$992,11,0)),"",IF(VLOOKUP(B112,'Zebrik W'!$B$7:$L$992,11,0)=0,"--",VLOOKUP(B112,'Zebrik W'!$B$7:$L$992,11,0))) -> 
A113: 107 | B113: Miloslav Hulmak | C113: 1963 | D113: M | E113: Hosín | F113: CZ/C1 | G113: 18446 | H113: 3 | M113: =IF(ISERROR(VLOOKUP(B113,'Zebrik W'!$B$7:$L$992,11,0)),"",IF(VLOOKUP(B113,'Zebrik W'!$B$7:$L$992,11,0)=0,"--",VLOOKUP(B113,'Zebrik W'!$B$7:$L$992,11,0))) -> 
A114: 108 | B114: Jaromir Pauer | C114: 1974 | D114: M | E114: Hosín | F114: CZ/C1 | G114: 18432 | H114: 3 | M114: =IF(ISERROR(VLOOKUP(B114,'Zebrik W'!$B$7:$L$992,11,0)),"",IF(VLOOKUP(B114,'Zebrik W'!$B$7:$L$992,11,0)=0,"--",VLOOKUP(B114,'Zebrik W'!$B$7:$L$992,11,0))) -> 
A115: 109 | B115: Petr Rozhon | C115: 1972 | D115: M | E115: Hosín | F115: CZ/C1 | G115: 18256 | H115: 3 | M115: =IF(ISERROR(VLOOKUP(B115,'Zebrik W'!$B$7:$L$992,11,0)),"",IF(VLOOKUP(B115,'Zebrik W'!$B$7:$L$992,11,0)=0,"--",VLOOKUP(B115,'Zebrik W'!$B$7:$L$992,11,0))) -> 
A116: 110 | B116: Wolfgang Sluka | C116: 1942 | D116: M | E116: Liberec | F116: CZ/C2 | G116: 18029 | H116: 3 | M116: =IF(ISERROR(VLOOKUP(B116,'Zebrik W'!$B$7:$L$992,11,0)),"",IF(VLOOKUP(B116,'Zebrik W'!$B$7:$L$992,11,0)=0,"--",VLOOKUP(B116,'Zebrik W'!$B$7:$L$992,11,0))) -> 
A117: 111 | B117: Pavel Liska | C117: 1965 | D117: M | E117: Roudnice | F117: CZ/C2 | G117: 17970 | H117: 3 | M117: =IF(ISERROR(VLOOKUP(B117,'Zebrik W'!$B$7:$L$992,11,0)),"",IF(VLOOKUP(B117,'Zebrik W'!$B$7:$L$992,11,0)=0,"--",VLOOKUP(B117,'Zebrik W'!$B$7:$L$992,11,0))) -> 
A118: 112 | B118: Miroslav Koci | C118: 1961 | D118: M | E118: Žamberk | F118: CZ/C2 | G118: 17946 | H118: 3 | M118: =IF(ISERROR(VLOOKUP(B118,'Zebrik W'!$B$7:$L$992,11,0)),"",IF(VLOOKUP(B118,'Zebrik W'!$B$7:$L$992,11,0)=0,"--",VLOOKUP(B118,'Zebrik W'!$B$7:$L$992,11,0))) -> 
A119: 113 | B119: Jan Florian | C119: 1992 | D119: M | E119: Zbraslavice | F119: CZ/C1 | G119: 17849 | H119: 3 | M119: =IF(ISERROR(VLOOKUP(B119,'Zebrik W'!$B$7:$L$992,11,0)),"",IF(VLOOKUP(B119,'Zebrik W'!$B$7:$L$992,11,0)=0,"--",VLOOKUP(B119,'Zebrik W'!$B$7:$L$992,11,0))) -> 
A120: 114 | B120: Petr Havrlant | C120: 1965 | D120: M | E120: Šumperk | F120: CZ/M | G120: 17844 | H120: 3 | M120: =IF(ISERROR(VLOOKUP(B120,'Zebrik W'!$B$7:$L$992,11,0)),"",IF(VLOOKUP(B120,'Zebrik W'!$B$7:$L$992,11,0)=0,"--",VLOOKUP(B120,'Zebrik W'!$B$7:$L$992,11,0))) -> 
A121: 115 | B121: Jan Hruska | C121: 1988 | D121: M | E121: Tábor | F121: CZ/C1 | G121: 17779 | H121: 3 | M121: =IF(ISERROR(VLOOKUP(B121,'Zebrik W'!$B$7:$L$992,11,0)),"",IF(VLOOKUP(B121,'Zebrik W'!$B$7:$L$992,11,0)=0,"--",VLOOKUP(B121,'Zebrik W'!$B$7:$L$992,11,0))) -> 
A122: 116 | B122: Ladislav Prokes | C122: 1954 | D122: M | E122: Vrchlabí | F122: CZ/C2 | G122: 17771 | H122: 3 | M122: =IF(ISERROR(VLOOKUP(B122,'Zebrik W'!$B$7:$L$992,11,0)),"",IF(VLOOKUP(B122,'Zebrik W'!$B$7:$L$992,11,0)=0,"--",VLOOKUP(B122,'Zebrik W'!$B$7:$L$992,11,0))) -> 
A123: 117 | B123: David Darnady | C123: 1987 | D123: M | E123: Zbraslavice | F123: CZ/C1 | G123: 17528 | H123: 2 | M123: =IF(ISERROR(VLOOKUP(B123,'Zebrik W'!$B$7:$L$992,11,0)),"",IF(VLOOKUP(B123,'Zebrik W'!$B$7:$L$992,11,0)=0,"--",VLOOKUP(B123,'Zebrik W'!$B$7:$L$992,11,0))) -> 
A124: 118 | B124: Lumir Motyka | C124: 1955 | D124: M | E124: Frýdlant | F124: CZ/M | G124: 17461 | H124: 3 | M124: =IF(ISERROR(VLOOKUP(B124,'Zebrik W'!$B$7:$L$992,11,0)),"",IF(VLOOKUP(B124,'Zebrik W'!$B$7:$L$992,11,0)=0,"--",VLOOKUP(B124,'Zebrik W'!$B$7:$L$992,11,0))) -> 
A125: 119 | B125: Jan Viskot | C125: 1995 | D125: M | E125: Břeclav | F125: CZ/M | G125: 17395 | H125: 2 | M125: =IF(ISERROR(VLOOKUP(B125,'Zebrik W'!$B$7:$L$992,11,0)),"",IF(VLOOKUP(B125,'Zebrik W'!$B$7:$L$992,11,0)=0,"--",VLOOKUP(B125,'Zebrik W'!$B$7:$L$992,11,0))) -> 
A126: 120 | B126: Petr Kolomaznik | C126: 1981 | D126: M | E126: Šumperk | F126: CZ/M | G126: 17322 | H126: 3 | M126: =IF(ISERROR(VLOOKUP(B126,'Zebrik W'!$B$7:$L$992,11,0)),"",IF(VLOOKUP(B126,'Zebrik W'!$B$7:$L$992,11,0)=0,"--",VLOOKUP(B126,'Zebrik W'!$B$7:$L$992,11,0))) -> 
A127: 121 | B127: Martin Cicvarek | C127: 1966 | D127: M | E127: Liberec | F127: CZ/C2 | G127: 17239 | H127: 3 | M127: =IF(ISERROR(VLOOKUP(B127,'Zebrik W'!$B$7:$L$992,11,0)),"",IF(VLOOKUP(B127,'Zebrik W'!$B$7:$L$992,11,0)=0,"--",VLOOKUP(B127,'Zebrik W'!$B$7:$L$992,11,0))) -> 
A128: 122 | B128: Pavel Koudelka | C128: 1973 | D128: M | E128: Křižanov | F128: CZ/M | G128: 17072 | H128: 3 | M128: =IF(ISERROR(VLOOKUP(B128,'Zebrik W'!$B$7:$L$992,11,0)),"",IF(VLOOKUP(B128,'Zebrik W'!$B$7:$L$992,11,0)=0,"--",VLOOKUP(B128,'Zebrik W'!$B$7:$L$992,11,0))) -> 
A129: 123 | B129: Roman Jokl | C129: 1979 | D129: M | E129: Letkov | F129: CZ/C1 | G129: 17063 | H129: 2 | M129: =IF(ISERROR(VLOOKUP(B129,'Zebrik W'!$B$7:$L$992,11,0)),"",IF(VLOOKUP(B129,'Zebrik W'!$B$7:$L$992,11,0)=0,"--",VLOOKUP(B129,'Zebrik W'!$B$7:$L$992,11,0))) -> 
A130: 124 | B130: Petr Masik | C130: 2001 | D130: M | E130: Zábřeh | F130: CZ/M | G130: 17038 | H130: 3 | I130: Junior v roce 2024 | J130: Junior v roce 2025 | M130: =IF(ISERROR(VLOOKUP(B130,'Zebrik W'!$B$7:$L$992,11,0)),"",IF(VLOOKUP(B130,'Zebrik W'!$B$7:$L$992,11,0)=0,"--",VLOOKUP(B130,'Zebrik W'!$B$7:$L$992,11,0))) -> 
A131: 125 | B131: Jaroslav Sima | C131: 1972 | D131: M | E131: Chomutov | F131: CZ/C2 | G131: 16966 | H131: 3 | M131: =IF(ISERROR(VLOOKUP(B131,'Zebrik W'!$B$7:$L$992,11,0)),"",IF(VLOOKUP(B131,'Zebrik W'!$B$7:$L$992,11,0)=0,"--",VLOOKUP(B131,'Zebrik W'!$B$7:$L$992,11,0))) -> 
A132: 126 | B132: Petr Hofman | C132: 1984 | D132: M | E132: Letňany | F132: CZ/C1 | G132: 16942 | H132: 2 | M132: =IF(ISERROR(VLOOKUP(B132,'Zebrik W'!$B$7:$L$992,11,0)),"",IF(VLOOKUP(B132,'Zebrik W'!$B$7:$L$992,11,0)=0,"--",VLOOKUP(B132,'Zebrik W'!$B$7:$L$992,11,0))) -> 
A133: 127 | B133: Karel Horalek | C133: 1976 | D133: M | E133: Olomouc | F133: CZ/M | G133: 16758 | H133: 3 | M133: =IF(ISERROR(VLOOKUP(B133,'Zebrik W'!$B$7:$L$992,11,0)),"",IF(VLOOKUP(B133,'Zebrik W'!$B$7:$L$992,11,0)=0,"--",VLOOKUP(B133,'Zebrik W'!$B$7:$L$992,11,0))) -> 
A134: 128 | B134: Tomas Prikryl | C134: 1973 | D134: M | E134: Vyškov | F134: CZ/M | G134: 16602 | H134: 3 | M134: =IF(ISERROR(VLOOKUP(B134,'Zebrik W'!$B$7:$L$992,11,0)),"",IF(VLOOKUP(B134,'Zebrik W'!$B$7:$L$992,11,0)=0,"--",VLOOKUP(B134,'Zebrik W'!$B$7:$L$992,11,0))) -> 
A135: =RANK(G135,G:G) -> 129 | B135: Jan Kantor | C135: 1983 | D135: M | E135: Letňany | F135: CZ/C1 | G135: 16577 | H135: 2 | M135: =IF(ISERROR(VLOOKUP(B135,'Zebrik W'!$B$7:$L$992,11,0)),"",IF(VLOOKUP(B135,'Zebrik W'!$B$7:$L$992,11,0)=0,"--",VLOOKUP(B135,'Zebrik W'!$B$7:$L$992,11,0))) -> 
A136: 130 | B136: Pavlina Horackova | C136: 1965 | D136: F | E136: Šumperk | F136: CZ/M | G136: 16535 | H136: 3 | M136: =IF(ISERROR(VLOOKUP(B136,'Zebrik W'!$B$7:$L$992,11,0)),"",IF(VLOOKUP(B136,'Zebrik W'!$B$7:$L$992,11,0)=0,"--",VLOOKUP(B136,'Zebrik W'!$B$7:$L$992,11,0))) -> --
A137: 131 | B137: Jan Zezula | C137: 1979 | D137: M | E137: Letňany | F137: CZ/C1 | G137: 16442 | H137: 3 | M137: =IF(ISERROR(VLOOKUP(B137,'Zebrik W'!$B$7:$L$992,11,0)),"",IF(VLOOKUP(B137,'Zebrik W'!$B$7:$L$992,11,0)=0,"--",VLOOKUP(B137,'Zebrik W'!$B$7:$L$992,11,0))) -> 
A138: 132 | B138: David Zapletal | C138: 1970 | D138: M | E138: Mladá Boleslav | F138: CZ/C1 | G138: 16422 | H138: 3 | M138: =IF(ISERROR(VLOOKUP(B138,'Zebrik W'!$B$7:$L$992,11,0)),"",IF(VLOOKUP(B138,'Zebrik W'!$B$7:$L$992,11,0)=0,"--",VLOOKUP(B138,'Zebrik W'!$B$7:$L$992,11,0))) -> 
A139: 133 | B139: Milan Meisner | C139: 1961 | D139: M | E139: Dvůr Králové | F139: CZ/C2 | G139: 16396 | H139: 3 | M139: =IF(ISERROR(VLOOKUP(B139,'Zebrik W'!$B$7:$L$992,11,0)),"",IF(VLOOKUP(B139,'Zebrik W'!$B$7:$L$992,11,0)=0,"--",VLOOKUP(B139,'Zebrik W'!$B$7:$L$992,11,0))) -> 
A140: 134 | B140: Lukas Plocek | C140: 1990 | D140: M | E140: Mladá Boleslav | F140: CZ/C1 | G140: 16353 | H140: 3 | M140: =IF(ISERROR(VLOOKUP(B140,'Zebrik W'!$B$7:$L$992,11,0)),"",IF(VLOOKUP(B140,'Zebrik W'!$B$7:$L$992,11,0)=0,"--",VLOOKUP(B140,'Zebrik W'!$B$7:$L$992,11,0))) -> 
A141: 135 | B141: Albrecht Beat | C141: 1953 | D141: M | E141: Šumperk | F141: CZ/M | G141: 16349 | H141: 3 | M141: =IF(ISERROR(VLOOKUP(B141,'Zebrik W'!$B$7:$L$992,11,0)),"",IF(VLOOKUP(B141,'Zebrik W'!$B$7:$L$992,11,0)=0,"--",VLOOKUP(B141,'Zebrik W'!$B$7:$L$992,11,0))) -> 
A142: 136 | B142: Petr Stepanek | C142: 1989 | D142: M | E142: Moravská Třebová | F142: CZ/M | G142: 16337 | H142: 2 | M142: =IF(ISERROR(VLOOKUP(B142,'Zebrik W'!$B$7:$L$992,11,0)),"",IF(VLOOKUP(B142,'Zebrik W'!$B$7:$L$992,11,0)=0,"--",VLOOKUP(B142,'Zebrik W'!$B$7:$L$992,11,0))) -> 
A143: 137 | B143: Oldrich Bartonik | C143: 1961 | D143: M | E143: Luhačovice | F143: CZ/M | G143: 16226 | H143: 3 | M143: =IF(ISERROR(VLOOKUP(B143,'Zebrik W'!$B$7:$L$992,11,0)),"",IF(VLOOKUP(B143,'Zebrik W'!$B$7:$L$992,11,0)=0,"--",VLOOKUP(B143,'Zebrik W'!$B$7:$L$992,11,0))) -> 
A144: 138 | B144: Slavomir Valecko | C144: 1960 | D144: M | E144: Hranice | F144: CZ/M | G144: 16213 | H144: 3 | M144: =IF(ISERROR(VLOOKUP(B144,'Zebrik W'!$B$7:$L$992,11,0)),"",IF(VLOOKUP(B144,'Zebrik W'!$B$7:$L$992,11,0)=0,"--",VLOOKUP(B144,'Zebrik W'!$B$7:$L$992,11,0))) -> 
A145: 139 | B145: Jan Hybner | C145: 1977 | D145: M | E145: Liberec | F145: CZ/C2 | G145: 16187 | H145: 3 | M145: =IF(ISERROR(VLOOKUP(B145,'Zebrik W'!$B$7:$L$992,11,0)),"",IF(VLOOKUP(B145,'Zebrik W'!$B$7:$L$992,11,0)=0,"--",VLOOKUP(B145,'Zebrik W'!$B$7:$L$992,11,0))) -> 
A146: 140 | B146: Jan Mareth | C146: 1979 | D146: M | E146: Frýdlant | F146: CZ/M | G146: 16163 | H146: 2 | M146: =IF(ISERROR(VLOOKUP(B146,'Zebrik W'!$B$7:$L$992,11,0)),"",IF(VLOOKUP(B146,'Zebrik W'!$B$7:$L$992,11,0)=0,"--",VLOOKUP(B146,'Zebrik W'!$B$7:$L$992,11,0))) -> 
A147: 141 | B147: Jan Smekal | C147: 1976 | D147: M | E147: Zbraslavice | F147: CZ/C1 | G147: 16111 | H147: 3 | M147: =IF(ISERROR(VLOOKUP(B147,'Zebrik W'!$B$7:$L$992,11,0)),"",IF(VLOOKUP(B147,'Zebrik W'!$B$7:$L$992,11,0)=0,"--",VLOOKUP(B147,'Zebrik W'!$B$7:$L$992,11,0))) -> 
A148: 142 | B148: Martin Zahalka | C148: 1987 | D148: M | E148: Staňkov | F148: CZ/C1 | G148: 15900 | H148: 2 | M148: =IF(ISERROR(VLOOKUP(B148,'Zebrik W'!$B$7:$L$992,11,0)),"",IF(VLOOKUP(B148,'Zebrik W'!$B$7:$L$992,11,0)=0,"--",VLOOKUP(B148,'Zebrik W'!$B$7:$L$992,11,0))) -> 
A149: 143 | B149: Radim Hahn | C149: 1972 | D149: M | E149: Zábřeh | F149: CZ/M | G149: 15795 | H149: 3 | M149: =IF(ISERROR(VLOOKUP(B149,'Zebrik W'!$B$7:$L$992,11,0)),"",IF(VLOOKUP(B149,'Zebrik W'!$B$7:$L$992,11,0)=0,"--",VLOOKUP(B149,'Zebrik W'!$B$7:$L$992,11,0))) -> 
A150: 144 | B150: Vojtech Vach 03 | C150: 2003 | D150: M | E150: Nové Město nad Metují | F150: CZ/C2 | G150: 15675 | H150: 3 | I150: Junior v roce 2024 | J150: Junior v roce 2025 | M150: =IF(ISERROR(VLOOKUP(B150,'Zebrik W'!$B$7:$L$992,11,0)),"",IF(VLOOKUP(B150,'Zebrik W'!$B$7:$L$992,11,0)=0,"--",VLOOKUP(B150,'Zebrik W'!$B$7:$L$992,11,0))) -> 
A151: 145 | B151: Josef Kolman | C151: 1983 | D151: M | E151: Letňany | F151: CZ/C1 | G151: 15563 | H151: 2 | M151: =IF(ISERROR(VLOOKUP(B151,'Zebrik W'!$B$7:$L$992,11,0)),"",IF(VLOOKUP(B151,'Zebrik W'!$B$7:$L$992,11,0)=0,"--",VLOOKUP(B151,'Zebrik W'!$B$7:$L$992,11,0))) -> 
A152: 146 | B152: Jakub Hlavacek | C152: 1991 | D152: M | E152: Letkov | F152: CZ/C1 | G152: 15532 | H152: 2 | M152: =IF(ISERROR(VLOOKUP(B152,'Zebrik W'!$B$7:$L$992,11,0)),"",IF(VLOOKUP(B152,'Zebrik W'!$B$7:$L$992,11,0)=0,"--",VLOOKUP(B152,'Zebrik W'!$B$7:$L$992,11,0))) -> 
A153: 147 | B153: Pavel Haluza | C153: 1966 | D153: M | E153: Prostějov | F153: CZ/M | G153: 15347 | H153: 3 | M153: =IF(ISERROR(VLOOKUP(B153,'Zebrik W'!$B$7:$L$992,11,0)),"",IF(VLOOKUP(B153,'Zebrik W'!$B$7:$L$992,11,0)=0,"--",VLOOKUP(B153,'Zebrik W'!$B$7:$L$992,11,0))) -> 
A154: 148 | B154: Frantisek Suna | C154: 1983 | D154: M | E154: Hosín | F154: CZ/C1 | G154: 15322 | H154: 3 | M154: =IF(ISERROR(VLOOKUP(B154,'Zebrik W'!$B$7:$L$992,11,0)),"",IF(VLOOKUP(B154,'Zebrik W'!$B$7:$L$992,11,0)=0,"--",VLOOKUP(B154,'Zebrik W'!$B$7:$L$992,11,0))) -> 
A155: 149 | B155: Karel Benisek 76 | C155: 1976 | D155: M | E155: Toužim | F155: CZ/C1 | G155: 15316 | H155: 2 | M155: =IF(ISERROR(VLOOKUP(B155,'Zebrik W'!$B$7:$L$992,11,0)),"",IF(VLOOKUP(B155,'Zebrik W'!$B$7:$L$992,11,0)=0,"--",VLOOKUP(B155,'Zebrik W'!$B$7:$L$992,11,0))) -> 
A156: 150 | B156: Jan Podhrazsky | C156: 1976 | D156: M | E156: Šumperk | F156: CZ/M | G156: 15300 | H156: 2 | M156: =IF(ISERROR(VLOOKUP(B156,'Zebrik W'!$B$7:$L$992,11,0)),"",IF(VLOOKUP(B156,'Zebrik W'!$B$7:$L$992,11,0)=0,"--",VLOOKUP(B156,'Zebrik W'!$B$7:$L$992,11,0))) -> 
A157: 151 | B157: Lukas Volek | C157: 2004 | D157: M | E157: Hodkovice | F157: CZ/C2 | G157: 15242 | H157: 2 | I157: Junior v roce 2024 | J157: Junior v roce 2025 | M157: =IF(ISERROR(VLOOKUP(B157,'Zebrik W'!$B$7:$L$992,11,0)),"",IF(VLOOKUP(B157,'Zebrik W'!$B$7:$L$992,11,0)=0,"--",VLOOKUP(B157,'Zebrik W'!$B$7:$L$992,11,0))) -> 
A158: 152 | B158: Roman Schotli | C158: 1970 | D158: M | E158: Hranice | F158: CZ/M | G158: 15211 | H158: 3 | M158: =IF(ISERROR(VLOOKUP(B158,'Zebrik W'!$B$7:$L$992,11,0)),"",IF(VLOOKUP(B158,'Zebrik W'!$B$7:$L$992,11,0)=0,"--",VLOOKUP(B158,'Zebrik W'!$B$7:$L$992,11,0))) -> 
A159: 153 | B159: Matej Krestes | C159: 1986 | D159: M | E159: Slaný | F159: CZ/C1 | G159: 15183 | H159: 3 | M159: =IF(ISERROR(VLOOKUP(B159,'Zebrik W'!$B$7:$L$992,11,0)),"",IF(VLOOKUP(B159,'Zebrik W'!$B$7:$L$992,11,0)=0,"--",VLOOKUP(B159,'Zebrik W'!$B$7:$L$992,11,0))) -> 
A160: 154 | B160: Petr Panek | C160: 1975 | D160: M | E160: Dvůr Králové | F160: CZ/C2 | G160: 15117 | H160: 3 | M160: =IF(ISERROR(VLOOKUP(B160,'Zebrik W'!$B$7:$L$992,11,0)),"",IF(VLOOKUP(B160,'Zebrik W'!$B$7:$L$992,11,0)=0,"--",VLOOKUP(B160,'Zebrik W'!$B$7:$L$992,11,0))) -> 
A161: 155 | B161: Oldrich Slavicek | C161: 1959 | D161: M | E161: Hronov | F161: CZ/C2 | G161: 15012 | H161: 2 | M161: =IF(ISERROR(VLOOKUP(B161,'Zebrik W'!$B$7:$L$992,11,0)),"",IF(VLOOKUP(B161,'Zebrik W'!$B$7:$L$992,11,0)=0,"--",VLOOKUP(B161,'Zebrik W'!$B$7:$L$992,11,0))) -> 
A162: 156 | B162: Martin Suchy | C162: 1969 | D162: M | E162: Hranice | F162: CZ/M | G162: 14805 | H162: 2 | M162: =IF(ISERROR(VLOOKUP(B162,'Zebrik W'!$B$7:$L$992,11,0)),"",IF(VLOOKUP(B162,'Zebrik W'!$B$7:$L$992,11,0)=0,"--",VLOOKUP(B162,'Zebrik W'!$B$7:$L$992,11,0))) -> 
A163: 157 | B163: Daniel Dvorak | C163: 1980 | D163: M | E163: Letkov | F163: CZ/C1 | G163: 14751 | H163: 2 | M163: =IF(ISERROR(VLOOKUP(B163,'Zebrik W'!$B$7:$L$992,11,0)),"",IF(VLOOKUP(B163,'Zebrik W'!$B$7:$L$992,11,0)=0,"--",VLOOKUP(B163,'Zebrik W'!$B$7:$L$992,11,0))) -> 
A164: 158 | B164: Antonin Kutalek | C164: 1943 | D164: M | E164: Zábřeh | F164: CZ/M | G164: 14748 | H164: 3 | M164: =IF(ISERROR(VLOOKUP(B164,'Zebrik W'!$B$7:$L$992,11,0)),"",IF(VLOOKUP(B164,'Zebrik W'!$B$7:$L$992,11,0)=0,"--",VLOOKUP(B164,'Zebrik W'!$B$7:$L$992,11,0))) -> 
A165: 159 | B165: Milan Dvorak | C165: 1965 | D165: M | E165: Liberec | F165: CZ/C2 | G165: 14698 | H165: 2 | M165: =IF(ISERROR(VLOOKUP(B165,'Zebrik W'!$B$7:$L$992,11,0)),"",IF(VLOOKUP(B165,'Zebrik W'!$B$7:$L$992,11,0)=0,"--",VLOOKUP(B165,'Zebrik W'!$B$7:$L$992,11,0))) -> 
A166: 160 | B166: Karel Policky | C166: 1950 | D166: M | E166: Kolín | F166: CZ/C1 | G166: 14625 | H166: 3 | M166: =IF(ISERROR(VLOOKUP(B166,'Zebrik W'!$B$7:$L$992,11,0)),"",IF(VLOOKUP(B166,'Zebrik W'!$B$7:$L$992,11,0)=0,"--",VLOOKUP(B166,'Zebrik W'!$B$7:$L$992,11,0))) -> 
A167: 161 | B167: Jakub Kohn | C167: 1992 | D167: M | E167: Prostějov | F167: CZ/M | G167: 14595 | H167: 3 | M167: =IF(ISERROR(VLOOKUP(B167,'Zebrik W'!$B$7:$L$992,11,0)),"",IF(VLOOKUP(B167,'Zebrik W'!$B$7:$L$992,11,0)=0,"--",VLOOKUP(B167,'Zebrik W'!$B$7:$L$992,11,0))) -> 
A168: 162 | B168: Michal Navratil | C168: 1985 | D168: M | E168: Křižanov | F168: CZ/M | G168: 14566 | H168: 2 | M168: =IF(ISERROR(VLOOKUP(B168,'Zebrik W'!$B$7:$L$992,11,0)),"",IF(VLOOKUP(B168,'Zebrik W'!$B$7:$L$992,11,0)=0,"--",VLOOKUP(B168,'Zebrik W'!$B$7:$L$992,11,0))) -> 
A169: 163 | B169: Tomas Profeld | C169: 1964 | D169: M | E169: Jičín | F169: CZ/C2 | G169: 14553 | H169: 3 | M169: =IF(ISERROR(VLOOKUP(B169,'Zebrik W'!$B$7:$L$992,11,0)),"",IF(VLOOKUP(B169,'Zebrik W'!$B$7:$L$992,11,0)=0,"--",VLOOKUP(B169,'Zebrik W'!$B$7:$L$992,11,0))) -> 
A170: 164 | B170: Vojtech Pivonka | C170: 1976 | D170: M | E170: Vrchlabí | F170: CZ/C2 | G170: 14494 | H170: 2 | M170: =IF(ISERROR(VLOOKUP(B170,'Zebrik W'!$B$7:$L$992,11,0)),"",IF(VLOOKUP(B170,'Zebrik W'!$B$7:$L$992,11,0)=0,"--",VLOOKUP(B170,'Zebrik W'!$B$7:$L$992,11,0))) -> 
A171: 165 | B171: Michal Vranek | C171: 1993 | D171: M | E171: Hosín | F171: CZ/C1 | G171: 14453 | H171: 3 | M171: =IF(ISERROR(VLOOKUP(B171,'Zebrik W'!$B$7:$L$992,11,0)),"",IF(VLOOKUP(B171,'Zebrik W'!$B$7:$L$992,11,0)=0,"--",VLOOKUP(B171,'Zebrik W'!$B$7:$L$992,11,0))) -> 
A172: 166 | B172: Miroslav Sklenar | C172: 1964 | D172: M | E172: Žamberk | F172: CZ/C2 | G172: 14438 | H172: 3 | I172: =IF(C172="(prázdné)","",IF(($I$4-C172)>25,"","Junior v roce "&$I$4)) ->  | J172: =IF(C172="(prázdné)","",IF(($J$4-C172)>25,"","Junior v roce "&$J$4)) ->  | M172: =IF(ISERROR(VLOOKUP(B172,'Zebrik W'!$B$7:$L$992,11,0)),"",IF(VLOOKUP(B172,'Zebrik W'!$B$7:$L$992,11,0)=0,"--",VLOOKUP(B172,'Zebrik W'!$B$7:$L$992,11,0))) -> 
A173: 167 | B173: Pavel Foldyna | C173: 1976 | D173: M | E173: Frýdlant | F173: CZ/M | G173: 14405 | H173: 2 | M173: =IF(ISERROR(VLOOKUP(B173,'Zebrik W'!$B$7:$L$992,11,0)),"",IF(VLOOKUP(B173,'Zebrik W'!$B$7:$L$992,11,0)=0,"--",VLOOKUP(B173,'Zebrik W'!$B$7:$L$992,11,0))) -> 
A174: 168 | B174: Jiri Hula | C174: 1973 | D174: M | E174: Slaný | F174: CZ/C1 | G174: 14118 | H174: 3 | M174: =IF(ISERROR(VLOOKUP(B174,'Zebrik W'!$B$7:$L$992,11,0)),"",IF(VLOOKUP(B174,'Zebrik W'!$B$7:$L$992,11,0)=0,"--",VLOOKUP(B174,'Zebrik W'!$B$7:$L$992,11,0))) -> 
A175: 169 | B175: Lubomir Motl | C175: 1959 | D175: M | E175: Kyjov | F175: CZ/M | G175: 14087 | H175: 2 | M175: =IF(ISERROR(VLOOKUP(B175,'Zebrik W'!$B$7:$L$992,11,0)),"",IF(VLOOKUP(B175,'Zebrik W'!$B$7:$L$992,11,0)=0,"--",VLOOKUP(B175,'Zebrik W'!$B$7:$L$992,11,0))) -> 
A176: 170 | B176: Petr Setka | C176: 1971 | D176: M | E176: Letkov | F176: CZ/C1 | G176: 13982 | H176: 2 | M176: =IF(ISERROR(VLOOKUP(B176,'Zebrik W'!$B$7:$L$992,11,0)),"",IF(VLOOKUP(B176,'Zebrik W'!$B$7:$L$992,11,0)=0,"--",VLOOKUP(B176,'Zebrik W'!$B$7:$L$992,11,0))) -> 
A177: 171 | B177: Danes Grula | C177: 1961 | D177: M | E177: Medlánky | F177: CZ/M | G177: 13884 | H177: 2 | M177: =IF(ISERROR(VLOOKUP(B177,'Zebrik W'!$B$7:$L$992,11,0)),"",IF(VLOOKUP(B177,'Zebrik W'!$B$7:$L$992,11,0)=0,"--",VLOOKUP(B177,'Zebrik W'!$B$7:$L$992,11,0))) -> 
A178: 172 | B178: Martin Fric | C178: 1967 | D178: M | E178: Raná | F178: CZ/C2 | G178: 13858 | H178: 3 | M178: =IF(ISERROR(VLOOKUP(B178,'Zebrik W'!$B$7:$L$992,11,0)),"",IF(VLOOKUP(B178,'Zebrik W'!$B$7:$L$992,11,0)=0,"--",VLOOKUP(B178,'Zebrik W'!$B$7:$L$992,11,0))) -> 
A179: 173 | B179: Tibor Hezina | C179: 2002 | D179: M | E179: Křižanov | F179: CZ/M | G179: 13843 | H179: 3 | I179: Junior v roce 2024 | J179: Junior v roce 2025 | M179: =IF(ISERROR(VLOOKUP(B179,'Zebrik W'!$B$7:$L$992,11,0)),"",IF(VLOOKUP(B179,'Zebrik W'!$B$7:$L$992,11,0)=0,"--",VLOOKUP(B179,'Zebrik W'!$B$7:$L$992,11,0))) -> 
A180: 174 | B180: Jaromir Vlk | C180: 1959 | D180: M | E180: Šumperk | F180: CZ/M | G180: 13783 | H180: 3 | M180: =IF(ISERROR(VLOOKUP(B180,'Zebrik W'!$B$7:$L$992,11,0)),"",IF(VLOOKUP(B180,'Zebrik W'!$B$7:$L$992,11,0)=0,"--",VLOOKUP(B180,'Zebrik W'!$B$7:$L$992,11,0))) -> 
A181: 175 | B181: Petr Malcek | C181: 1965 | D181: M | E181: Letňany | F181: CZ/C1 | G181: 13754 | H181: 3 | M181: =IF(ISERROR(VLOOKUP(B181,'Zebrik W'!$B$7:$L$992,11,0)),"",IF(VLOOKUP(B181,'Zebrik W'!$B$7:$L$992,11,0)=0,"--",VLOOKUP(B181,'Zebrik W'!$B$7:$L$992,11,0))) -> 
A182: 176 | B182: Jiri Vondracek | C182: 1989 | D182: M | E182: Kladno | F182: CZ/C1 | G182: 13753 | H182: 2 | M182: =IF(ISERROR(VLOOKUP(B182,'Zebrik W'!$B$7:$L$992,11,0)),"",IF(VLOOKUP(B182,'Zebrik W'!$B$7:$L$992,11,0)=0,"--",VLOOKUP(B182,'Zebrik W'!$B$7:$L$992,11,0))) -> 
A183: 177 | B183: Jaroslav Potmesil | C183: 1964 | D183: M | E183: Zbraslavice | F183: CZ/C1 | G183: 13742 | H183: 2 | M183: =IF(ISERROR(VLOOKUP(B183,'Zebrik W'!$B$7:$L$992,11,0)),"",IF(VLOOKUP(B183,'Zebrik W'!$B$7:$L$992,11,0)=0,"--",VLOOKUP(B183,'Zebrik W'!$B$7:$L$992,11,0))) -> 
A184: 178 | B184: Jiri Slemr | C184: 1979 | D184: M | E184: Vysoké Mýto | F184: CZ/C2 | G184: 13723 | H184: 2 | M184: =IF(ISERROR(VLOOKUP(B184,'Zebrik W'!$B$7:$L$992,11,0)),"",IF(VLOOKUP(B184,'Zebrik W'!$B$7:$L$992,11,0)=0,"--",VLOOKUP(B184,'Zebrik W'!$B$7:$L$992,11,0))) -> 
A185: 179 | B185: Radek Zima 75 | C185: 1975 | D185: M | E185: Břeclav | F185: CZ/M | G185: 13615 | H185: 2 | M185: =IF(ISERROR(VLOOKUP(B185,'Zebrik W'!$B$7:$L$992,11,0)),"",IF(VLOOKUP(B185,'Zebrik W'!$B$7:$L$992,11,0)=0,"--",VLOOKUP(B185,'Zebrik W'!$B$7:$L$992,11,0))) -> 
A186: 180 | B186: Vladimir Abraham | C186: 1962 | D186: M | E186: Raná | F186: CZ/C2 | G186: 13449 | H186: 2 | M186: =IF(ISERROR(VLOOKUP(B186,'Zebrik W'!$B$7:$L$992,11,0)),"",IF(VLOOKUP(B186,'Zebrik W'!$B$7:$L$992,11,0)=0,"--",VLOOKUP(B186,'Zebrik W'!$B$7:$L$992,11,0))) -> 
A187: 181 | B187: Petr Starek | C187: 1974 | D187: M | E187: Zbraslavice | F187: CZ/C1 | G187: 13423 | H187: 2 | M187: =IF(ISERROR(VLOOKUP(B187,'Zebrik W'!$B$7:$L$992,11,0)),"",IF(VLOOKUP(B187,'Zebrik W'!$B$7:$L$992,11,0)=0,"--",VLOOKUP(B187,'Zebrik W'!$B$7:$L$992,11,0))) -> 
A188: 182 | B188: Martin Soucek | C188: 1975 | D188: M | E188: Mladá Boleslav | F188: CZ/C1 | G188: 13392 | H188: 2 | M188: =IF(ISERROR(VLOOKUP(B188,'Zebrik W'!$B$7:$L$992,11,0)),"",IF(VLOOKUP(B188,'Zebrik W'!$B$7:$L$992,11,0)=0,"--",VLOOKUP(B188,'Zebrik W'!$B$7:$L$992,11,0))) -> 
A189: 183 | B189: Ales Holoubek | C189: 1966 | D189: M | E189: Jičín | F189: CZ/C2 | G189: 13377 | H189: 3 | M189: =IF(ISERROR(VLOOKUP(B189,'Zebrik W'!$B$7:$L$992,11,0)),"",IF(VLOOKUP(B189,'Zebrik W'!$B$7:$L$992,11,0)=0,"--",VLOOKUP(B189,'Zebrik W'!$B$7:$L$992,11,0))) -> 
A190: 184 | B190: Frantisek Myska | C190: 1968 | D190: M | E190: Most | F190: CZ/C2 | G190: 13345 | H190: 2 | M190: =IF(ISERROR(VLOOKUP(B190,'Zebrik W'!$B$7:$L$992,11,0)),"",IF(VLOOKUP(B190,'Zebrik W'!$B$7:$L$992,11,0)=0,"--",VLOOKUP(B190,'Zebrik W'!$B$7:$L$992,11,0))) -> 
A191: 185 | B191: Jan Kohout | C191: 1970 | D191: M | E191: Žamberk | F191: CZ/C2 | G191: 13262 | H191: 2 | M191: =IF(ISERROR(VLOOKUP(B191,'Zebrik W'!$B$7:$L$992,11,0)),"",IF(VLOOKUP(B191,'Zebrik W'!$B$7:$L$992,11,0)=0,"--",VLOOKUP(B191,'Zebrik W'!$B$7:$L$992,11,0))) -> 
A192: 186 | B192: Tomas Hulmak | C192: 1999 | D192: M | E192: Hosín | F192: CZ/C1 | G192: 13251 | H192: 2 | I192: Junior v roce 2024 | M192: =IF(ISERROR(VLOOKUP(B192,'Zebrik W'!$B$7:$L$992,11,0)),"",IF(VLOOKUP(B192,'Zebrik W'!$B$7:$L$992,11,0)=0,"--",VLOOKUP(B192,'Zebrik W'!$B$7:$L$992,11,0))) -> 
A193: 187 | B193: Katerina Vancurova | C193: 2002 | D193: F | E193: Hranice | F193: CZ/M | G193: 13207 | H193: 3 | I193: Junior v roce 2024 | J193: Junior v roce 2025 | M193: =IF(ISERROR(VLOOKUP(B193,'Zebrik W'!$B$7:$L$992,11,0)),"",IF(VLOOKUP(B193,'Zebrik W'!$B$7:$L$992,11,0)=0,"--",VLOOKUP(B193,'Zebrik W'!$B$7:$L$992,11,0))) -> --
A194: 188 | B194: Jan Cerveny | C194: 1984 | D194: M | E194: Jaroměř | F194: CZ/C2 | G194: 13171 | H194: 2 | M194: =IF(ISERROR(VLOOKUP(B194,'Zebrik W'!$B$7:$L$992,11,0)),"",IF(VLOOKUP(B194,'Zebrik W'!$B$7:$L$992,11,0)=0,"--",VLOOKUP(B194,'Zebrik W'!$B$7:$L$992,11,0))) -> 
A195: 189 | B195: Vojtech Novotny | C195: 1992 | D195: M | E195: Kralupy | F195: CZ/C1 | G195: 13149 | H195: 2 | M195: =IF(ISERROR(VLOOKUP(B195,'Zebrik W'!$B$7:$L$992,11,0)),"",IF(VLOOKUP(B195,'Zebrik W'!$B$7:$L$992,11,0)=0,"--",VLOOKUP(B195,'Zebrik W'!$B$7:$L$992,11,0))) -> 
A196: 190 | B196: Olga Mokosova | C196: 1970 | D196: F | E196: Jihlava | F196: CZ/M | G196: 13121 | H196: 3 | M196: =IF(ISERROR(VLOOKUP(B196,'Zebrik W'!$B$7:$L$992,11,0)),"",IF(VLOOKUP(B196,'Zebrik W'!$B$7:$L$992,11,0)=0,"--",VLOOKUP(B196,'Zebrik W'!$B$7:$L$992,11,0))) -> --
A197: 191 | B197: Petr Jiranek 63 | C197: 1962 | D197: M | E197: Toužim | F197: CZ/C1 | G197: 13089 | H197: 3 | M197: =IF(ISERROR(VLOOKUP(B197,'Zebrik W'!$B$7:$L$992,11,0)),"",IF(VLOOKUP(B197,'Zebrik W'!$B$7:$L$992,11,0)=0,"--",VLOOKUP(B197,'Zebrik W'!$B$7:$L$992,11,0))) -> 
A198: 192 | B198: Roman Lanzendorf | C198: 1964 | D198: M | E198: Letkov | F198: CZ/C1 | G198: 13024 | H198: 2 | M198: =IF(ISERROR(VLOOKUP(B198,'Zebrik W'!$B$7:$L$992,11,0)),"",IF(VLOOKUP(B198,'Zebrik W'!$B$7:$L$992,11,0)=0,"--",VLOOKUP(B198,'Zebrik W'!$B$7:$L$992,11,0))) -> 
A199: =RANK(G199,G:G) -> 193 | B199: Petr Bartak | C199: 1984 | D199: M | E199: Letkov | F199: CZ/C1 | G199: 13011 | H199: 2 | M199: =IF(ISERROR(VLOOKUP(B199,'Zebrik W'!$B$7:$L$992,11,0)),"",IF(VLOOKUP(B199,'Zebrik W'!$B$7:$L$992,11,0)=0,"--",VLOOKUP(B199,'Zebrik W'!$B$7:$L$992,11,0))) -> 
A200: 194 | B200: Michal Maly | C200: 1982 | D200: M | E200: Broumov | F200: CZ/C2 | G200: 12917 | H200: 2 | M200: =IF(ISERROR(VLOOKUP(B200,'Zebrik W'!$B$7:$L$992,11,0)),"",IF(VLOOKUP(B200,'Zebrik W'!$B$7:$L$992,11,0)=0,"--",VLOOKUP(B200,'Zebrik W'!$B$7:$L$992,11,0))) -> 
A201: 195 | B201: Radoslav Pur | C201: 1973 | D201: M | E201: Hosín | F201: CZ/C1 | G201: 12887 | H201: 3 | M201: =IF(ISERROR(VLOOKUP(B201,'Zebrik W'!$B$7:$L$992,11,0)),"",IF(VLOOKUP(B201,'Zebrik W'!$B$7:$L$992,11,0)=0,"--",VLOOKUP(B201,'Zebrik W'!$B$7:$L$992,11,0))) -> 
... 246 more rows

Sheet Zebrik W
B1: ="Ženský Žebřík pilotek plachtařek PK AeČR "&A6 -> Ženský Žebřík pilotek plachtařek PK AeČR 2023 | I1: ='Zebrik G'!I1 -> 2024-02-08 | J1: Rev. | K1: ='Zebrik G'!K1 -> 03 | L1: ='Zebrik G'!L1 -> Oprava chyby s velkými písmeny v názvu pilota
B3: W | C3: x | I3: Juniorka v roce: | J3: Juniorka v roce: | K3: ="W Repre družstvo "&I4 -> W Repre družstvo 2024 | L3: ="W Repre výběr "&I4 -> W Repre výběr 2024 | M3: Poznámka
I4: =A6+1 -> 2024 | J4: =A6+2 -> 2025 | K4: (WRD) | L4: (WRV)
A5: Pořadí | G5: Data | I5: =COUNTIF(I7:I489,"Juniorka v roce "&$I$4) -> 6 | J5: =COUNTIF(J7:J489,"Juniorka v roce "&$J$4) -> 4 | K5: =COUNTIF(K7:K489,"WRD "&$I$4) -> 0 | L5: =COUNTIF(L7:L489,"WRV "&$I$4) -> 9 | M5: =COUNTIF(M7:M489,"<>") -> 0
A6: ='Zebrik G'!A6 -> 2023 | B6: Jméno | C6: Rok narození | D6: M/F | E6: Aeroklub | F6: Region | G6: Součet z Bi×Kinp | H6: Počet W
A7: =RANK(G7,G:G) -> 1 | B7: Alena Netusilova | C7: 1970 | D7: F | E7: Zbraslavice | F7: CZ/C1 | G7: 30183 | H7: 3 | I7: =IF(C7="(prázdné)","",IF(($I$4-C7)>25,"","Juniorka v roce "&$I$4)) ->  | J7: =IF(C7="(prázdné)","",IF(($J$4-C7)>25,"","Juniorka v roce "&$J$4)) ->  | L7: WRV 2024
A8: 2 | B8: Barbora Moravcova | C8: 1994 | D8: F | E8: Zbraslavice | F8: CZ/C1 | G8: 29377 | H8: 3 | I8: =IF(C8="(prázdné)","",IF(($I$4-C8)>25,"","Juniorka v roce "&$I$4)) ->  | J8: =IF(C8="(prázdné)","",IF(($J$4-C8)>25,"","Juniorka v roce "&$J$4)) ->  | L8: WRV 2024
A9: 3 | B9: Michaela Rendlova | C9: 2004 | D9: F | E9: Toužim | F9: CZ/C1 | G9: 27805 | H9: 3 | I9: Juniorka v roce 2024 | J9: Juniorka v roce 2025 | L9: WRV 2024
A10: 4 | B10: Tereza Koubkova | C10: 1999 | D10: F | E10: Vysoké Mýto | F10: CZ/C2 | G10: 27320 | H10: 3 | I10: Juniorka v roce 2024 | L10: WRV 2024
A11: 5 | B11: Hana Treslova | C11: 1991 | D11: F | E11: Raná | F11: CZ/C2 | G11: 27283 | H11: 3 | L11: WRV 2024
A12: 6 | B12: Dana Novakova | C12: 1965 | D12: F | E12: Mladá Boleslav | F12: CZ/C1 | G12: 26952 | H12: 3 | L12: WRV 2024
A13: 7 | B13: Petra Piskata | C13: 1989 | D13: F | E13: Luhačovice | F13: CZ/M | G13: 26436 | H13: 3 | L13: WRV 2024
A14: 8 | B14: Michaela Krizova | C14: 2001 | D14: F | E14: Přibyslav | F14: CZ/C2 | G14: 26139 | H14: 3 | I14: Juniorka v roce 2024 | J14: Juniorka v roce 2025 | L14: WRV 2024
A15: 9 | B15: Jana Treslova | C15: 1963 | D15: F | E15: Raná | F15: CZ/C2 | G15: 25204 | H15: 3 | L15: WRV 2024
A16: 10 | B16: Jana Veprekova | C16: 1961 | D16: F | E16: Dvůr Králové | F16: CZ/C2 | G16: 24900 | H16: 3
A17: 11 | B17: Pavlina Horackova | C17: 1965 | D17: F | E17: Šumperk | F17: CZ/M | G17: 16535 | H17: 3
A18: 12 | B18: Klara Teichmannova | C18: 1993 | D18: F | E18: Hronov | F18: CZ/C2 | G18: 13976 | H18: 2
A19: 13 | B19: Katerina Vancurova | C19: 2002 | D19: F | E19: Hranice | F19: CZ/M | G19: 13207 | H19: 3 | I19: Juniorka v roce 2024 | J19: Juniorka v roce 2025
A20: 14 | B20: Olga Mokosova | C20: 1970 | D20: F | E20: Jihlava | F20: CZ/M | G20: 13121 | H20: 3
A21: 15 | B21: Linda Vasatova | C21: 1990 | D21: F | E21: Mladá Boleslav | F21: CZ/C1 | G21: 12832 | H21: 3
A22: 16 | B22: Katerina Vojtova | C22: 1983 | D22: F | E22: Slaný | F22: CZ/C1 | G22: 11699 | H22: 3
A23: 17 | B23: Yvona Vyhnankova | C23: 1963 | D23: F | E23: Olomouc | F23: CZ/M | G23: 8773 | H23: 3
A24: 18 | B24: Sarka Lochova | C24: 1966 | D24: F | E24: Šumperk | F24: CZ/M | G24: 7506 | H24: 2
A25: 19 | B25: Anna Bordovska | C25: 1989 | D25: F | E25: Mladá Boleslav | F25: CZ/C1 | G25: 7324 | H25: 1
A26: 20 | B26: Jana Mezerova | C26: 1975 | D26: F | E26: Raná | F26: CZ/C2 | G26: 7005 | H26: 2
A27: 21 | B27: Lenka Kuthanova | C27: 1960 | D27: F | E27: Tábor | F27: CZ/C1 | G27: 6488 | H27: 1
A28: 22 | B28: Tereza Ludvikova | C28: 1997 | D28: F | E28: Jaroměř | F28: CZ/C2 | G28: 5772 | H28: 1
A29: 23 | B29: Tereza Novakova | C29: 1993 | D29: F | E29: Chrudim | F29: CZ/C2 | G29: 5377 | H29: 2
A30: 24 | B30: Eliska Kudejova | C30: 2006 | D30: F | E30: Strakonice | F30: CZ/C1 | G30: 4269 | H30: 1 | I30: Juniorka v roce 2024 | J30: Juniorka v roce 2025
A31: 25 | B31: Kristina Santruckova | C31: 1996 | D31: F | E31: Podhořany | F31: CZ/C2 | G31: 2493 | H31: 1
A32: 26 | B32: Zuzana Kutilkova | C32: 1993 | D32: F | E32: Křižanov | F32: CZ/M | G32: 925 | H32: 1
A33: 27 | B33: Gabriela Cervena | C33: 1966 | D33: F | E33: Jaroměř | F33: CZ/C2 | G33: 599 | H33: 1
A34: 28 | B34: Marie Vesela | C34: 1999 | D34: F | E34: Staňkov | F34: CZ/C1 | G34: 480 | H34: 1 | I34: Juniorka v roce 2024

Sheet KB PMRg 2021
A1: PMRg 2021 - Moravská Třebová - Korigované body
A2: Pořadí v KB | B2: Jméno | C2: Rok narození | D2: M/F | E2: Aeroklub | F2: Region | G2: Soutěž | H2: Pořadí ve třídě | I2: Body ve třídě | J2: Bi | K2: Typ | L2: CN | M2: Junior
A3: =RANK(J3,J:J) -> 1 | B3: Jan Louda | C3: =VLOOKUP(B3,Pilot,2,0) -> 1986 | D3: =VLOOKUP(B3,Pilot,5,0) -> M | E3: =VLOOKUP(B3,Pilot,3,0) -> Mladá Boleslav | F3: =VLOOKUP(B3,Pilot,4,0) -> CZ/C1 | G3: PMRg 2021 - Klub | H3: 1 | I3: 5782 | J3: 10000 | K3: ASW-19B | L3: XS | M3: =IF(ISERROR(VLOOKUP(B3,Pilot,6,0)),"Není v databázi",VLOOKUP(B3,Pilot,6,0)) -> 
A4: 1 | B4: Tomas Rendla | C4: =VLOOKUP(B4,Pilot,2,0) -> 1973 | D4: =VLOOKUP(B4,Pilot,5,0) -> M | E4: =VLOOKUP(B4,Pilot,3,0) -> Zbraslavice | F4: =VLOOKUP(B4,Pilot,4,0) -> CZ/C1 | G4: PMRg 2021 - Kombi | H4: 1 | I4: 5477 | J4: 10000 | K4: EB-29R | L4: EX
A5: 3 | B5: Pavel Jiranek | C5: 1993 | D5: M | E5: Toužim | F5: CZ/C1 | G5: PMRg 2021 - Klub | H5: 2 | I5: 5754 | J5: 9846 | K5: Std. Cirrus | L5: IYD
A6: 4 | B6: Radek Kucirek | C6: 1973 | D6: M | E6: Havlíčkův Brod | F6: CZ/C2 | G6: PMRg 2021 - Kombi | H6: 2 | I6: 5461 | J6: 9730 | K6: EB-28 edition | L6: NA
A7: 5 | B7: Pavel Trybenekr | C7: 1990 | D7: M | E7: Hořice | F7: CZ/C2 | G7: PMRg 2021 - Klub | H7: 3 | I7: 5741 | J7: 9710 | K7: LS-4 | L7: PF
A8: 6 | B8: Hana Treslova | C8: 1991 | D8: F | E8: Raná | F8: CZ/C2 | G8: PMRg 2021 - Klub | H8: 4 | I8: 5404 | J8: 9182 | K8: Std. Cirrus | L8: CI
A9: 7 | B9: Jan Boruvka | C9: 1984 | D9: M | E9: Jičín | F9: CZ/C2 | G9: PMRg 2021 - Kombi | H9: 3 | I9: 5225 | J9: 9178 | K9: Ventus C 17.6m | L9: EG
A10: 8 | B10: Jiri Stepanek | C10: 1956 | D10: M | E10: Moravská Třebová | F10: CZ/M | G10: PMRg 2021 - Klub | H10: 5 | I10: 5331 | J10: 8974 | K10: VSO-10 | L10: H9
A11: 9 | B11: Martin Stepanek | C11: 1987 | D11: M | E11: Moravská Třebová | F11: CZ/M | G11: PMRg 2021 - Klub | H11: 6 | I11: 5267 | J11: 8777 | K11: ASW-15B | L11: LE
A12: 10 | B12: Petr Stepanek | C12: 1989 | D12: M | E12: Moravská Třebová | F12: CZ/M | G12: PMRg 2021 - Klub | H12: 7 | I12: 5104 | J12: 8459 | K12: ASW-15B | L12: ZP
A13: 11 | B13: Michaela Rendlova | C13: 2004 | D13: F | E13: Toužim | F13: CZ/C1 | G13: PMRg 2021 - Kombi | H13: 4 | I13: 4833 | J13: 8427 | K13: ASG 29/18m | L13: NX | M13: Junior v roce 2024
A14: 12 | B14: Radek Zima 78 | C14: 1978 | D14: M | E14: Hodkovice | F14: CZ/C2 | G14: PMRg 2021 - Kombi | H14: 5 | I14: 4825 | J14: 8167 | K14: ASG 29/18m | L14: XZ
A15: 13 | B15: Zdenek Balcarek | C15: 1967 | D15: M | E15: Kroměříž | F15: CZ/M | G15: PMRg 2021 - Klub | H15: 8 | I15: 4662 | J15: 7804 | K15: Discus b | L15: OS
A16: 14 | B16: Zdenek Boruvka 86 | C16: 1986 | D16: M | E16: Jičín | F16: CZ/C2 | G16: PMRg 2021 - Klub | H16: 9 | I16: 4641 | J16: 7659 | K16: Std. Cirrus | L16: BJ
A17: 15 | B17: Jiri Steiger | C17: 1969 | D17: M | E17: Olomouc | F17: CZ/M | G17: PMRg 2021 - Kombi | H17: 6 | I17: 4284 | J17: 7225 | K17: Ventus 3M 18m | L17: JSI
A18: 16 | B18: Petr Valenta 94 | C18: 1994 | D18: M | E18: Kunovice | F18: CZ/M | G18: PMRg 2021 - Klub | H18: 10 | I18: 4371 | J18: 7212 | K18: Std. Cirrus | L18: OK
A19: 17 | B19: Pavlina Horackova | C19: 1965 | D19: F | E19: Šumperk | F19: CZ/M | G19: PMRg 2021 - Klub | H19: 11 | I19: 4345 | J19: 7060 | K19: SZD-48 Jantar std. 2 (3) | L19: SU
A20: 18 | B20: Jiri Vondracek | C20: 1989 | D20: M | E20: Kladno | F20: CZ/C1 | G20: PMRg 2021 - Klub | H20: 12 | I20: 4337 | J20: 6931 | K20: ASW-15B | L20: 2P
A21: 19 | B21: Jiri Maier 66 | C21: 1966 | D21: M | E21: Raná | F21: CZ/C2 | G21: PMRg 2021 - Klub | H21: 13 | I21: 4311 | J21: 6779 | K21: ASW-24E | L21: JM
A22: 20 | B22: Jaromir Macoun | C22: 1999 | D22: M | E22: Jičín | F22: CZ/C2 | G22: PMRg 2021 - Kombi | H22: 7 | I22: 4128 | J22: 6776 | K22: LS-8 15m | L22: AU | M22: Junior v roce 2024
A23: 21 | B23: Martin Kriz | C23: 1968 | D23: M | E23: Přibyslav | F23: CZ/C2 | G23: PMRg 2021 - Klub | H23: 14 | I23: 4245 | J23: 6579 | K23: ASW-20 (A)+F /15m WL | L23: 67
A24: 22 | B24: Miroslav Koci | C24: 1961 | D24: M | E24: Žamberk | F24: CZ/C2 | G24: PMRg 2021 - Kombi | H24: 8 | I24: 3695 | J24: 5972 | K24: Ventus 2cxm | L24: E8
A25: 23 | B25: Jan Florian | C25: 1992 | D25: M | E25: Zbraslavice | F25: CZ/C1 | G25: PMRg 2021 - Klub | H25: 15 | I25: 3748 | J25: 5858 | K25: Std. Cirrus | L25: C1
A26: 23 | B26: Pavel Liska | C26: 1965 | D26: M | E26: Roudnice | F26: CZ/C2 | G26: PMRg 2021 - Klub | H26: 15 | I26: 3748 | J26: 5858 | K26: ASW-19B | L26: RCE
A27: 25 | B27: Vit Morkovsky | C27: 2000 | D27: M | E27: Polička | F27: CZ/C2 | G27: PMRg 2021 - Kombi | H27: 9 | I27: 3438 | J27: 5394 | K27: Discus 2a | L27: GX | M27: Junior v roce 2024
A28: 26 | B28: Michal Lesinger | C28: 1966 | D28: M | E28: Moravská Třebová | F28: CZ/M | G28: PMRg 2021 - Klub | H28: 17 | I28: 3527 | J28: 5350 | K28: ASW-19B | L28: LL
A29: 27 | B29: Pavel Koudelka | C29: 1973 | D29: M | E29: Křižanov | F29: CZ/M | G29: PMRg 2021 - Klub | H29: 18 | I29: 3320 | J29: 4979 | K29: Std. Cirrus | L29: ZL
A30: 28 | B30: Petr Prichystal | C30: 1973 | D30: M | E30: Moravská Třebová | F30: CZ/M | G30: PMRg 2021 - Klub | H30: 19 | I30: 3256 | J30: 4782 | K30: ASW-19B | L30: AE
A31: 29 | B31: Ivan Tvrdik | C31: 1997 | D31: M | E31: Letňany | F31: CZ/C1 | G31: PMRg 2021 - Kombi | H31: 10 | I31: 2951 | J31: 4522 | K31: LS-8 15m | L31: EU
A32: 30 | B32: Jan Vozeh | C32: 1995 | D32: M | E32: Rakovník | F32: CZ/C1 | G32: PMRg 2021 - Klub | H32: 20 | I32: 3074 | J32: 4442 | K32: Std. Cirrus | L32: OG
A33: 31 | B33: Jakub Kohn | C33: 1992 | D33: M | E33: Prostějov | F33: CZ/M | G33: PMRg 2021 - Klub | H33: 21 | I33: 2944 | J33: 4164 | K33: ASW-15B | L33: FK
A34: 32 | B34: Jan Zapletal | C34: 1997 | D34: M | E34: Břeclav | F34: CZ/M | G34: PMRg 2021 - Kombi | H34: 11 | I34: 2697 | J34: 3947 | K34: LS-8 15m | L34: JS
A35: 33 | B35: Josef Hlusek | C35: 1993 | D35: M | E35: Kunovice | F35: CZ/M | G35: PMRg 2021 - Klub | H35: 22 | I35: 2433 | J35: 3426 | K35: Std. Cirrus | L35: WO
A36: 34 | B36: Petr Kubik 75 | C36: 1975 | D36: M | E36: Moravská Třebová | F36: CZ/M | G36: PMRg 2021 - Klub | H36: 23 | I36: 2399 | J36: 3264 | K36: ASW-19B | L36: NO
A37: 35 | B37: Antonin Kutalek | C37: 1943 | D37: M | E37: Zábřeh | F37: CZ/M | G37: PMRg 2021 - Kombi | H37: 12 | I37: 1816 | J37: 2571 | K37: LAK-17AT 18m | L37: GL
A38: 36 | B38: Marek Pechar | C38: 1995 | D38: M | E38: Chrudim | F38: CZ/C2 | G38: PMRg 2021 - Klub | H38: 24 | I38: 1755 | J38: 2365 | K38: Std. Cirrus | L38: JE
A39: 37 | B39: Jiri Krofta | C39: 1988 | D39: M | E39: Hosín | F39: CZ/C1 | G39: PMRg 2021 - Klub | H39: 25 | I39: 1748 | J39: 2236 | K39: Std. Cirrus | L39: YU
A40: 38 | B40: Zuzana Kutilkova | C40: 1993 | D40: F | E40: Křižanov | F40: CZ/M | G40: PMRg 2021 - Klub | H40: 26 | I40: 813 | J40: 984 | K40: LS-1f | L40: DP
A41: 39 | B41: Petr Panek | C41: 1975 | D41: M | E41: Dvůr Králové | F41: CZ/C2 | G41: PMRg 2021 - Kombi | H41: 13 | I41: 495 | J41: 633 | K41: JS1B EVO 18m | L41: IGC

Sheet KB PMRg 2022
A1: PMRg 2022 - Hodkovice - Korigované body
A2: Pořadí v KB | B2: Jméno | C2: Rok narození | D2: M/F | E2: Aeroklub | F2: Region | G2: Soutěž | H2: Pořadí ve třídě | I2: Body ve třídě | J2: Bi | K2: Typ | L2: CN | M2: Junior
A3: =RANK(J3,J:J) -> 1 | B3: Michal Lesinger | C3: =VLOOKUP(B3,Pilot,2,0) -> 1966 | D3: =VLOOKUP(B3,Pilot,5,0) -> M | E3: =VLOOKUP(B3,Pilot,3,0) -> Moravská Třebová | F3: =VLOOKUP(B3,Pilot,4,0) -> CZ/M | G3: PMRg 2022 - Klub | H3: 1 | I3: 3948 | J3: 10000 | K3: ASW 20 | L3: LL | M3: =IF(ISERROR(VLOOKUP(B3,Pilot,6,0)),"Není v databázi",VLOOKUP(B3,Pilot,6,0)) -> 
A4: 1 | B4: Lukas Capek | C4: 1992 | D4: M | E4: Letňany | F4: CZ/C1 | G4: PMRg 2022 - Kombi | H4: 1 | I4: 3354 | J4: 10000 | K4: Mosquito | L4: LC
A5: 3 | B5: Jiri Kusbach | C5: 1959 | D5: M | E5: Luhačovice | F5: CZ/M | G5: PMRg 2022 - Klub | H5: 2 | I5: 3831 | J5: 9543 | K5: KKB-15E FES | L5: B
A6: 4 | B6: Jaroslav Potmesil | C6: 1964 | D6: M | E6: Zbraslavice | F6: CZ/C1 | G6: PMRg 2022 - Kombi | H6: 2 | I6: 2942 | J6: 8807 | K6: HpH 304 TS Twin Shark | L6: TS
A7: 5 | B7: Jan Smaha | C7: 1958 | D7: M | E7: Česká Lípa | F7: CZ/C2 | G7: PMRg 2022 - Klub | H7: 3 | I7: 3458 | J7: 8631 | K7: ASW 15 B | L7: CW
A8: 6 | B8: Lukas Maly | C8: 1998 | D8: M | E8: Vysoké Mýto | F8: CZ/C2 | G8: PMRg 2022 - Klub | H8: 4 | I8: 3447 | J8: 8362 | K8: Discus b | L8: 65
A9: 7 | B9: Jiri Stepanek | C9: 1956 | D9: M | E9: Moravská Třebová | F9: CZ/M | G9: PMRg 2022 - Klub | H9: 5 | I9: 3387 | J9: 8005 | K9: ASW 15 B | L9: LE
A10: 8 | B10: Martin Stepanek | C10: 1987 | D10: M | E10: Moravská Třebová | F10: CZ/M | G10: PMRg 2022 - Klub | H10: 6 | I10: 3361 | J10: 7709 | K10: ASW 19 B | L10: AE
A11: 9 | B11: Petr Hora | C11: 1948 | D11: M | E11: Hodkovice | F11: CZ/C2 | G11: PMRg 2022 - Kombi | H11: 3 | I11: 2515 | J11: 7582 | K11: HpH 304 MS Shark | L11: B1
A12: 10 | B12: Tomas Kulhavy | C12: 2001 | D12: M | E12: Liberec | F12: CZ/C2 | G12: PMRg 2022 - Kombi | H12: 4 | I12: 2500 | J12: 7218 | K12: HpH 304 CZ 17.4m | L12: IH | M12: Junior v roce 2024
A13: 11 | B13: Tomas Hynek | C13: 2002 | D13: M | E13: Dvůr Králové | F13: CZ/C2 | G13: PMRg 2022 - Klub | H13: 7 | I13: 3190 | J13: 7156 | K13: DG 200 | L13: HL | M13: Junior v roce 2024
A14: 12 | B14: Pavel Koudelka | C14: 1973 | D14: M | E14: Křižanov | F14: CZ/M | G14: PMRg 2022 - Klub | H14: 8 | I14: 3156 | J14: 6846 | K14: Std. Cirrus | L14: ZL
A15: 13 | B15: Antonin Kutalek | C15: 1943 | D15: M | E15: Zábřeh | F15: CZ/M | G15: PMRg 2022 - Kombi | H15: 5 | I15: 2340 | J15: 6550 | K15: LAK-17A T 18m | L15: GL
A16: 14 | B16: Michaela Krizova | C16: 2001 | D16: F | E16: Přibyslav | F16: CZ/C2 | G16: PMRg 2022 - Klub | H16: 9 | I16: 2951 | J16: 6232 | K16: ASW 15 B | L16: BE | M16: Junior v roce 2024
A17: 15 | B17: Pavlina Horackova | C17: 1965 | D17: F | E17: Šumperk | F17: CZ/M | G17: PMRg 2022 - Klub | H17: 10 | I17: 2618 | J17: 5392 | K17: SZD-48 Jantar Std. 2 | L17: SU
A18: 16 | B18: Katerina Vancurova | C18: 2002 | D18: F | E18: Hranice | F18: CZ/M | G18: PMRg 2022 - Klub | H18: 11 | I18: 2331 | J18: 4633 | K18: Discus b | L18: HD | M18: Junior v roce 2024
A19: 17 | B19: Radek Zima 78 | C19: 1978 | D19: M | E19: Hodkovice | F19: CZ/C2 | G19: PMRg 2022 - Kombi | H19: 6 | I19: 1372 | J19: 4197 | K19: ASG 29 E 18m | L19: XZ
A20: 18 | B20: Jan Florian | C20: 1992 | D20: M | E20: Zbraslavice | F20: CZ/C1 | G20: PMRg 2022 - Klub | H20: 12 | I20: 2188 | J20: 4129 | K20: Std. Cirrus | L20: C1
A21: 19 | B21: Jiri Krofta | C21: 1988 | D21: M | E21: Hosín | F21: CZ/C1 | G21: PMRg 2022 - Klub | H21: 13 | I21: 1904 | J21: 3376 | K21: Std. Cirrus | L21: YU
A22: 20 | B22: Jaromir Macoun | C22: 1999 | D22: M | E22: Jičín | F22: CZ/C2 | G22: PMRg 2022 - Kombi | H22: 7 | I22: 225 | J22: 1470 | K22: LS 8 | L22: EU | M22: Junior v roce 2024
A23: 21 | B23: Ivan Tvrdik | C23: 1997 | D23: M | E23: Letňany | F23: CZ/C1 | G23: PMRg 2022 - Kombi | H23: 8 | I23: 221 | J23: 1128 | K23: ASW 20 16.6m | L23: NW
A24: 22 | B24: Jan Drbohlav | C24: 1999 | D24: M | E24: Hodkovice | F24: CZ/C2 | G24: PMRg 2022 - Kombi | H24: 9 | I24: 1 | J24: 335 | K24: G 103 Twin Astir | L24: BL | M24: Junior v roce 2024
A25: 23 | B25: Vojtech Hajek | C25: 1987 | D25: M | E25: Mladá Boleslav | F25: CZ/C1 | G25: PMRg 2022 - Kombi | H25: 10 | I25: 0 | J25: 0 | K25: Duo Discus | L25: 777
A26: 23 | B26: Karel Novak | C26: 1993 | D26: M | E26: Mladá Boleslav | F26: CZ/C1 | G26: PMRg 2022 - Kombi | H26: 10 | I26: 0 | J26: 0 | K26: LS 8 | L26: ID

Sheet KB PMRg 2023
A1: PMRg 2023 - Hosín - Korigované body
A2: Pořadí v KB | B2: Jméno | C2: Rok narození | D2: M/F | E2: Aeroklub | F2: Region | G2: Soutěž | H2: Pořadí ve třídě | I2: Body ve třídě | J2: Bi | K2: Typ | L2: CN | M2: Junior
A3: =RANK(J3,J:J) -> 1 | B3: Pavel Rericha | C3: 1967 | D3: M | E3: Moravská Třebová | F3: CZ/M | G3: PMRg 2023 - Klub | H3: 1 | I3: 8730 | J3: 10000 | K3: ASW-19B | L3: NO | M3: =IF(ISERROR(VLOOKUP(B3,Pilot,6,0)),"Není v databázi",VLOOKUP(B3,Pilot,6,0)) -> 
A4: 1 | B4: Lukas Kriz | C4: 2003 | D4: M | E4: Křižanov | F4: CZ/M | G4: PMRg, PMČRj 2023 - Kombi | H4: 1 | I4: 9417 | J4: 10000 | K4: LS 8 15m | L4: AU | M4: Junior v roce 2024
A5: 3 | B5: Jaromir Macoun | C5: 1999 | D5: M | E5: Jičín | F5: CZ/C2 | G5: PMRg, PMČRj 2023 - Kombi | H5: 2 | I5: 9221 | J5: 9554 | K5: LS 8A | L5: EU | M5: Junior v roce 2024
A6: 4 | B6: Jan Louda | C6: 1986 | D6: M | E6: Mladá Boleslav | F6: CZ/C1 | G6: PMRg 2023 - Klub | H6: 2 | I6: 8448 | J6: 9543 | K6: ASW-19 | L6: XS
A7: 5 | B7: Josef Busek | C7: 1967 | D7: M | E7: Hosín | F7: CZ/C1 | G7: PMRg, PMČRj 2023 - Kombi | H7: 3 | I7: 8601 | J7: 8793 | K7: Duo Discus | L7: BB
A8: 6 | B8: Marek Svancara | C8: 1976 | D8: M | E8: GAC Benešov | F8: CZ/C1 | G8: PMRg 2023 - Klub | H8: 3 | I8: 7660 | J8: 8681 | K8: Std. Cirrus | L8: GT
A9: 7 | B9: Jan Smaha | C9: 1958 | D9: M | E9: Česká Lípa | F9: CZ/C2 | G9: PMRg 2023 - Klub | H9: 4 | I9: 7225 | J9: 8101 | K9: ASW-15B | L9: CW
A10: 8 | B10: Théo Manfredi | E10: Association Aéronautique du Val d\'Oise | F10: FR | G10: PMRg, PMČRj 2023 - Kombi | H10: 4 | I10: 7258 | J10: 7495 | K10: LAK-17A WL 15m | L10: LE | M10: Není v databázi
A11: 9 | B11: Jaromir Pauer | C11: 1974 | D11: M | E11: Hosín | F11: CZ/C1 | G11: PMRg, PMČRj 2023 - Kombi | H11: 5 | I11: 6880 | J11: 6914 | K11: Ventus B 16.6m WL | L11: 7F
A12: 10 | B12: Petr Rozhon | C12: 1972 | D12: M | E12: Hosín | F12: CZ/C1 | G12: PMRg 2023 - Klub | H12: 5 | I12: 5980 | J12: 6872 | K12: VSO-10 | L12: 9
A13: 11 | B13: Pavel Koudelka | C13: 1973 | D13: M | E13: Křižanov | F13: CZ/M | G13: PMRg 2023 - Klub | H13: 6 | I13: 5915 | J13: 6589 | K13: STD. Cirrus | L13: ZL
A14: 12 | B14: Michael Fik | C14: 1972 | D14: M | E14: Strakonice | F14: CZ/C1 | G14: PMRg, PMČRj 2023 - Kombi | H14: 6 | I14: 6702 | J14: 6482 | K14: Ventus 2c | L14: ZR
A15: 13 | B15: Jiri Krofta | C15: 1988 | D15: M | E15: Hosín | F15: CZ/C1 | G15: PMRg 2023 - Klub | H15: 7 | I15: 5909 | J15: 6353 | K15: Std. Cirrus | L15: UY
A16: 14 | B16: Michal Vranek | C16: 1993 | D16: M | E16: Hosín | F16: CZ/C1 | G16: PMRg 2023 - Klub | H16: 8 | I16: 5599 | J16: 5874 | K16: DG-100 | L16: 8W
A17: 15 | B17: Karel Mares | C17: 1974 | D17: M | E17: Slaný | F17: CZ/C1 | G17: PMRg, PMČRj 2023 - Kombi | H17: 7 | I17: 5894 | J17: 5581 | K17: Duo Discus XT | L17: DD
A18: 16 | B18: Miloslav Hulmak | C18: 1963 | D18: M | E18: Hosín | F18: CZ/C1 | G18: PMRg 2023 - Klub | H18: 9 | I18: 4969 | J18: 5138 | K18: ASW-15B | L18: HH
A19: 17 | B19: Radek Zima 78 | C19: 1978 | D19: M | E19: Hodkovice | F19: CZ/C2 | G19: PMRg, PMČRj 2023 - Kombi | H19: 8 | I19: 5577 | J19: 5046 | K19: DG 500 22m | L19: YA
A20: 18 | B20: Daniel Marek | C20: 1983 | D20: M | E20: Hosín | F20: CZ/C1 | G20: PMRg 2023 - Klub | H20: 10 | I20: 4846 | J20: 4809 | K20: Std. Cirrus | L20: XII
A21: 19 | B21: Frantisek Suna | C21: 1983 | D21: M | E21: Hosín | F21: CZ/C1 | G21: PMRg 2023 - Klub | H21: 11 | I21: 4331 | J21: 4165 | K21: DG-100 | L21: 78
A22: 20 | B22: Peter Janoska | E22: Nitra | F22: SK | G22: PMRg, PMČRj 2023 - Kombi | H22: 9 | I22: 4662 | J22: 4065 | K22: LS 6C /17,5m | L22: N6 | M22: Není v databázi
A23: 21 | B23: Michal Hemrle | C23: 1974 | D23: M | E23: Česká Lípa | F23: CZ/C2 | G23: PMRg, PMČRj 2023 - Kombi | H23: 10 | I23: 4036 | J23: 3300 | K23: ASG 29 Es 18m | L23: ET
A24: 22 | B24: Radoslav Pur | C24: 1973 | D24: M | E24: Hosín | F24: CZ/C1 | G24: PMRg 2023 - Klub | H24: 12 | I24: 3358 | J24: 3154 | K24: DG-200 | L24: EK
A25: 23 | B25: Jiri Holcman | C25: 1976 | D25: M | E25: Hosín | F25: CZ/C1 | G25: PMRg 2023 - Klub | H25: 13 | I25: 2234 | J25: 2022 | K25: ASW-19 | L25: BO
A26: 24 | B26: Tomas Vaclavik | C26: 1974 | D26: M | E26: Hosín | F26: CZ/C1 | G26: PMRg, PMČRj 2023 - Kombi | H26: 11 | I26: 1238 | J26: 920 | K26: LAK-12 | L26: 12
A27: 25 | B27: Petr Sochor | C27: 1986 | D27: M | E27: Hosín | F27: CZ/C1 | G27: PMRg 2023 - Klub | H27: 14 | I27: 0 | J27: 0 | K27: ASW-15B | L27: 6Y

Sheet N PMČR 2024
B1: Nominace na PMČR 2024 | H1: Kontrola: | I1: Počet | J1: Nominace | K1: Počet | L1: Nominace | M1: Počet | N1: Nominace | O1: M: | P1: F: | Q1: M+F:
A2: No | B2: Jméno | C2: Aeroklub | D2: Rok narození | E2: M/F | F2: Junior | G2: No | I2: PMČR | J2: PMČR | K2: PMRg | L2: PMRg | M2: PMČRj | N2: PMČRj | O2: =COUNTIF(E:E,"M") -> 85 | P2: =COUNTIF(E:E,"F") -> 10 | Q2: =O2+P2 -> 95 | R2: S náhradníky
A3: 6.6.5. | B3: Nominace na PMČR - všeobecně (dle SŘ ZM11) | N3: Celkem řádně nominováno: | O3: =O2-COUNTIF(E55:E59,"M")-COUNTIF(E105:E113,"M") -> 72 | P3: =P2-COUNTIF(E55:E59,"F")-COUNTIF(E105:E113,"F") -> 9 | Q3: =O3+P3 -> 81 | R3: Bez náhradníků
B4: Na PMČR nominuje PK minimálně 80 pilotů/pilotek a příslušný počet náhradníků pro stanovená nominační kritéria.
B5: PMČR se mohou zúčastnit pouze soutěžící nominovaní dle jednotlivých bodů odstavců 6.6.6., 6.6.7. a 6.6.8.
B6: Pořadatel soutěže nemůže doplnit soutěžící na základě jiných kritérií.
A7: 6.6.6. | B7: Řádná nominace - Na PMČR jsou nominováni:
B8: Všichni členové reprezentačního výběru (RV) ČR stanoveného pro daný soutěžní ročník (bez náhradníků):
A9: 1 | B9: Tomas Suchanek | C9: =VLOOKUP(B9,Pilot!A:C,3,0) -> GAC Benešov | D9: =VLOOKUP(B9,Pilot!A:B,2,0) -> 1964 | E9: =VLOOKUP(B9,Pilot!A:E,5,0) -> M | F9: =VLOOKUP(B9,Pilot!A:F,6,0) ->  | G9: =A9 -> 1 | I9: =COUNTIF(B:B,B9) -> 1 | J9: =IF(ISERROR(VLOOKUP(B9,B:G,6,0)),"-",VLOOKUP(B9,B:G,6,0)) -> 1 | K9: =IF(COUNTIF('N PMRg 2024'!B:B,B9)=0,"-",COUNTIF('N PMRg 2024'!B:B,B9)) -> - | L9: =IF(ISERROR(VLOOKUP(B9,'N PMRg 2024'!B:G,6,0)),"-",VLOOKUP(B9,'N PMRg 2024'!B:G,6,0)) -> - | M9: =IF(COUNTIF('N PMČRj 2024'!B:B,B9)=0,"-",COUNTIF('N PMČRj 2024'!B:B,B9)) -> - | N9: =IF(ISERROR(VLOOKUP(B9,'N PMČRj 2024'!B:G,6,0)),"-",VLOOKUP(B9,'N PMČRj 2024'!B:G,6,0)) -> -
A10: =A9+1 -> 2 | B10: Radek Krejcirik | C10: =VLOOKUP(B10,Pilot!A:C,3,0) -> Hranice | D10: =VLOOKUP(B10,Pilot!A:B,2,0) -> 1991 | E10: =VLOOKUP(B10,Pilot!A:E,5,0) -> M | F10: =VLOOKUP(B10,Pilot!A:F,6,0) ->  | G10: =A10 -> 2 | I10: 1 | J10: 2 | K10: =IF(COUNTIF('N PMRg 2024'!B:B,B10)=0,"-",COUNTIF('N PMRg 2024'!B:B,B10)) -> - | L10: =IF(ISERROR(VLOOKUP(B10,'N PMRg 2024'!B:G,6,0)),"-",VLOOKUP(B10,'N PMRg 2024'!B:G,6,0)) -> - | M10: =IF(COUNTIF('N PMČRj 2024'!B:B,B10)=0,"-",COUNTIF('N PMČRj 2024'!B:B,B10)) -> - | N10: =IF(ISERROR(VLOOKUP(B10,'N PMČRj 2024'!B:G,6,0)),"-",VLOOKUP(B10,'N PMČRj 2024'!B:G,6,0)) -> -
A11: =A10+1 -> 3 | B11: Jan Pavlik | C11: =VLOOKUP(B11,Pilot!A:C,3,0) -> Křižanov | D11: =VLOOKUP(B11,Pilot!A:B,2,0) -> 1987 | E11: =VLOOKUP(B11,Pilot!A:E,5,0) -> M | F11: =VLOOKUP(B11,Pilot!A:F,6,0) ->  | G11: 3 | I11: 1 | J11: 3 | K11: =IF(COUNTIF('N PMRg 2024'!B:B,B11)=0,"-",COUNTIF('N PMRg 2024'!B:B,B11)) -> - | L11: =IF(ISERROR(VLOOKUP(B11,'N PMRg 2024'!B:G,6,0)),"-",VLOOKUP(B11,'N PMRg 2024'!B:G,6,0)) -> - | M11: =IF(COUNTIF('N PMČRj 2024'!B:B,B11)=0,"-",COUNTIF('N PMČRj 2024'!B:B,B11)) -> - | N11: =IF(ISERROR(VLOOKUP(B11,'N PMČRj 2024'!B:G,6,0)),"-",VLOOKUP(B11,'N PMČRj 2024'!B:G,6,0)) -> -
A12: 4 | B12: Miloslav Cink | C12: =VLOOKUP(B12,Pilot!A:C,3,0) -> Letkov | D12: =VLOOKUP(B12,Pilot!A:B,2,0) -> 1987 | E12: =VLOOKUP(B12,Pilot!A:E,5,0) -> M | F12: =VLOOKUP(B12,Pilot!A:F,6,0) ->  | G12: 4 | I12: 1 | J12: 4 | K12: =IF(COUNTIF('N PMRg 2024'!B:B,B12)=0,"-",COUNTIF('N PMRg 2024'!B:B,B12)) -> - | L12: =IF(ISERROR(VLOOKUP(B12,'N PMRg 2024'!B:G,6,0)),"-",VLOOKUP(B12,'N PMRg 2024'!B:G,6,0)) -> - | M12: =IF(COUNTIF('N PMČRj 2024'!B:B,B12)=0,"-",COUNTIF('N PMČRj 2024'!B:B,B12)) -> - | N12: =IF(ISERROR(VLOOKUP(B12,'N PMČRj 2024'!B:G,6,0)),"-",VLOOKUP(B12,'N PMČRj 2024'!B:G,6,0)) -> -
A13: 5 | B13: Lukas Kriz | C13: =VLOOKUP(B13,Pilot!A:C,3,0) -> Křižanov | D13: =VLOOKUP(B13,Pilot!A:B,2,0) -> 2003 | E13: =VLOOKUP(B13,Pilot!A:E,5,0) -> M | F13: =VLOOKUP(B13,Pilot!A:F,6,0) -> Junior v roce 2024 | G13: 5 | I13: 1 | J13: 5 | K13: =IF(COUNTIF('N PMRg 2024'!B:B,B13)=0,"-",COUNTIF('N PMRg 2024'!B:B,B13)) -> - | L13: =IF(ISERROR(VLOOKUP(B13,'N PMRg 2024'!B:G,6,0)),"-",VLOOKUP(B13,'N PMRg 2024'!B:G,6,0)) -> - | M13: =IF(COUNTIF('N PMČRj 2024'!B:B,B13)=0,"-",COUNTIF('N PMČRj 2024'!B:B,B13)) -> 1 | N13: =IF(ISERROR(VLOOKUP(B13,'N PMČRj 2024'!B:G,6,0)),"-",VLOOKUP(B13,'N PMČRj 2024'!B:G,6,0)) -> 1
A14: 6 | B14: Radek Kucirek | C14: =VLOOKUP(B14,Pilot!A:C,3,0) -> Havlíčkův Brod | D14: =VLOOKUP(B14,Pilot!A:B,2,0) -> 1973 | E14: =VLOOKUP(B14,Pilot!A:E,5,0) -> M | F14: =VLOOKUP(B14,Pilot!A:F,6,0) ->  | G14: 6 | I14: 1 | J14: 6 | K14: =IF(COUNTIF('N PMRg 2024'!B:B,B14)=0,"-",COUNTIF('N PMRg 2024'!B:B,B14)) -> - | L14: =IF(ISERROR(VLOOKUP(B14,'N PMRg 2024'!B:G,6,0)),"-",VLOOKUP(B14,'N PMRg 2024'!B:G,6,0)) -> - | M14: =IF(COUNTIF('N PMČRj 2024'!B:B,B14)=0,"-",COUNTIF('N PMČRj 2024'!B:B,B14)) -> - | N14: =IF(ISERROR(VLOOKUP(B14,'N PMČRj 2024'!B:G,6,0)),"-",VLOOKUP(B14,'N PMČRj 2024'!B:G,6,0)) -> -
A15: 7 | B15: Michal Lesinger | C15: =VLOOKUP(B15,Pilot!A:C,3,0) -> Moravská Třebová | D15: =VLOOKUP(B15,Pilot!A:B,2,0) -> 1966 | E15: =VLOOKUP(B15,Pilot!A:E,5,0) -> M | F15: =VLOOKUP(B15,Pilot!A:F,6,0) ->  | G15: 7 | I15: 1 | J15: 7 | K15: =IF(COUNTIF('N PMRg 2024'!B:B,B15)=0,"-",COUNTIF('N PMRg 2024'!B:B,B15)) -> - | L15: =IF(ISERROR(VLOOKUP(B15,'N PMRg 2024'!B:G,6,0)),"-",VLOOKUP(B15,'N PMRg 2024'!B:G,6,0)) -> - | M15: =IF(COUNTIF('N PMČRj 2024'!B:B,B15)=0,"-",COUNTIF('N PMČRj 2024'!B:B,B15)) -> - | N15: =IF(ISERROR(VLOOKUP(B15,'N PMČRj 2024'!B:G,6,0)),"-",VLOOKUP(B15,'N PMČRj 2024'!B:G,6,0)) -> -
A16: 8 | B16: Pavel Louzecky | C16: =VLOOKUP(B16,Pilot!A:C,3,0) -> Přibyslav | D16: =VLOOKUP(B16,Pilot!A:B,2,0) -> 1957 | E16: =VLOOKUP(B16,Pilot!A:E,5,0) -> M | F16: =VLOOKUP(B16,Pilot!A:F,6,0) ->  | G16: 8 | I16: 1 | J16: 8 | K16: =IF(COUNTIF('N PMRg 2024'!B:B,B16)=0,"-",COUNTIF('N PMRg 2024'!B:B,B16)) -> - | L16: =IF(ISERROR(VLOOKUP(B16,'N PMRg 2024'!B:G,6,0)),"-",VLOOKUP(B16,'N PMRg 2024'!B:G,6,0)) -> - | M16: =IF(COUNTIF('N PMČRj 2024'!B:B,B16)=0,"-",COUNTIF('N PMČRj 2024'!B:B,B16)) -> - | N16: =IF(ISERROR(VLOOKUP(B16,'N PMČRj 2024'!B:G,6,0)),"-",VLOOKUP(B16,'N PMČRj 2024'!B:G,6,0)) -> -
A17: 9 | B17: Jaromir Macoun | C17: =VLOOKUP(B17,Pilot!A:C,3,0) -> Jičín | D17: =VLOOKUP(B17,Pilot!A:B,2,0) -> 1999 | E17: =VLOOKUP(B17,Pilot!A:E,5,0) -> M | F17: =VLOOKUP(B17,Pilot!A:F,6,0) -> Junior v roce 2024 | G17: 9 | I17: 1 | J17: 9 | K17: =IF(COUNTIF('N PMRg 2024'!B:B,B17)=0,"-",COUNTIF('N PMRg 2024'!B:B,B17)) -> - | L17: =IF(ISERROR(VLOOKUP(B17,'N PMRg 2024'!B:G,6,0)),"-",VLOOKUP(B17,'N PMRg 2024'!B:G,6,0)) -> - | M17: =IF(COUNTIF('N PMČRj 2024'!B:B,B17)=0,"-",COUNTIF('N PMČRj 2024'!B:B,B17)) -> 1 | N17: =IF(ISERROR(VLOOKUP(B17,'N PMČRj 2024'!B:G,6,0)),"-",VLOOKUP(B17,'N PMČRj 2024'!B:G,6,0)) -> 2
A18: 10 | B18: Ivan Novak | C18: =VLOOKUP(B18,Pilot!A:C,3,0) -> Mladá Boleslav | D18: =VLOOKUP(B18,Pilot!A:B,2,0) -> 1962 | E18: =VLOOKUP(B18,Pilot!A:E,5,0) -> M | F18: =VLOOKUP(B18,Pilot!A:F,6,0) ->  | G18: =A18 -> 10 | I18: 1 | J18: 10 | K18: =IF(COUNTIF('N PMRg 2024'!B:B,B18)=0,"-",COUNTIF('N PMRg 2024'!B:B,B18)) -> - | L18: =IF(ISERROR(VLOOKUP(B18,'N PMRg 2024'!B:G,6,0)),"-",VLOOKUP(B18,'N PMRg 2024'!B:G,6,0)) -> - | M18: =IF(COUNTIF('N PMČRj 2024'!B:B,B18)=0,"-",COUNTIF('N PMČRj 2024'!B:B,B18)) -> - | N18: =IF(ISERROR(VLOOKUP(B18,'N PMČRj 2024'!B:G,6,0)),"-",VLOOKUP(B18,'N PMČRj 2024'!B:G,6,0)) -> -
A19: 11 | B19: Martin Hrivna | C19: =VLOOKUP(B19,Pilot!A:C,3,0) -> Zbraslavice | D19: =VLOOKUP(B19,Pilot!A:B,2,0) -> 1978 | E19: =VLOOKUP(B19,Pilot!A:E,5,0) -> M | F19: =VLOOKUP(B19,Pilot!A:F,6,0) ->  | G19: 11 | I19: 1 | J19: 11 | K19: =IF(COUNTIF('N PMRg 2024'!B:B,B19)=0,"-",COUNTIF('N PMRg 2024'!B:B,B19)) -> - | L19: =IF(ISERROR(VLOOKUP(B19,'N PMRg 2024'!B:G,6,0)),"-",VLOOKUP(B19,'N PMRg 2024'!B:G,6,0)) -> - | M19: =IF(COUNTIF('N PMČRj 2024'!B:B,B19)=0,"-",COUNTIF('N PMČRj 2024'!B:B,B19)) -> - | N19: =IF(ISERROR(VLOOKUP(B19,'N PMČRj 2024'!B:G,6,0)),"-",VLOOKUP(B19,'N PMČRj 2024'!B:G,6,0)) -> -
A20: 12 | B20: Tomas Rendla | C20: =VLOOKUP(B20,Pilot!A:C,3,0) -> Zbraslavice | D20: =VLOOKUP(B20,Pilot!A:B,2,0) -> 1973 | E20: =VLOOKUP(B20,Pilot!A:E,5,0) -> M | F20: =VLOOKUP(B20,Pilot!A:F,6,0) ->  | G20: 12 | I20: 1 | J20: 12 | K20: =IF(COUNTIF('N PMRg 2024'!B:B,B20)=0,"-",COUNTIF('N PMRg 2024'!B:B,B20)) -> - | L20: =IF(ISERROR(VLOOKUP(B20,'N PMRg 2024'!B:G,6,0)),"-",VLOOKUP(B20,'N PMRg 2024'!B:G,6,0)) -> - | M20: =IF(COUNTIF('N PMČRj 2024'!B:B,B20)=0,"-",COUNTIF('N PMČRj 2024'!B:B,B20)) -> - | N20: =IF(ISERROR(VLOOKUP(B20,'N PMČRj 2024'!B:G,6,0)),"-",VLOOKUP(B20,'N PMČRj 2024'!B:G,6,0)) -> -
A21: 13 | B21: Jaroslav Tomana | C21: =VLOOKUP(B21,Pilot!A:C,3,0) -> Zbraslavice | D21: =VLOOKUP(B21,Pilot!A:B,2,0) -> 1975 | E21: =VLOOKUP(B21,Pilot!A:E,5,0) -> M | F21: =VLOOKUP(B21,Pilot!A:F,6,0) ->  | G21: =A21 -> 13 | I21: 1 | J21: 13 | K21: =IF(COUNTIF('N PMRg 2024'!B:B,B21)=0,"-",COUNTIF('N PMRg 2024'!B:B,B21)) -> - | L21: =IF(ISERROR(VLOOKUP(B21,'N PMRg 2024'!B:G,6,0)),"-",VLOOKUP(B21,'N PMRg 2024'!B:G,6,0)) -> - | M21: =IF(COUNTIF('N PMČRj 2024'!B:B,B21)=0,"-",COUNTIF('N PMČRj 2024'!B:B,B21)) -> - | N21: =IF(ISERROR(VLOOKUP(B21,'N PMČRj 2024'!B:G,6,0)),"-",VLOOKUP(B21,'N PMČRj 2024'!B:G,6,0)) -> -
A22: 14 | B22: Karel Novak | C22: =VLOOKUP(B22,Pilot!A:C,3,0) -> Mladá Boleslav | D22: =VLOOKUP(B22,Pilot!A:B,2,0) -> 1993 | E22: =VLOOKUP(B22,Pilot!A:E,5,0) -> M | F22: =VLOOKUP(B22,Pilot!A:F,6,0) ->  | G22: 14 | I22: 1 | J22: 14 | K22: =IF(COUNTIF('N PMRg 2024'!B:B,B22)=0,"-",COUNTIF('N PMRg 2024'!B:B,B22)) -> - | L22: =IF(ISERROR(VLOOKUP(B22,'N PMRg 2024'!B:G,6,0)),"-",VLOOKUP(B22,'N PMRg 2024'!B:G,6,0)) -> - | M22: =IF(COUNTIF('N PMČRj 2024'!B:B,B22)=0,"-",COUNTIF('N PMČRj 2024'!B:B,B22)) -> - | N22: =IF(ISERROR(VLOOKUP(B22,'N PMČRj 2024'!B:G,6,0)),"-",VLOOKUP(B22,'N PMČRj 2024'!B:G,6,0)) -> -
A23: 15 | B23: David Mach | C23: =VLOOKUP(B23,Pilot!A:C,3,0) -> Hronov | D23: =VLOOKUP(B23,Pilot!A:B,2,0) -> 1994 | E23: =VLOOKUP(B23,Pilot!A:E,5,0) -> M | F23: =VLOOKUP(B23,Pilot!A:F,6,0) ->  | G23: 15 | I23: 1 | J23: 15 | K23: =IF(COUNTIF('N PMRg 2024'!B:B,B23)=0,"-",COUNTIF('N PMRg 2024'!B:B,B23)) -> - | L23: =IF(ISERROR(VLOOKUP(B23,'N PMRg 2024'!B:G,6,0)),"-",VLOOKUP(B23,'N PMRg 2024'!B:G,6,0)) -> - | M23: =IF(COUNTIF('N PMČRj 2024'!B:B,B23)=0,"-",COUNTIF('N PMČRj 2024'!B:B,B23)) -> - | N23: =IF(ISERROR(VLOOKUP(B23,'N PMČRj 2024'!B:G,6,0)),"-",VLOOKUP(B23,'N PMČRj 2024'!B:G,6,0)) -> -
A24: 16 | B24: Barbora Moravcova | C24: =VLOOKUP(B24,Pilot!A:C,3,0) -> Zbraslavice | D24: =VLOOKUP(B24,Pilot!A:B,2,0) -> 1994 | E24: =VLOOKUP(B24,Pilot!A:E,5,0) -> F | F24: =VLOOKUP(B24,Pilot!A:F,6,0) ->  | G24: 16 | I24: 1 | J24: 16 | K24: =IF(COUNTIF('N PMRg 2024'!B:B,B24)=0,"-",COUNTIF('N PMRg 2024'!B:B,B24)) -> - | L24: =IF(ISERROR(VLOOKUP(B24,'N PMRg 2024'!B:G,6,0)),"-",VLOOKUP(B24,'N PMRg 2024'!B:G,6,0)) -> - | M24: =IF(COUNTIF('N PMČRj 2024'!B:B,B24)=0,"-",COUNTIF('N PMČRj 2024'!B:B,B24)) -> - | N24: =IF(ISERROR(VLOOKUP(B24,'N PMČRj 2024'!B:G,6,0)),"-",VLOOKUP(B24,'N PMČRj 2024'!B:G,6,0)) -> -
A25: 17 | B25: Pavel Trybenekr | C25: =VLOOKUP(B25,Pilot!A:C,3,0) -> Hořice | D25: =VLOOKUP(B25,Pilot!A:B,2,0) -> 1990 | E25: =VLOOKUP(B25,Pilot!A:E,5,0) -> M | F25: =VLOOKUP(B25,Pilot!A:F,6,0) ->  | G25: 17 | I25: 1 | J25: 17 | K25: =IF(COUNTIF('N PMRg 2024'!B:B,B25)=0,"-",COUNTIF('N PMRg 2024'!B:B,B25)) -> - | L25: =IF(ISERROR(VLOOKUP(B25,'N PMRg 2024'!B:G,6,0)),"-",VLOOKUP(B25,'N PMRg 2024'!B:G,6,0)) -> - | M25: =IF(COUNTIF('N PMČRj 2024'!B:B,B25)=0,"-",COUNTIF('N PMČRj 2024'!B:B,B25)) -> - | N25: =IF(ISERROR(VLOOKUP(B25,'N PMČRj 2024'!B:G,6,0)),"-",VLOOKUP(B25,'N PMČRj 2024'!B:G,6,0)) -> -
A26: 18 | B26: Petr Tichy | C26: =VLOOKUP(B26,Pilot!A:C,3,0) -> Zbraslavice | D26: =VLOOKUP(B26,Pilot!A:B,2,0) -> 1973 | E26: =VLOOKUP(B26,Pilot!A:E,5,0) -> M | F26: =VLOOKUP(B26,Pilot!A:F,6,0) ->  | G26: 18 | I26: 1 | J26: 18 | K26: =IF(COUNTIF('N PMRg 2024'!B:B,B26)=0,"-",COUNTIF('N PMRg 2024'!B:B,B26)) -> - | L26: =IF(ISERROR(VLOOKUP(B26,'N PMRg 2024'!B:G,6,0)),"-",VLOOKUP(B26,'N PMRg 2024'!B:G,6,0)) -> - | M26: =IF(COUNTIF('N PMČRj 2024'!B:B,B26)=0,"-",COUNTIF('N PMČRj 2024'!B:B,B26)) -> - | N26: =IF(ISERROR(VLOOKUP(B26,'N PMČRj 2024'!B:G,6,0)),"-",VLOOKUP(B26,'N PMČRj 2024'!B:G,6,0)) -> -
A27: 19 | B27: Jan Stastny | C27: =VLOOKUP(B27,Pilot!A:C,3,0) -> Medlánky | D27: =VLOOKUP(B27,Pilot!A:B,2,0) -> 2003 | E27: =VLOOKUP(B27,Pilot!A:E,5,0) -> M | F27: =VLOOKUP(B27,Pilot!A:F,6,0) -> Junior v roce 2024 | G27: 19 | I27: 1 | J27: 19 | K27: =IF(COUNTIF('N PMRg 2024'!B:B,B27)=0,"-",COUNTIF('N PMRg 2024'!B:B,B27)) -> - | L27: =IF(ISERROR(VLOOKUP(B27,'N PMRg 2024'!B:G,6,0)),"-",VLOOKUP(B27,'N PMRg 2024'!B:G,6,0)) -> - | M27: =IF(COUNTIF('N PMČRj 2024'!B:B,B27)=0,"-",COUNTIF('N PMČRj 2024'!B:B,B27)) -> 1 | N27: =IF(ISERROR(VLOOKUP(B27,'N PMČRj 2024'!B:G,6,0)),"-",VLOOKUP(B27,'N PMČRj 2024'!B:G,6,0)) -> 3
A28: 20 | B28: Petr Krejcirik | C28: =VLOOKUP(B28,Pilot!A:C,3,0) -> Hranice | D28: =VLOOKUP(B28,Pilot!A:B,2,0) -> 1960 | E28: =VLOOKUP(B28,Pilot!A:E,5,0) -> M | F28: =VLOOKUP(B28,Pilot!A:F,6,0) ->  | G28: 20 | I28: 1 | J28: 20 | K28: =IF(COUNTIF('N PMRg 2024'!B:B,B28)=0,"-",COUNTIF('N PMRg 2024'!B:B,B28)) -> - | L28: =IF(ISERROR(VLOOKUP(B28,'N PMRg 2024'!B:G,6,0)),"-",VLOOKUP(B28,'N PMRg 2024'!B:G,6,0)) -> - | M28: =IF(COUNTIF('N PMČRj 2024'!B:B,B28)=0,"-",COUNTIF('N PMČRj 2024'!B:B,B28)) -> - | N28: =IF(ISERROR(VLOOKUP(B28,'N PMČRj 2024'!B:G,6,0)),"-",VLOOKUP(B28,'N PMČRj 2024'!B:G,6,0)) -> -
A29: 21 | B29: Vit Morkovsky | C29: =VLOOKUP(B29,Pilot!A:C,3,0) -> Polička | D29: =VLOOKUP(B29,Pilot!A:B,2,0) -> 2000 | E29: =VLOOKUP(B29,Pilot!A:E,5,0) -> M | F29: =VLOOKUP(B29,Pilot!A:F,6,0) -> Junior v roce 2024 | G29: 21 | I29: 1 | J29: 21 | K29: =IF(COUNTIF('N PMRg 2024'!B:B,B29)=0,"-",COUNTIF('N PMRg 2024'!B:B,B29)) -> - | L29: =IF(ISERROR(VLOOKUP(B29,'N PMRg 2024'!B:G,6,0)),"-",VLOOKUP(B29,'N PMRg 2024'!B:G,6,0)) -> - | M29: =IF(COUNTIF('N PMČRj 2024'!B:B,B29)=0,"-",COUNTIF('N PMČRj 2024'!B:B,B29)) -> 1 | N29: =IF(ISERROR(VLOOKUP(B29,'N PMČRj 2024'!B:G,6,0)),"-",VLOOKUP(B29,'N PMČRj 2024'!B:G,6,0)) -> 4
A30: 22 | B30: Michaela Rendlova | C30: =VLOOKUP(B30,Pilot!A:C,3,0) -> Toužim | D30: =VLOOKUP(B30,Pilot!A:B,2,0) -> 2004 | E30: =VLOOKUP(B30,Pilot!A:E,5,0) -> F | F30: =VLOOKUP(B30,Pilot!A:F,6,0) -> Junior v roce 2024 | G30: 22 | I30: 1 | J30: 22 | K30: =IF(COUNTIF('N PMRg 2024'!B:B,B30)=0,"-",COUNTIF('N PMRg 2024'!B:B,B30)) -> - | L30: =IF(ISERROR(VLOOKUP(B30,'N PMRg 2024'!B:G,6,0)),"-",VLOOKUP(B30,'N PMRg 2024'!B:G,6,0)) -> - | M30: =IF(COUNTIF('N PMČRj 2024'!B:B,B30)=0,"-",COUNTIF('N PMČRj 2024'!B:B,B30)) -> 1 | N30: =IF(ISERROR(VLOOKUP(B30,'N PMČRj 2024'!B:G,6,0)),"-",VLOOKUP(B30,'N PMČRj 2024'!B:G,6,0)) -> 5
A31: 23 | B31: Vladimir Hammer | C31: =VLOOKUP(B31,Pilot!A:C,3,0) -> Letkov | D31: =VLOOKUP(B31,Pilot!A:B,2,0) -> 2000 | E31: =VLOOKUP(B31,Pilot!A:E,5,0) -> M | F31: =VLOOKUP(B31,Pilot!A:F,6,0) -> Junior v roce 2024 | G31: 23 | I31: 1 | J31: 23 | K31: =IF(COUNTIF('N PMRg 2024'!B:B,B31)=0,"-",COUNTIF('N PMRg 2024'!B:B,B31)) -> - | L31: =IF(ISERROR(VLOOKUP(B31,'N PMRg 2024'!B:G,6,0)),"-",VLOOKUP(B31,'N PMRg 2024'!B:G,6,0)) -> - | M31: =IF(COUNTIF('N PMČRj 2024'!B:B,B31)=0,"-",COUNTIF('N PMČRj 2024'!B:B,B31)) -> 1 | N31: =IF(ISERROR(VLOOKUP(B31,'N PMČRj 2024'!B:G,6,0)),"-",VLOOKUP(B31,'N PMČRj 2024'!B:G,6,0)) -> 6
A32: 24 | B32: Alena Netusilova | C32: =VLOOKUP(B32,Pilot!A:C,3,0) -> Zbraslavice | D32: =VLOOKUP(B32,Pilot!A:B,2,0) -> 1970 | E32: =VLOOKUP(B32,Pilot!A:E,5,0) -> F | F32: =VLOOKUP(B32,Pilot!A:F,6,0) ->  | G32: 24 | I32: 1 | J32: 24 | K32: =IF(COUNTIF('N PMRg 2024'!B:B,B32)=0,"-",COUNTIF('N PMRg 2024'!B:B,B32)) -> - | L32: =IF(ISERROR(VLOOKUP(B32,'N PMRg 2024'!B:G,6,0)),"-",VLOOKUP(B32,'N PMRg 2024'!B:G,6,0)) -> - | M32: =IF(COUNTIF('N PMČRj 2024'!B:B,B32)=0,"-",COUNTIF('N PMČRj 2024'!B:B,B32)) -> - | N32: =IF(ISERROR(VLOOKUP(B32,'N PMČRj 2024'!B:G,6,0)),"-",VLOOKUP(B32,'N PMČRj 2024'!B:G,6,0)) -> -
A33: 25 | B33: Tereza Koubkova | C33: =VLOOKUP(B33,Pilot!A:C,3,0) -> Vysoké Mýto | D33: =VLOOKUP(B33,Pilot!A:B,2,0) -> 1999 | E33: =VLOOKUP(B33,Pilot!A:E,5,0) -> F | F33: =VLOOKUP(B33,Pilot!A:F,6,0) -> Junior v roce 2024 | G33: 25 | I33: 1 | J33: 25 | K33: =IF(COUNTIF('N PMRg 2024'!B:B,B33)=0,"-",COUNTIF('N PMRg 2024'!B:B,B33)) -> - | L33: =IF(ISERROR(VLOOKUP(B33,'N PMRg 2024'!B:G,6,0)),"-",VLOOKUP(B33,'N PMRg 2024'!B:G,6,0)) -> - | M33: =IF(COUNTIF('N PMČRj 2024'!B:B,B33)=0,"-",COUNTIF('N PMČRj 2024'!B:B,B33)) -> 1 | N33: =IF(ISERROR(VLOOKUP(B33,'N PMČRj 2024'!B:G,6,0)),"-",VLOOKUP(B33,'N PMČRj 2024'!B:G,6,0)) -> 7
A34: 26 | B34: Hana Treslova | C34: =VLOOKUP(B34,Pilot!A:C,3,0) -> Raná | D34: =VLOOKUP(B34,Pilot!A:B,2,0) -> 1991 | E34: =VLOOKUP(B34,Pilot!A:E,5,0) -> F | F34: =VLOOKUP(B34,Pilot!A:F,6,0) ->  | G34: =A34 -> 26 | I34: 1 | J34: 26 | K34: =IF(COUNTIF('N PMRg 2024'!B:B,B34)=0,"-",COUNTIF('N PMRg 2024'!B:B,B34)) -> - | L34: =IF(ISERROR(VLOOKUP(B34,'N PMRg 2024'!B:G,6,0)),"-",VLOOKUP(B34,'N PMRg 2024'!B:G,6,0)) -> - | M34: =IF(COUNTIF('N PMČRj 2024'!B:B,B34)=0,"-",COUNTIF('N PMČRj 2024'!B:B,B34)) -> - | N34: =IF(ISERROR(VLOOKUP(B34,'N PMČRj 2024'!B:G,6,0)),"-",VLOOKUP(B34,'N PMČRj 2024'!B:G,6,0)) -> -
A35: 27 | B35: Dana Novakova | C35: =VLOOKUP(B35,Pilot!A:C,3,0) -> Mladá Boleslav | D35: =VLOOKUP(B35,Pilot!A:B,2,0) -> 1965 | E35: =VLOOKUP(B35,Pilot!A:E,5,0) -> F | F35: =VLOOKUP(B35,Pilot!A:F,6,0) ->  | G35: 27 | I35: 1 | J35: 27 | K35: =IF(COUNTIF('N PMRg 2024'!B:B,B35)=0,"-",COUNTIF('N PMRg 2024'!B:B,B35)) -> - | L35: =IF(ISERROR(VLOOKUP(B35,'N PMRg 2024'!B:G,6,0)),"-",VLOOKUP(B35,'N PMRg 2024'!B:G,6,0)) -> - | M35: =IF(COUNTIF('N PMČRj 2024'!B:B,B35)=0,"-",COUNTIF('N PMČRj 2024'!B:B,B35)) -> - | N35: =IF(ISERROR(VLOOKUP(B35,'N PMČRj 2024'!B:G,6,0)),"-",VLOOKUP(B35,'N PMČRj 2024'!B:G,6,0)) -> -
A36: 28 | B36: Petra Piskata | C36: =VLOOKUP(B36,Pilot!A:C,3,0) -> Luhačovice | D36: =VLOOKUP(B36,Pilot!A:B,2,0) -> 1989 | E36: =VLOOKUP(B36,Pilot!A:E,5,0) -> F | F36: =VLOOKUP(B36,Pilot!A:F,6,0) ->  | G36: 28 | I36: 1 | J36: 28 | K36: =IF(COUNTIF('N PMRg 2024'!B:B,B36)=0,"-",COUNTIF('N PMRg 2024'!B:B,B36)) -> - | L36: =IF(ISERROR(VLOOKUP(B36,'N PMRg 2024'!B:G,6,0)),"-",VLOOKUP(B36,'N PMRg 2024'!B:G,6,0)) -> - | M36: =IF(COUNTIF('N PMČRj 2024'!B:B,B36)=0,"-",COUNTIF('N PMČRj 2024'!B:B,B36)) -> - | N36: =IF(ISERROR(VLOOKUP(B36,'N PMČRj 2024'!B:G,6,0)),"-",VLOOKUP(B36,'N PMČRj 2024'!B:G,6,0)) -> -
A37: 29 | B37: Michaela Krizova | C37: =VLOOKUP(B37,Pilot!A:C,3,0) -> Přibyslav | D37: =VLOOKUP(B37,Pilot!A:B,2,0) -> 2001 | E37: =VLOOKUP(B37,Pilot!A:E,5,0) -> F | F37: =VLOOKUP(B37,Pilot!A:F,6,0) -> Junior v roce 2024 | G37: 29 | I37: 1 | J37: 29 | K37: =IF(COUNTIF('N PMRg 2024'!B:B,B37)=0,"-",COUNTIF('N PMRg 2024'!B:B,B37)) -> - | L37: =IF(ISERROR(VLOOKUP(B37,'N PMRg 2024'!B:G,6,0)),"-",VLOOKUP(B37,'N PMRg 2024'!B:G,6,0)) -> - | M37: =IF(COUNTIF('N PMČRj 2024'!B:B,B37)=0,"-",COUNTIF('N PMČRj 2024'!B:B,B37)) -> 1 | N37: =IF(ISERROR(VLOOKUP(B37,'N PMČRj 2024'!B:G,6,0)),"-",VLOOKUP(B37,'N PMČRj 2024'!B:G,6,0)) -> 8
A38: 30 | B38: Jana Treslova | C38: =VLOOKUP(B38,Pilot!A:C,3,0) -> Raná | D38: =VLOOKUP(B38,Pilot!A:B,2,0) -> 1963 | E38: =VLOOKUP(B38,Pilot!A:E,5,0) -> F | F38: =VLOOKUP(B38,Pilot!A:F,6,0) ->  | G38: 30 | I38: 1 | J38: 30 | K38: =IF(COUNTIF('N PMRg 2024'!B:B,B38)=0,"-",COUNTIF('N PMRg 2024'!B:B,B38)) -> - | L38: =IF(ISERROR(VLOOKUP(B38,'N PMRg 2024'!B:G,6,0)),"-",VLOOKUP(B38,'N PMRg 2024'!B:G,6,0)) -> - | M38: =IF(COUNTIF('N PMČRj 2024'!B:B,B38)=0,"-",COUNTIF('N PMČRj 2024'!B:B,B38)) -> - | N38: =IF(ISERROR(VLOOKUP(B38,'N PMČRj 2024'!B:G,6,0)),"-",VLOOKUP(B38,'N PMČRj 2024'!B:G,6,0)) -> -
B39: Další soutěžící, kteří se umístili v konečném pořadí na posledním platném PMČR ve své třídě nejhůře v první polovině celkového pořadí (bez náhradníků):
B40: PMČR 2023 - Moravská Třebová - Klub
A41: =MAX(A9:A40)+1 -> 31 | B41: Petr Stepanek | C41: =VLOOKUP(B41,Pilot!A:C,3,0) -> Moravská Třebová | D41: =VLOOKUP(B41,Pilot!A:B,2,0) -> 1989 | E41: =VLOOKUP(B41,Pilot!A:E,5,0) -> M | F41: =VLOOKUP(B41,Pilot!A:F,6,0) ->  | G41: =A41 -> 31 | I41: =COUNTIF(B:B,B41) -> 1 | J41: =IF(ISERROR(VLOOKUP(B41,B:G,6,0)),"-",VLOOKUP(B41,B:G,6,0)) -> 31 | K41: =IF(COUNTIF('N PMRg 2024'!B:B,B41)=0,"-",COUNTIF('N PMRg 2024'!B:B,B41)) -> - | L41: =IF(ISERROR(VLOOKUP(B41,'N PMRg 2024'!B:G,6,0)),"-",VLOOKUP(B41,'N PMRg 2024'!B:G,6,0)) -> - | M41: =IF(COUNTIF('N PMČRj 2024'!B:B,B41)=0,"-",COUNTIF('N PMČRj 2024'!B:B,B41)) -> - | N41: =IF(ISERROR(VLOOKUP(B41,'N PMČRj 2024'!B:G,6,0)),"-",VLOOKUP(B41,'N PMČRj 2024'!B:G,6,0)) -> -
A42: =A41+1 -> 32 | B42: Lukas Capek | C42: =VLOOKUP(B42,Pilot!A:C,3,0) -> Letňany | D42: =VLOOKUP(B42,Pilot!A:B,2,0) -> 1992 | E42: =VLOOKUP(B42,Pilot!A:E,5,0) -> M | F42: =VLOOKUP(B42,Pilot!A:F,6,0) ->  | G42: =A42 -> 32 | I42: =COUNTIF(B:B,B42) -> 1 | J42: =IF(ISERROR(VLOOKUP(B42,B:G,6,0)),"-",VLOOKUP(B42,B:G,6,0)) -> 32 | K42: =IF(COUNTIF('N PMRg 2024'!B:B,B42)=0,"-",COUNTIF('N PMRg 2024'!B:B,B42)) -> - | L42: =IF(ISERROR(VLOOKUP(B42,'N PMRg 2024'!B:G,6,0)),"-",VLOOKUP(B42,'N PMRg 2024'!B:G,6,0)) -> - | M42: =IF(COUNTIF('N PMČRj 2024'!B:B,B42)=0,"-",COUNTIF('N PMČRj 2024'!B:B,B42)) -> - | N42: =IF(ISERROR(VLOOKUP(B42,'N PMČRj 2024'!B:G,6,0)),"-",VLOOKUP(B42,'N PMČRj 2024'!B:G,6,0)) -> -
B43: PMČR 2023 - Moravská Třebová - Kombi 15m
A44: - | B44: - | C44: =VLOOKUP(B44,Pilot!A:C,3,0) ->  | D44: =VLOOKUP(B44,Pilot!A:B,2,0) ->  | E44: =VLOOKUP(B44,Pilot!A:E,5,0) ->  | F44: =VLOOKUP(B44,Pilot!A:F,6,0) ->  | G44: =A44 -> - | I44: =COUNTIF(B:B,B44) -> 6 | J44: =IF(ISERROR(VLOOKUP(B44,B:G,6,0)),"-",VLOOKUP(B44,B:G,6,0)) -> - | K44: =IF(COUNTIF('N PMRg 2024'!B:B,B44)=0,"-",COUNTIF('N PMRg 2024'!B:B,B44)) -> 66 | L44: =IF(ISERROR(VLOOKUP(B44,'N PMRg 2024'!B:G,6,0)),"-",VLOOKUP(B44,'N PMRg 2024'!B:G,6,0)) -> - | M44: =IF(COUNTIF('N PMČRj 2024'!B:B,B44)=0,"-",COUNTIF('N PMČRj 2024'!B:B,B44)) -> 33 | N44: =IF(ISERROR(VLOOKUP(B44,'N PMČRj 2024'!B:G,6,0)),"-",VLOOKUP(B44,'N PMČRj 2024'!B:G,6,0)) -> 18
B45: PMČR 2023 - Moravská Třebová - Kombi Open
A46: =MAX(A9:A45)+1 -> 33 | B46: Jiri Kusbach | C46: =VLOOKUP(B46,Pilot!A:C,3,0) -> Luhačovice | D46: =VLOOKUP(B46,Pilot!A:B,2,0) -> 1959 | E46: =VLOOKUP(B46,Pilot!A:E,5,0) -> M | F46: =VLOOKUP(B46,Pilot!A:F,6,0) ->  | G46: =A46 -> 33 | I46: =COUNTIF(B:B,B46) -> 1 | J46: =IF(ISERROR(VLOOKUP(B46,B:G,6,0)),"-",VLOOKUP(B46,B:G,6,0)) -> 33 | K46: =IF(COUNTIF('N PMRg 2024'!B:B,B46)=0,"-",COUNTIF('N PMRg 2024'!B:B,B46)) -> - | L46: =IF(ISERROR(VLOOKUP(B46,'N PMRg 2024'!B:G,6,0)),"-",VLOOKUP(B46,'N PMRg 2024'!B:G,6,0)) -> - | M46: =IF(COUNTIF('N PMČRj 2024'!B:B,B46)=0,"-",COUNTIF('N PMČRj 2024'!B:B,B46)) -> - | N46: =IF(ISERROR(VLOOKUP(B46,'N PMČRj 2024'!B:G,6,0)),"-",VLOOKUP(B46,'N PMČRj 2024'!B:G,6,0)) -> -
A47: =A46+1 -> 34 | B47: Pavel Jiranek | C47: =VLOOKUP(B47,Pilot!A:C,3,0) -> Toužim | D47: =VLOOKUP(B47,Pilot!A:B,2,0) -> 1993 | E47: =VLOOKUP(B47,Pilot!A:E,5,0) -> M | F47: =VLOOKUP(B47,Pilot!A:F,6,0) ->  | G47: 34 | I47: =COUNTIF(B:B,B47) -> 1 | J47: =IF(ISERROR(VLOOKUP(B47,B:G,6,0)),"-",VLOOKUP(B47,B:G,6,0)) -> 34 | K47: =IF(COUNTIF('N PMRg 2024'!B:B,B47)=0,"-",COUNTIF('N PMRg 2024'!B:B,B47)) -> - | L47: =IF(ISERROR(VLOOKUP(B47,'N PMRg 2024'!B:G,6,0)),"-",VLOOKUP(B47,'N PMRg 2024'!B:G,6,0)) -> - | M47: =IF(COUNTIF('N PMČRj 2024'!B:B,B47)=0,"-",COUNTIF('N PMČRj 2024'!B:B,B47)) -> - | N47: =IF(ISERROR(VLOOKUP(B47,'N PMČRj 2024'!B:G,6,0)),"-",VLOOKUP(B47,'N PMČRj 2024'!B:G,6,0)) -> -
B48: Prvních 5 soutěžících z posledního platného PMČRj mimo RV (+ 5 náhradníků):
B49: PMČRj 2023 - Hosín - Klub
A50: =MAX(A9:A49)+1 -> 35 | B50: Tomas Hynek | C50: =VLOOKUP(B50,Pilot!A:C,3,0) -> Dvůr Králové | D50: =VLOOKUP(B50,Pilot!A:B,2,0) -> 2002 | E50: =VLOOKUP(B50,Pilot!A:E,5,0) -> M | F50: =VLOOKUP(B50,Pilot!A:F,6,0) -> Junior v roce 2024 | G50: =A50 -> 35 | I50: =COUNTIF(B:B,B50) -> 1 | J50: =IF(ISERROR(VLOOKUP(B50,B:G,6,0)),"-",VLOOKUP(B50,B:G,6,0)) -> 35 | K50: =IF(COUNTIF('N PMRg 2024'!B:B,B50)=0,"-",COUNTIF('N PMRg 2024'!B:B,B50)) -> - | L50: =IF(ISERROR(VLOOKUP(B50,'N PMRg 2024'!B:G,6,0)),"-",VLOOKUP(B50,'N PMRg 2024'!B:G,6,0)) -> - | M50: =IF(COUNTIF('N PMČRj 2024'!B:B,B50)=0,"-",COUNTIF('N PMČRj 2024'!B:B,B50)) -> 1 | N50: =IF(ISERROR(VLOOKUP(B50,'N PMČRj 2024'!B:G,6,0)),"-",VLOOKUP(B50,'N PMČRj 2024'!B:G,6,0)) -> 14
A51: =A50+1 -> 36 | B51: Jan Beran | C51: =VLOOKUP(B51,Pilot!A:C,3,0) -> Kladno | D51: =VLOOKUP(B51,Pilot!A:B,2,0) -> 1999 | E51: =VLOOKUP(B51,Pilot!A:E,5,0) -> M | F51: =VLOOKUP(B51,Pilot!A:F,6,0) -> Junior v roce 2024 | G51: 36 | I51: 1 | J51: 36 | K51: =IF(COUNTIF('N PMRg 2024'!B:B,B51)=0,"-",COUNTIF('N PMRg 2024'!B:B,B51)) -> - | L51: =IF(ISERROR(VLOOKUP(B51,'N PMRg 2024'!B:G,6,0)),"-",VLOOKUP(B51,'N PMRg 2024'!B:G,6,0)) -> - | M51: =IF(COUNTIF('N PMČRj 2024'!B:B,B51)=0,"-",COUNTIF('N PMČRj 2024'!B:B,B51)) -> 1 | N51: =IF(ISERROR(VLOOKUP(B51,'N PMČRj 2024'!B:G,6,0)),"-",VLOOKUP(B51,'N PMČRj 2024'!B:G,6,0)) -> 15
A52: =A51+1 -> 37 | B52: Lukas Maly | C52: =VLOOKUP(B52,Pilot!A:C,3,0) -> Vysoké Mýto | D52: =VLOOKUP(B52,Pilot!A:B,2,0) -> 1998 | E52: =VLOOKUP(B52,Pilot!A:E,5,0) -> M | F52: =VLOOKUP(B52,Pilot!A:F,6,0) ->  | G52: 37 | I52: 1 | J52: 37 | K52: =IF(COUNTIF('N PMRg 2024'!B:B,B52)=0,"-",COUNTIF('N PMRg 2024'!B:B,B52)) -> - | L52: =IF(ISERROR(VLOOKUP(B52,'N PMRg 2024'!B:G,6,0)),"-",VLOOKUP(B52,'N PMRg 2024'!B:G,6,0)) -> - | M52: =IF(COUNTIF('N PMČRj 2024'!B:B,B52)=0,"-",COUNTIF('N PMČRj 2024'!B:B,B52)) -> 1 | N52: =IF(ISERROR(VLOOKUP(B52,'N PMČRj 2024'!B:G,6,0)),"-",VLOOKUP(B52,'N PMČRj 2024'!B:G,6,0)) -> 16
A53: =A52+1 -> 38 | B53: Stepan Bartos | C53: =VLOOKUP(B53,Pilot!A:C,3,0) -> Kolín | D53: =VLOOKUP(B53,Pilot!A:B,2,0) -> 2004 | E53: =VLOOKUP(B53,Pilot!A:E,5,0) -> M | F53: =VLOOKUP(B53,Pilot!A:F,6,0) -> Junior v roce 2024 | G53: 38 | I53: 1 | J53: 38 | K53: =IF(COUNTIF('N PMRg 2024'!B:B,B53)=0,"-",COUNTIF('N PMRg 2024'!B:B,B53)) -> - | L53: =IF(ISERROR(VLOOKUP(B53,'N PMRg 2024'!B:G,6,0)),"-",VLOOKUP(B53,'N PMRg 2024'!B:G,6,0)) -> - | M53: =IF(COUNTIF('N PMČRj 2024'!B:B,B53)=0,"-",COUNTIF('N PMČRj 2024'!B:B,B53)) -> 1 | N53: =IF(ISERROR(VLOOKUP(B53,'N PMČRj 2024'!B:G,6,0)),"-",VLOOKUP(B53,'N PMČRj 2024'!B:G,6,0)) -> 17
A54: =A53+1 -> 39 | B54: Stepan Filakovsky | C54: =VLOOKUP(B54,Pilot!A:C,3,0) -> Medlánky | D54: =VLOOKUP(B54,Pilot!A:B,2,0) -> 2005 | E54: =VLOOKUP(B54,Pilot!A:E,5,0) -> M | F54: =VLOOKUP(B54,Pilot!A:F,6,0) -> Junior v roce 2024 | G54: 39 | I54: 1 | J54: 39 | K54: =IF(COUNTIF('N PMRg 2024'!B:B,B54)=0,"-",COUNTIF('N PMRg 2024'!B:B,B54)) -> - | L54: =IF(ISERROR(VLOOKUP(B54,'N PMRg 2024'!B:G,6,0)),"-",VLOOKUP(B54,'N PMRg 2024'!B:G,6,0)) -> - | M54: =IF(COUNTIF('N PMČRj 2024'!B:B,B54)=0,"-",COUNTIF('N PMČRj 2024'!B:B,B54)) -> 1 | N54: =IF(ISERROR(VLOOKUP(B54,'N PMČRj 2024'!B:G,6,0)),"-",VLOOKUP(B54,'N PMČRj 2024'!B:G,6,0)) -> 9
A55: N1 | B55: Matej Bartos | C55: =VLOOKUP(B55,Pilot!A:C,3,0) -> Hodkovice | D55: =VLOOKUP(B55,Pilot!A:B,2,0) -> 1998 | E55: =VLOOKUP(B55,Pilot!A:E,5,0) -> M | F55: =VLOOKUP(B55,Pilot!A:F,6,0) ->  | G55: N1 | I55: 1 | J55: N1 | K55: =IF(COUNTIF('N PMRg 2024'!B:B,B55)=0,"-",COUNTIF('N PMRg 2024'!B:B,B55)) -> - | L55: =IF(ISERROR(VLOOKUP(B55,'N PMRg 2024'!B:G,6,0)),"-",VLOOKUP(B55,'N PMRg 2024'!B:G,6,0)) -> - | M55: =IF(COUNTIF('N PMČRj 2024'!B:B,B55)=0,"-",COUNTIF('N PMČRj 2024'!B:B,B55)) -> - | N55: =IF(ISERROR(VLOOKUP(B55,'N PMČRj 2024'!B:G,6,0)),"-",VLOOKUP(B55,'N PMČRj 2024'!B:G,6,0)) -> -
A56: N2 | B56: Vojtech Vach 03 | C56: =VLOOKUP(B56,Pilot!A:C,3,0) -> Nové Město nad Metují | D56: =VLOOKUP(B56,Pilot!A:B,2,0) -> 2003 | E56: =VLOOKUP(B56,Pilot!A:E,5,0) -> M | F56: =VLOOKUP(B56,Pilot!A:F,6,0) -> Junior v roce 2024 | G56: N2 | I56: 1 | J56: N2 | K56: =IF(COUNTIF('N PMRg 2024'!B:B,B56)=0,"-",COUNTIF('N PMRg 2024'!B:B,B56)) -> 1 | L56: =IF(ISERROR(VLOOKUP(B56,'N PMRg 2024'!B:G,6,0)),"-",VLOOKUP(B56,'N PMRg 2024'!B:G,6,0)) -> 1 | M56: =IF(COUNTIF('N PMČRj 2024'!B:B,B56)=0,"-",COUNTIF('N PMČRj 2024'!B:B,B56)) -> 1 | N56: =IF(ISERROR(VLOOKUP(B56,'N PMČRj 2024'!B:G,6,0)),"-",VLOOKUP(B56,'N PMČRj 2024'!B:G,6,0)) -> 10
A57: N3 | B57: Petr Masik | C57: =VLOOKUP(B57,Pilot!A:C,3,0) -> Zábřeh | D57: =VLOOKUP(B57,Pilot!A:B,2,0) -> 2001 | E57: =VLOOKUP(B57,Pilot!A:E,5,0) -> M | F57: =VLOOKUP(B57,Pilot!A:F,6,0) -> Junior v roce 2024 | G57: N3 | I57: 1 | J57: N3 | K57: =IF(COUNTIF('N PMRg 2024'!B:B,B57)=0,"-",COUNTIF('N PMRg 2024'!B:B,B57)) -> 1 | L57: =IF(ISERROR(VLOOKUP(B57,'N PMRg 2024'!B:G,6,0)),"-",VLOOKUP(B57,'N PMRg 2024'!B:G,6,0)) -> 2 | M57: =IF(COUNTIF('N PMČRj 2024'!B:B,B57)=0,"-",COUNTIF('N PMČRj 2024'!B:B,B57)) -> 1 | N57: =IF(ISERROR(VLOOKUP(B57,'N PMČRj 2024'!B:G,6,0)),"-",VLOOKUP(B57,'N PMČRj 2024'!B:G,6,0)) -> 11
A58: N4 | B58: Tibor Hezina | C58: =VLOOKUP(B58,Pilot!A:C,3,0) -> Křižanov | D58: =VLOOKUP(B58,Pilot!A:B,2,0) -> 2002 | E58: =VLOOKUP(B58,Pilot!A:E,5,0) -> M | F58: =VLOOKUP(B58,Pilot!A:F,6,0) -> Junior v roce 2024 | G58: N4 | I58: 1 | J58: N4 | K58: =IF(COUNTIF('N PMRg 2024'!B:B,B58)=0,"-",COUNTIF('N PMRg 2024'!B:B,B58)) -> - | L58: =IF(ISERROR(VLOOKUP(B58,'N PMRg 2024'!B:G,6,0)),"-",VLOOKUP(B58,'N PMRg 2024'!B:G,6,0)) -> - | M58: =IF(COUNTIF('N PMČRj 2024'!B:B,B58)=0,"-",COUNTIF('N PMČRj 2024'!B:B,B58)) -> - | N58: =IF(ISERROR(VLOOKUP(B58,'N PMČRj 2024'!B:G,6,0)),"-",VLOOKUP(B58,'N PMČRj 2024'!B:G,6,0)) -> -
A59: N5 | B59: Katerina Vancurova | C59: =VLOOKUP(B59,Pilot!A:C,3,0) -> Hranice | D59: =VLOOKUP(B59,Pilot!A:B,2,0) -> 2002 | E59: =VLOOKUP(B59,Pilot!A:E,5,0) -> F | F59: =VLOOKUP(B59,Pilot!A:F,6,0) -> Junior v roce 2024 | G59: N5 | I59: 1 | J59: N5 | K59: =IF(COUNTIF('N PMRg 2024'!B:B,B59)=0,"-",COUNTIF('N PMRg 2024'!B:B,B59)) -> - | L59: =IF(ISERROR(VLOOKUP(B59,'N PMRg 2024'!B:G,6,0)),"-",VLOOKUP(B59,'N PMRg 2024'!B:G,6,0)) -> - | M59: =IF(COUNTIF('N PMČRj 2024'!B:B,B59)=0,"-",COUNTIF('N PMČRj 2024'!B:B,B59)) -> - | N59: =IF(ISERROR(VLOOKUP(B59,'N PMČRj 2024'!B:G,6,0)),"-",VLOOKUP(B59,'N PMČRj 2024'!B:G,6,0)) -> -
B60: Ostatní soutěžící z posledního platného PMRg v pořadí podle umístění, do naplnění celkového počtu nominovaných dle 6.6.5. (+ 10 náhradníků). Je-li PMRg pořádáno ve více třídách, a/nebo ve více regionech, pak jsou na PMČR nominováni soutěžící podle korigovaných bodů z jednotlivých tříd/regionů do naplnění celkového počtu nominovaných dle 6.6.5. V případě neplatnosti některé ze soutěžních tříd posledního PMRg budou pro výpočet korigovaných bodů použity výsledky z posledního platného PMRg v dané třídě:
B61: PMRg 2022 - Hodkovice - Korigované body
A62: =MAX(A9:A61)+1 -> 40 | B62: Pavel Rericha | C62: =VLOOKUP(B62,Pilot!A:C,3,0) -> Moravská Třebová | D62: =VLOOKUP(B62,Pilot!A:B,2,0) -> 1967 | E62: =VLOOKUP(B62,Pilot!A:E,5,0) -> M | F62: =VLOOKUP(B62,Pilot!A:F,6,0) ->  | G62: =A62 -> 40 | I62: =COUNTIF(B:B,B62) -> 1 | J62: =IF(ISERROR(VLOOKUP(B62,B:G,6,0)),"-",VLOOKUP(B62,B:G,6,0)) -> 40 | K62: =IF(COUNTIF('N PMRg 2024'!B:B,B62)=0,"-",COUNTIF('N PMRg 2024'!B:B,B62)) -> - | L62: =IF(ISERROR(VLOOKUP(B62,'N PMRg 2024'!B:G,6,0)),"-",VLOOKUP(B62,'N PMRg 2024'!B:G,6,0)) -> - | M62: =IF(COUNTIF('N PMČRj 2024'!B:B,B62)=0,"-",COUNTIF('N PMČRj 2024'!B:B,B62)) -> - | N62: =IF(ISERROR(VLOOKUP(B62,'N PMČRj 2024'!B:G,6,0)),"-",VLOOKUP(B62,'N PMČRj 2024'!B:G,6,0)) -> -
A63: =A62+1 -> 41 | B63: Jan Louda | C63: =VLOOKUP(B63,Pilot!A:C,3,0) -> Mladá Boleslav | D63: =VLOOKUP(B63,Pilot!A:B,2,0) -> 1986 | E63: =VLOOKUP(B63,Pilot!A:E,5,0) -> M | F63: =VLOOKUP(B63,Pilot!A:F,6,0) ->  | G63: 41 | I63: 1 | J63: 41 | K63: =IF(COUNTIF('N PMRg 2024'!B:B,B63)=0,"-",COUNTIF('N PMRg 2024'!B:B,B63)) -> - | L63: =IF(ISERROR(VLOOKUP(B63,'N PMRg 2024'!B:G,6,0)),"-",VLOOKUP(B63,'N PMRg 2024'!B:G,6,0)) -> - | M63: =IF(COUNTIF('N PMČRj 2024'!B:B,B63)=0,"-",COUNTIF('N PMČRj 2024'!B:B,B63)) -> - | N63: =IF(ISERROR(VLOOKUP(B63,'N PMČRj 2024'!B:G,6,0)),"-",VLOOKUP(B63,'N PMČRj 2024'!B:G,6,0)) -> -
A64: =A63+1 -> 42 | B64: Josef Busek | C64: =VLOOKUP(B64,Pilot!A:C,3,0) -> Hosín | D64: =VLOOKUP(B64,Pilot!A:B,2,0) -> 1967 | E64: =VLOOKUP(B64,Pilot!A:E,5,0) -> M | F64: =VLOOKUP(B64,Pilot!A:F,6,0) ->  | G64: 42 | I64: 1 | J64: 42 | K64: =IF(COUNTIF('N PMRg 2024'!B:B,B64)=0,"-",COUNTIF('N PMRg 2024'!B:B,B64)) -> - | L64: =IF(ISERROR(VLOOKUP(B64,'N PMRg 2024'!B:G,6,0)),"-",VLOOKUP(B64,'N PMRg 2024'!B:G,6,0)) -> - | M64: =IF(COUNTIF('N PMČRj 2024'!B:B,B64)=0,"-",COUNTIF('N PMČRj 2024'!B:B,B64)) -> - | N64: =IF(ISERROR(VLOOKUP(B64,'N PMČRj 2024'!B:G,6,0)),"-",VLOOKUP(B64,'N PMČRj 2024'!B:G,6,0)) -> -
A65: 43 | B65: Marek Svancara | C65: =VLOOKUP(B65,Pilot!A:C,3,0) -> GAC Benešov | D65: =VLOOKUP(B65,Pilot!A:B,2,0) -> 1976 | E65: =VLOOKUP(B65,Pilot!A:E,5,0) -> M | F65: =VLOOKUP(B65,Pilot!A:F,6,0) ->  | G65: 43 | I65: 1 | J65: 43 | K65: =IF(COUNTIF('N PMRg 2024'!B:B,B65)=0,"-",COUNTIF('N PMRg 2024'!B:B,B65)) -> - | L65: =IF(ISERROR(VLOOKUP(B65,'N PMRg 2024'!B:G,6,0)),"-",VLOOKUP(B65,'N PMRg 2024'!B:G,6,0)) -> - | M65: =IF(COUNTIF('N PMČRj 2024'!B:B,B65)=0,"-",COUNTIF('N PMČRj 2024'!B:B,B65)) -> - | N65: =IF(ISERROR(VLOOKUP(B65,'N PMČRj 2024'!B:G,6,0)),"-",VLOOKUP(B65,'N PMČRj 2024'!B:G,6,0)) -> -
A66: 44 | B66: Jan Smaha | C66: =VLOOKUP(B66,Pilot!A:C,3,0) -> Česká Lípa | D66: =VLOOKUP(B66,Pilot!A:B,2,0) -> 1958 | E66: =VLOOKUP(B66,Pilot!A:E,5,0) -> M | F66: =VLOOKUP(B66,Pilot!A:F,6,0) ->  | G66: 44 | I66: 1 | J66: 44 | K66: =IF(COUNTIF('N PMRg 2024'!B:B,B66)=0,"-",COUNTIF('N PMRg 2024'!B:B,B66)) -> - | L66: =IF(ISERROR(VLOOKUP(B66,'N PMRg 2024'!B:G,6,0)),"-",VLOOKUP(B66,'N PMRg 2024'!B:G,6,0)) -> - | M66: =IF(COUNTIF('N PMČRj 2024'!B:B,B66)=0,"-",COUNTIF('N PMČRj 2024'!B:B,B66)) -> - | N66: =IF(ISERROR(VLOOKUP(B66,'N PMČRj 2024'!B:G,6,0)),"-",VLOOKUP(B66,'N PMČRj 2024'!B:G,6,0)) -> -
A67: 45 | B67: Jaromir Pauer | C67: =VLOOKUP(B67,Pilot!A:C,3,0) -> Hosín | D67: =VLOOKUP(B67,Pilot!A:B,2,0) -> 1974 | E67: =VLOOKUP(B67,Pilot!A:E,5,0) -> M | F67: =VLOOKUP(B67,Pilot!A:F,6,0) ->  | G67: 45 | I67: 1 | J67: 45 | K67: =IF(COUNTIF('N PMRg 2024'!B:B,B67)=0,"-",COUNTIF('N PMRg 2024'!B:B,B67)) -> - | L67: =IF(ISERROR(VLOOKUP(B67,'N PMRg 2024'!B:G,6,0)),"-",VLOOKUP(B67,'N PMRg 2024'!B:G,6,0)) -> - | M67: =IF(COUNTIF('N PMČRj 2024'!B:B,B67)=0,"-",COUNTIF('N PMČRj 2024'!B:B,B67)) -> - | N67: =IF(ISERROR(VLOOKUP(B67,'N PMČRj 2024'!B:G,6,0)),"-",VLOOKUP(B67,'N PMČRj 2024'!B:G,6,0)) -> -
A68: 46 | B68: Petr Rozhon | C68: =VLOOKUP(B68,Pilot!A:C,3,0) -> Hosín | D68: =VLOOKUP(B68,Pilot!A:B,2,0) -> 1972 | E68: =VLOOKUP(B68,Pilot!A:E,5,0) -> M | F68: =VLOOKUP(B68,Pilot!A:F,6,0) ->  | G68: 46 | I68: 1 | J68: 46 | K68: =IF(COUNTIF('N PMRg 2024'!B:B,B68)=0,"-",COUNTIF('N PMRg 2024'!B:B,B68)) -> - | L68: =IF(ISERROR(VLOOKUP(B68,'N PMRg 2024'!B:G,6,0)),"-",VLOOKUP(B68,'N PMRg 2024'!B:G,6,0)) -> - | M68: =IF(COUNTIF('N PMČRj 2024'!B:B,B68)=0,"-",COUNTIF('N PMČRj 2024'!B:B,B68)) -> - | N68: =IF(ISERROR(VLOOKUP(B68,'N PMČRj 2024'!B:G,6,0)),"-",VLOOKUP(B68,'N PMČRj 2024'!B:G,6,0)) -> -
A69: 47 | B69: Pavel Koudelka | C69: =VLOOKUP(B69,Pilot!A:C,3,0) -> Křižanov | D69: =VLOOKUP(B69,Pilot!A:B,2,0) -> 1973 | E69: =VLOOKUP(B69,Pilot!A:E,5,0) -> M | F69: =VLOOKUP(B69,Pilot!A:F,6,0) ->  | G69: 47 | I69: 1 | J69: 47 | K69: =IF(COUNTIF('N PMRg 2024'!B:B,B69)=0,"-",COUNTIF('N PMRg 2024'!B:B,B69)) -> - | L69: =IF(ISERROR(VLOOKUP(B69,'N PMRg 2024'!B:G,6,0)),"-",VLOOKUP(B69,'N PMRg 2024'!B:G,6,0)) -> - | M69: =IF(COUNTIF('N PMČRj 2024'!B:B,B69)=0,"-",COUNTIF('N PMČRj 2024'!B:B,B69)) -> - | N69: =IF(ISERROR(VLOOKUP(B69,'N PMČRj 2024'!B:G,6,0)),"-",VLOOKUP(B69,'N PMČRj 2024'!B:G,6,0)) -> -
A70: 48 | B70: Michael Fik | C70: =VLOOKUP(B70,Pilot!A:C,3,0) -> Strakonice | D70: =VLOOKUP(B70,Pilot!A:B,2,0) -> 1972 | E70: =VLOOKUP(B70,Pilot!A:E,5,0) -> M | F70: =VLOOKUP(B70,Pilot!A:F,6,0) ->  | G70: 48 | I70: 1 | J70: 48 | K70: =IF(COUNTIF('N PMRg 2024'!B:B,B70)=0,"-",COUNTIF('N PMRg 2024'!B:B,B70)) -> - | L70: =IF(ISERROR(VLOOKUP(B70,'N PMRg 2024'!B:G,6,0)),"-",VLOOKUP(B70,'N PMRg 2024'!B:G,6,0)) -> - | M70: =IF(COUNTIF('N PMČRj 2024'!B:B,B70)=0,"-",COUNTIF('N PMČRj 2024'!B:B,B70)) -> - | N70: =IF(ISERROR(VLOOKUP(B70,'N PMČRj 2024'!B:G,6,0)),"-",VLOOKUP(B70,'N PMČRj 2024'!B:G,6,0)) -> -
A71: 49 | B71: Jiri Krofta | C71: =VLOOKUP(B71,Pilot!A:C,3,0) -> Hosín | D71: =VLOOKUP(B71,Pilot!A:B,2,0) -> 1988 | E71: =VLOOKUP(B71,Pilot!A:E,5,0) -> M | F71: =VLOOKUP(B71,Pilot!A:F,6,0) ->  | G71: 49 | I71: 1 | J71: 49 | K71: =IF(COUNTIF('N PMRg 2024'!B:B,B71)=0,"-",COUNTIF('N PMRg 2024'!B:B,B71)) -> - | L71: =IF(ISERROR(VLOOKUP(B71,'N PMRg 2024'!B:G,6,0)),"-",VLOOKUP(B71,'N PMRg 2024'!B:G,6,0)) -> - | M71: =IF(COUNTIF('N PMČRj 2024'!B:B,B71)=0,"-",COUNTIF('N PMČRj 2024'!B:B,B71)) -> - | N71: =IF(ISERROR(VLOOKUP(B71,'N PMČRj 2024'!B:G,6,0)),"-",VLOOKUP(B71,'N PMČRj 2024'!B:G,6,0)) -> -
A72: 50 | B72: Michal Vranek | C72: =VLOOKUP(B72,Pilot!A:C,3,0) -> Hosín | D72: =VLOOKUP(B72,Pilot!A:B,2,0) -> 1993 | E72: =VLOOKUP(B72,Pilot!A:E,5,0) -> M | F72: =VLOOKUP(B72,Pilot!A:F,6,0) ->  | G72: 50 | I72: 1 | J72: 50 | K72: =IF(COUNTIF('N PMRg 2024'!B:B,B72)=0,"-",COUNTIF('N PMRg 2024'!B:B,B72)) -> - | L72: =IF(ISERROR(VLOOKUP(B72,'N PMRg 2024'!B:G,6,0)),"-",VLOOKUP(B72,'N PMRg 2024'!B:G,6,0)) -> - | M72: =IF(COUNTIF('N PMČRj 2024'!B:B,B72)=0,"-",COUNTIF('N PMČRj 2024'!B:B,B72)) -> - | N72: =IF(ISERROR(VLOOKUP(B72,'N PMČRj 2024'!B:G,6,0)),"-",VLOOKUP(B72,'N PMČRj 2024'!B:G,6,0)) -> -
A73: 51 | B73: Karel Mares | C73: =VLOOKUP(B73,Pilot!A:C,3,0) -> Slaný | D73: =VLOOKUP(B73,Pilot!A:B,2,0) -> 1974 | E73: =VLOOKUP(B73,Pilot!A:E,5,0) -> M | F73: =VLOOKUP(B73,Pilot!A:F,6,0) ->  | G73: 51 | I73: 1 | J73: 51 | K73: =IF(COUNTIF('N PMRg 2024'!B:B,B73)=0,"-",COUNTIF('N PMRg 2024'!B:B,B73)) -> - | L73: =IF(ISERROR(VLOOKUP(B73,'N PMRg 2024'!B:G,6,0)),"-",VLOOKUP(B73,'N PMRg 2024'!B:G,6,0)) -> - | M73: =IF(COUNTIF('N PMČRj 2024'!B:B,B73)=0,"-",COUNTIF('N PMČRj 2024'!B:B,B73)) -> - | N73: =IF(ISERROR(VLOOKUP(B73,'N PMČRj 2024'!B:G,6,0)),"-",VLOOKUP(B73,'N PMČRj 2024'!B:G,6,0)) -> -
A74: 52 | B74: Miloslav Hulmak | C74: =VLOOKUP(B74,Pilot!A:C,3,0) -> Hosín | D74: =VLOOKUP(B74,Pilot!A:B,2,0) -> 1963 | E74: =VLOOKUP(B74,Pilot!A:E,5,0) -> M | F74: =VLOOKUP(B74,Pilot!A:F,6,0) ->  | G74: 52 | I74: 1 | J74: 52 | K74: =IF(COUNTIF('N PMRg 2024'!B:B,B74)=0,"-",COUNTIF('N PMRg 2024'!B:B,B74)) -> - | L74: =IF(ISERROR(VLOOKUP(B74,'N PMRg 2024'!B:G,6,0)),"-",VLOOKUP(B74,'N PMRg 2024'!B:G,6,0)) -> - | M74: =IF(COUNTIF('N PMČRj 2024'!B:B,B74)=0,"-",COUNTIF('N PMČRj 2024'!B:B,B74)) -> - | N74: =IF(ISERROR(VLOOKUP(B74,'N PMČRj 2024'!B:G,6,0)),"-",VLOOKUP(B74,'N PMČRj 2024'!B:G,6,0)) -> -
A75: 53 | B75: Radek Zima 78 | C75: =VLOOKUP(B75,Pilot!A:C,3,0) -> Hodkovice | D75: =VLOOKUP(B75,Pilot!A:B,2,0) -> 1978 | E75: =VLOOKUP(B75,Pilot!A:E,5,0) -> M | F75: =VLOOKUP(B75,Pilot!A:F,6,0) ->  | G75: 53 | I75: 1 | J75: 53 | K75: =IF(COUNTIF('N PMRg 2024'!B:B,B75)=0,"-",COUNTIF('N PMRg 2024'!B:B,B75)) -> - | L75: =IF(ISERROR(VLOOKUP(B75,'N PMRg 2024'!B:G,6,0)),"-",VLOOKUP(B75,'N PMRg 2024'!B:G,6,0)) -> - | M75: =IF(COUNTIF('N PMČRj 2024'!B:B,B75)=0,"-",COUNTIF('N PMČRj 2024'!B:B,B75)) -> - | N75: =IF(ISERROR(VLOOKUP(B75,'N PMČRj 2024'!B:G,6,0)),"-",VLOOKUP(B75,'N PMČRj 2024'!B:G,6,0)) -> -
A76: 54 | B76: Daniel Marek | C76: =VLOOKUP(B76,Pilot!A:C,3,0) -> Hosín | D76: =VLOOKUP(B76,Pilot!A:B,2,0) -> 1983 | E76: =VLOOKUP(B76,Pilot!A:E,5,0) -> M | F76: =VLOOKUP(B76,Pilot!A:F,6,0) ->  | G76: =A76 -> 54 | I76: 1 | J76: 54 | K76: =IF(COUNTIF('N PMRg 2024'!B:B,B76)=0,"-",COUNTIF('N PMRg 2024'!B:B,B76)) -> - | L76: =IF(ISERROR(VLOOKUP(B76,'N PMRg 2024'!B:G,6,0)),"-",VLOOKUP(B76,'N PMRg 2024'!B:G,6,0)) -> - | M76: =IF(COUNTIF('N PMČRj 2024'!B:B,B76)=0,"-",COUNTIF('N PMČRj 2024'!B:B,B76)) -> - | N76: =IF(ISERROR(VLOOKUP(B76,'N PMČRj 2024'!B:G,6,0)),"-",VLOOKUP(B76,'N PMČRj 2024'!B:G,6,0)) -> -
A77: 55 | B77: Frantisek Suna | C77: =VLOOKUP(B77,Pilot!A:C,3,0) -> Hosín | D77: =VLOOKUP(B77,Pilot!A:B,2,0) -> 1983 | E77: =VLOOKUP(B77,Pilot!A:E,5,0) -> M | F77: =VLOOKUP(B77,Pilot!A:F,6,0) ->  | G77: 55 | I77: 1 | J77: 55 | K77: =IF(COUNTIF('N PMRg 2024'!B:B,B77)=0,"-",COUNTIF('N PMRg 2024'!B:B,B77)) -> - | L77: =IF(ISERROR(VLOOKUP(B77,'N PMRg 2024'!B:G,6,0)),"-",VLOOKUP(B77,'N PMRg 2024'!B:G,6,0)) -> - | M77: =IF(COUNTIF('N PMČRj 2024'!B:B,B77)=0,"-",COUNTIF('N PMČRj 2024'!B:B,B77)) -> - | N77: =IF(ISERROR(VLOOKUP(B77,'N PMČRj 2024'!B:G,6,0)),"-",VLOOKUP(B77,'N PMČRj 2024'!B:G,6,0)) -> -
A78: 56 | B78: Michal Hemrle | C78: =VLOOKUP(B78,Pilot!A:C,3,0) -> Česká Lípa | D78: =VLOOKUP(B78,Pilot!A:B,2,0) -> 1974 | E78: =VLOOKUP(B78,Pilot!A:E,5,0) -> M | F78: =VLOOKUP(B78,Pilot!A:F,6,0) ->  | G78: 56 | I78: 1 | J78: 56 | K78: =IF(COUNTIF('N PMRg 2024'!B:B,B78)=0,"-",COUNTIF('N PMRg 2024'!B:B,B78)) -> - | L78: =IF(ISERROR(VLOOKUP(B78,'N PMRg 2024'!B:G,6,0)),"-",VLOOKUP(B78,'N PMRg 2024'!B:G,6,0)) -> - | M78: =IF(COUNTIF('N PMČRj 2024'!B:B,B78)=0,"-",COUNTIF('N PMČRj 2024'!B:B,B78)) -> - | N78: =IF(ISERROR(VLOOKUP(B78,'N PMČRj 2024'!B:G,6,0)),"-",VLOOKUP(B78,'N PMČRj 2024'!B:G,6,0)) -> -
A79: 57 | B79: Radoslav Pur | C79: =VLOOKUP(B79,Pilot!A:C,3,0) -> Hosín | D79: =VLOOKUP(B79,Pilot!A:B,2,0) -> 1973 | E79: =VLOOKUP(B79,Pilot!A:E,5,0) -> M | F79: =VLOOKUP(B79,Pilot!A:F,6,0) ->  | G79: =A79 -> 57 | I79: 1 | J79: 57 | K79: =IF(COUNTIF('N PMRg 2024'!B:B,B79)=0,"-",COUNTIF('N PMRg 2024'!B:B,B79)) -> - | L79: =IF(ISERROR(VLOOKUP(B79,'N PMRg 2024'!B:G,6,0)),"-",VLOOKUP(B79,'N PMRg 2024'!B:G,6,0)) -> - | M79: =IF(COUNTIF('N PMČRj 2024'!B:B,B79)=0,"-",COUNTIF('N PMČRj 2024'!B:B,B79)) -> - | N79: =IF(ISERROR(VLOOKUP(B79,'N PMČRj 2024'!B:G,6,0)),"-",VLOOKUP(B79,'N PMČRj 2024'!B:G,6,0)) -> -
A80: 58 | B80: Jiri Holcman | C80: =VLOOKUP(B80,Pilot!A:C,3,0) -> Hosín | D80: =VLOOKUP(B80,Pilot!A:B,2,0) -> 1976 | E80: =VLOOKUP(B80,Pilot!A:E,5,0) -> M | F80: =VLOOKUP(B80,Pilot!A:F,6,0) ->  | G80: 58 | I80: 1 | J80: 58 | K80: =IF(COUNTIF('N PMRg 2024'!B:B,B80)=0,"-",COUNTIF('N PMRg 2024'!B:B,B80)) -> - | L80: =IF(ISERROR(VLOOKUP(B80,'N PMRg 2024'!B:G,6,0)),"-",VLOOKUP(B80,'N PMRg 2024'!B:G,6,0)) -> - | M80: =IF(COUNTIF('N PMČRj 2024'!B:B,B80)=0,"-",COUNTIF('N PMČRj 2024'!B:B,B80)) -> - | N80: =IF(ISERROR(VLOOKUP(B80,'N PMČRj 2024'!B:G,6,0)),"-",VLOOKUP(B80,'N PMČRj 2024'!B:G,6,0)) -> -
A81: 59 | B81: Tomas Vaclavik | C81: =VLOOKUP(B81,Pilot!A:C,3,0) -> Hosín | D81: =VLOOKUP(B81,Pilot!A:B,2,0) -> 1974 | E81: =VLOOKUP(B81,Pilot!A:E,5,0) -> M | F81: =VLOOKUP(B81,Pilot!A:F,6,0) ->  | G81: 59 | I81: 1 | J81: 59 | K81: =IF(COUNTIF('N PMRg 2024'!B:B,B81)=0,"-",COUNTIF('N PMRg 2024'!B:B,B81)) -> - | L81: =IF(ISERROR(VLOOKUP(B81,'N PMRg 2024'!B:G,6,0)),"-",VLOOKUP(B81,'N PMRg 2024'!B:G,6,0)) -> - | M81: =IF(COUNTIF('N PMČRj 2024'!B:B,B81)=0,"-",COUNTIF('N PMČRj 2024'!B:B,B81)) -> - | N81: =IF(ISERROR(VLOOKUP(B81,'N PMČRj 2024'!B:G,6,0)),"-",VLOOKUP(B81,'N PMČRj 2024'!B:G,6,0)) -> -
A82: 60 | B82: Petr Sochor | C82: =VLOOKUP(B82,Pilot!A:C,3,0) -> Hosín | D82: =VLOOKUP(B82,Pilot!A:B,2,0) -> 1986 | E82: =VLOOKUP(B82,Pilot!A:E,5,0) -> M | F82: =VLOOKUP(B82,Pilot!A:F,6,0) ->  | G82: 60 | I82: 1 | J82: 60 | K82: =IF(COUNTIF('N PMRg 2024'!B:B,B82)=0,"-",COUNTIF('N PMRg 2024'!B:B,B82)) -> - | L82: =IF(ISERROR(VLOOKUP(B82,'N PMRg 2024'!B:G,6,0)),"-",VLOOKUP(B82,'N PMRg 2024'!B:G,6,0)) -> - | M82: =IF(COUNTIF('N PMČRj 2024'!B:B,B82)=0,"-",COUNTIF('N PMČRj 2024'!B:B,B82)) -> - | N82: =IF(ISERROR(VLOOKUP(B82,'N PMČRj 2024'!B:G,6,0)),"-",VLOOKUP(B82,'N PMČRj 2024'!B:G,6,0)) -> -
B83: Ostatní soutěžící z posledního platného Všeobecného žebříku v pořadí podle umístění, do naplnění celkového počtu 80 nominovaných dle 6.6.5. (+ 10 náhradníků):
A84: =MAX(A9:A83)+1 -> 61 | B84: Jan Kotan | C84: =VLOOKUP(B84,Pilot!A:C,3,0) -> Letňany | D84: =VLOOKUP(B84,Pilot!A:B,2,0) -> 1982 | E84: =VLOOKUP(B84,Pilot!A:E,5,0) -> M | F84: =VLOOKUP(B84,Pilot!A:F,6,0) ->  | G84: 61 | I84: =COUNTIF(B:B,B84) -> 1 | J84: =IF(ISERROR(VLOOKUP(B84,B:G,6,0)),"-",VLOOKUP(B84,B:G,6,0)) -> 61 | K84: =IF(COUNTIF('N PMRg 2024'!B:B,B84)=0,"-",COUNTIF('N PMRg 2024'!B:B,B84)) -> - | L84: =IF(ISERROR(VLOOKUP(B84,'N PMRg 2024'!B:G,6,0)),"-",VLOOKUP(B84,'N PMRg 2024'!B:G,6,0)) -> - | M84: =IF(COUNTIF('N PMČRj 2024'!B:B,B84)=0,"-",COUNTIF('N PMČRj 2024'!B:B,B84)) -> - | N84: =IF(ISERROR(VLOOKUP(B84,'N PMČRj 2024'!B:G,6,0)),"-",VLOOKUP(B84,'N PMČRj 2024'!B:G,6,0)) -> -
A85: =A84+1 -> 62 | B85: Petr Hotovy | C85: =VLOOKUP(B85,Pilot!A:C,3,0) -> Česká Lípa | D85: =VLOOKUP(B85,Pilot!A:B,2,0) -> 1958 | E85: =VLOOKUP(B85,Pilot!A:E,5,0) -> M | F85: =VLOOKUP(B85,Pilot!A:F,6,0) ->  | G85: =A85 -> 62 | I85: 1 | J85: 62 | K85: =IF(COUNTIF('N PMRg 2024'!B:B,B85)=0,"-",COUNTIF('N PMRg 2024'!B:B,B85)) -> - | L85: =IF(ISERROR(VLOOKUP(B85,'N PMRg 2024'!B:G,6,0)),"-",VLOOKUP(B85,'N PMRg 2024'!B:G,6,0)) -> - | M85: =IF(COUNTIF('N PMČRj 2024'!B:B,B85)=0,"-",COUNTIF('N PMČRj 2024'!B:B,B85)) -> - | N85: =IF(ISERROR(VLOOKUP(B85,'N PMČRj 2024'!B:G,6,0)),"-",VLOOKUP(B85,'N PMČRj 2024'!B:G,6,0)) -> -
A86: 63 | B86: Radek Hybl | C86: =VLOOKUP(B86,Pilot!A:C,3,0) -> Šumperk | D86: =VLOOKUP(B86,Pilot!A:B,2,0) -> 1980 | E86: =VLOOKUP(B86,Pilot!A:E,5,0) -> M | F86: =VLOOKUP(B86,Pilot!A:F,6,0) ->  | G86: 63 | I86: 1 | J86: 63 | K86: =IF(COUNTIF('N PMRg 2024'!B:B,B86)=0,"-",COUNTIF('N PMRg 2024'!B:B,B86)) -> - | L86: =IF(ISERROR(VLOOKUP(B86,'N PMRg 2024'!B:G,6,0)),"-",VLOOKUP(B86,'N PMRg 2024'!B:G,6,0)) -> - | M86: =IF(COUNTIF('N PMČRj 2024'!B:B,B86)=0,"-",COUNTIF('N PMČRj 2024'!B:B,B86)) -> - | N86: =IF(ISERROR(VLOOKUP(B86,'N PMČRj 2024'!B:G,6,0)),"-",VLOOKUP(B86,'N PMČRj 2024'!B:G,6,0)) -> -
A87: 64 | B87: Josef Novotny | C87: =VLOOKUP(B87,Pilot!A:C,3,0) -> Přibyslav | D87: =VLOOKUP(B87,Pilot!A:B,2,0) -> 1983 | E87: =VLOOKUP(B87,Pilot!A:E,5,0) -> M | F87: =VLOOKUP(B87,Pilot!A:F,6,0) ->  | G87: 64 | I87: 1 | J87: 64 | K87: =IF(COUNTIF('N PMRg 2024'!B:B,B87)=0,"-",COUNTIF('N PMRg 2024'!B:B,B87)) -> - | L87: =IF(ISERROR(VLOOKUP(B87,'N PMRg 2024'!B:G,6,0)),"-",VLOOKUP(B87,'N PMRg 2024'!B:G,6,0)) -> - | M87: =IF(COUNTIF('N PMČRj 2024'!B:B,B87)=0,"-",COUNTIF('N PMČRj 2024'!B:B,B87)) -> - | N87: =IF(ISERROR(VLOOKUP(B87,'N PMČRj 2024'!B:G,6,0)),"-",VLOOKUP(B87,'N PMČRj 2024'!B:G,6,0)) -> -
A88: 65 | B88: Jan Boruvka | C88: =VLOOKUP(B88,Pilot!A:C,3,0) -> Jičín | D88: =VLOOKUP(B88,Pilot!A:B,2,0) -> 1984 | E88: =VLOOKUP(B88,Pilot!A:E,5,0) -> M | F88: =VLOOKUP(B88,Pilot!A:F,6,0) ->  | G88: =A88 -> 65 | I88: 1 | J88: 65 | K88: =IF(COUNTIF('N PMRg 2024'!B:B,B88)=0,"-",COUNTIF('N PMRg 2024'!B:B,B88)) -> - | L88: =IF(ISERROR(VLOOKUP(B88,'N PMRg 2024'!B:G,6,0)),"-",VLOOKUP(B88,'N PMRg 2024'!B:G,6,0)) -> - | M88: =IF(COUNTIF('N PMČRj 2024'!B:B,B88)=0,"-",COUNTIF('N PMČRj 2024'!B:B,B88)) -> - | N88: =IF(ISERROR(VLOOKUP(B88,'N PMČRj 2024'!B:G,6,0)),"-",VLOOKUP(B88,'N PMČRj 2024'!B:G,6,0)) -> -
A89: 66 | B89: Frantisek Vancura | C89: =VLOOKUP(B89,Pilot!A:C,3,0) -> Hranice | D89: =VLOOKUP(B89,Pilot!A:B,2,0) -> 1966 | E89: =VLOOKUP(B89,Pilot!A:E,5,0) -> M | F89: =VLOOKUP(B89,Pilot!A:F,6,0) ->  | G89: =A89 -> 66 | I89: 1 | J89: 66 | K89: =IF(COUNTIF('N PMRg 2024'!B:B,B89)=0,"-",COUNTIF('N PMRg 2024'!B:B,B89)) -> - | L89: =IF(ISERROR(VLOOKUP(B89,'N PMRg 2024'!B:G,6,0)),"-",VLOOKUP(B89,'N PMRg 2024'!B:G,6,0)) -> - | M89: =IF(COUNTIF('N PMČRj 2024'!B:B,B89)=0,"-",COUNTIF('N PMČRj 2024'!B:B,B89)) -> - | N89: =IF(ISERROR(VLOOKUP(B89,'N PMČRj 2024'!B:G,6,0)),"-",VLOOKUP(B89,'N PMČRj 2024'!B:G,6,0)) -> -
A90: 67 | B90: Ondrej Bordovsky | C90: =VLOOKUP(B90,Pilot!A:C,3,0) -> Krnov | D90: =VLOOKUP(B90,Pilot!A:B,2,0) -> 1983 | E90: =VLOOKUP(B90,Pilot!A:E,5,0) -> M | F90: =VLOOKUP(B90,Pilot!A:F,6,0) ->  | G90: =A90 -> 67 | I90: 1 | J90: 67 | K90: =IF(COUNTIF('N PMRg 2024'!B:B,B90)=0,"-",COUNTIF('N PMRg 2024'!B:B,B90)) -> - | L90: =IF(ISERROR(VLOOKUP(B90,'N PMRg 2024'!B:G,6,0)),"-",VLOOKUP(B90,'N PMRg 2024'!B:G,6,0)) -> - | M90: =IF(COUNTIF('N PMČRj 2024'!B:B,B90)=0,"-",COUNTIF('N PMČRj 2024'!B:B,B90)) -> - | N90: =IF(ISERROR(VLOOKUP(B90,'N PMČRj 2024'!B:G,6,0)),"-",VLOOKUP(B90,'N PMČRj 2024'!B:G,6,0)) -> -
A91: 68 | B91: Ondrej Dupal | C91: =VLOOKUP(B91,Pilot!A:C,3,0) -> GAC Benešov | D91: =VLOOKUP(B91,Pilot!A:B,2,0) -> 1966 | E91: =VLOOKUP(B91,Pilot!A:E,5,0) -> M | F91: =VLOOKUP(B91,Pilot!A:F,6,0) ->  | G91: 68 | I91: 1 | J91: 68 | K91: =IF(COUNTIF('N PMRg 2024'!B:B,B91)=0,"-",COUNTIF('N PMRg 2024'!B:B,B91)) -> - | L91: =IF(ISERROR(VLOOKUP(B91,'N PMRg 2024'!B:G,6,0)),"-",VLOOKUP(B91,'N PMRg 2024'!B:G,6,0)) -> - | M91: =IF(COUNTIF('N PMČRj 2024'!B:B,B91)=0,"-",COUNTIF('N PMČRj 2024'!B:B,B91)) -> - | N91: =IF(ISERROR(VLOOKUP(B91,'N PMČRj 2024'!B:G,6,0)),"-",VLOOKUP(B91,'N PMČRj 2024'!B:G,6,0)) -> -
A92: 69 | B92: Petr Koutny | C92: =VLOOKUP(B92,Pilot!A:C,3,0) -> Křižanov | D92: =VLOOKUP(B92,Pilot!A:B,2,0) -> 1971 | E92: =VLOOKUP(B92,Pilot!A:E,5,0) -> M | F92: =VLOOKUP(B92,Pilot!A:F,6,0) ->  | G92: 69 | I92: 1 | J92: 69 | K92: =IF(COUNTIF('N PMRg 2024'!B:B,B92)=0,"-",COUNTIF('N PMRg 2024'!B:B,B92)) -> - | L92: =IF(ISERROR(VLOOKUP(B92,'N PMRg 2024'!B:G,6,0)),"-",VLOOKUP(B92,'N PMRg 2024'!B:G,6,0)) -> - | M92: =IF(COUNTIF('N PMČRj 2024'!B:B,B92)=0,"-",COUNTIF('N PMČRj 2024'!B:B,B92)) -> - | N92: =IF(ISERROR(VLOOKUP(B92,'N PMČRj 2024'!B:G,6,0)),"-",VLOOKUP(B92,'N PMČRj 2024'!B:G,6,0)) -> -
A93: 70 | B93: Ivan Harasta 65 | C93: =VLOOKUP(B93,Pilot!A:C,3,0) -> Toužim | D93: =VLOOKUP(B93,Pilot!A:B,2,0) -> 1965 | E93: =VLOOKUP(B93,Pilot!A:E,5,0) -> M | F93: =VLOOKUP(B93,Pilot!A:F,6,0) ->  | G93: 70 | I93: 1 | J93: 70 | K93: =IF(COUNTIF('N PMRg 2024'!B:B,B93)=0,"-",COUNTIF('N PMRg 2024'!B:B,B93)) -> - | L93: =IF(ISERROR(VLOOKUP(B93,'N PMRg 2024'!B:G,6,0)),"-",VLOOKUP(B93,'N PMRg 2024'!B:G,6,0)) -> - | M93: =IF(COUNTIF('N PMČRj 2024'!B:B,B93)=0,"-",COUNTIF('N PMČRj 2024'!B:B,B93)) -> - | N93: =IF(ISERROR(VLOOKUP(B93,'N PMČRj 2024'!B:G,6,0)),"-",VLOOKUP(B93,'N PMČRj 2024'!B:G,6,0)) -> -
A94: 71 | B94: Jindrich Svorc | C94: =VLOOKUP(B94,Pilot!A:C,3,0) -> Letňany | D94: =VLOOKUP(B94,Pilot!A:B,2,0) -> 1978 | E94: =VLOOKUP(B94,Pilot!A:E,5,0) -> M | F94: =VLOOKUP(B94,Pilot!A:F,6,0) ->  | G94: 71 | I94: 1 | J94: 71 | K94: =IF(COUNTIF('N PMRg 2024'!B:B,B94)=0,"-",COUNTIF('N PMRg 2024'!B:B,B94)) -> - | L94: =IF(ISERROR(VLOOKUP(B94,'N PMRg 2024'!B:G,6,0)),"-",VLOOKUP(B94,'N PMRg 2024'!B:G,6,0)) -> - | M94: =IF(COUNTIF('N PMČRj 2024'!B:B,B94)=0,"-",COUNTIF('N PMČRj 2024'!B:B,B94)) -> - | N94: =IF(ISERROR(VLOOKUP(B94,'N PMČRj 2024'!B:G,6,0)),"-",VLOOKUP(B94,'N PMČRj 2024'!B:G,6,0)) -> -
A95: 72 | B95: Jan Ratz | C95: =VLOOKUP(B95,Pilot!A:C,3,0) -> Zbraslavice | D95: =VLOOKUP(B95,Pilot!A:B,2,0) -> 1987 | E95: =VLOOKUP(B95,Pilot!A:E,5,0) -> M | F95: =VLOOKUP(B95,Pilot!A:F,6,0) ->  | G95: 72 | I95: 1 | J95: 72 | K95: =IF(COUNTIF('N PMRg 2024'!B:B,B95)=0,"-",COUNTIF('N PMRg 2024'!B:B,B95)) -> - | L95: =IF(ISERROR(VLOOKUP(B95,'N PMRg 2024'!B:G,6,0)),"-",VLOOKUP(B95,'N PMRg 2024'!B:G,6,0)) -> - | M95: =IF(COUNTIF('N PMČRj 2024'!B:B,B95)=0,"-",COUNTIF('N PMČRj 2024'!B:B,B95)) -> - | N95: =IF(ISERROR(VLOOKUP(B95,'N PMČRj 2024'!B:G,6,0)),"-",VLOOKUP(B95,'N PMČRj 2024'!B:G,6,0)) -> -
A96: 73 | B96: Zdenek Boruvka 86 | C96: =VLOOKUP(B96,Pilot!A:C,3,0) -> Jičín | D96: =VLOOKUP(B96,Pilot!A:B,2,0) -> 1986 | E96: =VLOOKUP(B96,Pilot!A:E,5,0) -> M | F96: =VLOOKUP(B96,Pilot!A:F,6,0) ->  | G96: 73 | I96: 1 | J96: 73 | K96: =IF(COUNTIF('N PMRg 2024'!B:B,B96)=0,"-",COUNTIF('N PMRg 2024'!B:B,B96)) -> - | L96: =IF(ISERROR(VLOOKUP(B96,'N PMRg 2024'!B:G,6,0)),"-",VLOOKUP(B96,'N PMRg 2024'!B:G,6,0)) -> - | M96: =IF(COUNTIF('N PMČRj 2024'!B:B,B96)=0,"-",COUNTIF('N PMČRj 2024'!B:B,B96)) -> - | N96: =IF(ISERROR(VLOOKUP(B96,'N PMČRj 2024'!B:G,6,0)),"-",VLOOKUP(B96,'N PMČRj 2024'!B:G,6,0)) -> -
A97: 74 | B97: Michal Cechmanek | C97: =VLOOKUP(B97,Pilot!A:C,3,0) -> Kroměříž | D97: =VLOOKUP(B97,Pilot!A:B,2,0) -> 1978 | E97: =VLOOKUP(B97,Pilot!A:E,5,0) -> M | F97: =VLOOKUP(B97,Pilot!A:F,6,0) ->  | G97: 74 | I97: 1 | J97: 74 | K97: =IF(COUNTIF('N PMRg 2024'!B:B,B97)=0,"-",COUNTIF('N PMRg 2024'!B:B,B97)) -> - | L97: =IF(ISERROR(VLOOKUP(B97,'N PMRg 2024'!B:G,6,0)),"-",VLOOKUP(B97,'N PMRg 2024'!B:G,6,0)) -> - | M97: =IF(COUNTIF('N PMČRj 2024'!B:B,B97)=0,"-",COUNTIF('N PMČRj 2024'!B:B,B97)) -> - | N97: =IF(ISERROR(VLOOKUP(B97,'N PMČRj 2024'!B:G,6,0)),"-",VLOOKUP(B97,'N PMČRj 2024'!B:G,6,0)) -> -
A98: 75 | B98: David Sachl | C98: =VLOOKUP(B98,Pilot!A:C,3,0) -> Kralupy | D98: =VLOOKUP(B98,Pilot!A:B,2,0) -> 1978 | E98: =VLOOKUP(B98,Pilot!A:E,5,0) -> M | F98: =VLOOKUP(B98,Pilot!A:F,6,0) ->  | G98: 75 | I98: 1 | J98: 75 | K98: =IF(COUNTIF('N PMRg 2024'!B:B,B98)=0,"-",COUNTIF('N PMRg 2024'!B:B,B98)) -> - | L98: =IF(ISERROR(VLOOKUP(B98,'N PMRg 2024'!B:G,6,0)),"-",VLOOKUP(B98,'N PMRg 2024'!B:G,6,0)) -> - | M98: =IF(COUNTIF('N PMČRj 2024'!B:B,B98)=0,"-",COUNTIF('N PMČRj 2024'!B:B,B98)) -> - | N98: =IF(ISERROR(VLOOKUP(B98,'N PMČRj 2024'!B:G,6,0)),"-",VLOOKUP(B98,'N PMČRj 2024'!B:G,6,0)) -> -
A99: 76 | B99: Marek Blatak | C99: =VLOOKUP(B99,Pilot!A:C,3,0) -> Šumperk | D99: =VLOOKUP(B99,Pilot!A:B,2,0) -> 1969 | E99: =VLOOKUP(B99,Pilot!A:E,5,0) -> M | F99: =VLOOKUP(B99,Pilot!A:F,6,0) ->  | G99: 76 | I99: 1 | J99: 76 | K99: =IF(COUNTIF('N PMRg 2024'!B:B,B99)=0,"-",COUNTIF('N PMRg 2024'!B:B,B99)) -> - | L99: =IF(ISERROR(VLOOKUP(B99,'N PMRg 2024'!B:G,6,0)),"-",VLOOKUP(B99,'N PMRg 2024'!B:G,6,0)) -> - | M99: =IF(COUNTIF('N PMČRj 2024'!B:B,B99)=0,"-",COUNTIF('N PMČRj 2024'!B:B,B99)) -> - | N99: =IF(ISERROR(VLOOKUP(B99,'N PMČRj 2024'!B:G,6,0)),"-",VLOOKUP(B99,'N PMČRj 2024'!B:G,6,0)) -> -
A100: 77 | B100: Rene Hudak | C100: =VLOOKUP(B100,Pilot!A:C,3,0) -> Kunovice | D100: =VLOOKUP(B100,Pilot!A:B,2,0) -> 1972 | E100: =VLOOKUP(B100,Pilot!A:E,5,0) -> M | F100: =VLOOKUP(B100,Pilot!A:F,6,0) ->  | G100: 77 | I100: 1 | J100: 77 | K100: =IF(COUNTIF('N PMRg 2024'!B:B,B100)=0,"-",COUNTIF('N PMRg 2024'!B:B,B100)) -> - | L100: =IF(ISERROR(VLOOKUP(B100,'N PMRg 2024'!B:G,6,0)),"-",VLOOKUP(B100,'N PMRg 2024'!B:G,6,0)) -> - | M100: =IF(COUNTIF('N PMČRj 2024'!B:B,B100)=0,"-",COUNTIF('N PMČRj 2024'!B:B,B100)) -> - | N100: =IF(ISERROR(VLOOKUP(B100,'N PMČRj 2024'!B:G,6,0)),"-",VLOOKUP(B100,'N PMČRj 2024'!B:G,6,0)) -> -
A101: 78 | B101: Josef Novak | C101: =VLOOKUP(B101,Pilot!A:C,3,0) -> Kunovice | D101: =VLOOKUP(B101,Pilot!A:B,2,0) -> 1981 | E101: =VLOOKUP(B101,Pilot!A:E,5,0) -> M | F101: =VLOOKUP(B101,Pilot!A:F,6,0) ->  | G101: 78 | I101: 1 | J101: 78 | K101: =IF(COUNTIF('N PMRg 2024'!B:B,B101)=0,"-",COUNTIF('N PMRg 2024'!B:B,B101)) -> - | L101: =IF(ISERROR(VLOOKUP(B101,'N PMRg 2024'!B:G,6,0)),"-",VLOOKUP(B101,'N PMRg 2024'!B:G,6,0)) -> - | M101: =IF(COUNTIF('N PMČRj 2024'!B:B,B101)=0,"-",COUNTIF('N PMČRj 2024'!B:B,B101)) -> - | N101: =IF(ISERROR(VLOOKUP(B101,'N PMČRj 2024'!B:G,6,0)),"-",VLOOKUP(B101,'N PMČRj 2024'!B:G,6,0)) -> -
A102: 79 | B102: Martin Ficnar | C102: =VLOOKUP(B102,Pilot!A:C,3,0) -> Šumperk | D102: =VLOOKUP(B102,Pilot!A:B,2,0) -> 1971 | E102: =VLOOKUP(B102,Pilot!A:E,5,0) -> M | F102: =VLOOKUP(B102,Pilot!A:F,6,0) ->  | G102: 79 | I102: 1 | J102: 79 | K102: =IF(COUNTIF('N PMRg 2024'!B:B,B102)=0,"-",COUNTIF('N PMRg 2024'!B:B,B102)) -> - | L102: =IF(ISERROR(VLOOKUP(B102,'N PMRg 2024'!B:G,6,0)),"-",VLOOKUP(B102,'N PMRg 2024'!B:G,6,0)) -> - | M102: =IF(COUNTIF('N PMČRj 2024'!B:B,B102)=0,"-",COUNTIF('N PMČRj 2024'!B:B,B102)) -> - | N102: =IF(ISERROR(VLOOKUP(B102,'N PMČRj 2024'!B:G,6,0)),"-",VLOOKUP(B102,'N PMČRj 2024'!B:G,6,0)) -> -
A103: 80 | B103: Jiri Steiger | C103: =VLOOKUP(B103,Pilot!A:C,3,0) -> Olomouc | D103: =VLOOKUP(B103,Pilot!A:B,2,0) -> 1969 | E103: =VLOOKUP(B103,Pilot!A:E,5,0) -> M | F103: =VLOOKUP(B103,Pilot!A:F,6,0) ->  | G103: 80 | I103: 1 | J103: 80 | K103: =IF(COUNTIF('N PMRg 2024'!B:B,B103)=0,"-",COUNTIF('N PMRg 2024'!B:B,B103)) -> - | L103: =IF(ISERROR(VLOOKUP(B103,'N PMRg 2024'!B:G,6,0)),"-",VLOOKUP(B103,'N PMRg 2024'!B:G,6,0)) -> - | M103: =IF(COUNTIF('N PMČRj 2024'!B:B,B103)=0,"-",COUNTIF('N PMČRj 2024'!B:B,B103)) -> - | N103: =IF(ISERROR(VLOOKUP(B103,'N PMČRj 2024'!B:G,6,0)),"-",VLOOKUP(B103,'N PMČRj 2024'!B:G,6,0)) -> -
A104: N1 | B104: Jan Dersak 69 | C104: =VLOOKUP(B104,Pilot!A:C,3,0) -> Kralupy | D104: =VLOOKUP(B104,Pilot!A:B,2,0) -> 1969 | E104: =VLOOKUP(B104,Pilot!A:E,5,0) -> M | F104: =VLOOKUP(B104,Pilot!A:F,6,0) ->  | G104: =A104 -> N1 | I104: 1 | J104: N1 | K104: =IF(COUNTIF('N PMRg 2024'!B:B,B104)=0,"-",COUNTIF('N PMRg 2024'!B:B,B104)) -> - | L104: =IF(ISERROR(VLOOKUP(B104,'N PMRg 2024'!B:G,6,0)),"-",VLOOKUP(B104,'N PMRg 2024'!B:G,6,0)) -> - | M104: =IF(COUNTIF('N PMČRj 2024'!B:B,B104)=0,"-",COUNTIF('N PMČRj 2024'!B:B,B104)) -> - | N104: =IF(ISERROR(VLOOKUP(B104,'N PMČRj 2024'!B:G,6,0)),"-",VLOOKUP(B104,'N PMČRj 2024'!B:G,6,0)) -> -
A105: N2 | B105: Ivan Tvrdik | C105: =VLOOKUP(B105,Pilot!A:C,3,0) -> Letňany | D105: =VLOOKUP(B105,Pilot!A:B,2,0) -> 1997 | E105: =VLOOKUP(B105,Pilot!A:E,5,0) -> M | F105: =VLOOKUP(B105,Pilot!A:F,6,0) ->  | G105: N2 | I105: 1 | J105: N2 | K105: =IF(COUNTIF('N PMRg 2024'!B:B,B105)=0,"-",COUNTIF('N PMRg 2024'!B:B,B105)) -> - | L105: =IF(ISERROR(VLOOKUP(B105,'N PMRg 2024'!B:G,6,0)),"-",VLOOKUP(B105,'N PMRg 2024'!B:G,6,0)) -> - | M105: =IF(COUNTIF('N PMČRj 2024'!B:B,B105)=0,"-",COUNTIF('N PMČRj 2024'!B:B,B105)) -> - | N105: =IF(ISERROR(VLOOKUP(B105,'N PMČRj 2024'!B:G,6,0)),"-",VLOOKUP(B105,'N PMČRj 2024'!B:G,6,0)) -> -
A106: N3 | B106: Eduard Niko | C106: =VLOOKUP(B106,Pilot!A:C,3,0) -> Zbraslavice | D106: =VLOOKUP(B106,Pilot!A:B,2,0) -> 1988 | E106: =VLOOKUP(B106,Pilot!A:E,5,0) -> M | F106: =VLOOKUP(B106,Pilot!A:F,6,0) ->  | G106: N3 | I106: 1 | J106: N3 | K106: =IF(COUNTIF('N PMRg 2024'!B:B,B106)=0,"-",COUNTIF('N PMRg 2024'!B:B,B106)) -> - | L106: =IF(ISERROR(VLOOKUP(B106,'N PMRg 2024'!B:G,6,0)),"-",VLOOKUP(B106,'N PMRg 2024'!B:G,6,0)) -> - | M106: =IF(COUNTIF('N PMČRj 2024'!B:B,B106)=0,"-",COUNTIF('N PMČRj 2024'!B:B,B106)) -> - | N106: =IF(ISERROR(VLOOKUP(B106,'N PMČRj 2024'!B:G,6,0)),"-",VLOOKUP(B106,'N PMČRj 2024'!B:G,6,0)) -> -
A107: N4 | B107: Vratislav Sram | C107: =VLOOKUP(B107,Pilot!A:C,3,0) -> Broumov | D107: =VLOOKUP(B107,Pilot!A:B,2,0) -> 1966 | E107: =VLOOKUP(B107,Pilot!A:E,5,0) -> M | F107: =VLOOKUP(B107,Pilot!A:F,6,0) ->  | G107: N4 | I107: 1 | J107: N4 | K107: =IF(COUNTIF('N PMRg 2024'!B:B,B107)=0,"-",COUNTIF('N PMRg 2024'!B:B,B107)) -> - | L107: =IF(ISERROR(VLOOKUP(B107,'N PMRg 2024'!B:G,6,0)),"-",VLOOKUP(B107,'N PMRg 2024'!B:G,6,0)) -> - | M107: =IF(COUNTIF('N PMČRj 2024'!B:B,B107)=0,"-",COUNTIF('N PMČRj 2024'!B:B,B107)) -> - | N107: =IF(ISERROR(VLOOKUP(B107,'N PMČRj 2024'!B:G,6,0)),"-",VLOOKUP(B107,'N PMČRj 2024'!B:G,6,0)) -> -
A108: N5 | B108: Martin Urner | C108: =VLOOKUP(B108,Pilot!A:C,3,0) -> Letňany | D108: =VLOOKUP(B108,Pilot!A:B,2,0) -> 1974 | E108: =VLOOKUP(B108,Pilot!A:E,5,0) -> M | F108: =VLOOKUP(B108,Pilot!A:F,6,0) ->  | G108: N5 | I108: 1 | J108: N5 | K108: =IF(COUNTIF('N PMRg 2024'!B:B,B108)=0,"-",COUNTIF('N PMRg 2024'!B:B,B108)) -> - | L108: =IF(ISERROR(VLOOKUP(B108,'N PMRg 2024'!B:G,6,0)),"-",VLOOKUP(B108,'N PMRg 2024'!B:G,6,0)) -> - | M108: =IF(COUNTIF('N PMČRj 2024'!B:B,B108)=0,"-",COUNTIF('N PMČRj 2024'!B:B,B108)) -> - | N108: =IF(ISERROR(VLOOKUP(B108,'N PMČRj 2024'!B:G,6,0)),"-",VLOOKUP(B108,'N PMČRj 2024'!B:G,6,0)) -> -
A109: N6 | B109: Jaroslav Buryan | C109: =VLOOKUP(B109,Pilot!A:C,3,0) -> Zábřeh | D109: =VLOOKUP(B109,Pilot!A:B,2,0) -> 1953 | E109: =VLOOKUP(B109,Pilot!A:E,5,0) -> M | F109: =VLOOKUP(B109,Pilot!A:F,6,0) ->  | G109: N6 | I109: 1 | J109: N6 | K109: =IF(COUNTIF('N PMRg 2024'!B:B,B109)=0,"-",COUNTIF('N PMRg 2024'!B:B,B109)) -> - | L109: =IF(ISERROR(VLOOKUP(B109,'N PMRg 2024'!B:G,6,0)),"-",VLOOKUP(B109,'N PMRg 2024'!B:G,6,0)) -> - | M109: =IF(COUNTIF('N PMČRj 2024'!B:B,B109)=0,"-",COUNTIF('N PMČRj 2024'!B:B,B109)) -> - | N109: =IF(ISERROR(VLOOKUP(B109,'N PMČRj 2024'!B:G,6,0)),"-",VLOOKUP(B109,'N PMČRj 2024'!B:G,6,0)) -> -
A110: N7 | B110: Jan Horak | C110: =VLOOKUP(B110,Pilot!A:C,3,0) -> Zbraslavice | D110: =VLOOKUP(B110,Pilot!A:B,2,0) -> 1971 | E110: =VLOOKUP(B110,Pilot!A:E,5,0) -> M | F110: =VLOOKUP(B110,Pilot!A:F,6,0) ->  | G110: N7 | I110: 1 | J110: N7 | K110: =IF(COUNTIF('N PMRg 2024'!B:B,B110)=0,"-",COUNTIF('N PMRg 2024'!B:B,B110)) -> - | L110: =IF(ISERROR(VLOOKUP(B110,'N PMRg 2024'!B:G,6,0)),"-",VLOOKUP(B110,'N PMRg 2024'!B:G,6,0)) -> - | M110: =IF(COUNTIF('N PMČRj 2024'!B:B,B110)=0,"-",COUNTIF('N PMČRj 2024'!B:B,B110)) -> - | N110: =IF(ISERROR(VLOOKUP(B110,'N PMČRj 2024'!B:G,6,0)),"-",VLOOKUP(B110,'N PMČRj 2024'!B:G,6,0)) -> -
A111: N8 | B111: Zdenek Balcarek | C111: =VLOOKUP(B111,Pilot!A:C,3,0) -> Kroměříž | D111: =VLOOKUP(B111,Pilot!A:B,2,0) -> 1967 | E111: =VLOOKUP(B111,Pilot!A:E,5,0) -> M | F111: =VLOOKUP(B111,Pilot!A:F,6,0) ->  | G111: N8 | I111: 1 | J111: N8 | K111: =IF(COUNTIF('N PMRg 2024'!B:B,B111)=0,"-",COUNTIF('N PMRg 2024'!B:B,B111)) -> - | L111: =IF(ISERROR(VLOOKUP(B111,'N PMRg 2024'!B:G,6,0)),"-",VLOOKUP(B111,'N PMRg 2024'!B:G,6,0)) -> - | M111: =IF(COUNTIF('N PMČRj 2024'!B:B,B111)=0,"-",COUNTIF('N PMČRj 2024'!B:B,B111)) -> - | N111: =IF(ISERROR(VLOOKUP(B111,'N PMČRj 2024'!B:G,6,0)),"-",VLOOKUP(B111,'N PMČRj 2024'!B:G,6,0)) -> -
A112: N9 | B112: Vaclav Marel | C112: =VLOOKUP(B112,Pilot!A:C,3,0) -> Jaroměř | D112: =VLOOKUP(B112,Pilot!A:B,2,0) -> 1974 | E112: =VLOOKUP(B112,Pilot!A:E,5,0) -> M | F112: =VLOOKUP(B112,Pilot!A:F,6,0) ->  | G112: N9 | I112: 1 | J112: N9 | K112: =IF(COUNTIF('N PMRg 2024'!B:B,B112)=0,"-",COUNTIF('N PMRg 2024'!B:B,B112)) -> - | L112: =IF(ISERROR(VLOOKUP(B112,'N PMRg 2024'!B:G,6,0)),"-",VLOOKUP(B112,'N PMRg 2024'!B:G,6,0)) -> - | M112: =IF(COUNTIF('N PMČRj 2024'!B:B,B112)=0,"-",COUNTIF('N PMČRj 2024'!B:B,B112)) -> - | N112: =IF(ISERROR(VLOOKUP(B112,'N PMČRj 2024'!B:G,6,0)),"-",VLOOKUP(B112,'N PMČRj 2024'!B:G,6,0)) -> -
A113: N10 | B113: Jiri Stepanek | C113: =VLOOKUP(B113,Pilot!A:C,3,0) -> Moravská Třebová | D113: =VLOOKUP(B113,Pilot!A:B,2,0) -> 1956 | E113: =VLOOKUP(B113,Pilot!A:E,5,0) -> M | F113: =VLOOKUP(B113,Pilot!A:F,6,0) ->  | G113: N10 | I113: 1 | J113: N10 | K113: =IF(COUNTIF('N PMRg 2024'!B:B,B113)=0,"-",COUNTIF('N PMRg 2024'!B:B,B113)) -> 1 | L113: =IF(ISERROR(VLOOKUP(B113,'N PMRg 2024'!B:G,6,0)),"-",VLOOKUP(B113,'N PMRg 2024'!B:G,6,0)) -> 7 | M113: =IF(COUNTIF('N PMČRj 2024'!B:B,B113)=0,"-",COUNTIF('N PMČRj 2024'!B:B,B113)) -> - | N113: =IF(ISERROR(VLOOKUP(B113,'N PMČRj 2024'!B:G,6,0)),"-",VLOOKUP(B113,'N PMČRj 2024'!B:G,6,0)) -> -
B114: Další soutěžící může navrhnout PK podle jiných kritérií dle odstavce 9. (bez náhradníků):
A115: 81. | B115: - | C115: =VLOOKUP(B115,Pilot!A:C,3,0) ->  | D115: =VLOOKUP(B115,Pilot!A:B,2,0) ->  | E115: =VLOOKUP(B115,Pilot!A:E,5,0) ->  | F115: =VLOOKUP(B115,Pilot!A:F,6,0) ->  | G115: =A115 -> 81. | I115: =COUNTIF(B:B,B115) -> 6 | J115: =IF(ISERROR(VLOOKUP(B115,B:G,6,0)),"-",VLOOKUP(B115,B:G,6,0)) -> - | K115: =IF(COUNTIF('N PMRg 2024'!B:B,B115)=0,"-",COUNTIF('N PMRg 2024'!B:B,B115)) -> 66 | L115: =IF(ISERROR(VLOOKUP(B115,'N PMRg 2024'!B:G,6,0)),"-",VLOOKUP(B115,'N PMRg 2024'!B:G,6,0)) -> - | M115: =IF(COUNTIF('N PMČRj 2024'!B:B,B115)=0,"-",COUNTIF('N PMČRj 2024'!B:B,B115)) -> 33 | N115: =IF(ISERROR(VLOOKUP(B115,'N PMČRj 2024'!B:G,6,0)),"-",VLOOKUP(B115,'N PMČRj 2024'!B:G,6,0)) -> 18
A116: 82. | B116: - | C116: =VLOOKUP(B116,Pilot!A:C,3,0) ->  | D116: =VLOOKUP(B116,Pilot!A:B,2,0) ->  | E116: =VLOOKUP(B116,Pilot!A:E,5,0) ->  | F116: =VLOOKUP(B116,Pilot!A:F,6,0) ->  | G116: =A116 -> 82. | I116: =COUNTIF(B:B,B116) -> 6 | J116: =IF(ISERROR(VLOOKUP(B116,B:G,6,0)),"-",VLOOKUP(B116,B:G,6,0)) -> - | K116: =IF(COUNTIF('N PMRg 2024'!B:B,B116)=0,"-",COUNTIF('N PMRg 2024'!B:B,B116)) -> 66 | L116: =IF(ISERROR(VLOOKUP(B116,'N PMRg 2024'!B:G,6,0)),"-",VLOOKUP(B116,'N PMRg 2024'!B:G,6,0)) -> - | M116: =IF(COUNTIF('N PMČRj 2024'!B:B,B116)=0,"-",COUNTIF('N PMČRj 2024'!B:B,B116)) -> 33 | N116: =IF(ISERROR(VLOOKUP(B116,'N PMČRj 2024'!B:G,6,0)),"-",VLOOKUP(B116,'N PMČRj 2024'!B:G,6,0)) -> 18
A117: 83. | B117: - | C117: =VLOOKUP(B117,Pilot!A:C,3,0) ->  | D117: =VLOOKUP(B117,Pilot!A:B,2,0) ->  | E117: =VLOOKUP(B117,Pilot!A:E,5,0) ->  | F117: =VLOOKUP(B117,Pilot!A:F,6,0) ->  | G117: =A117 -> 83. | I117: =COUNTIF(B:B,B117) -> 6 | J117: =IF(ISERROR(VLOOKUP(B117,B:G,6,0)),"-",VLOOKUP(B117,B:G,6,0)) -> - | K117: =IF(COUNTIF('N PMRg 2024'!B:B,B117)=0,"-",COUNTIF('N PMRg 2024'!B:B,B117)) -> 66 | L117: =IF(ISERROR(VLOOKUP(B117,'N PMRg 2024'!B:G,6,0)),"-",VLOOKUP(B117,'N PMRg 2024'!B:G,6,0)) -> - | M117: =IF(COUNTIF('N PMČRj 2024'!B:B,B117)=0,"-",COUNTIF('N PMČRj 2024'!B:B,B117)) -> 33 | N117: =IF(ISERROR(VLOOKUP(B117,'N PMČRj 2024'!B:G,6,0)),"-",VLOOKUP(B117,'N PMČRj 2024'!B:G,6,0)) -> 18
A118: 84. | B118: - | C118: =VLOOKUP(B118,Pilot!A:C,3,0) ->  | D118: =VLOOKUP(B118,Pilot!A:B,2,0) ->  | E118: =VLOOKUP(B118,Pilot!A:E,5,0) ->  | F118: =VLOOKUP(B118,Pilot!A:F,6,0) ->  | G118: =A118 -> 84. | I118: =COUNTIF(B:B,B118) -> 6 | J118: =IF(ISERROR(VLOOKUP(B118,B:G,6,0)),"-",VLOOKUP(B118,B:G,6,0)) -> - | K118: =IF(COUNTIF('N PMRg 2024'!B:B,B118)=0,"-",COUNTIF('N PMRg 2024'!B:B,B118)) -> 66 | L118: =IF(ISERROR(VLOOKUP(B118,'N PMRg 2024'!B:G,6,0)),"-",VLOOKUP(B118,'N PMRg 2024'!B:G,6,0)) -> - | M118: =IF(COUNTIF('N PMČRj 2024'!B:B,B118)=0,"-",COUNTIF('N PMČRj 2024'!B:B,B118)) -> 33 | N118: =IF(ISERROR(VLOOKUP(B118,'N PMČRj 2024'!B:G,6,0)),"-",VLOOKUP(B118,'N PMČRj 2024'!B:G,6,0)) -> 18
A119: 85. | B119: - | C119: =VLOOKUP(B119,Pilot!A:C,3,0) ->  | D119: =VLOOKUP(B119,Pilot!A:B,2,0) ->  | E119: =VLOOKUP(B119,Pilot!A:E,5,0) ->  | F119: =VLOOKUP(B119,Pilot!A:F,6,0) ->  | G119: =A119 -> 85. | I119: =COUNTIF(B:B,B119) -> 6 | J119: =IF(ISERROR(VLOOKUP(B119,B:G,6,0)),"-",VLOOKUP(B119,B:G,6,0)) -> - | K119: =IF(COUNTIF('N PMRg 2024'!B:B,B119)=0,"-",COUNTIF('N PMRg 2024'!B:B,B119)) -> 66 | L119: =IF(ISERROR(VLOOKUP(B119,'N PMRg 2024'!B:G,6,0)),"-",VLOOKUP(B119,'N PMRg 2024'!B:G,6,0)) -> - | M119: =IF(COUNTIF('N PMČRj 2024'!B:B,B119)=0,"-",COUNTIF('N PMČRj 2024'!B:B,B119)) -> 33 | N119: =IF(ISERROR(VLOOKUP(B119,'N PMČRj 2024'!B:G,6,0)),"-",VLOOKUP(B119,'N PMČRj 2024'!B:G,6,0)) -> 18
A120: 6.6.7. | B120: Nominace zahraničních účastníků:
B121: PMČR se mohou zúčastnit zahraniční účastníci pouze v případě, že nebude omezen počet řádně nominovaných soutěžících z ČR a soutěžící splňuje podmínky odstavce 6.1. a 6.6.1. SŘ.
B122: V případě pořádání společného PMČR s plachtařským mistrovstvím některého ze suverénních států může PK stanovit zvláštní pravidla pro nominaci.
A123: 6.6.8. | B123: Volná nominace:
B124: Volnou nominaci je možné využít pouze v tom případě, že pilot na PMČR nepostupuje podle žádného z bodů odstavce 6.6.6.
B125: Umožňuje-li to kapacita pořádajícího letiště, mohou se z členů AeČR mimo řádně nominovaných do soutěže přihlásit také piloti/pilotky, kteří se:
B126: - v posledních 3 letech před rokem konání soutěže zúčastnili MS, ME, WAG nebo Světové Grand Prix jako velitel kluzáku,
B127: - umístili v aktuálním Všeobecném Žebříku do 100. místa.
B128: Při větším počtu přihlášek, než je kapacita letiště Pořadatele, rozhoduje o přijetí do soutěže pořadí soutěžícího v aktuálním Všeobecném Žebříku s podmínkou zaplacení vkladu v termínu stanoveném Pořadatelem.

Sheet N PMČRj 2024
B1: Nominace na PMČRj 2024 | H1: Kontrola: | I1: Počet | J1: Nominace | K1: Počet | L1: Nominace | M1: Počet | N1: Nominace | O1: M: | P1: F: | Q1: M+F: | R1: ="Limit juniora "&Pilot!G1&":" -> Limit juniora 2024: | S1: =Pilot!I1 -> 1999
A2: No | B2: Jméno | C2: Aeroklub | D2: Rok narození | E2: M/F | F2: Junior | G2: No | I2: PMČRj | J2: PMČRj | K2: PMČR | L2: PMČR | M2: PMRg | N2: PMRg | O2: =COUNTIF(E:E,"M") -> 14 | P2: =COUNTIF(E:E,"F") -> 3 | Q2: =O2+P2 -> 17 | R2: S náhradníky
A3: 6.7.5. | B3: Nominace na PMČRj (dle SŘ ZM11) | N3: Celkem řádně nominováno: | O3: =O2-COUNTIF(E53:E57,"M") -> 14 | P3: =P2-COUNTIF(E53:E57,"F") -> 3 | Q3: =O3+P3 -> 17 | R3: Bez náhradníků
B4: Na PMČRj nominuje PK celkem 40 pilotů/pilotek a stanovený počet náhradníků pro každé nominační kritérium.
B5: Na PMČRj jsou nominováni soutěžící splňující statut juniora:
B6: Na PMČRj jsou nominováni soutěžící (splňující statut juniora):
B7: Všichni členové reprezentačního výběru ČR (bez náhradníků):
A8: 1 | B8: Lukas Kriz | C8: =VLOOKUP(B8,Pilot!A:C,3,0) -> Křižanov | D8: =VLOOKUP(B8,Pilot!A:C,2,0) -> 2003 | E8: =VLOOKUP(B8,Pilot!A:E,5,0) -> M | F8: =VLOOKUP(B8,Pilot!A:F,6,0) -> Junior v roce 2024 | G8: =A8 -> 1 | I8: =COUNTIF(B:B,B8) -> 1 | J8: =IF(ISERROR(VLOOKUP(B8,B:G,6,0)),"-",VLOOKUP(B8,B:G,6,0)) -> 1 | K8: =IF(COUNTIF('N PMČR 2024'!B:B,B8)=0,"-",COUNTIF('N PMČR 2024'!B:B,B8)) -> 1 | L8: =IF(ISERROR(VLOOKUP(B8,'N PMČR 2024'!B:G,6,0)),"-",VLOOKUP(B8,'N PMČR 2024'!B:G,6,0)) -> 5 | M8: =IF(COUNTIF('N PMRg 2024'!B:B,B8)=0,"-",COUNTIF('N PMRg 2024'!B:B,B8)) -> - | N8: =IF(ISERROR(VLOOKUP(B8,'N PMRg 2024'!B:G,6,0)),"-",VLOOKUP(B8,'N PMRg 2024'!B:G,6,0)) -> -
A9: =A8+1 -> 2 | B9: Jaromir Macoun | C9: =VLOOKUP(B9,Pilot!A:C,3,0) -> Jičín | D9: =VLOOKUP(B9,Pilot!A:C,2,0) -> 1999 | E9: =VLOOKUP(B9,Pilot!A:E,5,0) -> M | F9: =VLOOKUP(B9,Pilot!A:F,6,0) -> Junior v roce 2024 | G9: =A9 -> 2 | I9: 1 | J9: 2 | K9: =IF(COUNTIF('N PMČR 2024'!B:B,B9)=0,"-",COUNTIF('N PMČR 2024'!B:B,B9)) -> 1 | L9: =IF(ISERROR(VLOOKUP(B9,'N PMČR 2024'!B:G,6,0)),"-",VLOOKUP(B9,'N PMČR 2024'!B:G,6,0)) -> 9 | M9: =IF(COUNTIF('N PMRg 2024'!B:B,B9)=0,"-",COUNTIF('N PMRg 2024'!B:B,B9)) -> - | N9: =IF(ISERROR(VLOOKUP(B9,'N PMRg 2024'!B:G,6,0)),"-",VLOOKUP(B9,'N PMRg 2024'!B:G,6,0)) -> -
A10: =A9+1 -> 3 | B10: Jan Stastny | C10: =VLOOKUP(B10,Pilot!A:C,3,0) -> Medlánky | D10: =VLOOKUP(B10,Pilot!A:C,2,0) -> 2003 | E10: =VLOOKUP(B10,Pilot!A:E,5,0) -> M | F10: =VLOOKUP(B10,Pilot!A:F,6,0) -> Junior v roce 2024 | G10: 3 | I10: 1 | J10: 3 | K10: =IF(COUNTIF('N PMČR 2024'!B:B,B10)=0,"-",COUNTIF('N PMČR 2024'!B:B,B10)) -> 1 | L10: =IF(ISERROR(VLOOKUP(B10,'N PMČR 2024'!B:G,6,0)),"-",VLOOKUP(B10,'N PMČR 2024'!B:G,6,0)) -> 19 | M10: =IF(COUNTIF('N PMRg 2024'!B:B,B10)=0,"-",COUNTIF('N PMRg 2024'!B:B,B10)) -> - | N10: =IF(ISERROR(VLOOKUP(B10,'N PMRg 2024'!B:G,6,0)),"-",VLOOKUP(B10,'N PMRg 2024'!B:G,6,0)) -> -
A11: 4 | B11: Vit Morkovsky | C11: =VLOOKUP(B11,Pilot!A:C,3,0) -> Polička | D11: =VLOOKUP(B11,Pilot!A:C,2,0) -> 2000 | E11: =VLOOKUP(B11,Pilot!A:E,5,0) -> M | F11: =VLOOKUP(B11,Pilot!A:F,6,0) -> Junior v roce 2024 | G11: 4 | I11: 1 | J11: 4 | K11: =IF(COUNTIF('N PMČR 2024'!B:B,B11)=0,"-",COUNTIF('N PMČR 2024'!B:B,B11)) -> 1 | L11: =IF(ISERROR(VLOOKUP(B11,'N PMČR 2024'!B:G,6,0)),"-",VLOOKUP(B11,'N PMČR 2024'!B:G,6,0)) -> 21 | M11: =IF(COUNTIF('N PMRg 2024'!B:B,B11)=0,"-",COUNTIF('N PMRg 2024'!B:B,B11)) -> - | N11: =IF(ISERROR(VLOOKUP(B11,'N PMRg 2024'!B:G,6,0)),"-",VLOOKUP(B11,'N PMRg 2024'!B:G,6,0)) -> -
A12: 5 | B12: Michaela Rendlova | C12: =VLOOKUP(B12,Pilot!A:C,3,0) -> Toužim | D12: =VLOOKUP(B12,Pilot!A:C,2,0) -> 2004 | E12: =VLOOKUP(B12,Pilot!A:E,5,0) -> F | F12: =VLOOKUP(B12,Pilot!A:F,6,0) -> Junior v roce 2024 | G12: 5 | I12: 1 | J12: 5 | K12: =IF(COUNTIF('N PMČR 2024'!B:B,B12)=0,"-",COUNTIF('N PMČR 2024'!B:B,B12)) -> 1 | L12: =IF(ISERROR(VLOOKUP(B12,'N PMČR 2024'!B:G,6,0)),"-",VLOOKUP(B12,'N PMČR 2024'!B:G,6,0)) -> 22 | M12: =IF(COUNTIF('N PMRg 2024'!B:B,B12)=0,"-",COUNTIF('N PMRg 2024'!B:B,B12)) -> - | N12: =IF(ISERROR(VLOOKUP(B12,'N PMRg 2024'!B:G,6,0)),"-",VLOOKUP(B12,'N PMRg 2024'!B:G,6,0)) -> -
A13: 6 | B13: Vladimir Hammer | C13: =VLOOKUP(B13,Pilot!A:C,3,0) -> Letkov | D13: =VLOOKUP(B13,Pilot!A:C,2,0) -> 2000 | E13: =VLOOKUP(B13,Pilot!A:E,5,0) -> M | F13: =VLOOKUP(B13,Pilot!A:F,6,0) -> Junior v roce 2024 | G13: 6 | I13: 1 | J13: 6 | K13: =IF(COUNTIF('N PMČR 2024'!B:B,B13)=0,"-",COUNTIF('N PMČR 2024'!B:B,B13)) -> 1 | L13: =IF(ISERROR(VLOOKUP(B13,'N PMČR 2024'!B:G,6,0)),"-",VLOOKUP(B13,'N PMČR 2024'!B:G,6,0)) -> 23 | M13: =IF(COUNTIF('N PMRg 2024'!B:B,B13)=0,"-",COUNTIF('N PMRg 2024'!B:B,B13)) -> - | N13: =IF(ISERROR(VLOOKUP(B13,'N PMRg 2024'!B:G,6,0)),"-",VLOOKUP(B13,'N PMRg 2024'!B:G,6,0)) -> -
A14: 7 | B14: Tereza Koubkova | C14: =VLOOKUP(B14,Pilot!A:C,3,0) -> Vysoké Mýto | D14: =VLOOKUP(B14,Pilot!A:C,2,0) -> 1999 | E14: =VLOOKUP(B14,Pilot!A:E,5,0) -> F | F14: =VLOOKUP(B14,Pilot!A:F,6,0) -> Junior v roce 2024 | G14: 7 | I14: 1 | J14: 7 | K14: =IF(COUNTIF('N PMČR 2024'!B:B,B14)=0,"-",COUNTIF('N PMČR 2024'!B:B,B14)) -> 1 | L14: =IF(ISERROR(VLOOKUP(B14,'N PMČR 2024'!B:G,6,0)),"-",VLOOKUP(B14,'N PMČR 2024'!B:G,6,0)) -> 25 | M14: =IF(COUNTIF('N PMRg 2024'!B:B,B14)=0,"-",COUNTIF('N PMRg 2024'!B:B,B14)) -> - | N14: =IF(ISERROR(VLOOKUP(B14,'N PMRg 2024'!B:G,6,0)),"-",VLOOKUP(B14,'N PMRg 2024'!B:G,6,0)) -> -
A15: 8 | B15: Michaela Krizova | C15: =VLOOKUP(B15,Pilot!A:C,3,0) -> Přibyslav | D15: =VLOOKUP(B15,Pilot!A:C,2,0) -> 2001 | E15: =VLOOKUP(B15,Pilot!A:E,5,0) -> F | F15: =VLOOKUP(B15,Pilot!A:F,6,0) -> Junior v roce 2024 | G15: =A15 -> 8 | I15: 1 | J15: 8 | K15: =IF(COUNTIF('N PMČR 2024'!B:B,B15)=0,"-",COUNTIF('N PMČR 2024'!B:B,B15)) -> 1 | L15: =IF(ISERROR(VLOOKUP(B15,'N PMČR 2024'!B:G,6,0)),"-",VLOOKUP(B15,'N PMČR 2024'!B:G,6,0)) -> 29 | M15: =IF(COUNTIF('N PMRg 2024'!B:B,B15)=0,"-",COUNTIF('N PMRg 2024'!B:B,B15)) -> - | N15: =IF(ISERROR(VLOOKUP(B15,'N PMRg 2024'!B:G,6,0)),"-",VLOOKUP(B15,'N PMRg 2024'!B:G,6,0)) -> -
B16: Všichni soutěžící - účastníci posledního platného PMČR (bez náhradníků):
B17: PMČR 2023 - Moravská Třebová - Klub, Kombi 15m, Kombi Open
A18: =MAX(A8:A17)+1 -> 9 | B18: Stepan Filakovsky | C18: =VLOOKUP(B18,Pilot!A:C,3,0) -> Medlánky | D18: =VLOOKUP(B18,Pilot!A:C,2,0) -> 2005 | E18: =VLOOKUP(B18,Pilot!A:E,5,0) -> M | F18: =VLOOKUP(B18,Pilot!A:F,6,0) -> Junior v roce 2024 | G18: =A18 -> 9 | I18: =COUNTIF(B:B,B18) -> 1 | J18: =IF(ISERROR(VLOOKUP(B18,B:G,6,0)),"-",VLOOKUP(B18,B:G,6,0)) -> 9 | K18: =IF(COUNTIF('N PMČR 2024'!B:B,B18)=0,"-",COUNTIF('N PMČR 2024'!B:B,B18)) -> 1 | L18: =IF(ISERROR(VLOOKUP(B18,'N PMČR 2024'!B:G,6,0)),"-",VLOOKUP(B18,'N PMČR 2024'!B:G,6,0)) -> 39 | M18: =IF(COUNTIF('N PMRg 2024'!B:B,B18)=0,"-",COUNTIF('N PMRg 2024'!B:B,B18)) -> - | N18: =IF(ISERROR(VLOOKUP(B18,'N PMRg 2024'!B:G,6,0)),"-",VLOOKUP(B18,'N PMRg 2024'!B:G,6,0)) -> -
A19: =A18+1 -> 10 | B19: Vojtech Vach 03 | C19: =VLOOKUP(B19,Pilot!A:C,3,0) -> Nové Město nad Metují | D19: =VLOOKUP(B19,Pilot!A:C,2,0) -> 2003 | E19: =VLOOKUP(B19,Pilot!A:E,5,0) -> M | F19: =VLOOKUP(B19,Pilot!A:F,6,0) -> Junior v roce 2024 | G19: =A19 -> 10 | I19: =COUNTIF(B:B,B19) -> 1 | J19: =IF(ISERROR(VLOOKUP(B19,B:G,6,0)),"-",VLOOKUP(B19,B:G,6,0)) -> 10 | K19: =IF(COUNTIF('N PMČR 2024'!B:B,B19)=0,"-",COUNTIF('N PMČR 2024'!B:B,B19)) -> 1 | L19: =IF(ISERROR(VLOOKUP(B19,'N PMČR 2024'!B:G,6,0)),"-",VLOOKUP(B19,'N PMČR 2024'!B:G,6,0)) -> N2 | M19: =IF(COUNTIF('N PMRg 2024'!B:B,B19)=0,"-",COUNTIF('N PMRg 2024'!B:B,B19)) -> 1 | N19: =IF(ISERROR(VLOOKUP(B19,'N PMRg 2024'!B:G,6,0)),"-",VLOOKUP(B19,'N PMRg 2024'!B:G,6,0)) -> 1
A20: =A19+1 -> 11 | B20: Petr Masik | C20: =VLOOKUP(B20,Pilot!A:C,3,0) -> Zábřeh | D20: =VLOOKUP(B20,Pilot!A:C,2,0) -> 2001 | E20: =VLOOKUP(B20,Pilot!A:E,5,0) -> M | F20: =VLOOKUP(B20,Pilot!A:F,6,0) -> Junior v roce 2024 | G20: 11 | I20: =COUNTIF(B:B,B20) -> 1 | J20: =IF(ISERROR(VLOOKUP(B20,B:G,6,0)),"-",VLOOKUP(B20,B:G,6,0)) -> 11 | K20: =IF(COUNTIF('N PMČR 2024'!B:B,B20)=0,"-",COUNTIF('N PMČR 2024'!B:B,B20)) -> 1 | L20: =IF(ISERROR(VLOOKUP(B20,'N PMČR 2024'!B:G,6,0)),"-",VLOOKUP(B20,'N PMČR 2024'!B:G,6,0)) -> N3 | M20: =IF(COUNTIF('N PMRg 2024'!B:B,B20)=0,"-",COUNTIF('N PMRg 2024'!B:B,B20)) -> 1 | N20: =IF(ISERROR(VLOOKUP(B20,'N PMRg 2024'!B:G,6,0)),"-",VLOOKUP(B20,'N PMRg 2024'!B:G,6,0)) -> 2
A21: 12 | B21: Fabian Curda | C21: =VLOOKUP(B21,Pilot!A:C,3,0) -> Zábřeh | D21: =VLOOKUP(B21,Pilot!A:C,2,0) -> 2004 | E21: =VLOOKUP(B21,Pilot!A:E,5,0) -> M | F21: =VLOOKUP(B21,Pilot!A:F,6,0) -> Junior v roce 2024 | G21: 12 | I21: =COUNTIF(B:B,B21) -> 1 | J21: =IF(ISERROR(VLOOKUP(B21,B:G,6,0)),"-",VLOOKUP(B21,B:G,6,0)) -> 12 | K21: =IF(COUNTIF('N PMČR 2024'!B:B,B21)=0,"-",COUNTIF('N PMČR 2024'!B:B,B21)) -> - | L21: =IF(ISERROR(VLOOKUP(B21,'N PMČR 2024'!B:G,6,0)),"-",VLOOKUP(B21,'N PMČR 2024'!B:G,6,0)) -> - | M21: =IF(COUNTIF('N PMRg 2024'!B:B,B21)=0,"-",COUNTIF('N PMRg 2024'!B:B,B21)) -> 1 | N21: =IF(ISERROR(VLOOKUP(B21,'N PMRg 2024'!B:G,6,0)),"-",VLOOKUP(B21,'N PMRg 2024'!B:G,6,0)) -> 5
A22: 13 | B22: Adam Hepal | C22: =VLOOKUP(B22,Pilot!A:C,3,0) -> Moravská Třebová | D22: =VLOOKUP(B22,Pilot!A:C,2,0) -> 2004 | E22: =VLOOKUP(B22,Pilot!A:E,5,0) -> M | F22: =VLOOKUP(B22,Pilot!A:F,6,0) -> Junior v roce 2024 | G22: 13 | I22: =COUNTIF(B:B,B22) -> 1 | J22: =IF(ISERROR(VLOOKUP(B22,B:G,6,0)),"-",VLOOKUP(B22,B:G,6,0)) -> 13 | K22: =IF(COUNTIF('N PMČR 2024'!B:B,B22)=0,"-",COUNTIF('N PMČR 2024'!B:B,B22)) -> - | L22: =IF(ISERROR(VLOOKUP(B22,'N PMČR 2024'!B:G,6,0)),"-",VLOOKUP(B22,'N PMČR 2024'!B:G,6,0)) -> - | M22: =IF(COUNTIF('N PMRg 2024'!B:B,B22)=0,"-",COUNTIF('N PMRg 2024'!B:B,B22)) -> 1 | N22: =IF(ISERROR(VLOOKUP(B22,'N PMRg 2024'!B:G,6,0)),"-",VLOOKUP(B22,'N PMRg 2024'!B:G,6,0)) -> 6
B23: Další soutěžící, kteří se umístili v konečném pořadí na posledním platném PMČRj ve své třídě nejhůře v první polovině celkového pořadí pilotů ČR (bez náhradníků):
B24: PMČRj 2023 - Hosín - Klub
A25: =MAX(A8:A24)+1 -> 14 | B25: Tomas Hynek | C25: =VLOOKUP(B25,Pilot!A:C,3,0) -> Dvůr Králové | D25: =VLOOKUP(B25,Pilot!A:C,2,0) -> 2002 | E25: =VLOOKUP(B25,Pilot!A:E,5,0) -> M | F25: =VLOOKUP(B25,Pilot!A:F,6,0) -> Junior v roce 2024 | G25: =A25 -> 14 | I25: =COUNTIF(B:B,B25) -> 1 | J25: =IF(ISERROR(VLOOKUP(B25,B:G,6,0)),"-",VLOOKUP(B25,B:G,6,0)) -> 14 | K25: =IF(COUNTIF('N PMČR 2024'!B:B,B25)=0,"-",COUNTIF('N PMČR 2024'!B:B,B25)) -> 1 | L25: =IF(ISERROR(VLOOKUP(B25,'N PMČR 2024'!B:G,6,0)),"-",VLOOKUP(B25,'N PMČR 2024'!B:G,6,0)) -> 35 | M25: =IF(COUNTIF('N PMRg 2024'!B:B,B25)=0,"-",COUNTIF('N PMRg 2024'!B:B,B25)) -> - | N25: =IF(ISERROR(VLOOKUP(B25,'N PMRg 2024'!B:G,6,0)),"-",VLOOKUP(B25,'N PMRg 2024'!B:G,6,0)) -> -
A26: =A25+1 -> 15 | B26: Jan Beran | C26: =VLOOKUP(B26,Pilot!A:C,3,0) -> Kladno | D26: =VLOOKUP(B26,Pilot!A:C,2,0) -> 1999 | E26: =VLOOKUP(B26,Pilot!A:E,5,0) -> M | F26: =VLOOKUP(B26,Pilot!A:F,6,0) -> Junior v roce 2024 | G26: 15 | I26: =COUNTIF(B:B,B26) -> 1 | J26: =IF(ISERROR(VLOOKUP(B26,B:G,6,0)),"-",VLOOKUP(B26,B:G,6,0)) -> 15 | K26: =IF(COUNTIF('N PMČR 2024'!B:B,B26)=0,"-",COUNTIF('N PMČR 2024'!B:B,B26)) -> 1 | L26: =IF(ISERROR(VLOOKUP(B26,'N PMČR 2024'!B:G,6,0)),"-",VLOOKUP(B26,'N PMČR 2024'!B:G,6,0)) -> 36 | M26: =IF(COUNTIF('N PMRg 2024'!B:B,B26)=0,"-",COUNTIF('N PMRg 2024'!B:B,B26)) -> - | N26: =IF(ISERROR(VLOOKUP(B26,'N PMRg 2024'!B:G,6,0)),"-",VLOOKUP(B26,'N PMRg 2024'!B:G,6,0)) -> -
A27: =A26+1 -> 16 | B27: Lukas Maly | C27: =VLOOKUP(B27,Pilot!A:C,3,0) -> Vysoké Mýto | D27: =VLOOKUP(B27,Pilot!A:C,2,0) -> 1998 | E27: =VLOOKUP(B27,Pilot!A:E,5,0) -> M | F27: =VLOOKUP(B27,Pilot!A:F,6,0) ->  | G27: 16 | I27: =COUNTIF(B:B,B27) -> 1 | J27: =IF(ISERROR(VLOOKUP(B27,B:G,6,0)),"-",VLOOKUP(B27,B:G,6,0)) -> 16 | K27: =IF(COUNTIF('N PMČR 2024'!B:B,B27)=0,"-",COUNTIF('N PMČR 2024'!B:B,B27)) -> 1 | L27: =IF(ISERROR(VLOOKUP(B27,'N PMČR 2024'!B:G,6,0)),"-",VLOOKUP(B27,'N PMČR 2024'!B:G,6,0)) -> 37 | M27: =IF(COUNTIF('N PMRg 2024'!B:B,B27)=0,"-",COUNTIF('N PMRg 2024'!B:B,B27)) -> - | N27: =IF(ISERROR(VLOOKUP(B27,'N PMRg 2024'!B:G,6,0)),"-",VLOOKUP(B27,'N PMRg 2024'!B:G,6,0)) -> -
A28: 17 | B28: Stepan Bartos | C28: =VLOOKUP(B28,Pilot!A:C,3,0) -> Kolín | D28: =VLOOKUP(B28,Pilot!A:C,2,0) -> 2004 | E28: =VLOOKUP(B28,Pilot!A:E,5,0) -> M | F28: =VLOOKUP(B28,Pilot!A:F,6,0) -> Junior v roce 2024 | G28: =A28 -> 17 | I28: =COUNTIF(B:B,B28) -> 1 | J28: =IF(ISERROR(VLOOKUP(B28,B:G,6,0)),"-",VLOOKUP(B28,B:G,6,0)) -> 17 | K28: =IF(COUNTIF('N PMČR 2024'!B:B,B28)=0,"-",COUNTIF('N PMČR 2024'!B:B,B28)) -> 1 | L28: =IF(ISERROR(VLOOKUP(B28,'N PMČR 2024'!B:G,6,0)),"-",VLOOKUP(B28,'N PMČR 2024'!B:G,6,0)) -> 38 | M28: =IF(COUNTIF('N PMRg 2024'!B:B,B28)=0,"-",COUNTIF('N PMRg 2024'!B:B,B28)) -> - | N28: =IF(ISERROR(VLOOKUP(B28,'N PMRg 2024'!B:G,6,0)),"-",VLOOKUP(B28,'N PMRg 2024'!B:G,6,0)) -> -
B29: Ostatní soutěžící nominuje PK v pořadí podle umístění v CPS-INT předchozího roku do naplnění celkového počtu 40 nominovaných (+ 5 náhradníků):
A30: =MAX(A25:A29)+1 -> 18 | B30: - | C30: =VLOOKUP(B30,Pilot!A:C,3,0) ->  | D30: =VLOOKUP(B30,Pilot!A:C,2,0) ->  | E30: =VLOOKUP(B30,Pilot!A:E,5,0) ->  | F30: =VLOOKUP(B30,Pilot!A:F,6,0) ->  | G30: =A30 -> 18 | I30: =COUNTIF(B:B,B30) -> 33 | J30: =IF(ISERROR(VLOOKUP(B30,B:G,6,0)),"-",VLOOKUP(B30,B:G,6,0)) -> 18 | K30: =IF(COUNTIF('N PMČR 2024'!B:B,B30)=0,"-",COUNTIF('N PMČR 2024'!B:B,B30)) -> 6 | L30: =IF(ISERROR(VLOOKUP(B30,'N PMČR 2024'!B:G,6,0)),"-",VLOOKUP(B30,'N PMČR 2024'!B:G,6,0)) -> - | M30: =IF(COUNTIF('N PMRg 2024'!B:B,B30)=0,"-",COUNTIF('N PMRg 2024'!B:B,B30)) -> 66 | N30: =IF(ISERROR(VLOOKUP(B30,'N PMRg 2024'!B:G,6,0)),"-",VLOOKUP(B30,'N PMRg 2024'!B:G,6,0)) -> -
A31: =A30+1 -> 19 | B31: - | C31: =VLOOKUP(B31,Pilot!A:C,3,0) ->  | D31: =VLOOKUP(B31,Pilot!A:C,2,0) ->  | E31: =VLOOKUP(B31,Pilot!A:E,5,0) ->  | F31: =VLOOKUP(B31,Pilot!A:F,6,0) ->  | G31: 19 | I31: 33 | J31: 18 | K31: =IF(COUNTIF('N PMČR 2024'!B:B,B31)=0,"-",COUNTIF('N PMČR 2024'!B:B,B31)) -> 6 | L31: =IF(ISERROR(VLOOKUP(B31,'N PMČR 2024'!B:G,6,0)),"-",VLOOKUP(B31,'N PMČR 2024'!B:G,6,0)) -> - | M31: =IF(COUNTIF('N PMRg 2024'!B:B,B31)=0,"-",COUNTIF('N PMRg 2024'!B:B,B31)) -> 66 | N31: =IF(ISERROR(VLOOKUP(B31,'N PMRg 2024'!B:G,6,0)),"-",VLOOKUP(B31,'N PMRg 2024'!B:G,6,0)) -> -
A32: =A31+1 -> 20 | B32: - | C32: =VLOOKUP(B32,Pilot!A:C,3,0) ->  | D32: =VLOOKUP(B32,Pilot!A:C,2,0) ->  | E32: =VLOOKUP(B32,Pilot!A:E,5,0) ->  | F32: =VLOOKUP(B32,Pilot!A:F,6,0) ->  | G32: 20 | I32: 33 | J32: 18 | K32: =IF(COUNTIF('N PMČR 2024'!B:B,B32)=0,"-",COUNTIF('N PMČR 2024'!B:B,B32)) -> 6 | L32: =IF(ISERROR(VLOOKUP(B32,'N PMČR 2024'!B:G,6,0)),"-",VLOOKUP(B32,'N PMČR 2024'!B:G,6,0)) -> - | M32: =IF(COUNTIF('N PMRg 2024'!B:B,B32)=0,"-",COUNTIF('N PMRg 2024'!B:B,B32)) -> 66 | N32: =IF(ISERROR(VLOOKUP(B32,'N PMRg 2024'!B:G,6,0)),"-",VLOOKUP(B32,'N PMRg 2024'!B:G,6,0)) -> -
A33: 21 | B33: - | C33: =VLOOKUP(B33,Pilot!A:C,3,0) ->  | D33: =VLOOKUP(B33,Pilot!A:C,2,0) ->  | E33: =VLOOKUP(B33,Pilot!A:E,5,0) ->  | F33: =VLOOKUP(B33,Pilot!A:F,6,0) ->  | G33: 21 | I33: 33 | J33: 18 | K33: =IF(COUNTIF('N PMČR 2024'!B:B,B33)=0,"-",COUNTIF('N PMČR 2024'!B:B,B33)) -> 6 | L33: =IF(ISERROR(VLOOKUP(B33,'N PMČR 2024'!B:G,6,0)),"-",VLOOKUP(B33,'N PMČR 2024'!B:G,6,0)) -> - | M33: =IF(COUNTIF('N PMRg 2024'!B:B,B33)=0,"-",COUNTIF('N PMRg 2024'!B:B,B33)) -> 66 | N33: =IF(ISERROR(VLOOKUP(B33,'N PMRg 2024'!B:G,6,0)),"-",VLOOKUP(B33,'N PMRg 2024'!B:G,6,0)) -> -
A34: 22 | B34: - | C34: =VLOOKUP(B34,Pilot!A:C,3,0) ->  | D34: =VLOOKUP(B34,Pilot!A:C,2,0) ->  | E34: =VLOOKUP(B34,Pilot!A:E,5,0) ->  | F34: =VLOOKUP(B34,Pilot!A:F,6,0) ->  | G34: 22 | I34: 33 | J34: 18 | K34: =IF(COUNTIF('N PMČR 2024'!B:B,B34)=0,"-",COUNTIF('N PMČR 2024'!B:B,B34)) -> 6 | L34: =IF(ISERROR(VLOOKUP(B34,'N PMČR 2024'!B:G,6,0)),"-",VLOOKUP(B34,'N PMČR 2024'!B:G,6,0)) -> - | M34: =IF(COUNTIF('N PMRg 2024'!B:B,B34)=0,"-",COUNTIF('N PMRg 2024'!B:B,B34)) -> 66 | N34: =IF(ISERROR(VLOOKUP(B34,'N PMRg 2024'!B:G,6,0)),"-",VLOOKUP(B34,'N PMRg 2024'!B:G,6,0)) -> -
A35: 23 | B35: - | C35: =VLOOKUP(B35,Pilot!A:C,3,0) ->  | D35: =VLOOKUP(B35,Pilot!A:C,2,0) ->  | E35: =VLOOKUP(B35,Pilot!A:E,5,0) ->  | F35: =VLOOKUP(B35,Pilot!A:F,6,0) ->  | G35: 23 | I35: 33 | J35: 18 | K35: =IF(COUNTIF('N PMČR 2024'!B:B,B35)=0,"-",COUNTIF('N PMČR 2024'!B:B,B35)) -> 6 | L35: =IF(ISERROR(VLOOKUP(B35,'N PMČR 2024'!B:G,6,0)),"-",VLOOKUP(B35,'N PMČR 2024'!B:G,6,0)) -> - | M35: =IF(COUNTIF('N PMRg 2024'!B:B,B35)=0,"-",COUNTIF('N PMRg 2024'!B:B,B35)) -> 66 | N35: =IF(ISERROR(VLOOKUP(B35,'N PMRg 2024'!B:G,6,0)),"-",VLOOKUP(B35,'N PMRg 2024'!B:G,6,0)) -> -
A36: 24 | B36: - | C36: =VLOOKUP(B36,Pilot!A:C,3,0) ->  | D36: =VLOOKUP(B36,Pilot!A:C,2,0) ->  | E36: =VLOOKUP(B36,Pilot!A:E,5,0) ->  | F36: =VLOOKUP(B36,Pilot!A:F,6,0) ->  | G36: 24 | I36: 33 | J36: 18 | K36: =IF(COUNTIF('N PMČR 2024'!B:B,B36)=0,"-",COUNTIF('N PMČR 2024'!B:B,B36)) -> 6 | L36: =IF(ISERROR(VLOOKUP(B36,'N PMČR 2024'!B:G,6,0)),"-",VLOOKUP(B36,'N PMČR 2024'!B:G,6,0)) -> - | M36: =IF(COUNTIF('N PMRg 2024'!B:B,B36)=0,"-",COUNTIF('N PMRg 2024'!B:B,B36)) -> 66 | N36: =IF(ISERROR(VLOOKUP(B36,'N PMRg 2024'!B:G,6,0)),"-",VLOOKUP(B36,'N PMRg 2024'!B:G,6,0)) -> -
A37: 25 | B37: - | C37: =VLOOKUP(B37,Pilot!A:C,3,0) ->  | D37: =VLOOKUP(B37,Pilot!A:C,2,0) ->  | E37: =VLOOKUP(B37,Pilot!A:E,5,0) ->  | F37: =VLOOKUP(B37,Pilot!A:F,6,0) ->  | G37: 25 | I37: 33 | J37: 18 | K37: =IF(COUNTIF('N PMČR 2024'!B:B,B37)=0,"-",COUNTIF('N PMČR 2024'!B:B,B37)) -> 6 | L37: =IF(ISERROR(VLOOKUP(B37,'N PMČR 2024'!B:G,6,0)),"-",VLOOKUP(B37,'N PMČR 2024'!B:G,6,0)) -> - | M37: =IF(COUNTIF('N PMRg 2024'!B:B,B37)=0,"-",COUNTIF('N PMRg 2024'!B:B,B37)) -> 66 | N37: =IF(ISERROR(VLOOKUP(B37,'N PMRg 2024'!B:G,6,0)),"-",VLOOKUP(B37,'N PMRg 2024'!B:G,6,0)) -> -
A38: 26 | B38: - | C38: =VLOOKUP(B38,Pilot!A:C,3,0) ->  | D38: =VLOOKUP(B38,Pilot!A:C,2,0) ->  | E38: =VLOOKUP(B38,Pilot!A:E,5,0) ->  | F38: =VLOOKUP(B38,Pilot!A:F,6,0) ->  | G38: 26 | I38: 33 | J38: 18 | K38: =IF(COUNTIF('N PMČR 2024'!B:B,B38)=0,"-",COUNTIF('N PMČR 2024'!B:B,B38)) -> 6 | L38: =IF(ISERROR(VLOOKUP(B38,'N PMČR 2024'!B:G,6,0)),"-",VLOOKUP(B38,'N PMČR 2024'!B:G,6,0)) -> - | M38: =IF(COUNTIF('N PMRg 2024'!B:B,B38)=0,"-",COUNTIF('N PMRg 2024'!B:B,B38)) -> 66 | N38: =IF(ISERROR(VLOOKUP(B38,'N PMRg 2024'!B:G,6,0)),"-",VLOOKUP(B38,'N PMRg 2024'!B:G,6,0)) -> -
A39: 27 | B39: - | C39: =VLOOKUP(B39,Pilot!A:C,3,0) ->  | D39: =VLOOKUP(B39,Pilot!A:C,2,0) ->  | E39: =VLOOKUP(B39,Pilot!A:E,5,0) ->  | F39: =VLOOKUP(B39,Pilot!A:F,6,0) ->  | G39: 27 | I39: 33 | J39: 18 | K39: =IF(COUNTIF('N PMČR 2024'!B:B,B39)=0,"-",COUNTIF('N PMČR 2024'!B:B,B39)) -> 6 | L39: =IF(ISERROR(VLOOKUP(B39,'N PMČR 2024'!B:G,6,0)),"-",VLOOKUP(B39,'N PMČR 2024'!B:G,6,0)) -> - | M39: =IF(COUNTIF('N PMRg 2024'!B:B,B39)=0,"-",COUNTIF('N PMRg 2024'!B:B,B39)) -> 66 | N39: =IF(ISERROR(VLOOKUP(B39,'N PMRg 2024'!B:G,6,0)),"-",VLOOKUP(B39,'N PMRg 2024'!B:G,6,0)) -> -
A40: 28 | B40: - | C40: =VLOOKUP(B40,Pilot!A:C,3,0) ->  | D40: =VLOOKUP(B40,Pilot!A:C,2,0) ->  | E40: =VLOOKUP(B40,Pilot!A:E,5,0) ->  | F40: =VLOOKUP(B40,Pilot!A:F,6,0) ->  | G40: =A40 -> 28 | I40: 33 | J40: 18 | K40: =IF(COUNTIF('N PMČR 2024'!B:B,B40)=0,"-",COUNTIF('N PMČR 2024'!B:B,B40)) -> 6 | L40: =IF(ISERROR(VLOOKUP(B40,'N PMČR 2024'!B:G,6,0)),"-",VLOOKUP(B40,'N PMČR 2024'!B:G,6,0)) -> - | M40: =IF(COUNTIF('N PMRg 2024'!B:B,B40)=0,"-",COUNTIF('N PMRg 2024'!B:B,B40)) -> 66 | N40: =IF(ISERROR(VLOOKUP(B40,'N PMRg 2024'!B:G,6,0)),"-",VLOOKUP(B40,'N PMRg 2024'!B:G,6,0)) -> -
A41: 29 | B41: - | C41: =VLOOKUP(B41,Pilot!A:C,3,0) ->  | D41: =VLOOKUP(B41,Pilot!A:C,2,0) ->  | E41: =VLOOKUP(B41,Pilot!A:E,5,0) ->  | F41: =VLOOKUP(B41,Pilot!A:F,6,0) ->  | G41: 29 | I41: 33 | J41: 18 | K41: =IF(COUNTIF('N PMČR 2024'!B:B,B41)=0,"-",COUNTIF('N PMČR 2024'!B:B,B41)) -> 6 | L41: =IF(ISERROR(VLOOKUP(B41,'N PMČR 2024'!B:G,6,0)),"-",VLOOKUP(B41,'N PMČR 2024'!B:G,6,0)) -> - | M41: =IF(COUNTIF('N PMRg 2024'!B:B,B41)=0,"-",COUNTIF('N PMRg 2024'!B:B,B41)) -> 66 | N41: =IF(ISERROR(VLOOKUP(B41,'N PMRg 2024'!B:G,6,0)),"-",VLOOKUP(B41,'N PMRg 2024'!B:G,6,0)) -> -
A42: 30 | B42: - | C42: =VLOOKUP(B42,Pilot!A:C,3,0) ->  | D42: =VLOOKUP(B42,Pilot!A:C,2,0) ->  | E42: =VLOOKUP(B42,Pilot!A:E,5,0) ->  | F42: =VLOOKUP(B42,Pilot!A:F,6,0) ->  | G42: 30 | I42: 33 | J42: 18 | K42: =IF(COUNTIF('N PMČR 2024'!B:B,B42)=0,"-",COUNTIF('N PMČR 2024'!B:B,B42)) -> 6 | L42: =IF(ISERROR(VLOOKUP(B42,'N PMČR 2024'!B:G,6,0)),"-",VLOOKUP(B42,'N PMČR 2024'!B:G,6,0)) -> - | M42: =IF(COUNTIF('N PMRg 2024'!B:B,B42)=0,"-",COUNTIF('N PMRg 2024'!B:B,B42)) -> 66 | N42: =IF(ISERROR(VLOOKUP(B42,'N PMRg 2024'!B:G,6,0)),"-",VLOOKUP(B42,'N PMRg 2024'!B:G,6,0)) -> -
A43: 31 | B43: - | C43: =VLOOKUP(B43,Pilot!A:C,3,0) ->  | D43: =VLOOKUP(B43,Pilot!A:C,2,0) ->  | E43: =VLOOKUP(B43,Pilot!A:E,5,0) ->  | F43: =VLOOKUP(B43,Pilot!A:F,6,0) ->  | G43: 31 | I43: 33 | J43: 18 | K43: =IF(COUNTIF('N PMČR 2024'!B:B,B43)=0,"-",COUNTIF('N PMČR 2024'!B:B,B43)) -> 6 | L43: =IF(ISERROR(VLOOKUP(B43,'N PMČR 2024'!B:G,6,0)),"-",VLOOKUP(B43,'N PMČR 2024'!B:G,6,0)) -> - | M43: =IF(COUNTIF('N PMRg 2024'!B:B,B43)=0,"-",COUNTIF('N PMRg 2024'!B:B,B43)) -> 66 | N43: =IF(ISERROR(VLOOKUP(B43,'N PMRg 2024'!B:G,6,0)),"-",VLOOKUP(B43,'N PMRg 2024'!B:G,6,0)) -> -
A44: 32 | B44: - | C44: =VLOOKUP(B44,Pilot!A:C,3,0) ->  | D44: =VLOOKUP(B44,Pilot!A:C,2,0) ->  | E44: =VLOOKUP(B44,Pilot!A:E,5,0) ->  | F44: =VLOOKUP(B44,Pilot!A:F,6,0) ->  | G44: 32 | I44: 33 | J44: 18 | K44: =IF(COUNTIF('N PMČR 2024'!B:B,B44)=0,"-",COUNTIF('N PMČR 2024'!B:B,B44)) -> 6 | L44: =IF(ISERROR(VLOOKUP(B44,'N PMČR 2024'!B:G,6,0)),"-",VLOOKUP(B44,'N PMČR 2024'!B:G,6,0)) -> - | M44: =IF(COUNTIF('N PMRg 2024'!B:B,B44)=0,"-",COUNTIF('N PMRg 2024'!B:B,B44)) -> 66 | N44: =IF(ISERROR(VLOOKUP(B44,'N PMRg 2024'!B:G,6,0)),"-",VLOOKUP(B44,'N PMRg 2024'!B:G,6,0)) -> -
A45: 33 | B45: - | C45: =VLOOKUP(B45,Pilot!A:C,3,0) ->  | D45: =VLOOKUP(B45,Pilot!A:C,2,0) ->  | E45: =VLOOKUP(B45,Pilot!A:E,5,0) ->  | F45: =VLOOKUP(B45,Pilot!A:F,6,0) ->  | G45: 33 | I45: 33 | J45: 18 | K45: =IF(COUNTIF('N PMČR 2024'!B:B,B45)=0,"-",COUNTIF('N PMČR 2024'!B:B,B45)) -> 6 | L45: =IF(ISERROR(VLOOKUP(B45,'N PMČR 2024'!B:G,6,0)),"-",VLOOKUP(B45,'N PMČR 2024'!B:G,6,0)) -> - | M45: =IF(COUNTIF('N PMRg 2024'!B:B,B45)=0,"-",COUNTIF('N PMRg 2024'!B:B,B45)) -> 66 | N45: =IF(ISERROR(VLOOKUP(B45,'N PMRg 2024'!B:G,6,0)),"-",VLOOKUP(B45,'N PMRg 2024'!B:G,6,0)) -> -
A46: 34 | B46: - | C46: =VLOOKUP(B46,Pilot!A:C,3,0) ->  | D46: =VLOOKUP(B46,Pilot!A:C,2,0) ->  | E46: =VLOOKUP(B46,Pilot!A:E,5,0) ->  | F46: =VLOOKUP(B46,Pilot!A:F,6,0) ->  | G46: 34 | I46: 33 | J46: 18 | K46: =IF(COUNTIF('N PMČR 2024'!B:B,B46)=0,"-",COUNTIF('N PMČR 2024'!B:B,B46)) -> 6 | L46: =IF(ISERROR(VLOOKUP(B46,'N PMČR 2024'!B:G,6,0)),"-",VLOOKUP(B46,'N PMČR 2024'!B:G,6,0)) -> - | M46: =IF(COUNTIF('N PMRg 2024'!B:B,B46)=0,"-",COUNTIF('N PMRg 2024'!B:B,B46)) -> 66 | N46: =IF(ISERROR(VLOOKUP(B46,'N PMRg 2024'!B:G,6,0)),"-",VLOOKUP(B46,'N PMRg 2024'!B:G,6,0)) -> -
A47: 35 | B47: - | C47: =VLOOKUP(B47,Pilot!A:C,3,0) ->  | D47: =VLOOKUP(B47,Pilot!A:C,2,0) ->  | E47: =VLOOKUP(B47,Pilot!A:E,5,0) ->  | F47: =VLOOKUP(B47,Pilot!A:F,6,0) ->  | G47: =A47 -> 35 | I47: 33 | J47: 18 | K47: =IF(COUNTIF('N PMČR 2024'!B:B,B47)=0,"-",COUNTIF('N PMČR 2024'!B:B,B47)) -> 6 | L47: =IF(ISERROR(VLOOKUP(B47,'N PMČR 2024'!B:G,6,0)),"-",VLOOKUP(B47,'N PMČR 2024'!B:G,6,0)) -> - | M47: =IF(COUNTIF('N PMRg 2024'!B:B,B47)=0,"-",COUNTIF('N PMRg 2024'!B:B,B47)) -> 66 | N47: =IF(ISERROR(VLOOKUP(B47,'N PMRg 2024'!B:G,6,0)),"-",VLOOKUP(B47,'N PMRg 2024'!B:G,6,0)) -> -
A48: 36 | B48: - | C48: =VLOOKUP(B48,Pilot!A:C,3,0) ->  | D48: =VLOOKUP(B48,Pilot!A:C,2,0) ->  | E48: =VLOOKUP(B48,Pilot!A:E,5,0) ->  | F48: =VLOOKUP(B48,Pilot!A:F,6,0) ->  | G48: 36 | I48: 33 | J48: 18 | K48: =IF(COUNTIF('N PMČR 2024'!B:B,B48)=0,"-",COUNTIF('N PMČR 2024'!B:B,B48)) -> 6 | L48: =IF(ISERROR(VLOOKUP(B48,'N PMČR 2024'!B:G,6,0)),"-",VLOOKUP(B48,'N PMČR 2024'!B:G,6,0)) -> - | M48: =IF(COUNTIF('N PMRg 2024'!B:B,B48)=0,"-",COUNTIF('N PMRg 2024'!B:B,B48)) -> 66 | N48: =IF(ISERROR(VLOOKUP(B48,'N PMRg 2024'!B:G,6,0)),"-",VLOOKUP(B48,'N PMRg 2024'!B:G,6,0)) -> -
A49: 37 | B49: - | C49: =VLOOKUP(B49,Pilot!A:C,3,0) ->  | D49: =VLOOKUP(B49,Pilot!A:C,2,0) ->  | E49: =VLOOKUP(B49,Pilot!A:E,5,0) ->  | F49: =VLOOKUP(B49,Pilot!A:F,6,0) ->  | G49: 37 | I49: 33 | J49: 18 | K49: =IF(COUNTIF('N PMČR 2024'!B:B,B49)=0,"-",COUNTIF('N PMČR 2024'!B:B,B49)) -> 6 | L49: =IF(ISERROR(VLOOKUP(B49,'N PMČR 2024'!B:G,6,0)),"-",VLOOKUP(B49,'N PMČR 2024'!B:G,6,0)) -> - | M49: =IF(COUNTIF('N PMRg 2024'!B:B,B49)=0,"-",COUNTIF('N PMRg 2024'!B:B,B49)) -> 66 | N49: =IF(ISERROR(VLOOKUP(B49,'N PMRg 2024'!B:G,6,0)),"-",VLOOKUP(B49,'N PMRg 2024'!B:G,6,0)) -> -
A50: 38 | B50: - | C50: =VLOOKUP(B50,Pilot!A:C,3,0) ->  | D50: =VLOOKUP(B50,Pilot!A:C,2,0) ->  | E50: =VLOOKUP(B50,Pilot!A:E,5,0) ->  | F50: =VLOOKUP(B50,Pilot!A:F,6,0) ->  | G50: =A50 -> 38 | I50: 33 | J50: 18 | K50: =IF(COUNTIF('N PMČR 2024'!B:B,B50)=0,"-",COUNTIF('N PMČR 2024'!B:B,B50)) -> 6 | L50: =IF(ISERROR(VLOOKUP(B50,'N PMČR 2024'!B:G,6,0)),"-",VLOOKUP(B50,'N PMČR 2024'!B:G,6,0)) -> - | M50: =IF(COUNTIF('N PMRg 2024'!B:B,B50)=0,"-",COUNTIF('N PMRg 2024'!B:B,B50)) -> 66 | N50: =IF(ISERROR(VLOOKUP(B50,'N PMRg 2024'!B:G,6,0)),"-",VLOOKUP(B50,'N PMRg 2024'!B:G,6,0)) -> -
A51: 39 | B51: - | C51: =VLOOKUP(B51,Pilot!A:C,3,0) ->  | D51: =VLOOKUP(B51,Pilot!A:C,2,0) ->  | E51: =VLOOKUP(B51,Pilot!A:E,5,0) ->  | F51: =VLOOKUP(B51,Pilot!A:F,6,0) ->  | G51: 39 | I51: 33 | J51: 18 | K51: =IF(COUNTIF('N PMČR 2024'!B:B,B51)=0,"-",COUNTIF('N PMČR 2024'!B:B,B51)) -> 6 | L51: =IF(ISERROR(VLOOKUP(B51,'N PMČR 2024'!B:G,6,0)),"-",VLOOKUP(B51,'N PMČR 2024'!B:G,6,0)) -> - | M51: =IF(COUNTIF('N PMRg 2024'!B:B,B51)=0,"-",COUNTIF('N PMRg 2024'!B:B,B51)) -> 66 | N51: =IF(ISERROR(VLOOKUP(B51,'N PMRg 2024'!B:G,6,0)),"-",VLOOKUP(B51,'N PMRg 2024'!B:G,6,0)) -> -
A52: 40 | B52: - | C52: =VLOOKUP(B52,Pilot!A:C,3,0) ->  | D52: =VLOOKUP(B52,Pilot!A:C,2,0) ->  | E52: =VLOOKUP(B52,Pilot!A:E,5,0) ->  | F52: =VLOOKUP(B52,Pilot!A:F,6,0) ->  | G52: 40 | I52: 33 | J52: 18 | K52: =IF(COUNTIF('N PMČR 2024'!B:B,B52)=0,"-",COUNTIF('N PMČR 2024'!B:B,B52)) -> 6 | L52: =IF(ISERROR(VLOOKUP(B52,'N PMČR 2024'!B:G,6,0)),"-",VLOOKUP(B52,'N PMČR 2024'!B:G,6,0)) -> - | M52: =IF(COUNTIF('N PMRg 2024'!B:B,B52)=0,"-",COUNTIF('N PMRg 2024'!B:B,B52)) -> 66 | N52: =IF(ISERROR(VLOOKUP(B52,'N PMRg 2024'!B:G,6,0)),"-",VLOOKUP(B52,'N PMRg 2024'!B:G,6,0)) -> -
A53: N1 | B53: - | C53: =VLOOKUP(B53,Pilot!A:C,3,0) ->  | D53: =VLOOKUP(B53,Pilot!A:C,2,0) ->  | E53: =VLOOKUP(B53,Pilot!A:E,5,0) ->  | F53: =VLOOKUP(B53,Pilot!A:F,6,0) ->  | G53: N1 | I53: 33 | J53: 18 | K53: =IF(COUNTIF('N PMČR 2024'!B:B,B53)=0,"-",COUNTIF('N PMČR 2024'!B:B,B53)) -> 6 | L53: =IF(ISERROR(VLOOKUP(B53,'N PMČR 2024'!B:G,6,0)),"-",VLOOKUP(B53,'N PMČR 2024'!B:G,6,0)) -> - | M53: =IF(COUNTIF('N PMRg 2024'!B:B,B53)=0,"-",COUNTIF('N PMRg 2024'!B:B,B53)) -> 66 | N53: =IF(ISERROR(VLOOKUP(B53,'N PMRg 2024'!B:G,6,0)),"-",VLOOKUP(B53,'N PMRg 2024'!B:G,6,0)) -> -
A54: N2 | B54: - | C54: =VLOOKUP(B54,Pilot!A:C,3,0) ->  | D54: =VLOOKUP(B54,Pilot!A:C,2,0) ->  | E54: =VLOOKUP(B54,Pilot!A:E,5,0) ->  | F54: =VLOOKUP(B54,Pilot!A:F,6,0) ->  | G54: N2 | I54: 33 | J54: 18 | K54: =IF(COUNTIF('N PMČR 2024'!B:B,B54)=0,"-",COUNTIF('N PMČR 2024'!B:B,B54)) -> 6 | L54: =IF(ISERROR(VLOOKUP(B54,'N PMČR 2024'!B:G,6,0)),"-",VLOOKUP(B54,'N PMČR 2024'!B:G,6,0)) -> - | M54: =IF(COUNTIF('N PMRg 2024'!B:B,B54)=0,"-",COUNTIF('N PMRg 2024'!B:B,B54)) -> 66 | N54: =IF(ISERROR(VLOOKUP(B54,'N PMRg 2024'!B:G,6,0)),"-",VLOOKUP(B54,'N PMRg 2024'!B:G,6,0)) -> -
A55: N3 | B55: - | C55: =VLOOKUP(B55,Pilot!A:C,3,0) ->  | D55: =VLOOKUP(B55,Pilot!A:C,2,0) ->  | E55: =VLOOKUP(B55,Pilot!A:E,5,0) ->  | F55: =VLOOKUP(B55,Pilot!A:F,6,0) ->  | G55: N3 | I55: 33 | J55: 18 | K55: =IF(COUNTIF('N PMČR 2024'!B:B,B55)=0,"-",COUNTIF('N PMČR 2024'!B:B,B55)) -> 6 | L55: =IF(ISERROR(VLOOKUP(B55,'N PMČR 2024'!B:G,6,0)),"-",VLOOKUP(B55,'N PMČR 2024'!B:G,6,0)) -> - | M55: =IF(COUNTIF('N PMRg 2024'!B:B,B55)=0,"-",COUNTIF('N PMRg 2024'!B:B,B55)) -> 66 | N55: =IF(ISERROR(VLOOKUP(B55,'N PMRg 2024'!B:G,6,0)),"-",VLOOKUP(B55,'N PMRg 2024'!B:G,6,0)) -> -
A56: N4 | B56: - | C56: =VLOOKUP(B56,Pilot!A:C,3,0) ->  | D56: =VLOOKUP(B56,Pilot!A:C,2,0) ->  | E56: =VLOOKUP(B56,Pilot!A:E,5,0) ->  | F56: =VLOOKUP(B56,Pilot!A:F,6,0) ->  | G56: N4 | I56: 33 | J56: 18 | K56: =IF(COUNTIF('N PMČR 2024'!B:B,B56)=0,"-",COUNTIF('N PMČR 2024'!B:B,B56)) -> 6 | L56: =IF(ISERROR(VLOOKUP(B56,'N PMČR 2024'!B:G,6,0)),"-",VLOOKUP(B56,'N PMČR 2024'!B:G,6,0)) -> - | M56: =IF(COUNTIF('N PMRg 2024'!B:B,B56)=0,"-",COUNTIF('N PMRg 2024'!B:B,B56)) -> 66 | N56: =IF(ISERROR(VLOOKUP(B56,'N PMRg 2024'!B:G,6,0)),"-",VLOOKUP(B56,'N PMRg 2024'!B:G,6,0)) -> -
A57: N5 | B57: - | C57: =VLOOKUP(B57,Pilot!A:C,3,0) ->  | D57: =VLOOKUP(B57,Pilot!A:C,2,0) ->  | E57: =VLOOKUP(B57,Pilot!A:E,5,0) ->  | F57: =VLOOKUP(B57,Pilot!A:F,6,0) ->  | G57: N5 | I57: 33 | J57: 18 | K57: =IF(COUNTIF('N PMČR 2024'!B:B,B57)=0,"-",COUNTIF('N PMČR 2024'!B:B,B57)) -> 6 | L57: =IF(ISERROR(VLOOKUP(B57,'N PMČR 2024'!B:G,6,0)),"-",VLOOKUP(B57,'N PMČR 2024'!B:G,6,0)) -> - | M57: =IF(COUNTIF('N PMRg 2024'!B:B,B57)=0,"-",COUNTIF('N PMRg 2024'!B:B,B57)) -> 66 | N57: =IF(ISERROR(VLOOKUP(B57,'N PMRg 2024'!B:G,6,0)),"-",VLOOKUP(B57,'N PMRg 2024'!B:G,6,0)) -> -
A58: 6.7.5.6. | B58: Další soutěžící může navrhnout PK podle jiných kritérií dle odstavce 9. SŘ:
